Workbook

Sheet SCHEMATIC
A1: Typical Schematic for a CRM/DCM Boost PFC Converter Using the UCC28056
B38: RECOMMENDED BILL OF MATERIALS
B39: Reference Designator | C39: Description/Comments
B40: FUSE | C40: Type: | D40: Fast Acting
C41: Voltage Rating: | D41: =IF(Vin_rms_max<270,250,350) -> 250 | E41: ='DESIGN INPUTS AND CALCULATIONS'!D26 -> VRMS
C42: Current Rating: | D42: =CEILING(Ifuse,0.5) -> 1 | E42: ='DESIGN INPUTS AND CALCULATIONS'!D51 -> A
B43: DB1 | C43: DC Blocking Voltage: | D43: =CEILING(Vrated,100) -> 300 | E43: ='DESIGN INPUTS AND CALCULATIONS'!D98 -> V
C44: Current Rating: | D44: =CEILING(Ibridge,1) -> 1 | E44: ='DESIGN INPUTS AND CALCULATIONS'!D97 -> A
C45: Power Dissipation: | D45: =Pbridge -> 0.9085019184 | E45: ='DESIGN INPUTS AND CALCULATIONS'!D99 -> W
B46: CIN | C46: Type: | D46: Film Capacitor
C47: Value: | D47: =IF(Cin="",Cin_rcmd,Cin) -> 0.1 | E47: ='DESIGN INPUTS AND CALCULATIONS'!D108 -> µF
C48: Volatge Rating: | D48: =Vin_rms_max -> 130 | E48: VRMS
B49: LBST | C49: Inductor Value: | D49: =IF(Lbst="",#NAME?,Lbst) -> 680 | E49: ='DESIGN INPUTS AND CALCULATIONS'!D60 -> µH
C50: Peak Current Rating: | D50: =IL_pk_max -> 2.928253964 | E50: ='DESIGN INPUTS AND CALCULATIONS'!D60 -> µH
C51: RMS Current: | D51: =IL_rms_max -> 1.195454675 | E51: ='DESIGN INPUTS AND CALCULATIONS'!D63 -> A
C52: Saturated Current: | D52: =IL_sat -> 3.666666667 | E52: ='DESIGN INPUTS AND CALCULATIONS'!D72 -> A
B53: D1 | C53: Type: | D53: Diode
C54: Current Rating: | D54: =Irated -> 1 | E54: ='DESIGN INPUTS AND CALCULATIONS'!D121 -> A
C55: Volatge Rating: | D55: =CEILING(Vdiode_blocking,100) ->  | E55: ='DESIGN INPUTS AND CALCULATIONS'!D37 -> V
C56: Power Dissipation: | D56: =Pdiode -> 0.125 | E56: ='DESIGN INPUTS AND CALCULATIONS'!D117 -> W
B57: Q1 | C57: Type: | D57: MOSFET, Nchannel
C58: RMS Drain Current Rating: | D58: =CEILING(1.2*Ids_rms_max,0.5) -> 1 | E58: ='DESIGN INPUTS AND CALCULATIONS'!D128 -> A
C59: Peak Current Rating: | D59: =Ids_rms_max -> 0.4947853421 | E59: ='DESIGN INPUTS AND CALCULATIONS'!D128 -> A
C60: Voltage Rating: | D60: =CEILING(Vovp2*1.25,100) ->  | E60: ='DESIGN INPUTS AND CALCULATIONS'!D32 -> V
C61: Power Dissipation: | D61: =P_FET -> 1.028330543 | E61: ='DESIGN INPUTS AND CALCULATIONS'!D140 -> W
B62: RCS | C62: Type: | D62: Resistor, Low Inductance
C63: Value: | D63: =IF(Rcs="",Rcs_rcmd,Rcs) -> 0.15 | E63: W
C64: Power Dissipation: | D64: =P_Rsense -> 0.07421780132 | E64: ='DESIGN INPUTS AND CALCULATIONS'!D73 -> W
B65: RCS_FILTER | C65: Type: | D65: Resistor, Chip, 1/16W
C66: Value: | D66: =Rcs_filter -> 3000 | E66: W
B67: CCS_FILTER | C67: Type: | D67: Capacitor, Ceramic, 100V, X7R, ±10%
C68: Value: | D68: =Ccs_filter -> 10 | E68: ='DESIGN INPUTS AND CALCULATIONS'!D74 -> pF
B69: RZC1 | C69: Type: | D69: Resistor, Low Inductance
C70: Value: | D70: =IF(Rzc1="",Rzc1_rcmd,Rzc1) -> 10 | E70: MW
C71: Power Dissipation: | D71: =P_Rsense -> 0.07421780132 | E71: ='DESIGN INPUTS AND CALCULATIONS'!D80 -> 0
B72: RZC2 | C72: Type: | D72: Resistor, Low Inductance
C73: Value: | D73: =IF(Rzc2="",Rzc2_rcmd,Rzc2) -> 20 | E73: kW
C74: Power Dissipation: | D74: =P_Rsense -> 0.07421780132 | E74: ='DESIGN INPUTS AND CALCULATIONS'!D80 -> 0
B75: COUT | C75: Type: | D75: Capacitor, Aluminum, ±20%
C76: Value: | D76: =IF(Cout="",Cout_rcmd,Cout) -> 22 | E76: ='DESIGN INPUTS AND CALCULATIONS'!D147 -> µF
C77: Voltage Rating: | D77: =CEILING(Vovp2,100) ->  | E77: V
C78: 2 x fLINE Ripple Current Rating: | D78: =Icout_2fline -> 0.07071067812 | E78: ARMS
C79: HF Ripple Current Rating: | D79: =Icout_HF -> 0.7825371518 | E79: ARMS
B80: ROS1 | C80: Type: | D80: Resistor, Chip, Total Voltage Rating 400V, ±1%
C81: Value: | D81: =IF(Ros1="",Ros1_rcmd,Ros1) -> 10 | E81: MW
B82: ROS2 | C82: Type: | D82: Resistor, Chip, 1/10W, ±1%
C83: Value: | D83: =IF(Ros2="",Ros2_rcmd,Ros2) -> 0 | E83: kW
B84: ROS3 | C84: Type: | D84: Resistor, Chip, 1/10W, ±1%
C85: Value: | D85: =IF(Ros3="",Ros3_rcmd,Ros3) -> 50 | E85: kW
B86: CVOSNS | C86: Type: | D86: Capacitor, Ceramic, 50V, X7R, ±10%
C87: Value: | D87: =Cvosns -> 3000 | E87: pF
B88: CZ | C88: Type: | D88: Capacitor, Ceramic, 10V, X5R, ±10%
C89: Value: | D89: =IF(Cz="",#NAME?,Cz) -> 0.2 | E89: mF
B90: RZ | C90: Type: | D90: Resistor, Chip, 1/10W, ±1%
C91: Value: | D91: =IF(Rz="",#NAME?,Rz) -> 275 | E91: kW
B92: CP | C92: Type: | D92: Capacitor, Ceramic, 10V, X5R, ±10%
C93: Value: | D93: =IF(Cp="",#NAME?,Cp) -> 0.02 | E93: mF
B94: CVCC | C94: Type: | D94: Ceramic, Low ESR/ESL, placed close to the VCC and GND pins with short traces
C95: Values: | D95: 0.1 | E95: mF min
D96: 1 | E96: mF max
B97: RGATE | C97: Type: | D97: Resistor, Chip, 1/10W, ±1%
C98: Value: | D98: As Needed
B99: RDG | C99: Type: | D99: Resistor, Chip, 1/10W, ±1%
C100: Value: | D100: As Needed

Sheet DESIGN INPUTS AND CALCULATIONS
A1: UCC28056X DESIGN CALCULATOR TOOL
A2: TI Literature Number: | C2: Rev A
A3: UCC28056X 6-Pin Single-Phase Transition-Mode PFC Controller
A4: Please enter design parameters into the | B4: shaded | C4: cells;
A5: Calculated results will be in RED | F5: COMP | G5: 0.1 | H5: 0.2 | I5: 0.25 | J5: 0.5 | K5: 0.75 | L5: 1
A6: Be sure to ENABLE EDITING before attempting to use this design calculator | F6: VFF_F | G6: 90 | H6: 104.96 | I6: 122.4 | J6: 142.74 | K6: 166.46 | L6: 194.12 | M6: 226.38 | N6: 264 | Q6: alpha | R6: TONn(0.1) | S6: TONn(0.2) | T6: TONn(0.25) | U6: TONn(0.5) | V6: TONn(0.75) | W6: TONn(1) | Y6: TDCHn(0.1) | Z6: TDCHn(0.2) | AA6: TDCHn(0.25) | AB6: TDCHn(0.5) | AC6: TDCHn(0.75) | AD6: TDCHn(1) | AF6: Freq(0.1)
A7: This spreadsheet guides the user through the design process of a Transition-Mode PFC BOOST CONVERTER using the UCC28056X. User interaction is required in order to get the best possible results. Enter the desired specification where prompted, the highlighted cells are for user inputs; calculations for the design are based upon the inputs. | F7: TDCMCoe | G7: 0.15 | H7: 0.45 | I7: 0.16 | J7: 0.52 | Q7: 0.01 | R7: =(G$5*((90/$G$18)*(90/$G$18))/2)*(1+(SQRT(1+(4/(G$5*((90/$G$18)*(90/$G$18))))*$G$23*(1-(SQRT(2)*Vin_rms_min*(SIN($Q7)/Vout)))))) -> 0.321019019 | S7: =(H$5*((90/$G$18)*(90/$G$18))/2)*(1+(SQRT(1+(4/(H$5*((90/$G$18)*(90/$G$18))))*$H$23*(1-(SQRT(2)*Vin_rms_min*(SIN($Q7)/Vout)))))) -> 0.307770874 | T7: =(I$5*((90/$G$18)*(90/$G$18))/2)*(1+(SQRT(1+(4/(I$5*((90/$G$18)*(90/$G$18))))*$I$23*(1-(SQRT(2)*Vin_rms_min*(SIN($Q7)/Vout)))))) -> 0.2997105804 | U7: =(J$5*((90/$G$18)*(90/$G$18))/2)*(1+(SQRT(1+(4/(J$5*((90/$G$18)*(90/$G$18))))*$J$23*(1-(SQRT(2)*Vin_rms_min*(SIN($Q7)/Vout)))))) -> 0.2703287197 | V7: =(K$5*((90/$G$18)*(90/$G$18))/2)*(1+(SQRT(1+(4/(K$5*((90/$G$18)*(90/$G$18))))*$K$23*(1-(SQRT(2)*Vin_rms_min*(SIN($Q7)/Vout)))))) -> 0.4054930796 | W7: =(L$5*((90/$G$18)*(90/$G$18))/2)*(1+(SQRT(1+(4/(L$5*((90/$G$18)*(90/$G$18))))*$L$23*(1-(SQRT(2)*Vin_rms_min*(SIN($Q7)/Vout)))))) -> 0.5406574394 | Y7: =R7*ABS(1/(Vout/(SQRT(2)*$C$25*SIN($Q7)))) -> 0.0009987601448 | Z7: =S7*ABS(1/(Vout/(SQRT(2)*$C$25*SIN($Q7)))) -> 0.0009575422778 | AA7: =T7*ABS(1/(Vout/(SQRT(2)*$C$25*SIN($Q7)))) -> 0.0009324649475 | AB7: =U7*ABS(1/(Vout/(SQRT(2)*$C$25*SIN($Q7)))) -> 0.0008410515741 | AC7: =V7*ABS(1/(Vout/(SQRT(2)*$C$25*SIN($Q7)))) -> 0.001261577361 | AD7: =W7*ABS(1/(Vout/(SQRT(2)*$C$25*SIN($Q7)))) -> 0.001682103148 | AF7: =1/(0.0000128*(R7+Y7+$G$23)) -> 40859.9757 | AG7: =1/(0.0000128*(S7+Z7+$H$23)) -> 88906.87789 | AH7: =1/(0.0000128*(T7+AA7+$I$23)) -> 117191.6523 | AI7: =1/(0.0000128*(U7+AB7+$J$23)) -> 288103.6468 | AJ7: =1/(0.0000128*(V7+AC7+$K$23)) -> 192069.0978 | AK7: =1/(0.0000128*(W7+AD7+$L$23)) -> 144051.8234
F8: VFF_select_index | G8: =IF(G$6>=Vin_rms_min,1,0-1) -> -1 | H8: =IF(H$6>=Vin_rms_min,1,0-1) -> -1 | I8: =IF(I$6>=Vin_rms_min,1,0-1) -> 1 | J8: =IF(J$6>=Vin_rms_min,1,0-1) -> 1 | K8: =IF(K$6>=Vin_rms_min,1,0-1) -> 1 | L8: =IF(L$6>=Vin_rms_min,1,0-1) -> 1 | M8: =IF(M$6>=Vin_rms_min,1,0-1) -> 1 | N8: =IF(N$6>=Vin_rms_min,1,0-1) -> 1 | Q8: =Q7+0.01 -> 0.02 | R8: =(G$5*((90/$G$18)*(90/$G$18))/2)*(1+(SQRT(1+(4/(G$5*((90/$G$18)*(90/$G$18))))*$G$23*(1-(SQRT(2)*Vin_rms_min*(SIN($Q8)/Vout)))))) -> 0.3205638362 | S8: =(H$5*((90/$G$18)*(90/$G$18))/2)*(1+(SQRT(1+(4/(H$5*((90/$G$18)*(90/$G$18))))*$H$23*(1-(SQRT(2)*Vin_rms_min*(SIN($Q8)/Vout)))))) -> 0.3073927114 | T8: =(I$5*((90/$G$18)*(90/$G$18))/2)*(1+(SQRT(1+(4/(I$5*((90/$G$18)*(90/$G$18))))*$I$23*(1-(SQRT(2)*Vin_rms_min*(SIN($Q8)/Vout)))))) -> 0.2993788522 | U8: =(J$5*((90/$G$18)*(90/$G$18))/2)*(1+(SQRT(1+(4/(J$5*((90/$G$18)*(90/$G$18))))*$J$23*(1-(SQRT(2)*Vin_rms_min*(SIN($Q8)/Vout)))))) -> 0.2703287197 | V8: =(K$5*((90/$G$18)*(90/$G$18))/2)*(1+(SQRT(1+(4/(K$5*((90/$G$18)*(90/$G$18))))*$K$23*(1-(SQRT(2)*Vin_rms_min*(SIN($Q8)/Vout)))))) -> 0.4054930796 | W8: =(L$5*((90/$G$18)*(90/$G$18))/2)*(1+(SQRT(1+(4/(L$5*((90/$G$18)*(90/$G$18))))*$L$23*(1-(SQRT(2)*Vin_rms_min*(SIN($Q8)/Vout)))))) -> 0.5406574394 | Y8: =R8*ABS(1/(Vout/(SQRT(2)*$C$25*SIN($Q8)))) -> 0.00199458821 | Z8: =S8*ABS(1/(Vout/(SQRT(2)*$C$25*SIN($Q8)))) -> 0.001912635827 | AA8: =T8*ABS(1/(Vout/(SQRT(2)*$C$25*SIN($Q8)))) -> 0.001862772595 | AB8: =U8*ABS(1/(Vout/(SQRT(2)*$C$25*SIN($Q8)))) -> 0.001682019044 | AC8: =V8*ABS(1/(Vout/(SQRT(2)*$C$25*SIN($Q8)))) -> 0.002523028566 | AD8: =W8*ABS(1/(Vout/(SQRT(2)*$C$25*SIN($Q8)))) -> 0.003364038088 | AF8: =1/(0.0000128*(R8+Y8+$G$23)) -> 40848.42534 | AG8: =1/(0.0000128*(S8+Z8+$H$23)) -> 88848.54419 | AH8: =1/(0.0000128*(T8+AA8+$I$23)) -> 117086.5202 | AI8: =1/(0.0000128*(U8+AB8+$J$23)) -> 287212.9253 | AJ8: =1/(0.0000128*(V8+AC8+$K$23)) -> 191475.2835 | AK8: =1/(0.0000128*(W8+AD8+$L$23)) -> 143606.4627
G9: =G6*G8 -> -90 | H9: =H6*H8 -> -104.96 | I9: =I6*I8 -> 122.4 | J9: =J6*J8 -> 142.74 | K9: =K6*K8 -> 166.46 | L9: =L6*L8 -> 194.12 | M9: =M6*M8 -> 226.38 | N9: =N6*N8 -> 264 | Q9: =Q8+0.01 -> 0.03 | R9: =(G$5*((90/$G$18)*(90/$G$18))/2)*(1+(SQRT(1+(4/(G$5*((90/$G$18)*(90/$G$18))))*$G$23*(1-(SQRT(2)*Vin_rms_min*(SIN($Q9)/Vout)))))) -> 0.3201080378 | S9: =(H$5*((90/$G$18)*(90/$G$18))/2)*(1+(SQRT(1+(4/(H$5*((90/$G$18)*(90/$G$18))))*$H$23*(1-(SQRT(2)*Vin_rms_min*(SIN($Q9)/Vout)))))) -> 0.3070140592 | T9: =(I$5*((90/$G$18)*(90/$G$18))/2)*(1+(SQRT(1+(4/(I$5*((90/$G$18)*(90/$G$18))))*$I$23*(1-(SQRT(2)*Vin_rms_min*(SIN($Q9)/Vout)))))) -> 0.299046715 | U9: =(J$5*((90/$G$18)*(90/$G$18))/2)*(1+(SQRT(1+(4/(J$5*((90/$G$18)*(90/$G$18))))*$J$23*(1-(SQRT(2)*Vin_rms_min*(SIN($Q9)/Vout)))))) -> 0.2703287197 | V9: =(K$5*((90/$G$18)*(90/$G$18))/2)*(1+(SQRT(1+(4/(K$5*((90/$G$18)*(90/$G$18))))*$K$23*(1-(SQRT(2)*Vin_rms_min*(SIN($Q9)/Vout)))))) -> 0.4054930796 | W9: =(L$5*((90/$G$18)*(90/$G$18))/2)*(1+(SQRT(1+(4/(L$5*((90/$G$18)*(90/$G$18))))*$L$23*(1-(SQRT(2)*Vin_rms_min*(SIN($Q9)/Vout)))))) -> 0.5406574394 | Y9: =R9*ABS(1/(Vout/(SQRT(2)*$C$25*SIN($Q9)))) -> 0.002987379294 | Z9: =S9*ABS(1/(Vout/(SQRT(2)*$C$25*SIN($Q9)))) -> 0.002865180924 | AA9: =T9*ABS(1/(Vout/(SQRT(2)*$C$25*SIN($Q9)))) -> 0.002790826405 | AB9: =U9*ABS(1/(Vout/(SQRT(2)*$C$25*SIN($Q9)))) -> 0.002522818313 | AC9: =V9*ABS(1/(Vout/(SQRT(2)*$C$25*SIN($Q9)))) -> 0.003784227469 | AD9: =W9*ABS(1/(Vout/(SQRT(2)*$C$25*SIN($Q9)))) -> 0.005045636626 | AF9: =1/(0.0000128*(R9+Y9+$G$23)) -> 40836.95947 | AG9: =1/(0.0000128*(S9+Z9+$H$23)) -> 88790.59357 | AH9: =1/(0.0000128*(T9+AA9+$I$23)) -> 116982.043 | AI9: =1/(0.0000128*(U9+AB9+$J$23)) -> 286327.8711 | AJ9: =1/(0.0000128*(V9+AC9+$K$23)) -> 190885.2474 | AK9: =1/(0.0000128*(W9+AD9+$L$23)) -> 143163.9355
Q10: =Q9+0.01 -> 0.04 | R10: =(G$5*((90/$G$18)*(90/$G$18))/2)*(1+(SQRT(1+(4/(G$5*((90/$G$18)*(90/$G$18))))*$G$23*(1-(SQRT(2)*Vin_rms_min*(SIN($Q10)/Vout)))))) -> 0.3196516664 | S10: =(H$5*((90/$G$18)*(90/$G$18))/2)*(1+(SQRT(1+(4/(H$5*((90/$G$18)*(90/$G$18))))*$H$23*(1-(SQRT(2)*Vin_rms_min*(SIN($Q10)/Vout)))))) -> 0.3066349532 | T10: =(I$5*((90/$G$18)*(90/$G$18))/2)*(1+(SQRT(1+(4/(I$5*((90/$G$18)*(90/$G$18))))*$I$23*(1-(SQRT(2)*Vin_rms_min*(SIN($Q10)/Vout)))))) -> 0.2987142004 | U10: =(J$5*((90/$G$18)*(90/$G$18))/2)*(1+(SQRT(1+(4/(J$5*((90/$G$18)*(90/$G$18))))*$J$23*(1-(SQRT(2)*Vin_rms_min*(SIN($Q10)/Vout)))))) -> 0.2703287197 | V10: =(K$5*((90/$G$18)*(90/$G$18))/2)*(1+(SQRT(1+(4/(K$5*((90/$G$18)*(90/$G$18))))*$K$23*(1-(SQRT(2)*Vin_rms_min*(SIN($Q10)/Vout)))))) -> 0.4054930796 | W10: =(L$5*((90/$G$18)*(90/$G$18))/2)*(1+(SQRT(1+(4/(L$5*((90/$G$18)*(90/$G$18))))*$L$23*(1-(SQRT(2)*Vin_rms_min*(SIN($Q10)/Vout)))))) -> 0.5406574394 | Y10: =R10*ABS(1/(Vout/(SQRT(2)*$C$25*SIN($Q10)))) -> 0.003977029614 | Z10: =S10*ABS(1/(Vout/(SQRT(2)*$C$25*SIN($Q10)))) -> 0.00381507878 | AA10: =T10*ABS(1/(Vout/(SQRT(2)*$C$25*SIN($Q10)))) -> 0.003716530667 | AB10: =U10*ABS(1/(Vout/(SQRT(2)*$C$25*SIN($Q10)))) -> 0.003363365302 | AC10: =V10*ABS(1/(Vout/(SQRT(2)*$C$25*SIN($Q10)))) -> 0.005045047954 | AD10: =W10*ABS(1/(Vout/(SQRT(2)*$C$25*SIN($Q10)))) -> 0.006726730605 | AF10: =1/(0.0000128*(R10+Y10+$G$23)) -> 40825.57926 | AG10: =1/(0.0000128*(S10+Z10+$H$23)) -> 88733.03102 | AH10: =1/(0.0000128*(T10+AA10+$I$23)) -> 116878.2289 | AI10: =1/(0.0000128*(U10+AB10+$J$23)) -> 285448.5178 | AJ10: =1/(0.0000128*(V10+AC10+$K$23)) -> 190299.0119 | AK10: =1/(0.0000128*(W10+AD10+$L$23)) -> 142724.2589
G11: =IF(M9>0,N9,264) -> 264 | Q11: =Q10+0.01 -> 0.05 | R11: =(G$5*((90/$G$18)*(90/$G$18))/2)*(1+(SQRT(1+(4/(G$5*((90/$G$18)*(90/$G$18))))*$G$23*(1-(SQRT(2)*Vin_rms_min*(SIN($Q11)/Vout)))))) -> 0.3191947653 | S11: =(H$5*((90/$G$18)*(90/$G$18))/2)*(1+(SQRT(1+(4/(H$5*((90/$G$18)*(90/$G$18))))*$H$23*(1-(SQRT(2)*Vin_rms_min*(SIN($Q11)/Vout)))))) -> 0.3062554294 | T11: =(I$5*((90/$G$18)*(90/$G$18))/2)*(1+(SQRT(1+(4/(I$5*((90/$G$18)*(90/$G$18))))*$I$23*(1-(SQRT(2)*Vin_rms_min*(SIN($Q11)/Vout)))))) -> 0.2983813401 | U11: =(J$5*((90/$G$18)*(90/$G$18))/2)*(1+(SQRT(1+(4/(J$5*((90/$G$18)*(90/$G$18))))*$J$23*(1-(SQRT(2)*Vin_rms_min*(SIN($Q11)/Vout)))))) -> 0.2703287197 | V11: =(K$5*((90/$G$18)*(90/$G$18))/2)*(1+(SQRT(1+(4/(K$5*((90/$G$18)*(90/$G$18))))*$K$23*(1-(SQRT(2)*Vin_rms_min*(SIN($Q11)/Vout)))))) -> 0.4054930796 | W11: =(L$5*((90/$G$18)*(90/$G$18))/2)*(1+(SQRT(1+(4/(L$5*((90/$G$18)*(90/$G$18))))*$L$23*(1-(SQRT(2)*Vin_rms_min*(SIN($Q11)/Vout)))))) -> 0.5406574394 | Y11: =R11*ABS(1/(Vout/(SQRT(2)*$C$25*SIN($Q11)))) -> 0.004963436525 | Z11: =S11*ABS(1/(Vout/(SQRT(2)*$C$25*SIN($Q11)))) -> 0.004762231558 | AA11: =T11*ABS(1/(Vout/(SQRT(2)*$C$25*SIN($Q11)))) -> 0.004639790508 | AB11: =U11*ABS(1/(Vout/(SQRT(2)*$C$25*SIN($Q11)))) -> 0.004203575958 | AC11: =V11*ABS(1/(Vout/(SQRT(2)*$C$25*SIN($Q11)))) -> 0.006305363937 | AD11: =W11*ABS(1/(Vout/(SQRT(2)*$C$25*SIN($Q11)))) -> 0.008407151916 | AF11: =1/(0.0000128*(R11+Y11+$G$23)) -> 40814.28585 | AG11: =1/(0.0000128*(S11+Z11+$H$23)) -> 88675.86141 | AH11: =1/(0.0000128*(T11+AA11+$I$23)) -> 116775.0859 | AI11: =1/(0.0000128*(U11+AB11+$J$23)) -> 284574.8978 | AJ11: =1/(0.0000128*(V11+AC11+$K$23)) -> 189716.5986 | AK11: =1/(0.0000128*(W11+AD11+$L$23)) -> 142287.4489
A12: WHERE APPLICABLE, A RECOMMENDED VALUE IS GIVEN THAT WILL BE THE BEST CHOICE TO MEET THE GIVEN SPECIFICATION. IT IS IN THE BEST INTEREST OF THE USER TO USE A VALUE AS CLOSE AS POSSIBLE TO THE SUGGESTED RECOMMENDED VALUE. FOR ACCURATE RESULTS, THE USER MUST ENTER THE ACTUAL VALUE USED IN THE APPROPRIATE CELL. | G12: =IF(M9>0,M9,G11) -> 226.38 | Q12: =Q11+0.01 -> 0.06 | R12: =(G$5*((90/$G$18)*(90/$G$18))/2)*(1+(SQRT(1+(4/(G$5*((90/$G$18)*(90/$G$18))))*$G$23*(1-(SQRT(2)*Vin_rms_min*(SIN($Q12)/Vout)))))) -> 0.3187373775 | S12: =(H$5*((90/$G$18)*(90/$G$18))/2)*(1+(SQRT(1+(4/(H$5*((90/$G$18)*(90/$G$18))))*$H$23*(1-(SQRT(2)*Vin_rms_min*(SIN($Q12)/Vout)))))) -> 0.3058755239 | T12: =(I$5*((90/$G$18)*(90/$G$18))/2)*(1+(SQRT(1+(4/(I$5*((90/$G$18)*(90/$G$18))))*$I$23*(1-(SQRT(2)*Vin_rms_min*(SIN($Q12)/Vout)))))) -> 0.298048166 | U12: =(J$5*((90/$G$18)*(90/$G$18))/2)*(1+(SQRT(1+(4/(J$5*((90/$G$18)*(90/$G$18))))*$J$23*(1-(SQRT(2)*Vin_rms_min*(SIN($Q12)/Vout)))))) -> 0.2703287197 | V12: =(K$5*((90/$G$18)*(90/$G$18))/2)*(1+(SQRT(1+(4/(K$5*((90/$G$18)*(90/$G$18))))*$K$23*(1-(SQRT(2)*Vin_rms_min*(SIN($Q12)/Vout)))))) -> 0.4054930796 | W12: =(L$5*((90/$G$18)*(90/$G$18))/2)*(1+(SQRT(1+(4/(L$5*((90/$G$18)*(90/$G$18))))*$L$23*(1-(SQRT(2)*Vin_rms_min*(SIN($Q12)/Vout)))))) -> 0.5406574394 | Y12: =R12*ABS(1/(Vout/(SQRT(2)*$C$25*SIN($Q12)))) -> 0.005946498534 | Z12: =S12*ABS(1/(Vout/(SQRT(2)*$C$25*SIN($Q12)))) -> 0.005706542384 | AA12: =T12*ABS(1/(Vout/(SQRT(2)*$C$25*SIN($Q12)))) -> 0.005560511904 | AB12: =U12*ABS(1/(Vout/(SQRT(2)*$C$25*SIN($Q12)))) -> 0.00504336626 | AC12: =V12*ABS(1/(Vout/(SQRT(2)*$C$25*SIN($Q12)))) -> 0.00756504939 | AD12: =W12*ABS(1/(Vout/(SQRT(2)*$C$25*SIN($Q12)))) -> 0.01008673252 | AF12: =1/(0.0000128*(R12+Y12+$G$23)) -> 40803.08033 | AG12: =1/(0.0000128*(S12+Z12+$H$23)) -> 88619.08947 | AH12: =1/(0.0000128*(T12+AA12+$I$23)) -> 116672.6218 | AI12: =1/(0.0000128*(U12+AB12+$J$23)) -> 283707.0421 | AJ12: =1/(0.0000128*(V12+AC12+$K$23)) -> 189138.0281 | AK12: =1/(0.0000128*(W12+AD12+$L$23)) -> 141853.5211
G13: =IF(L9>0,L9,G12) -> 194.12 | Q13: =Q12+0.01 -> 0.07 | R13: =(G$5*((90/$G$18)*(90/$G$18))/2)*(1+(SQRT(1+(4/(G$5*((90/$G$18)*(90/$G$18))))*$G$23*(1-(SQRT(2)*Vin_rms_min*(SIN($Q13)/Vout)))))) -> 0.3182795469 | S13: =(H$5*((90/$G$18)*(90/$G$18))/2)*(1+(SQRT(1+(4/(H$5*((90/$G$18)*(90/$G$18))))*$H$23*(1-(SQRT(2)*Vin_rms_min*(SIN($Q13)/Vout)))))) -> 0.305495273 | T13: =(I$5*((90/$G$18)*(90/$G$18))/2)*(1+(SQRT(1+(4/(I$5*((90/$G$18)*(90/$G$18))))*$I$23*(1-(SQRT(2)*Vin_rms_min*(SIN($Q13)/Vout)))))) -> 0.29771471 | U13: =(J$5*((90/$G$18)*(90/$G$18))/2)*(1+(SQRT(1+(4/(J$5*((90/$G$18)*(90/$G$18))))*$J$23*(1-(SQRT(2)*Vin_rms_min*(SIN($Q13)/Vout)))))) -> 0.2703287197 | V13: =(K$5*((90/$G$18)*(90/$G$18))/2)*(1+(SQRT(1+(4/(K$5*((90/$G$18)*(90/$G$18))))*$K$23*(1-(SQRT(2)*Vin_rms_min*(SIN($Q13)/Vout)))))) -> 0.4054930796 | W13: =(L$5*((90/$G$18)*(90/$G$18))/2)*(1+(SQRT(1+(4/(L$5*((90/$G$18)*(90/$G$18))))*$L$23*(1-(SQRT(2)*Vin_rms_min*(SIN($Q13)/Vout)))))) -> 0.5406574394 | Y13: =R13*ABS(1/(Vout/(SQRT(2)*$C$25*SIN($Q13)))) -> 0.006926115315 | Z13: =S13*ABS(1/(Vout/(SQRT(2)*$C$25*SIN($Q13)))) -> 0.006647915361 | AA13: =T13*ABS(1/(Vout/(SQRT(2)*$C$25*SIN($Q13)))) -> 0.006478601697 | AB13: =U13*ABS(1/(Vout/(SQRT(2)*$C$25*SIN($Q13)))) -> 0.005882652229 | AC13: =V13*ABS(1/(Vout/(SQRT(2)*$C$25*SIN($Q13)))) -> 0.008823978343 | AD13: =W13*ABS(1/(Vout/(SQRT(2)*$C$25*SIN($Q13)))) -> 0.01176530446 | AF13: =1/(0.0000128*(R13+Y13+$G$23)) -> 40791.96378 | AG13: =1/(0.0000128*(S13+Z13+$H$23)) -> 88562.71979 | AH13: =1/(0.0000128*(T13+AA13+$I$23)) -> 116570.844 | AI13: =1/(0.0000128*(U13+AB13+$J$23)) -> 282844.9801 | AJ13: =1/(0.0000128*(V13+AC13+$K$23)) -> 188563.3201 | AK13: =1/(0.0000128*(W13+AD13+$L$23)) -> 141422.49
G14: =IF(K9>0,K9,G13) -> 166.46 | Q14: =Q13+0.01 -> 0.08 | R14: =(G$5*((90/$G$18)*(90/$G$18))/2)*(1+(SQRT(1+(4/(G$5*((90/$G$18)*(90/$G$18))))*$G$23*(1-(SQRT(2)*Vin_rms_min*(SIN($Q14)/Vout)))))) -> 0.317821317 | S14: =(H$5*((90/$G$18)*(90/$G$18))/2)*(1+(SQRT(1+(4/(H$5*((90/$G$18)*(90/$G$18))))*$H$23*(1-(SQRT(2)*Vin_rms_min*(SIN($Q14)/Vout)))))) -> 0.3051147132 | T14: =(I$5*((90/$G$18)*(90/$G$18))/2)*(1+(SQRT(1+(4/(I$5*((90/$G$18)*(90/$G$18))))*$I$23*(1-(SQRT(2)*Vin_rms_min*(SIN($Q14)/Vout)))))) -> 0.2973810044 | U14: =(J$5*((90/$G$18)*(90/$G$18))/2)*(1+(SQRT(1+(4/(J$5*((90/$G$18)*(90/$G$18))))*$J$23*(1-(SQRT(2)*Vin_rms_min*(SIN($Q14)/Vout)))))) -> 0.2703287197 | V14: =(K$5*((90/$G$18)*(90/$G$18))/2)*(1+(SQRT(1+(4/(K$5*((90/$G$18)*(90/$G$18))))*$K$23*(1-(SQRT(2)*Vin_rms_min*(SIN($Q14)/Vout)))))) -> 0.4054930796 | W14: =(L$5*((90/$G$18)*(90/$G$18))/2)*(1+(SQRT(1+(4/(L$5*((90/$G$18)*(90/$G$18))))*$L$23*(1-(SQRT(2)*Vin_rms_min*(SIN($Q14)/Vout)))))) -> 0.5406574394 | Y14: =R14*ABS(1/(Vout/(SQRT(2)*$C$25*SIN($Q14)))) -> 0.007902187719 | Z14: =S14*ABS(1/(Vout/(SQRT(2)*$C$25*SIN($Q14)))) -> 0.007586255581 | AA14: =T14*ABS(1/(Vout/(SQRT(2)*$C$25*SIN($Q14)))) -> 0.007393967601 | AB14: =U14*ABS(1/(Vout/(SQRT(2)*$C$25*SIN($Q14)))) -> 0.006721349938 | AC14: =V14*ABS(1/(Vout/(SQRT(2)*$C$25*SIN($Q14)))) -> 0.01008202491 | AD14: =W14*ABS(1/(Vout/(SQRT(2)*$C$25*SIN($Q14)))) -> 0.01344269988 | AF14: =1/(0.0000128*(R14+Y14+$G$23)) -> 40780.93723 | AG14: =1/(0.0000128*(S14+Z14+$H$23)) -> 88506.75683 | AH14: =1/(0.0000128*(T14+AA14+$I$23)) -> 116469.76 | AI14: =1/(0.0000128*(U14+AB14+$J$23)) -> 281988.7398 | AJ14: =1/(0.0000128*(V14+AC14+$K$23)) -> 187992.4932 | AK14: =1/(0.0000128*(W14+AD14+$L$23)) -> 140994.3699
G15: =IF(J9>0,J9,G14) -> 142.74 | Q15: =Q14+0.01 -> 0.09 | R15: =(G$5*((90/$G$18)*(90/$G$18))/2)*(1+(SQRT(1+(4/(G$5*((90/$G$18)*(90/$G$18))))*$G$23*(1-(SQRT(2)*Vin_rms_min*(SIN($Q15)/Vout)))))) -> 0.317362732 | S15: =(H$5*((90/$G$18)*(90/$G$18))/2)*(1+(SQRT(1+(4/(H$5*((90/$G$18)*(90/$G$18))))*$H$23*(1-(SQRT(2)*Vin_rms_min*(SIN($Q15)/Vout)))))) -> 0.3047338814 | T15: =(I$5*((90/$G$18)*(90/$G$18))/2)*(1+(SQRT(1+(4/(I$5*((90/$G$18)*(90/$G$18))))*$I$23*(1-(SQRT(2)*Vin_rms_min*(SIN($Q15)/Vout)))))) -> 0.2970470815 | U15: =(J$5*((90/$G$18)*(90/$G$18))/2)*(1+(SQRT(1+(4/(J$5*((90/$G$18)*(90/$G$18))))*$J$23*(1-(SQRT(2)*Vin_rms_min*(SIN($Q15)/Vout)))))) -> 0.2703287197 | V15: =(K$5*((90/$G$18)*(90/$G$18))/2)*(1+(SQRT(1+(4/(K$5*((90/$G$18)*(90/$G$18))))*$K$23*(1-(SQRT(2)*Vin_rms_min*(SIN($Q15)/Vout)))))) -> 0.4054930796 | W15: =(L$5*((90/$G$18)*(90/$G$18))/2)*(1+(SQRT(1+(4/(L$5*((90/$G$18)*(90/$G$18))))*$L$23*(1-(SQRT(2)*Vin_rms_min*(SIN($Q15)/Vout)))))) -> 0.5406574394 | Y15: =R15*ABS(1/(Vout/(SQRT(2)*$C$25*SIN($Q15)))) -> 0.008874617794 | Z15: =S15*ABS(1/(Vout/(SQRT(2)*$C$25*SIN($Q15)))) -> 0.008521469139 | AA15: =T15*ABS(1/(Vout/(SQRT(2)*$C$25*SIN($Q15)))) -> 0.008306518217 | AB15: =U15*ABS(1/(Vout/(SQRT(2)*$C$25*SIN($Q15)))) -> 0.007559375517 | AC15: =V15*ABS(1/(Vout/(SQRT(2)*$C$25*SIN($Q15)))) -> 0.01133906328 | AD15: =W15*ABS(1/(Vout/(SQRT(2)*$C$25*SIN($Q15)))) -> 0.01511875103 | AF15: =1/(0.0000128*(R15+Y15+$G$23)) -> 40770.0017 | AG15: =1/(0.0000128*(S15+Z15+$H$23)) -> 88451.20491 | AH15: =1/(0.0000128*(T15+AA15+$I$23)) -> 116369.3768 | AI15: =1/(0.0000128*(U15+AB15+$J$23)) -> 281138.3479 | AJ15: =1/(0.0000128*(V15+AC15+$K$23)) -> 187425.5653 | AK15: =1/(0.0000128*(W15+AD15+$L$23)) -> 140569.174
G16: =IF(I9>0,I9,G15) -> 122.4 | Q16: =Q15+0.01 -> 0.1 | R16: =(G$5*((90/$G$18)*(90/$G$18))/2)*(1+(SQRT(1+(4/(G$5*((90/$G$18)*(90/$G$18))))*$G$23*(1-(SQRT(2)*Vin_rms_min*(SIN($Q16)/Vout)))))) -> 0.3169038362 | S16: =(H$5*((90/$G$18)*(90/$G$18))/2)*(1+(SQRT(1+(4/(H$5*((90/$G$18)*(90/$G$18))))*$H$23*(1-(SQRT(2)*Vin_rms_min*(SIN($Q16)/Vout)))))) -> 0.3043528145 | T16: =(I$5*((90/$G$18)*(90/$G$18))/2)*(1+(SQRT(1+(4/(I$5*((90/$G$18)*(90/$G$18))))*$I$23*(1-(SQRT(2)*Vin_rms_min*(SIN($Q16)/Vout)))))) -> 0.2967129738 | U16: =(J$5*((90/$G$18)*(90/$G$18))/2)*(1+(SQRT(1+(4/(J$5*((90/$G$18)*(90/$G$18))))*$J$23*(1-(SQRT(2)*Vin_rms_min*(SIN($Q16)/Vout)))))) -> 0.2703287197 | V16: =(K$5*((90/$G$18)*(90/$G$18))/2)*(1+(SQRT(1+(4/(K$5*((90/$G$18)*(90/$G$18))))*$K$23*(1-(SQRT(2)*Vin_rms_min*(SIN($Q16)/Vout)))))) -> 0.4054930796 | W16: =(L$5*((90/$G$18)*(90/$G$18))/2)*(1+(SQRT(1+(4/(L$5*((90/$G$18)*(90/$G$18))))*$L$23*(1-(SQRT(2)*Vin_rms_min*(SIN($Q16)/Vout)))))) -> 0.5406574394 | Y16: =R16*ABS(1/(Vout/(SQRT(2)*$C$25*SIN($Q16)))) -> 0.009843308793 | Z16: =S16*ABS(1/(Vout/(SQRT(2)*$C$25*SIN($Q16)))) -> 0.009453463142 | AA16: =T16*ABS(1/(Vout/(SQRT(2)*$C$25*SIN($Q16)))) -> 0.009216163045 | AB16: =U16*ABS(1/(Vout/(SQRT(2)*$C$25*SIN($Q16)))) -> 0.008396645165 | AC16: =V16*ABS(1/(Vout/(SQRT(2)*$C$25*SIN($Q16)))) -> 0.01259496775 | AD16: =W16*ABS(1/(Vout/(SQRT(2)*$C$25*SIN($Q16)))) -> 0.01679329033 | AF16: =1/(0.0000128*(R16+Y16+$G$23)) -> 40759.15814 | AG16: =1/(0.0000128*(S16+Z16+$H$23)) -> 88396.06821 | AH16: =1/(0.0000128*(T16+AA16+$I$23)) -> 116269.7013 | AI16: =1/(0.0000128*(U16+AB16+$J$23)) -> 280293.8298 | AJ16: =1/(0.0000128*(V16+AC16+$K$23)) -> 186862.5532 | AK16: =1/(0.0000128*(W16+AD16+$L$23)) -> 140146.9149
A17: Disclaimer | G17: =IF(H9>0,H9,G16) -> 122.4 | Q17: =Q16+0.01 -> 0.11 | R17: =(G$5*((90/$G$18)*(90/$G$18))/2)*(1+(SQRT(1+(4/(G$5*((90/$G$18)*(90/$G$18))))*$G$23*(1-(SQRT(2)*Vin_rms_min*(SIN($Q17)/Vout)))))) -> 0.316444674 | S17: =(H$5*((90/$G$18)*(90/$G$18))/2)*(1+(SQRT(1+(4/(H$5*((90/$G$18)*(90/$G$18))))*$H$23*(1-(SQRT(2)*Vin_rms_min*(SIN($Q17)/Vout)))))) -> 0.3039715495 | T17: =(I$5*((90/$G$18)*(90/$G$18))/2)*(1+(SQRT(1+(4/(I$5*((90/$G$18)*(90/$G$18))))*$I$23*(1-(SQRT(2)*Vin_rms_min*(SIN($Q17)/Vout)))))) -> 0.296378714 | U17: =(J$5*((90/$G$18)*(90/$G$18))/2)*(1+(SQRT(1+(4/(J$5*((90/$G$18)*(90/$G$18))))*$J$23*(1-(SQRT(2)*Vin_rms_min*(SIN($Q17)/Vout)))))) -> 0.2703287197 | V17: =(K$5*((90/$G$18)*(90/$G$18))/2)*(1+(SQRT(1+(4/(K$5*((90/$G$18)*(90/$G$18))))*$K$23*(1-(SQRT(2)*Vin_rms_min*(SIN($Q17)/Vout)))))) -> 0.4054930796 | W17: =(L$5*((90/$G$18)*(90/$G$18))/2)*(1+(SQRT(1+(4/(L$5*((90/$G$18)*(90/$G$18))))*$L$23*(1-(SQRT(2)*Vin_rms_min*(SIN($Q17)/Vout)))))) -> 0.5406574394 | Y17: =R17*ABS(1/(Vout/(SQRT(2)*$C$25*SIN($Q17)))) -> 0.01080816519 | Z17: =S17*ABS(1/(Vout/(SQRT(2)*$C$25*SIN($Q17)))) -> 0.01038214572 | AA17: =T17*ABS(1/(Vout/(SQRT(2)*$C$25*SIN($Q17)))) -> 0.01012281249 | AB17: =U17*ABS(1/(Vout/(SQRT(2)*$C$25*SIN($Q17)))) -> 0.009233075156 | AC17: =V17*ABS(1/(Vout/(SQRT(2)*$C$25*SIN($Q17)))) -> 0.01384961273 | AD17: =W17*ABS(1/(Vout/(SQRT(2)*$C$25*SIN($Q17)))) -> 0.01846615031 | AF17: =1/(0.0000128*(R17+Y17+$G$23)) -> 40748.40752 | AG17: =1/(0.0000128*(S17+Z17+$H$23)) -> 88341.35078 | AH17: =1/(0.0000128*(T17+AA17+$I$23)) -> 116170.74 | AI17: =1/(0.0000128*(U17+AB17+$J$23)) -> 279455.2097 | AJ17: =1/(0.0000128*(V17+AC17+$K$23)) -> 186303.4731 | AK17: =1/(0.0000128*(W17+AD17+$L$23)) -> 139727.6048
A18: This product is designed as an aid for customers of Texas Instruments. No warranties, either expressed or implied, with respect to this software or its fitness for any particular purpose, are claimed by Texas Instruments or the author. The software is licensed solely on an "as is" basis. The entire risk as to its quality and performance is with the customer. | F18: VFF value | G18: =IF(G9>0,G9,G17) -> 122.4 | Q18: =Q17+0.01 -> 0.12 | R18: =(G$5*((90/$G$18)*(90/$G$18))/2)*(1+(SQRT(1+(4/(G$5*((90/$G$18)*(90/$G$18))))*$G$23*(1-(SQRT(2)*Vin_rms_min*(SIN($Q18)/Vout)))))) -> 0.3159852902 | S18: =(H$5*((90/$G$18)*(90/$G$18))/2)*(1+(SQRT(1+(4/(H$5*((90/$G$18)*(90/$G$18))))*$H$23*(1-(SQRT(2)*Vin_rms_min*(SIN($Q18)/Vout)))))) -> 0.3035901237 | T18: =(I$5*((90/$G$18)*(90/$G$18))/2)*(1+(SQRT(1+(4/(I$5*((90/$G$18)*(90/$G$18))))*$I$23*(1-(SQRT(2)*Vin_rms_min*(SIN($Q18)/Vout)))))) -> 0.2960443349 | U18: =(J$5*((90/$G$18)*(90/$G$18))/2)*(1+(SQRT(1+(4/(J$5*((90/$G$18)*(90/$G$18))))*$J$23*(1-(SQRT(2)*Vin_rms_min*(SIN($Q18)/Vout)))))) -> 0.2703287197 | V18: =(K$5*((90/$G$18)*(90/$G$18))/2)*(1+(SQRT(1+(4/(K$5*((90/$G$18)*(90/$G$18))))*$K$23*(1-(SQRT(2)*Vin_rms_min*(SIN($Q18)/Vout)))))) -> 0.4054930796 | W18: =(L$5*((90/$G$18)*(90/$G$18))/2)*(1+(SQRT(1+(4/(L$5*((90/$G$18)*(90/$G$18))))*$L$23*(1-(SQRT(2)*Vin_rms_min*(SIN($Q18)/Vout)))))) -> 0.5406574394 | Y18: =R18*ABS(1/(Vout/(SQRT(2)*$C$25*SIN($Q18)))) -> 0.01176909268 | Z18: =S18*ABS(1/(Vout/(SQRT(2)*$C$25*SIN($Q18)))) -> 0.01130742605 | AA18: =T18*ABS(1/(Vout/(SQRT(2)*$C$25*SIN($Q18)))) -> 0.01102637788 | AB18: =U18*ABS(1/(Vout/(SQRT(2)*$C$25*SIN($Q18)))) -> 0.01006858185 | AC18: =V18*ABS(1/(Vout/(SQRT(2)*$C$25*SIN($Q18)))) -> 0.01510287277 | AD18: =W18*ABS(1/(Vout/(SQRT(2)*$C$25*SIN($Q18)))) -> 0.02013716369 | AF18: =1/(0.0000128*(R18+Y18+$G$23)) -> 40737.75072 | AG18: =1/(0.0000128*(S18+Z18+$H$23)) -> 88287.05653 | AH18: =1/(0.0000128*(T18+AA18+$I$23)) -> 116072.4995 | AI18: =1/(0.0000128*(U18+AB18+$J$23)) -> 278622.5101 | AJ18: =1/(0.0000128*(V18+AC18+$K$23)) -> 185748.3401 | AK18: =1/(0.0000128*(W18+AD18+$L$23)) -> 139311.2551
F19: TDCM | G19: =IF(G18>190,I7,G7) -> 0.15 | H19: =IF(G18>190,J7,H7) -> 0.45 | Q19: =Q18+0.01 -> 0.13 | R19: =(G$5*((90/$G$18)*(90/$G$18))/2)*(1+(SQRT(1+(4/(G$5*((90/$G$18)*(90/$G$18))))*$G$23*(1-(SQRT(2)*Vin_rms_min*(SIN($Q19)/Vout)))))) -> 0.3155257299 | S19: =(H$5*((90/$G$18)*(90/$G$18))/2)*(1+(SQRT(1+(4/(H$5*((90/$G$18)*(90/$G$18))))*$H$23*(1-(SQRT(2)*Vin_rms_min*(SIN($Q19)/Vout)))))) -> 0.3032085747 | T19: =(I$5*((90/$G$18)*(90/$G$18))/2)*(1+(SQRT(1+(4/(I$5*((90/$G$18)*(90/$G$18))))*$I$23*(1-(SQRT(2)*Vin_rms_min*(SIN($Q19)/Vout)))))) -> 0.2957098696 | U19: =(J$5*((90/$G$18)*(90/$G$18))/2)*(1+(SQRT(1+(4/(J$5*((90/$G$18)*(90/$G$18))))*$J$23*(1-(SQRT(2)*Vin_rms_min*(SIN($Q19)/Vout)))))) -> 0.2703287197 | V19: =(K$5*((90/$G$18)*(90/$G$18))/2)*(1+(SQRT(1+(4/(K$5*((90/$G$18)*(90/$G$18))))*$K$23*(1-(SQRT(2)*Vin_rms_min*(SIN($Q19)/Vout)))))) -> 0.4054930796 | W19: =(L$5*((90/$G$18)*(90/$G$18))/2)*(1+(SQRT(1+(4/(L$5*((90/$G$18)*(90/$G$18))))*$L$23*(1-(SQRT(2)*Vin_rms_min*(SIN($Q19)/Vout)))))) -> 0.5406574394 | Y19: =R19*ABS(1/(Vout/(SQRT(2)*$C$25*SIN($Q19)))) -> 0.01272599823 | Z19: =S19*ABS(1/(Vout/(SQRT(2)*$C$25*SIN($Q19)))) -> 0.01222921435 | AA19: =T19*ABS(1/(Vout/(SQRT(2)*$C$25*SIN($Q19)))) -> 0.01192677148 | AB19: =U19*ABS(1/(Vout/(SQRT(2)*$C$25*SIN($Q19)))) -> 0.01090308169 | AC19: =V19*ABS(1/(Vout/(SQRT(2)*$C$25*SIN($Q19)))) -> 0.01635462253 | AD19: =W19*ABS(1/(Vout/(SQRT(2)*$C$25*SIN($Q19)))) -> 0.02180616338 | AF19: =1/(0.0000128*(R19+Y19+$G$23)) -> 40727.18865 | AG19: =1/(0.0000128*(S19+Z19+$H$23)) -> 88233.18923 | AH19: =1/(0.0000128*(T19+AA19+$I$23)) -> 115974.986 | AI19: =1/(0.0000128*(U19+AB19+$J$23)) -> 277795.7529 | AJ19: =1/(0.0000128*(V19+AC19+$K$23)) -> 185197.1686 | AK19: =1/(0.0000128*(W19+AD19+$L$23)) -> 138897.8764
G20: =$G$19*(1/(G$5*(90/$G$18)))-$H$19 -> 1.59 | H20: =$G$19*(1/(H$5*(90/$G$18)))-$H$19 -> 0.57 | I20: =$G$19*(1/(I$5*(90/$G$18)))-$H$19 -> 0.366 | J20: =$G$19*(1/(J$5*(90/$G$18)))-$H$19 -> -0.042 | K20: =$G$19*(1/(K$5*(90/$G$18)))-$H$19 -> -0.178 | L20: =$G$19*(1/(L$5*(90/$G$18)))-$H$19 -> -0.246 | Q20: =Q19+0.01 -> 0.14 | R20: =(G$5*((90/$G$18)*(90/$G$18))/2)*(1+(SQRT(1+(4/(G$5*((90/$G$18)*(90/$G$18))))*$G$23*(1-(SQRT(2)*Vin_rms_min*(SIN($Q20)/Vout)))))) -> 0.3150660382 | S20: =(H$5*((90/$G$18)*(90/$G$18))/2)*(1+(SQRT(1+(4/(H$5*((90/$G$18)*(90/$G$18))))*$H$23*(1-(SQRT(2)*Vin_rms_min*(SIN($Q20)/Vout)))))) -> 0.3028269402 | T20: =(I$5*((90/$G$18)*(90/$G$18))/2)*(1+(SQRT(1+(4/(I$5*((90/$G$18)*(90/$G$18))))*$I$23*(1-(SQRT(2)*Vin_rms_min*(SIN($Q20)/Vout)))))) -> 0.2953753512 | U20: =(J$5*((90/$G$18)*(90/$G$18))/2)*(1+(SQRT(1+(4/(J$5*((90/$G$18)*(90/$G$18))))*$J$23*(1-(SQRT(2)*Vin_rms_min*(SIN($Q20)/Vout)))))) -> 0.2703287197 | V20: =(K$5*((90/$G$18)*(90/$G$18))/2)*(1+(SQRT(1+(4/(K$5*((90/$G$18)*(90/$G$18))))*$K$23*(1-(SQRT(2)*Vin_rms_min*(SIN($Q20)/Vout)))))) -> 0.4054930796 | W20: =(L$5*((90/$G$18)*(90/$G$18))/2)*(1+(SQRT(1+(4/(L$5*((90/$G$18)*(90/$G$18))))*$L$23*(1-(SQRT(2)*Vin_rms_min*(SIN($Q20)/Vout)))))) -> 0.5406574394 | Y20: =R20*ABS(1/(Vout/(SQRT(2)*$C$25*SIN($Q20)))) -> 0.01367879002 | Z20: =S20*ABS(1/(Vout/(SQRT(2)*$C$25*SIN($Q20)))) -> 0.01314742189 | AA20: =T20*ABS(1/(Vout/(SQRT(2)*$C$25*SIN($Q20)))) -> 0.01282390647 | AB20: =U20*ABS(1/(Vout/(SQRT(2)*$C$25*SIN($Q20)))) -> 0.01173649123 | AC20: =V20*ABS(1/(Vout/(SQRT(2)*$C$25*SIN($Q20)))) -> 0.01760473685 | AD20: =W20*ABS(1/(Vout/(SQRT(2)*$C$25*SIN($Q20)))) -> 0.02347298246 | AF20: =1/(0.0000128*(R20+Y20+$G$23)) -> 40716.72213 | AG20: =1/(0.0000128*(S20+Z20+$H$23)) -> 88179.75253 | AH20: =1/(0.0000128*(T20+AA20+$I$23)) -> 115878.2053 | AI20: =1/(0.0000128*(U20+AB20+$J$23)) -> 276974.9582 | AJ20: =1/(0.0000128*(V20+AC20+$K$23)) -> 184649.9721 | AK20: =1/(0.0000128*(W20+AD20+$L$23)) -> 138487.4791
G21: =MAX(G20:L20) -> 1.59 | Q21: =Q20+0.01 -> 0.15 | R21: =(G$5*((90/$G$18)*(90/$G$18))/2)*(1+(SQRT(1+(4/(G$5*((90/$G$18)*(90/$G$18))))*$G$23*(1-(SQRT(2)*Vin_rms_min*(SIN($Q21)/Vout)))))) -> 0.3146062605 | S21: =(H$5*((90/$G$18)*(90/$G$18))/2)*(1+(SQRT(1+(4/(H$5*((90/$G$18)*(90/$G$18))))*$H$23*(1-(SQRT(2)*Vin_rms_min*(SIN($Q21)/Vout)))))) -> 0.302445258 | T21: =(I$5*((90/$G$18)*(90/$G$18))/2)*(1+(SQRT(1+(4/(I$5*((90/$G$18)*(90/$G$18))))*$I$23*(1-(SQRT(2)*Vin_rms_min*(SIN($Q21)/Vout)))))) -> 0.2950408128 | U21: =(J$5*((90/$G$18)*(90/$G$18))/2)*(1+(SQRT(1+(4/(J$5*((90/$G$18)*(90/$G$18))))*$J$23*(1-(SQRT(2)*Vin_rms_min*(SIN($Q21)/Vout)))))) -> 0.2703287197 | V21: =(K$5*((90/$G$18)*(90/$G$18))/2)*(1+(SQRT(1+(4/(K$5*((90/$G$18)*(90/$G$18))))*$K$23*(1-(SQRT(2)*Vin_rms_min*(SIN($Q21)/Vout)))))) -> 0.4054930796 | W21: =(L$5*((90/$G$18)*(90/$G$18))/2)*(1+(SQRT(1+(4/(L$5*((90/$G$18)*(90/$G$18))))*$L$23*(1-(SQRT(2)*Vin_rms_min*(SIN($Q21)/Vout)))))) -> 0.5406574394 | Y21: =R21*ABS(1/(Vout/(SQRT(2)*$C$25*SIN($Q21)))) -> 0.01462737754 | Z21: =S21*ABS(1/(Vout/(SQRT(2)*$C$25*SIN($Q21)))) -> 0.01406196102 | AA21: =T21*ABS(1/(Vout/(SQRT(2)*$C$25*SIN($Q21)))) -> 0.01371769701 | AB21: =U21*ABS(1/(Vout/(SQRT(2)*$C$25*SIN($Q21)))) -> 0.01256872713 | AC21: =V21*ABS(1/(Vout/(SQRT(2)*$C$25*SIN($Q21)))) -> 0.0188530907 | AD21: =W21*ABS(1/(Vout/(SQRT(2)*$C$25*SIN($Q21)))) -> 0.02513745427 | AF21: =1/(0.0000128*(R21+Y21+$G$23)) -> 40706.35198 | AG21: =1/(0.0000128*(S21+Z21+$H$23)) -> 88126.74993 | AH21: =1/(0.0000128*(T21+AA21+$I$23)) -> 115782.1633 | AI21: =1/(0.0000128*(U21+AB21+$J$23)) -> 276160.1452 | AJ21: =1/(0.0000128*(V21+AC21+$K$23)) -> 184106.7635 | AK21: =1/(0.0000128*(W21+AD21+$L$23)) -> 138080.0726
A22: Select Which Device You Are Using | C22: UCC28056A | E22: Refer datasheet for the difference of UCC28056A/B devices | G22: =IF(G$20>6.5,6.5,G$20) -> 1.59 | H22: =IF(H$20>6.5,6.5,H$20) -> 0.57 | I22: =IF(I$20>6.5,6.5,I$20) -> 0.366 | J22: =IF(J$20>6.5,6.5,J$20) -> -0.042 | K22: =IF(K$20>6.5,6.5,K$20) -> -0.178 | L22: =IF(L$20>6.5,6.5,L$20) -> -0.246 | Q22: =Q21+0.01 -> 0.16 | R22: =(G$5*((90/$G$18)*(90/$G$18))/2)*(1+(SQRT(1+(4/(G$5*((90/$G$18)*(90/$G$18))))*$G$23*(1-(SQRT(2)*Vin_rms_min*(SIN($Q22)/Vout)))))) -> 0.3141464427 | S22: =(H$5*((90/$G$18)*(90/$G$18))/2)*(1+(SQRT(1+(4/(H$5*((90/$G$18)*(90/$G$18))))*$H$23*(1-(SQRT(2)*Vin_rms_min*(SIN($Q22)/Vout)))))) -> 0.302063566 | T22: =(I$5*((90/$G$18)*(90/$G$18))/2)*(1+(SQRT(1+(4/(I$5*((90/$G$18)*(90/$G$18))))*$I$23*(1-(SQRT(2)*Vin_rms_min*(SIN($Q22)/Vout)))))) -> 0.2947062881 | U22: =(J$5*((90/$G$18)*(90/$G$18))/2)*(1+(SQRT(1+(4/(J$5*((90/$G$18)*(90/$G$18))))*$J$23*(1-(SQRT(2)*Vin_rms_min*(SIN($Q22)/Vout)))))) -> 0.2703287197 | V22: =(K$5*((90/$G$18)*(90/$G$18))/2)*(1+(SQRT(1+(4/(K$5*((90/$G$18)*(90/$G$18))))*$K$23*(1-(SQRT(2)*Vin_rms_min*(SIN($Q22)/Vout)))))) -> 0.4054930796 | W22: =(L$5*((90/$G$18)*(90/$G$18))/2)*(1+(SQRT(1+(4/(L$5*((90/$G$18)*(90/$G$18))))*$L$23*(1-(SQRT(2)*Vin_rms_min*(SIN($Q22)/Vout)))))) -> 0.5406574394 | Y22: =R22*ABS(1/(Vout/(SQRT(2)*$C$25*SIN($Q22)))) -> 0.01557167152 | Z22: =S22*ABS(1/(Vout/(SQRT(2)*$C$25*SIN($Q22)))) -> 0.01497274516 | AA22: =T22*ABS(1/(Vout/(SQRT(2)*$C$25*SIN($Q22)))) -> 0.01460805819 | AB22: =U22*ABS(1/(Vout/(SQRT(2)*$C$25*SIN($Q22)))) -> 0.01339970617 | AC22: =V22*ABS(1/(Vout/(SQRT(2)*$C$25*SIN($Q22)))) -> 0.02009955926 | AD22: =W22*ABS(1/(Vout/(SQRT(2)*$C$25*SIN($Q22)))) -> 0.02679941235 | AF22: =1/(0.0000128*(R22+Y22+$G$23)) -> 40696.07898 | AG22: =1/(0.0000128*(S22+Z22+$H$23)) -> 88074.1848 | AH22: =1/(0.0000128*(T22+AA22+$I$23)) -> 115686.8656 | AI22: =1/(0.0000128*(U22+AB22+$J$23)) -> 275351.332 | AJ22: =1/(0.0000128*(V22+AC22+$K$23)) -> 183567.5547 | AK22: =1/(0.0000128*(W22+AD22+$L$23)) -> 137675.666
F23: TDCMn | G23: =IF(G$22<0,0,G$22) -> 1.59 | H23: =IF(H$22<0,0,H$22) -> 0.57 | I23: =IF(I$22<0,0,I$22) -> 0.366 | J23: =IF(J$22<0,0,J$22) -> 0 | K23: =IF(K$22<0,0,K$22) -> 0 | L23: =IF(L$22<0,0,L$22) -> 0 | Q23: =Q22+0.01 -> 0.17 | R23: =(G$5*((90/$G$18)*(90/$G$18))/2)*(1+(SQRT(1+(4/(G$5*((90/$G$18)*(90/$G$18))))*$G$23*(1-(SQRT(2)*Vin_rms_min*(SIN($Q23)/Vout)))))) -> 0.3136866304 | S23: =(H$5*((90/$G$18)*(90/$G$18))/2)*(1+(SQRT(1+(4/(H$5*((90/$G$18)*(90/$G$18))))*$H$23*(1-(SQRT(2)*Vin_rms_min*(SIN($Q23)/Vout)))))) -> 0.3016819026 | T23: =(I$5*((90/$G$18)*(90/$G$18))/2)*(1+(SQRT(1+(4/(I$5*((90/$G$18)*(90/$G$18))))*$I$23*(1-(SQRT(2)*Vin_rms_min*(SIN($Q23)/Vout)))))) -> 0.2943718106 | U23: =(J$5*((90/$G$18)*(90/$G$18))/2)*(1+(SQRT(1+(4/(J$5*((90/$G$18)*(90/$G$18))))*$J$23*(1-(SQRT(2)*Vin_rms_min*(SIN($Q23)/Vout)))))) -> 0.2703287197 | V23: =(K$5*((90/$G$18)*(90/$G$18))/2)*(1+(SQRT(1+(4/(K$5*((90/$G$18)*(90/$G$18))))*$K$23*(1-(SQRT(2)*Vin_rms_min*(SIN($Q23)/Vout)))))) -> 0.4054930796 | W23: =(L$5*((90/$G$18)*(90/$G$18))/2)*(1+(SQRT(1+(4/(L$5*((90/$G$18)*(90/$G$18))))*$L$23*(1-(SQRT(2)*Vin_rms_min*(SIN($Q23)/Vout)))))) -> 0.5406574394 | Y23: =R23*ABS(1/(Vout/(SQRT(2)*$C$25*SIN($Q23)))) -> 0.01651158401 | Z23: =S23*ABS(1/(Vout/(SQRT(2)*$C$25*SIN($Q23)))) -> 0.01587968882 | AA23: =T23*ABS(1/(Vout/(SQRT(2)*$C$25*SIN($Q23)))) -> 0.01549490609 | AB23: =U23*ABS(1/(Vout/(SQRT(2)*$C$25*SIN($Q23)))) -> 0.01422934525 | AC23: =V23*ABS(1/(Vout/(SQRT(2)*$C$25*SIN($Q23)))) -> 0.02134401788 | AD23: =W23*ABS(1/(Vout/(SQRT(2)*$C$25*SIN($Q23)))) -> 0.02845869051 | AF23: =1/(0.0000128*(R23+Y23+$G$23)) -> 40685.90389 | AG23: =1/(0.0000128*(S23+Z23+$H$23)) -> 88022.06039 | AH23: =1/(0.0000128*(T23+AA23+$I$23)) -> 115592.3173 | AI23: =1/(0.0000128*(U23+AB23+$J$23)) -> 274548.5355 | AJ23: =1/(0.0000128*(V23+AC23+$K$23)) -> 183032.357 | AK23: =1/(0.0000128*(W23+AD23+$L$23)) -> 137274.2677
A24: INPUT: | Q24: =Q23+0.01 -> 0.18 | R24: =(G$5*((90/$G$18)*(90/$G$18))/2)*(1+(SQRT(1+(4/(G$5*((90/$G$18)*(90/$G$18))))*$G$23*(1-(SQRT(2)*Vin_rms_min*(SIN($Q24)/Vout)))))) -> 0.31322687 | S24: =(H$5*((90/$G$18)*(90/$G$18))/2)*(1+(SQRT(1+(4/(H$5*((90/$G$18)*(90/$G$18))))*$H$23*(1-(SQRT(2)*Vin_rms_min*(SIN($Q24)/Vout)))))) -> 0.3013003062 | T24: =(I$5*((90/$G$18)*(90/$G$18))/2)*(1+(SQRT(1+(4/(I$5*((90/$G$18)*(90/$G$18))))*$I$23*(1-(SQRT(2)*Vin_rms_min*(SIN($Q24)/Vout)))))) -> 0.294037414 | U24: =(J$5*((90/$G$18)*(90/$G$18))/2)*(1+(SQRT(1+(4/(J$5*((90/$G$18)*(90/$G$18))))*$J$23*(1-(SQRT(2)*Vin_rms_min*(SIN($Q24)/Vout)))))) -> 0.2703287197 | V24: =(K$5*((90/$G$18)*(90/$G$18))/2)*(1+(SQRT(1+(4/(K$5*((90/$G$18)*(90/$G$18))))*$K$23*(1-(SQRT(2)*Vin_rms_min*(SIN($Q24)/Vout)))))) -> 0.4054930796 | W24: =(L$5*((90/$G$18)*(90/$G$18))/2)*(1+(SQRT(1+(4/(L$5*((90/$G$18)*(90/$G$18))))*$L$23*(1-(SQRT(2)*Vin_rms_min*(SIN($Q24)/Vout)))))) -> 0.5406574394 | Y24: =R24*ABS(1/(Vout/(SQRT(2)*$C$25*SIN($Q24)))) -> 0.01744702833 | Z24: =S24*ABS(1/(Vout/(SQRT(2)*$C$25*SIN($Q24)))) -> 0.01678270762 | AA24: =T24*ABS(1/(Vout/(SQRT(2)*$C$25*SIN($Q24)))) -> 0.01637815776 | AB24: =U24*ABS(1/(Vout/(SQRT(2)*$C$25*SIN($Q24)))) -> 0.01505756141 | AC24: =V24*ABS(1/(Vout/(SQRT(2)*$C$25*SIN($Q24)))) -> 0.02258634212 | AD24: =W24*ABS(1/(Vout/(SQRT(2)*$C$25*SIN($Q24)))) -> 0.03011512282 | AF24: =1/(0.0000128*(R24+Y24+$G$23)) -> 40675.82741 | AG24: =1/(0.0000128*(S24+Z24+$H$23)) -> 87970.37978 | AH24: =1/(0.0000128*(T24+AA24+$I$23)) -> 115498.5238 | AI24: =1/(0.0000128*(U24+AB24+$J$23)) -> 273751.7714 | AJ24: =1/(0.0000128*(V24+AC24+$K$23)) -> 182501.1809 | AK24: =1/(0.0000128*(W24+AD24+$L$23)) -> 136875.8857
A25: Minimum AC Input Voltage: | B25: VIN_RMS(min) | C25: 110 | D25: VRMS | F25: VFF_select_index | G25: =IF(G$6>=Vin_rms_max,1,0-1) -> -1 | H25: =IF(H$6>=Vin_rms_max,1,0-1) -> -1 | I25: =IF(I$6>=Vin_rms_max,1,0-1) -> -1 | J25: =IF(J$6>=Vin_rms_max,1,0-1) -> 1 | K25: =IF(K$6>=Vin_rms_max,1,0-1) -> 1 | L25: =IF(L$6>=Vin_rms_max,1,0-1) -> 1 | M25: =IF(M$6>=Vin_rms_max,1,0-1) -> 1 | N25: =IF(N$6>=Vin_rms_max,1,0-1) -> 1 | Q25: =Q24+0.01 -> 0.19 | R25: =(G$5*((90/$G$18)*(90/$G$18))/2)*(1+(SQRT(1+(4/(G$5*((90/$G$18)*(90/$G$18))))*$G$23*(1-(SQRT(2)*Vin_rms_min*(SIN($Q25)/Vout)))))) -> 0.3127672077 | S25: =(H$5*((90/$G$18)*(90/$G$18))/2)*(1+(SQRT(1+(4/(H$5*((90/$G$18)*(90/$G$18))))*$H$23*(1-(SQRT(2)*Vin_rms_min*(SIN($Q25)/Vout)))))) -> 0.3009188152 | T25: =(I$5*((90/$G$18)*(90/$G$18))/2)*(1+(SQRT(1+(4/(I$5*((90/$G$18)*(90/$G$18))))*$I$23*(1-(SQRT(2)*Vin_rms_min*(SIN($Q25)/Vout)))))) -> 0.2937031321 | U25: =(J$5*((90/$G$18)*(90/$G$18))/2)*(1+(SQRT(1+(4/(J$5*((90/$G$18)*(90/$G$18))))*$J$23*(1-(SQRT(2)*Vin_rms_min*(SIN($Q25)/Vout)))))) -> 0.2703287197 | V25: =(K$5*((90/$G$18)*(90/$G$18))/2)*(1+(SQRT(1+(4/(K$5*((90/$G$18)*(90/$G$18))))*$K$23*(1-(SQRT(2)*Vin_rms_min*(SIN($Q25)/Vout)))))) -> 0.4054930796 | W25: =(L$5*((90/$G$18)*(90/$G$18))/2)*(1+(SQRT(1+(4/(L$5*((90/$G$18)*(90/$G$18))))*$L$23*(1-(SQRT(2)*Vin_rms_min*(SIN($Q25)/Vout)))))) -> 0.5406574394 | Y25: =R25*ABS(1/(Vout/(SQRT(2)*$C$25*SIN($Q25)))) -> 0.01837791911 | Z25: =S25*ABS(1/(Vout/(SQRT(2)*$C$25*SIN($Q25)))) -> 0.01768171826 | AA25: =T25*ABS(1/(Vout/(SQRT(2)*$C$25*SIN($Q25)))) -> 0.01725773122 | AB25: =U25*ABS(1/(Vout/(SQRT(2)*$C$25*SIN($Q25)))) -> 0.01588427183 | AC25: =V25*ABS(1/(Vout/(SQRT(2)*$C$25*SIN($Q25)))) -> 0.02382640774 | AD25: =W25*ABS(1/(Vout/(SQRT(2)*$C$25*SIN($Q25)))) -> 0.03176854365 | AF25: =1/(0.0000128*(R25+Y25+$G$23)) -> 40665.85023 | AG25: =1/(0.0000128*(S25+Z25+$H$23)) -> 87919.14596 | AH25: =1/(0.0000128*(T25+AA25+$I$23)) -> 115405.4898 | AI25: =1/(0.0000128*(U25+AB25+$J$23)) -> 272961.0546 | AJ25: =1/(0.0000128*(V25+AC25+$K$23)) -> 181974.0364 | AK25: =1/(0.0000128*(W25+AD25+$L$23)) -> 136480.5273
A26: Maximum AC Input Voltage: | B26: VIN_RMS(max) | C26: 130 | D26: VRMS | G26: =G6*G25 -> -90 | H26: =H6*H25 -> -104.96 | I26: =I6*I25 -> -122.4 | J26: =J6*J25 -> 142.74 | K26: =K6*K25 -> 166.46 | L26: =L6*L25 -> 194.12 | M26: =M6*M25 -> 226.38 | N26: =N6*N25 -> 264 | Q26: =Q25+0.01 -> 0.2 | R26: =(G$5*((90/$G$18)*(90/$G$18))/2)*(1+(SQRT(1+(4/(G$5*((90/$G$18)*(90/$G$18))))*$G$23*(1-(SQRT(2)*Vin_rms_min*(SIN($Q26)/Vout)))))) -> 0.31230769 | S26: =(H$5*((90/$G$18)*(90/$G$18))/2)*(1+(SQRT(1+(4/(H$5*((90/$G$18)*(90/$G$18))))*$H$23*(1-(SQRT(2)*Vin_rms_min*(SIN($Q26)/Vout)))))) -> 0.3005374684 | T26: =(I$5*((90/$G$18)*(90/$G$18))/2)*(1+(SQRT(1+(4/(I$5*((90/$G$18)*(90/$G$18))))*$I$23*(1-(SQRT(2)*Vin_rms_min*(SIN($Q26)/Vout)))))) -> 0.293368999 | U26: =(J$5*((90/$G$18)*(90/$G$18))/2)*(1+(SQRT(1+(4/(J$5*((90/$G$18)*(90/$G$18))))*$J$23*(1-(SQRT(2)*Vin_rms_min*(SIN($Q26)/Vout)))))) -> 0.2703287197 | V26: =(K$5*((90/$G$18)*(90/$G$18))/2)*(1+(SQRT(1+(4/(K$5*((90/$G$18)*(90/$G$18))))*$K$23*(1-(SQRT(2)*Vin_rms_min*(SIN($Q26)/Vout)))))) -> 0.4054930796 | W26: =(L$5*((90/$G$18)*(90/$G$18))/2)*(1+(SQRT(1+(4/(L$5*((90/$G$18)*(90/$G$18))))*$L$23*(1-(SQRT(2)*Vin_rms_min*(SIN($Q26)/Vout)))))) -> 0.5406574394 | Y26: =R26*ABS(1/(Vout/(SQRT(2)*$C$25*SIN($Q26)))) -> 0.01930417232 | Z26: =S26*ABS(1/(Vout/(SQRT(2)*$C$25*SIN($Q26)))) -> 0.01857663857 | AA26: =T26*ABS(1/(Vout/(SQRT(2)*$C$25*SIN($Q26)))) -> 0.01813354551 | AB26: =U26*ABS(1/(Vout/(SQRT(2)*$C$25*SIN($Q26)))) -> 0.01670939383 | AC26: =V26*ABS(1/(Vout/(SQRT(2)*$C$25*SIN($Q26)))) -> 0.02506409074 | AD26: =W26*ABS(1/(Vout/(SQRT(2)*$C$25*SIN($Q26)))) -> 0.03341878766 | AF26: =1/(0.0000128*(R26+Y26+$G$23)) -> 40655.973 | AG26: =1/(0.0000128*(S26+Z26+$H$23)) -> 87868.36176 | AH26: =1/(0.0000128*(T26+AA26+$I$23)) -> 115313.22 | AI26: =1/(0.0000128*(U26+AB26+$J$23)) -> 272176.3986 | AJ26: =1/(0.0000128*(V26+AC26+$K$23)) -> 181450.9324 | AK26: =1/(0.0000128*(W26+AD26+$L$23)) -> 136088.1993
A27: Minimum Line Frequency: | B27: fLINE(min): | C27: 57 | D27: Hz | E27: =IF(PF>=0.999,"ENTER VALUE LESS THAN 0.999"," ") ->  | Q27: =Q26+0.01 -> 0.21 | R27: =(G$5*((90/$G$18)*(90/$G$18))/2)*(1+(SQRT(1+(4/(G$5*((90/$G$18)*(90/$G$18))))*$G$23*(1-(SQRT(2)*Vin_rms_min*(SIN($Q27)/Vout)))))) -> 0.3118483638 | S27: =(H$5*((90/$G$18)*(90/$G$18))/2)*(1+(SQRT(1+(4/(H$5*((90/$G$18)*(90/$G$18))))*$H$23*(1-(SQRT(2)*Vin_rms_min*(SIN($Q27)/Vout)))))) -> 0.3001563048 | T27: =(I$5*((90/$G$18)*(90/$G$18))/2)*(1+(SQRT(1+(4/(I$5*((90/$G$18)*(90/$G$18))))*$I$23*(1-(SQRT(2)*Vin_rms_min*(SIN($Q27)/Vout)))))) -> 0.2930350489 | U27: =(J$5*((90/$G$18)*(90/$G$18))/2)*(1+(SQRT(1+(4/(J$5*((90/$G$18)*(90/$G$18))))*$J$23*(1-(SQRT(2)*Vin_rms_min*(SIN($Q27)/Vout)))))) -> 0.2703287197 | V27: =(K$5*((90/$G$18)*(90/$G$18))/2)*(1+(SQRT(1+(4/(K$5*((90/$G$18)*(90/$G$18))))*$K$23*(1-(SQRT(2)*Vin_rms_min*(SIN($Q27)/Vout)))))) -> 0.4054930796 | W27: =(L$5*((90/$G$18)*(90/$G$18))/2)*(1+(SQRT(1+(4/(L$5*((90/$G$18)*(90/$G$18))))*$L$23*(1-(SQRT(2)*Vin_rms_min*(SIN($Q27)/Vout)))))) -> 0.5406574394 | Y27: =R27*ABS(1/(Vout/(SQRT(2)*$C$25*SIN($Q27)))) -> 0.02022570521 | Z27: =S27*ABS(1/(Vout/(SQRT(2)*$C$25*SIN($Q27)))) -> 0.0194673875 | AA27: =T27*ABS(1/(Vout/(SQRT(2)*$C$25*SIN($Q27)))) -> 0.01900552065 | AB27: =U27*ABS(1/(Vout/(SQRT(2)*$C$25*SIN($Q27)))) -> 0.0175328449 | AC27: =V27*ABS(1/(Vout/(SQRT(2)*$C$25*SIN($Q27)))) -> 0.02629926735 | AD27: =W27*ABS(1/(Vout/(SQRT(2)*$C$25*SIN($Q27)))) -> 0.03506568981 | AF27: =1/(0.0000128*(R27+Y27+$G$23)) -> 40646.19635 | AG27: =1/(0.0000128*(S27+Z27+$H$23)) -> 87818.02989 | AH27: =1/(0.0000128*(T27+AA27+$I$23)) -> 115221.719 | AI27: =1/(0.0000128*(U27+AB27+$J$23)) -> 271397.8162 | AJ27: =1/(0.0000128*(V27+AC27+$K$23)) -> 180931.8774 | AK27: =1/(0.0000128*(W27+AD27+$L$23)) -> 135698.9081
A28: Maximum Line Frequency: | B28: fLINE(max): | C28: 63 | D28: Hz | E28: =IF(eff>=0.97,"ENTER VALUE LESS THAN 0.97"," ") ->  | G28: =IF(M26>0,N26,264) -> 264 | Q28: =Q27+0.01 -> 0.22 | R28: =(G$5*((90/$G$18)*(90/$G$18))/2)*(1+(SQRT(1+(4/(G$5*((90/$G$18)*(90/$G$18))))*$G$23*(1-(SQRT(2)*Vin_rms_min*(SIN($Q28)/Vout)))))) -> 0.3113892759 | S28: =(H$5*((90/$G$18)*(90/$G$18))/2)*(1+(SQRT(1+(4/(H$5*((90/$G$18)*(90/$G$18))))*$H$23*(1-(SQRT(2)*Vin_rms_min*(SIN($Q28)/Vout)))))) -> 0.2997753633 | T28: =(I$5*((90/$G$18)*(90/$G$18))/2)*(1+(SQRT(1+(4/(I$5*((90/$G$18)*(90/$G$18))))*$I$23*(1-(SQRT(2)*Vin_rms_min*(SIN($Q28)/Vout)))))) -> 0.292701316 | U28: =(J$5*((90/$G$18)*(90/$G$18))/2)*(1+(SQRT(1+(4/(J$5*((90/$G$18)*(90/$G$18))))*$J$23*(1-(SQRT(2)*Vin_rms_min*(SIN($Q28)/Vout)))))) -> 0.2703287197 | V28: =(K$5*((90/$G$18)*(90/$G$18))/2)*(1+(SQRT(1+(4/(K$5*((90/$G$18)*(90/$G$18))))*$K$23*(1-(SQRT(2)*Vin_rms_min*(SIN($Q28)/Vout)))))) -> 0.4054930796 | W28: =(L$5*((90/$G$18)*(90/$G$18))/2)*(1+(SQRT(1+(4/(L$5*((90/$G$18)*(90/$G$18))))*$L$23*(1-(SQRT(2)*Vin_rms_min*(SIN($Q28)/Vout)))))) -> 0.5406574394 | Y28: =R28*ABS(1/(Vout/(SQRT(2)*$C$25*SIN($Q28)))) -> 0.0211424364 | Z28: =S28*ABS(1/(Vout/(SQRT(2)*$C$25*SIN($Q28)))) -> 0.02035388513 | AA28: =T28*ABS(1/(Vout/(SQRT(2)*$C$25*SIN($Q28)))) -> 0.01987357766 | AB28: =U28*ABS(1/(Vout/(SQRT(2)*$C$25*SIN($Q28)))) -> 0.01835454271 | AC28: =V28*ABS(1/(Vout/(SQRT(2)*$C$25*SIN($Q28)))) -> 0.02753181406 | AD28: =W28*ABS(1/(Vout/(SQRT(2)*$C$25*SIN($Q28)))) -> 0.03670908542 | AF28: =1/(0.0000128*(R28+Y28+$G$23)) -> 40636.52084 | AG28: =1/(0.0000128*(S28+Z28+$H$23)) -> 87768.15293 | AH28: =1/(0.0000128*(T28+AA28+$I$23)) -> 115130.991 | AI28: =1/(0.0000128*(U28+AB28+$J$23)) -> 270625.319 | AJ28: =1/(0.0000128*(V28+AC28+$K$23)) -> 180416.8794 | AK28: =1/(0.0000128*(W28+AD28+$L$23)) -> 135312.6595
A29: Target Power Factor, VIN(nom), Full Load: | B29: PF | C29: 0.99 | G29: =IF(M26>0,M26,G28) -> 226.38 | Q29: =Q28+0.01 -> 0.23 | R29: =(G$5*((90/$G$18)*(90/$G$18))/2)*(1+(SQRT(1+(4/(G$5*((90/$G$18)*(90/$G$18))))*$G$23*(1-(SQRT(2)*Vin_rms_min*(SIN($Q29)/Vout)))))) -> 0.3109304736 | S29: =(H$5*((90/$G$18)*(90/$G$18))/2)*(1+(SQRT(1+(4/(H$5*((90/$G$18)*(90/$G$18))))*$H$23*(1-(SQRT(2)*Vin_rms_min*(SIN($Q29)/Vout)))))) -> 0.2993946831 | T29: =(I$5*((90/$G$18)*(90/$G$18))/2)*(1+(SQRT(1+(4/(I$5*((90/$G$18)*(90/$G$18))))*$I$23*(1-(SQRT(2)*Vin_rms_min*(SIN($Q29)/Vout)))))) -> 0.2923678348 | U29: =(J$5*((90/$G$18)*(90/$G$18))/2)*(1+(SQRT(1+(4/(J$5*((90/$G$18)*(90/$G$18))))*$J$23*(1-(SQRT(2)*Vin_rms_min*(SIN($Q29)/Vout)))))) -> 0.2703287197 | V29: =(K$5*((90/$G$18)*(90/$G$18))/2)*(1+(SQRT(1+(4/(K$5*((90/$G$18)*(90/$G$18))))*$K$23*(1-(SQRT(2)*Vin_rms_min*(SIN($Q29)/Vout)))))) -> 0.4054930796 | W29: =(L$5*((90/$G$18)*(90/$G$18))/2)*(1+(SQRT(1+(4/(L$5*((90/$G$18)*(90/$G$18))))*$L$23*(1-(SQRT(2)*Vin_rms_min*(SIN($Q29)/Vout)))))) -> 0.5406574394 | Y29: =R29*ABS(1/(Vout/(SQRT(2)*$C$25*SIN($Q29)))) -> 0.02205428583 | Z29: =S29*ABS(1/(Vout/(SQRT(2)*$C$25*SIN($Q29)))) -> 0.02123605268 | AA29: =T29*ABS(1/(Vout/(SQRT(2)*$C$25*SIN($Q29)))) -> 0.02073763861 | AB29: =U29*ABS(1/(Vout/(SQRT(2)*$C$25*SIN($Q29)))) -> 0.01917440508 | AC29: =V29*ABS(1/(Vout/(SQRT(2)*$C$25*SIN($Q29)))) -> 0.02876160761 | AD29: =W29*ABS(1/(Vout/(SQRT(2)*$C$25*SIN($Q29)))) -> 0.03834881015 | AF29: =1/(0.0000128*(R29+Y29+$G$23)) -> 40626.94705 | AG29: =1/(0.0000128*(S29+Z29+$H$23)) -> 87718.73332 | AH29: =1/(0.0000128*(T29+AA29+$I$23)) -> 115041.0401 | AI29: =1/(0.0000128*(U29+AB29+$J$23)) -> 269858.9179 | AJ29: =1/(0.0000128*(V29+AC29+$K$23)) -> 179905.9453 | AK29: =1/(0.0000128*(W29+AD29+$L$23)) -> 134929.459
A30: Predicted Efficiency: | B30: h | C30: 0.91 | G30: =IF(L26>0,L26,G29) -> 194.12 | Q30: =Q29+0.01 -> 0.24 | R30: =(G$5*((90/$G$18)*(90/$G$18))/2)*(1+(SQRT(1+(4/(G$5*((90/$G$18)*(90/$G$18))))*$G$23*(1-(SQRT(2)*Vin_rms_min*(SIN($Q30)/Vout)))))) -> 0.3104720043 | S30: =(H$5*((90/$G$18)*(90/$G$18))/2)*(1+(SQRT(1+(4/(H$5*((90/$G$18)*(90/$G$18))))*$H$23*(1-(SQRT(2)*Vin_rms_min*(SIN($Q30)/Vout)))))) -> 0.2990143038 | T30: =(I$5*((90/$G$18)*(90/$G$18))/2)*(1+(SQRT(1+(4/(I$5*((90/$G$18)*(90/$G$18))))*$I$23*(1-(SQRT(2)*Vin_rms_min*(SIN($Q30)/Vout)))))) -> 0.2920346397 | U30: =(J$5*((90/$G$18)*(90/$G$18))/2)*(1+(SQRT(1+(4/(J$5*((90/$G$18)*(90/$G$18))))*$J$23*(1-(SQRT(2)*Vin_rms_min*(SIN($Q30)/Vout)))))) -> 0.2703287197 | V30: =(K$5*((90/$G$18)*(90/$G$18))/2)*(1+(SQRT(1+(4/(K$5*((90/$G$18)*(90/$G$18))))*$K$23*(1-(SQRT(2)*Vin_rms_min*(SIN($Q30)/Vout)))))) -> 0.4054930796 | W30: =(L$5*((90/$G$18)*(90/$G$18))/2)*(1+(SQRT(1+(4/(L$5*((90/$G$18)*(90/$G$18))))*$L$23*(1-(SQRT(2)*Vin_rms_min*(SIN($Q30)/Vout)))))) -> 0.5406574394 | Y30: =R30*ABS(1/(Vout/(SQRT(2)*$C$25*SIN($Q30)))) -> 0.02296117478 | Z30: =S30*ABS(1/(Vout/(SQRT(2)*$C$25*SIN($Q30)))) -> 0.0221138125 | AA30: =T30*ABS(1/(Vout/(SQRT(2)*$C$25*SIN($Q30)))) -> 0.02159762655 | AB30: =U30*ABS(1/(Vout/(SQRT(2)*$C$25*SIN($Q30)))) -> 0.01999235002 | AC30: =V30*ABS(1/(Vout/(SQRT(2)*$C$25*SIN($Q30)))) -> 0.02998852503 | AD30: =W30*ABS(1/(Vout/(SQRT(2)*$C$25*SIN($Q30)))) -> 0.03998470003 | AF30: =1/(0.0000128*(R30+Y30+$G$23)) -> 40617.47549 | AG30: =1/(0.0000128*(S30+Z30+$H$23)) -> 87669.77337 | AH30: =1/(0.0000128*(T30+AA30+$I$23)) -> 114951.8701 | AI30: =1/(0.0000128*(U30+AB30+$J$23)) -> 269098.6227 | AJ30: =1/(0.0000128*(V30+AC30+$K$23)) -> 179399.0818 | AK30: =1/(0.0000128*(W30+AD30+$L$23)) -> 134549.3113
A31: Minimum Rectified AC Line Voltage: | B31: VIN_PEAK(min) | C31: =SQRT(2)*Vin_rms_min -> 155.5634919 | D31: V | G31: =IF(K26>0,K26,G30) -> 166.46 | Q31: =Q30+0.01 -> 0.25 | R31: =(G$5*((90/$G$18)*(90/$G$18))/2)*(1+(SQRT(1+(4/(G$5*((90/$G$18)*(90/$G$18))))*$G$23*(1-(SQRT(2)*Vin_rms_min*(SIN($Q31)/Vout)))))) -> 0.3100139155 | S31: =(H$5*((90/$G$18)*(90/$G$18))/2)*(1+(SQRT(1+(4/(H$5*((90/$G$18)*(90/$G$18))))*$H$23*(1-(SQRT(2)*Vin_rms_min*(SIN($Q31)/Vout)))))) -> 0.2986342647 | T31: =(I$5*((90/$G$18)*(90/$G$18))/2)*(1+(SQRT(1+(4/(I$5*((90/$G$18)*(90/$G$18))))*$I$23*(1-(SQRT(2)*Vin_rms_min*(SIN($Q31)/Vout)))))) -> 0.2917017655 | U31: =(J$5*((90/$G$18)*(90/$G$18))/2)*(1+(SQRT(1+(4/(J$5*((90/$G$18)*(90/$G$18))))*$J$23*(1-(SQRT(2)*Vin_rms_min*(SIN($Q31)/Vout)))))) -> 0.2703287197 | V31: =(K$5*((90/$G$18)*(90/$G$18))/2)*(1+(SQRT(1+(4/(K$5*((90/$G$18)*(90/$G$18))))*$K$23*(1-(SQRT(2)*Vin_rms_min*(SIN($Q31)/Vout)))))) -> 0.4054930796 | W31: =(L$5*((90/$G$18)*(90/$G$18))/2)*(1+(SQRT(1+(4/(L$5*((90/$G$18)*(90/$G$18))))*$L$23*(1-(SQRT(2)*Vin_rms_min*(SIN($Q31)/Vout)))))) -> 0.5406574394 | Y31: =R31*ABS(1/(Vout/(SQRT(2)*$C$25*SIN($Q31)))) -> 0.02386302589 | Z31: =S31*ABS(1/(Vout/(SQRT(2)*$C$25*SIN($Q31)))) -> 0.02298708811 | AA31: =T31*ABS(1/(Vout/(SQRT(2)*$C$25*SIN($Q31)))) -> 0.02245346558 | AB31: =U31*ABS(1/(Vout/(SQRT(2)*$C$25*SIN($Q31)))) -> 0.02080829574 | AC31: =V31*ABS(1/(Vout/(SQRT(2)*$C$25*SIN($Q31)))) -> 0.03121244361 | AD31: =W31*ABS(1/(Vout/(SQRT(2)*$C$25*SIN($Q31)))) -> 0.04161659148 | AF31: =1/(0.0000128*(R31+Y31+$G$23)) -> 40608.10664 | AG31: =1/(0.0000128*(S31+Z31+$H$23)) -> 87621.27528 | AH31: =1/(0.0000128*(T31+AA31+$I$23)) -> 114863.4847 | AI31: =1/(0.0000128*(U31+AB31+$J$23)) -> 268344.4421 | AJ31: =1/(0.0000128*(V31+AC31+$K$23)) -> 178896.2948 | AK31: =1/(0.0000128*(W31+AD31+$L$23)) -> 134172.2211
A32: Maximum Rectified AC Line Voltage: | B32: VIN_PEAK(max) | C32: =SQRT(2)*Vin_rms_max -> 183.8477631 | D32: V | G32: =IF(J26>0,J26,G31) -> 142.74 | Q32: =Q31+0.01 -> 0.26 | R32: =(G$5*((90/$G$18)*(90/$G$18))/2)*(1+(SQRT(1+(4/(G$5*((90/$G$18)*(90/$G$18))))*$G$23*(1-(SQRT(2)*Vin_rms_min*(SIN($Q32)/Vout)))))) -> 0.309556255 | S32: =(H$5*((90/$G$18)*(90/$G$18))/2)*(1+(SQRT(1+(4/(H$5*((90/$G$18)*(90/$G$18))))*$H$23*(1-(SQRT(2)*Vin_rms_min*(SIN($Q32)/Vout)))))) -> 0.2982546056 | T32: =(I$5*((90/$G$18)*(90/$G$18))/2)*(1+(SQRT(1+(4/(I$5*((90/$G$18)*(90/$G$18))))*$I$23*(1-(SQRT(2)*Vin_rms_min*(SIN($Q32)/Vout)))))) -> 0.2913692469 | U32: =(J$5*((90/$G$18)*(90/$G$18))/2)*(1+(SQRT(1+(4/(J$5*((90/$G$18)*(90/$G$18))))*$J$23*(1-(SQRT(2)*Vin_rms_min*(SIN($Q32)/Vout)))))) -> 0.2703287197 | V32: =(K$5*((90/$G$18)*(90/$G$18))/2)*(1+(SQRT(1+(4/(K$5*((90/$G$18)*(90/$G$18))))*$K$23*(1-(SQRT(2)*Vin_rms_min*(SIN($Q32)/Vout)))))) -> 0.4054930796 | W32: =(L$5*((90/$G$18)*(90/$G$18))/2)*(1+(SQRT(1+(4/(L$5*((90/$G$18)*(90/$G$18))))*$L$23*(1-(SQRT(2)*Vin_rms_min*(SIN($Q32)/Vout)))))) -> 0.5406574394 | Y32: =R32*ABS(1/(Vout/(SQRT(2)*$C$25*SIN($Q32)))) -> 0.02475976316 | Z32: =S32*ABS(1/(Vout/(SQRT(2)*$C$25*SIN($Q32)))) -> 0.02385580416 | AA32: =T32*ABS(1/(Vout/(SQRT(2)*$C$25*SIN($Q32)))) -> 0.02330508084 | AB32: =U32*ABS(1/(Vout/(SQRT(2)*$C$25*SIN($Q32)))) -> 0.02162216065 | AC32: =V32*ABS(1/(Vout/(SQRT(2)*$C$25*SIN($Q32)))) -> 0.03243324098 | AD32: =W32*ABS(1/(Vout/(SQRT(2)*$C$25*SIN($Q32)))) -> 0.0432443213 | AF32: =1/(0.0000128*(R32+Y32+$G$23)) -> 40598.84097 | AG32: =1/(0.0000128*(S32+Z32+$H$23)) -> 87573.2411 | AH32: =1/(0.0000128*(T32+AA32+$I$23)) -> 114775.8874 | AI32: =1/(0.0000128*(U32+AB32+$J$23)) -> 267596.3844 | AJ32: =1/(0.0000128*(V32+AC32+$K$23)) -> 178397.5896 | AK32: =1/(0.0000128*(W32+AD32+$L$23)) -> 133798.1922
G33: =IF(I26>0,I26,G32) -> 142.74 | Q33: =Q32+0.01 -> 0.27 | R33: =(G$5*((90/$G$18)*(90/$G$18))/2)*(1+(SQRT(1+(4/(G$5*((90/$G$18)*(90/$G$18))))*$G$23*(1-(SQRT(2)*Vin_rms_min*(SIN($Q33)/Vout)))))) -> 0.3090990707 | S33: =(H$5*((90/$G$18)*(90/$G$18))/2)*(1+(SQRT(1+(4/(H$5*((90/$G$18)*(90/$G$18))))*$H$23*(1-(SQRT(2)*Vin_rms_min*(SIN($Q33)/Vout)))))) -> 0.2978753662 | T33: =(I$5*((90/$G$18)*(90/$G$18))/2)*(1+(SQRT(1+(4/(I$5*((90/$G$18)*(90/$G$18))))*$I$23*(1-(SQRT(2)*Vin_rms_min*(SIN($Q33)/Vout)))))) -> 0.2910371189 | U33: =(J$5*((90/$G$18)*(90/$G$18))/2)*(1+(SQRT(1+(4/(J$5*((90/$G$18)*(90/$G$18))))*$J$23*(1-(SQRT(2)*Vin_rms_min*(SIN($Q33)/Vout)))))) -> 0.2703287197 | V33: =(K$5*((90/$G$18)*(90/$G$18))/2)*(1+(SQRT(1+(4/(K$5*((90/$G$18)*(90/$G$18))))*$K$23*(1-(SQRT(2)*Vin_rms_min*(SIN($Q33)/Vout)))))) -> 0.4054930796 | W33: =(L$5*((90/$G$18)*(90/$G$18))/2)*(1+(SQRT(1+(4/(L$5*((90/$G$18)*(90/$G$18))))*$L$23*(1-(SQRT(2)*Vin_rms_min*(SIN($Q33)/Vout)))))) -> 0.5406574394 | Y33: =R33*ABS(1/(Vout/(SQRT(2)*$C$25*SIN($Q33)))) -> 0.02565131195 | Z33: =S33*ABS(1/(Vout/(SQRT(2)*$C$25*SIN($Q33)))) -> 0.02471988649 | AA33: =T33*ABS(1/(Vout/(SQRT(2)*$C$25*SIN($Q33)))) -> 0.02415239848 | AB33: =U33*ABS(1/(Vout/(SQRT(2)*$C$25*SIN($Q33)))) -> 0.02243386337 | AC33: =V33*ABS(1/(Vout/(SQRT(2)*$C$25*SIN($Q33)))) -> 0.03365079505 | AD33: =W33*ABS(1/(Vout/(SQRT(2)*$C$25*SIN($Q33)))) -> 0.04486772673 | AF33: =1/(0.0000128*(R33+Y33+$G$23)) -> 40589.6789 | AG33: =1/(0.0000128*(S33+Z33+$H$23)) -> 87525.67276 | AH33: =1/(0.0000128*(T33+AA33+$I$23)) -> 114689.0814 | AI33: =1/(0.0000128*(U33+AB33+$J$23)) -> 266854.4565 | AJ33: =1/(0.0000128*(V33+AC33+$K$23)) -> 177902.971 | AK33: =1/(0.0000128*(W33+AD33+$L$23)) -> 133427.2283
G34: =IF(H26>0,H26,G33) -> 142.74 | Q34: =Q33+0.01 -> 0.28 | R34: =(G$5*((90/$G$18)*(90/$G$18))/2)*(1+(SQRT(1+(4/(G$5*((90/$G$18)*(90/$G$18))))*$G$23*(1-(SQRT(2)*Vin_rms_min*(SIN($Q34)/Vout)))))) -> 0.3086424109 | S34: =(H$5*((90/$G$18)*(90/$G$18))/2)*(1+(SQRT(1+(4/(H$5*((90/$G$18)*(90/$G$18))))*$H$23*(1-(SQRT(2)*Vin_rms_min*(SIN($Q34)/Vout)))))) -> 0.2974965867 | T34: =(I$5*((90/$G$18)*(90/$G$18))/2)*(1+(SQRT(1+(4/(I$5*((90/$G$18)*(90/$G$18))))*$I$23*(1-(SQRT(2)*Vin_rms_min*(SIN($Q34)/Vout)))))) -> 0.2907054165 | U34: =(J$5*((90/$G$18)*(90/$G$18))/2)*(1+(SQRT(1+(4/(J$5*((90/$G$18)*(90/$G$18))))*$J$23*(1-(SQRT(2)*Vin_rms_min*(SIN($Q34)/Vout)))))) -> 0.2703287197 | V34: =(K$5*((90/$G$18)*(90/$G$18))/2)*(1+(SQRT(1+(4/(K$5*((90/$G$18)*(90/$G$18))))*$K$23*(1-(SQRT(2)*Vin_rms_min*(SIN($Q34)/Vout)))))) -> 0.4054930796 | W34: =(L$5*((90/$G$18)*(90/$G$18))/2)*(1+(SQRT(1+(4/(L$5*((90/$G$18)*(90/$G$18))))*$L$23*(1-(SQRT(2)*Vin_rms_min*(SIN($Q34)/Vout)))))) -> 0.5406574394 | Y34: =R34*ABS(1/(Vout/(SQRT(2)*$C$25*SIN($Q34)))) -> 0.02653759899 | Z34: =S34*ABS(1/(Vout/(SQRT(2)*$C$25*SIN($Q34)))) -> 0.02557926208 | AA34: =T34*ABS(1/(Vout/(SQRT(2)*$C$25*SIN($Q34)))) -> 0.02499534573 | AB34: =U34*ABS(1/(Vout/(SQRT(2)*$C$25*SIN($Q34)))) -> 0.02324332271 | AC34: =V34*ABS(1/(Vout/(SQRT(2)*$C$25*SIN($Q34)))) -> 0.03486498407 | AD34: =W34*ABS(1/(Vout/(SQRT(2)*$C$25*SIN($Q34)))) -> 0.04648664542 | AF34: =1/(0.0000128*(R34+Y34+$G$23)) -> 40580.62082 | AG34: =1/(0.0000128*(S34+Z34+$H$23)) -> 87478.57207 | AH34: =1/(0.0000128*(T34+AA34+$I$23)) -> 114603.0697 | AI34: =1/(0.0000128*(U34+AB34+$J$23)) -> 266118.665 | AJ34: =1/(0.0000128*(V34+AC34+$K$23)) -> 177412.4433 | AK34: =1/(0.0000128*(W34+AD34+$L$23)) -> 133059.3325
A35: OUTPUT: | E35: =IF(Vout<=Vin_pk_max,"OUTPUT VOLTAGE MUST BE GREATER THAN RECTIFIED MAXIMUM INPUT VOLTAGE"," ") ->  | F35: VFF value | G35: =IF(G26>0,G26,G34) -> 142.74 | Q35: =Q34+0.01 -> 0.29 | R35: =(G$5*((90/$G$18)*(90/$G$18))/2)*(1+(SQRT(1+(4/(G$5*((90/$G$18)*(90/$G$18))))*$G$23*(1-(SQRT(2)*Vin_rms_min*(SIN($Q35)/Vout)))))) -> 0.3081863238 | S35: =(H$5*((90/$G$18)*(90/$G$18))/2)*(1+(SQRT(1+(4/(H$5*((90/$G$18)*(90/$G$18))))*$H$23*(1-(SQRT(2)*Vin_rms_min*(SIN($Q35)/Vout)))))) -> 0.297118307 | T35: =(I$5*((90/$G$18)*(90/$G$18))/2)*(1+(SQRT(1+(4/(I$5*((90/$G$18)*(90/$G$18))))*$I$23*(1-(SQRT(2)*Vin_rms_min*(SIN($Q35)/Vout)))))) -> 0.2903741748 | U35: =(J$5*((90/$G$18)*(90/$G$18))/2)*(1+(SQRT(1+(4/(J$5*((90/$G$18)*(90/$G$18))))*$J$23*(1-(SQRT(2)*Vin_rms_min*(SIN($Q35)/Vout)))))) -> 0.2703287197 | V35: =(K$5*((90/$G$18)*(90/$G$18))/2)*(1+(SQRT(1+(4/(K$5*((90/$G$18)*(90/$G$18))))*$K$23*(1-(SQRT(2)*Vin_rms_min*(SIN($Q35)/Vout)))))) -> 0.4054930796 | W35: =(L$5*((90/$G$18)*(90/$G$18))/2)*(1+(SQRT(1+(4/(L$5*((90/$G$18)*(90/$G$18))))*$L$23*(1-(SQRT(2)*Vin_rms_min*(SIN($Q35)/Vout)))))) -> 0.5406574394 | Y35: =R35*ABS(1/(Vout/(SQRT(2)*$C$25*SIN($Q35)))) -> 0.02741855237 | Z35: =S35*ABS(1/(Vout/(SQRT(2)*$C$25*SIN($Q35)))) -> 0.0264338591 | AA35: =T35*ABS(1/(Vout/(SQRT(2)*$C$25*SIN($Q35)))) -> 0.02583385083 | AB35: =U35*ABS(1/(Vout/(SQRT(2)*$C$25*SIN($Q35)))) -> 0.02405045774 | AC35: =V35*ABS(1/(Vout/(SQRT(2)*$C$25*SIN($Q35)))) -> 0.03607568662 | AD35: =W35*ABS(1/(Vout/(SQRT(2)*$C$25*SIN($Q35)))) -> 0.04810091549 | AF35: =1/(0.0000128*(R35+Y35+$G$23)) -> 40571.6671 | AG35: =1/(0.0000128*(S35+Z35+$H$23)) -> 87431.9407 | AH35: =1/(0.0000128*(T35+AA35+$I$23)) -> 114517.8553 | AI35: =1/(0.0000128*(U35+AB35+$J$23)) -> 265389.0152 | AJ35: =1/(0.0000128*(V35+AC35+$K$23)) -> 176926.0101 | AK35: =1/(0.0000128*(W35+AD35+$L$23)) -> 132694.5076
A36: Maximum Output Power of PFC Stage: | B36: POUT | C36: 50 | D36: W | E36: =IF(Vout_ripple_factor>0.05,"Lower ripple voltage factor is recommended","Good! Output voltage peak-peak ripple ≤5% VOUT") -> Good! Output voltage peak-peak ripple ≤5% VOUT | F36: TDCM | G36: =IF(G35>190,I7,G7) -> 0.15 | H36: =IF(G35>190,J7,H7) -> 0.45 | Q36: =Q35+0.01 -> 0.3 | R36: =(G$5*((90/$G$18)*(90/$G$18))/2)*(1+(SQRT(1+(4/(G$5*((90/$G$18)*(90/$G$18))))*$G$23*(1-(SQRT(2)*Vin_rms_min*(SIN($Q36)/Vout)))))) -> 0.307730858 | S36: =(H$5*((90/$G$18)*(90/$G$18))/2)*(1+(SQRT(1+(4/(H$5*((90/$G$18)*(90/$G$18))))*$H$23*(1-(SQRT(2)*Vin_rms_min*(SIN($Q36)/Vout)))))) -> 0.2967405674 | T36: =(I$5*((90/$G$18)*(90/$G$18))/2)*(1+(SQRT(1+(4/(I$5*((90/$G$18)*(90/$G$18))))*$I$23*(1-(SQRT(2)*Vin_rms_min*(SIN($Q36)/Vout)))))) -> 0.2900434291 | U36: =(J$5*((90/$G$18)*(90/$G$18))/2)*(1+(SQRT(1+(4/(J$5*((90/$G$18)*(90/$G$18))))*$J$23*(1-(SQRT(2)*Vin_rms_min*(SIN($Q36)/Vout)))))) -> 0.2703287197 | V36: =(K$5*((90/$G$18)*(90/$G$18))/2)*(1+(SQRT(1+(4/(K$5*((90/$G$18)*(90/$G$18))))*$K$23*(1-(SQRT(2)*Vin_rms_min*(SIN($Q36)/Vout)))))) -> 0.4054930796 | W36: =(L$5*((90/$G$18)*(90/$G$18))/2)*(1+(SQRT(1+(4/(L$5*((90/$G$18)*(90/$G$18))))*$L$23*(1-(SQRT(2)*Vin_rms_min*(SIN($Q36)/Vout)))))) -> 0.5406574394 | Y36: =R36*ABS(1/(Vout/(SQRT(2)*$C$25*SIN($Q36)))) -> 0.02829410156 | Z36: =S36*ABS(1/(Vout/(SQRT(2)*$C$25*SIN($Q36)))) -> 0.02728360688 | AA36: =T36*ABS(1/(Vout/(SQRT(2)*$C$25*SIN($Q36)))) -> 0.02666784311 | AB36: =U36*ABS(1/(Vout/(SQRT(2)*$C$25*SIN($Q36)))) -> 0.02485518775 | AC36: =V36*ABS(1/(Vout/(SQRT(2)*$C$25*SIN($Q36)))) -> 0.03728278163 | AD36: =W36*ABS(1/(Vout/(SQRT(2)*$C$25*SIN($Q36)))) -> 0.0497103755 | AF36: =1/(0.0000128*(R36+Y36+$G$23)) -> 40562.81805 | AG36: =1/(0.0000128*(S36+Z36+$H$23)) -> 87385.78021 | AH36: =1/(0.0000128*(T36+AA36+$I$23)) -> 114433.4409 | AI36: =1/(0.0000128*(U36+AB36+$J$23)) -> 264665.512 | AJ36: =1/(0.0000128*(V36+AC36+$K$23)) -> 176443.6747 | AK36: =1/(0.0000128*(W36+AD36+$L$23)) -> 132332.756
A37: Output Voltage (Note: Must be > VIN_RECTIFIED(max)): | B37: VOUT | C37: 500 | D37: V | G37: =$G$36*(1/(G$5*(90/$G$35)))-$H$36 -> 1.929 | H37: =$G$36*(1/(H$5*(90/$G$35)))-$H$36 -> 0.7395 | I37: =$G$36*(1/(I$5*(90/$G$35)))-$H$36 -> 0.5016 | J37: =$G$36*(1/(J$5*(90/$G$35)))-$H$36 -> 0.0258 | K37: =$G$36*(1/(K$5*(90/$G$35)))-$H$36 -> -0.1328 | L37: =$G$36*(1/(L$5*(90/$G$35)))-$H$36 -> -0.2121 | Q37: =Q36+0.01 -> 0.31 | R37: =(G$5*((90/$G$18)*(90/$G$18))/2)*(1+(SQRT(1+(4/(G$5*((90/$G$18)*(90/$G$18))))*$G$23*(1-(SQRT(2)*Vin_rms_min*(SIN($Q37)/Vout)))))) -> 0.307276062 | S37: =(H$5*((90/$G$18)*(90/$G$18))/2)*(1+(SQRT(1+(4/(H$5*((90/$G$18)*(90/$G$18))))*$H$23*(1-(SQRT(2)*Vin_rms_min*(SIN($Q37)/Vout)))))) -> 0.2963634084 | T37: =(I$5*((90/$G$18)*(90/$G$18))/2)*(1+(SQRT(1+(4/(I$5*((90/$G$18)*(90/$G$18))))*$I$23*(1-(SQRT(2)*Vin_rms_min*(SIN($Q37)/Vout)))))) -> 0.2897132148 | U37: =(J$5*((90/$G$18)*(90/$G$18))/2)*(1+(SQRT(1+(4/(J$5*((90/$G$18)*(90/$G$18))))*$J$23*(1-(SQRT(2)*Vin_rms_min*(SIN($Q37)/Vout)))))) -> 0.2703287197 | V37: =(K$5*((90/$G$18)*(90/$G$18))/2)*(1+(SQRT(1+(4/(K$5*((90/$G$18)*(90/$G$18))))*$K$23*(1-(SQRT(2)*Vin_rms_min*(SIN($Q37)/Vout)))))) -> 0.4054930796 | W37: =(L$5*((90/$G$18)*(90/$G$18))/2)*(1+(SQRT(1+(4/(L$5*((90/$G$18)*(90/$G$18))))*$L$23*(1-(SQRT(2)*Vin_rms_min*(SIN($Q37)/Vout)))))) -> 0.5406574394 | Y37: =R37*ABS(1/(Vout/(SQRT(2)*$C$25*SIN($Q37)))) -> 0.02916417743 | Z37: =S37*ABS(1/(Vout/(SQRT(2)*$C$25*SIN($Q37)))) -> 0.02812843594 | AA37: =T37*ABS(1/(Vout/(SQRT(2)*$C$25*SIN($Q37)))) -> 0.02749725294 | AB37: =U37*ABS(1/(Vout/(SQRT(2)*$C$25*SIN($Q37)))) -> 0.02565743226 | AC37: =V37*ABS(1/(Vout/(SQRT(2)*$C$25*SIN($Q37)))) -> 0.03848614839 | AD37: =W37*ABS(1/(Vout/(SQRT(2)*$C$25*SIN($Q37)))) -> 0.05131486452 | AF37: =1/(0.0000128*(R37+Y37+$G$23)) -> 40554.07399 | AG37: =1/(0.0000128*(S37+Z37+$H$23)) -> 87340.09202 | AH37: =1/(0.0000128*(T37+AA37+$I$23)) -> 114349.8288 | AI37: =1/(0.0000128*(U37+AB37+$J$23)) -> 263948.1593 | AJ37: =1/(0.0000128*(V37+AC37+$K$23)) -> 175965.4395 | AK37: =1/(0.0000128*(W37+AD37+$L$23)) -> 131974.0797
A38: Maximum Output Voltage Allowed Peak to Peak Low Frequency Ripple Factor (i.e. 0.02 for 2%, 0.05 for 5%). Not recommended to be > 5%: | B38: VOUT_ripple_factor | C38: 0.05 | G38: =MAX(G37:L37) -> 1.929 | Q38: =Q37+0.01 -> 0.32 | R38: =(G$5*((90/$G$18)*(90/$G$18))/2)*(1+(SQRT(1+(4/(G$5*((90/$G$18)*(90/$G$18))))*$G$23*(1-(SQRT(2)*Vin_rms_min*(SIN($Q38)/Vout)))))) -> 0.3068219849 | S38: =(H$5*((90/$G$18)*(90/$G$18))/2)*(1+(SQRT(1+(4/(H$5*((90/$G$18)*(90/$G$18))))*$H$23*(1-(SQRT(2)*Vin_rms_min*(SIN($Q38)/Vout)))))) -> 0.2959868704 | T38: =(I$5*((90/$G$18)*(90/$G$18))/2)*(1+(SQRT(1+(4/(I$5*((90/$G$18)*(90/$G$18))))*$I$23*(1-(SQRT(2)*Vin_rms_min*(SIN($Q38)/Vout)))))) -> 0.2893835673 | U38: =(J$5*((90/$G$18)*(90/$G$18))/2)*(1+(SQRT(1+(4/(J$5*((90/$G$18)*(90/$G$18))))*$J$23*(1-(SQRT(2)*Vin_rms_min*(SIN($Q38)/Vout)))))) -> 0.2703287197 | V38: =(K$5*((90/$G$18)*(90/$G$18))/2)*(1+(SQRT(1+(4/(K$5*((90/$G$18)*(90/$G$18))))*$K$23*(1-(SQRT(2)*Vin_rms_min*(SIN($Q38)/Vout)))))) -> 0.4054930796 | W38: =(L$5*((90/$G$18)*(90/$G$18))/2)*(1+(SQRT(1+(4/(L$5*((90/$G$18)*(90/$G$18))))*$L$23*(1-(SQRT(2)*Vin_rms_min*(SIN($Q38)/Vout)))))) -> 0.5406574394 | Y38: =R38*ABS(1/(Vout/(SQRT(2)*$C$25*SIN($Q38)))) -> 0.03002871221 | Z38: =S38*ABS(1/(Vout/(SQRT(2)*$C$25*SIN($Q38)))) -> 0.02896827798 | AA38: =T38*ABS(1/(Vout/(SQRT(2)*$C$25*SIN($Q38)))) -> 0.02832201174 | AB38: =U38*ABS(1/(Vout/(SQRT(2)*$C$25*SIN($Q38)))) -> 0.02645711105 | AC38: =V38*ABS(1/(Vout/(SQRT(2)*$C$25*SIN($Q38)))) -> 0.03968566657 | AD38: =W38*ABS(1/(Vout/(SQRT(2)*$C$25*SIN($Q38)))) -> 0.05291422209 | AF38: =1/(0.0000128*(R38+Y38+$G$23)) -> 40545.43516 | AG38: =1/(0.0000128*(S38+Z38+$H$23)) -> 87294.87744 | AH38: =1/(0.0000128*(T38+AA38+$I$23)) -> 114267.0214 | AI38: =1/(0.0000128*(U38+AB38+$J$23)) -> 263236.9605 | AJ38: =1/(0.0000128*(V38+AC38+$K$23)) -> 175491.307 | AK38: =1/(0.0000128*(W38+AD38+$L$23)) -> 131618.4802
A39: Maximum Output Voltage Allowed Peak to Peak Low Frequency Ripple | B39: ΔVPPK | C39: 10 | D39: V | G39: =IF(G$37>6.5,6.5,G$37) -> 1.929 | H39: =IF(H$37>6.5,6.5,H$37) -> 0.7395 | I39: =IF(I$37>6.5,6.5,I$37) -> 0.5016 | J39: =IF(J$37>6.5,6.5,J$37) -> 0.0258 | K39: =IF(K$37>6.5,6.5,K$37) -> -0.1328 | L39: =IF(L$37>6.5,6.5,L$37) -> -0.2121 | Q39: =Q38+0.01 -> 0.33 | R39: =(G$5*((90/$G$18)*(90/$G$18))/2)*(1+(SQRT(1+(4/(G$5*((90/$G$18)*(90/$G$18))))*$G$23*(1-(SQRT(2)*Vin_rms_min*(SIN($Q39)/Vout)))))) -> 0.3063686756 | S39: =(H$5*((90/$G$18)*(90/$G$18))/2)*(1+(SQRT(1+(4/(H$5*((90/$G$18)*(90/$G$18))))*$H$23*(1-(SQRT(2)*Vin_rms_min*(SIN($Q39)/Vout)))))) -> 0.2956109942 | T39: =(I$5*((90/$G$18)*(90/$G$18))/2)*(1+(SQRT(1+(4/(I$5*((90/$G$18)*(90/$G$18))))*$I$23*(1-(SQRT(2)*Vin_rms_min*(SIN($Q39)/Vout)))))) -> 0.2890545222 | U39: =(J$5*((90/$G$18)*(90/$G$18))/2)*(1+(SQRT(1+(4/(J$5*((90/$G$18)*(90/$G$18))))*$J$23*(1-(SQRT(2)*Vin_rms_min*(SIN($Q39)/Vout)))))) -> 0.2703287197 | V39: =(K$5*((90/$G$18)*(90/$G$18))/2)*(1+(SQRT(1+(4/(K$5*((90/$G$18)*(90/$G$18))))*$K$23*(1-(SQRT(2)*Vin_rms_min*(SIN($Q39)/Vout)))))) -> 0.4054930796 | W39: =(L$5*((90/$G$18)*(90/$G$18))/2)*(1+(SQRT(1+(4/(L$5*((90/$G$18)*(90/$G$18))))*$L$23*(1-(SQRT(2)*Vin_rms_min*(SIN($Q39)/Vout)))))) -> 0.5406574394 | Y39: =R39*ABS(1/(Vout/(SQRT(2)*$C$25*SIN($Q39)))) -> 0.03088763952 | Z39: =S39*ABS(1/(Vout/(SQRT(2)*$C$25*SIN($Q39)))) -> 0.02980306589 | AA39: =T39*ABS(1/(Vout/(SQRT(2)*$C$25*SIN($Q39)))) -> 0.02914205202 | AB39: =U39*ABS(1/(Vout/(SQRT(2)*$C$25*SIN($Q39)))) -> 0.02725414414 | AC39: =V39*ABS(1/(Vout/(SQRT(2)*$C$25*SIN($Q39)))) -> 0.04088121622 | AD39: =W39*ABS(1/(Vout/(SQRT(2)*$C$25*SIN($Q39)))) -> 0.05450828829 | AF39: =1/(0.0000128*(R39+Y39+$G$23)) -> 40536.9018 | AG39: =1/(0.0000128*(S39+Z39+$H$23)) -> 87250.13766 | AH39: =1/(0.0000128*(T39+AA39+$I$23)) -> 114185.0207 | AI39: =1/(0.0000128*(U39+AB39+$J$23)) -> 262531.9179 | AJ39: =1/(0.0000128*(V39+AC39+$K$23)) -> 175021.2786 | AK39: =1/(0.0000128*(W39+AD39+$L$23)) -> 131265.959
A40: Maximum Ambient Temperature: | B40: TAMB(max) | C40: 50 | D40: °C | F40: TDCMn | G40: =IF(G$39<0,0,G$39) -> 1.929 | H40: =IF(H$39<0,0,H$39) -> 0.7395 | I40: =IF(I$39<0,0,I$39) -> 0.5016 | J40: =IF(J$39<0,0,J$39) -> 0.0258 | K40: =IF(K$39<0,0,K$39) -> 0 | L40: =IF(L$39<0,0,L$39) -> 0 | Q40: =Q39+0.01 -> 0.34 | R40: =(G$5*((90/$G$18)*(90/$G$18))/2)*(1+(SQRT(1+(4/(G$5*((90/$G$18)*(90/$G$18))))*$G$23*(1-(SQRT(2)*Vin_rms_min*(SIN($Q40)/Vout)))))) -> 0.3059161833 | S40: =(H$5*((90/$G$18)*(90/$G$18))/2)*(1+(SQRT(1+(4/(H$5*((90/$G$18)*(90/$G$18))))*$H$23*(1-(SQRT(2)*Vin_rms_min*(SIN($Q40)/Vout)))))) -> 0.2952358203 | T40: =(I$5*((90/$G$18)*(90/$G$18))/2)*(1+(SQRT(1+(4/(I$5*((90/$G$18)*(90/$G$18))))*$I$23*(1-(SQRT(2)*Vin_rms_min*(SIN($Q40)/Vout)))))) -> 0.2887261151 | U40: =(J$5*((90/$G$18)*(90/$G$18))/2)*(1+(SQRT(1+(4/(J$5*((90/$G$18)*(90/$G$18))))*$J$23*(1-(SQRT(2)*Vin_rms_min*(SIN($Q40)/Vout)))))) -> 0.2703287197 | V40: =(K$5*((90/$G$18)*(90/$G$18))/2)*(1+(SQRT(1+(4/(K$5*((90/$G$18)*(90/$G$18))))*$K$23*(1-(SQRT(2)*Vin_rms_min*(SIN($Q40)/Vout)))))) -> 0.4054930796 | W40: =(L$5*((90/$G$18)*(90/$G$18))/2)*(1+(SQRT(1+(4/(L$5*((90/$G$18)*(90/$G$18))))*$L$23*(1-(SQRT(2)*Vin_rms_min*(SIN($Q40)/Vout)))))) -> 0.5406574394 | Y40: =R40*ABS(1/(Vout/(SQRT(2)*$C$25*SIN($Q40)))) -> 0.03174089437 | Z40: =S40*ABS(1/(Vout/(SQRT(2)*$C$25*SIN($Q40)))) -> 0.03063273373 | AA40: =T40*ABS(1/(Vout/(SQRT(2)*$C$25*SIN($Q40)))) -> 0.02995730733 | AB40: =U40*ABS(1/(Vout/(SQRT(2)*$C$25*SIN($Q40)))) -> 0.02804845185 | AC40: =V40*ABS(1/(Vout/(SQRT(2)*$C$25*SIN($Q40)))) -> 0.04207267778 | AD40: =W40*ABS(1/(Vout/(SQRT(2)*$C$25*SIN($Q40)))) -> 0.0560969037 | AF40: =1/(0.0000128*(R40+Y40+$G$23)) -> 40528.47413 | AG40: =1/(0.0000128*(S40+Z40+$H$23)) -> 87205.87373 | AH40: =1/(0.0000128*(T40+AA40+$I$23)) -> 114103.8288 | AI40: =1/(0.0000128*(U40+AB40+$J$23)) -> 261833.0336 | AJ40: =1/(0.0000128*(V40+AC40+$K$23)) -> 174555.3558 | AK40: =1/(0.0000128*(W40+AD40+$L$23)) -> 130916.5168
A41: Maximum Average Output Current of PFC Stage: | B41: IOUT | C41: =Pout/Vout -> 0.1 | D41: A | Q41: =Q40+0.01 -> 0.35 | R41: =(G$5*((90/$G$18)*(90/$G$18))/2)*(1+(SQRT(1+(4/(G$5*((90/$G$18)*(90/$G$18))))*$G$23*(1-(SQRT(2)*Vin_rms_min*(SIN($Q41)/Vout)))))) -> 0.3054645574 | S41: =(H$5*((90/$G$18)*(90/$G$18))/2)*(1+(SQRT(1+(4/(H$5*((90/$G$18)*(90/$G$18))))*$H$23*(1-(SQRT(2)*Vin_rms_min*(SIN($Q41)/Vout)))))) -> 0.2948613898 | T41: =(I$5*((90/$G$18)*(90/$G$18))/2)*(1+(SQRT(1+(4/(I$5*((90/$G$18)*(90/$G$18))))*$I$23*(1-(SQRT(2)*Vin_rms_min*(SIN($Q41)/Vout)))))) -> 0.2883983819 | U41: =(J$5*((90/$G$18)*(90/$G$18))/2)*(1+(SQRT(1+(4/(J$5*((90/$G$18)*(90/$G$18))))*$J$23*(1-(SQRT(2)*Vin_rms_min*(SIN($Q41)/Vout)))))) -> 0.2703287197 | V41: =(K$5*((90/$G$18)*(90/$G$18))/2)*(1+(SQRT(1+(4/(K$5*((90/$G$18)*(90/$G$18))))*$K$23*(1-(SQRT(2)*Vin_rms_min*(SIN($Q41)/Vout)))))) -> 0.4054930796 | W41: =(L$5*((90/$G$18)*(90/$G$18))/2)*(1+(SQRT(1+(4/(L$5*((90/$G$18)*(90/$G$18))))*$L$23*(1-(SQRT(2)*Vin_rms_min*(SIN($Q41)/Vout)))))) -> 0.5406574394 | Y41: =R41*ABS(1/(Vout/(SQRT(2)*$C$25*SIN($Q41)))) -> 0.03258841316 | Z41: =S41*ABS(1/(Vout/(SQRT(2)*$C$25*SIN($Q41)))) -> 0.03145721677 | AA41: =T41*ABS(1/(Vout/(SQRT(2)*$C$25*SIN($Q41)))) -> 0.03076771231 | AB41: =U41*ABS(1/(Vout/(SQRT(2)*$C$25*SIN($Q41)))) -> 0.02883995474 | AC41: =V41*ABS(1/(Vout/(SQRT(2)*$C$25*SIN($Q41)))) -> 0.0432599321 | AD41: =W41*ABS(1/(Vout/(SQRT(2)*$C$25*SIN($Q41)))) -> 0.05767990947 | AF41: =1/(0.0000128*(R41+Y41+$G$23)) -> 40520.1523 | AG41: =1/(0.0000128*(S41+Z41+$H$23)) -> 87162.08659 | AH41: =1/(0.0000128*(T41+AA41+$I$23)) -> 114023.4473 | AI41: =1/(0.0000128*(U41+AB41+$J$23)) -> 261140.3087 | AJ41: =1/(0.0000128*(V41+AC41+$K$23)) -> 174093.5391 | AK41: =1/(0.0000128*(W41+AD41+$L$23)) -> 130570.1543
A42: Minimum Equivalent Load Resistor | B42: RLOAD | C42: =Vout^2/Pout -> 5000 | D42: W | Q42: =Q41+0.01 -> 0.36 | R42: =(G$5*((90/$G$18)*(90/$G$18))/2)*(1+(SQRT(1+(4/(G$5*((90/$G$18)*(90/$G$18))))*$G$23*(1-(SQRT(2)*Vin_rms_min*(SIN($Q42)/Vout)))))) -> 0.3050138473 | S42: =(H$5*((90/$G$18)*(90/$G$18))/2)*(1+(SQRT(1+(4/(H$5*((90/$G$18)*(90/$G$18))))*$H$23*(1-(SQRT(2)*Vin_rms_min*(SIN($Q42)/Vout)))))) -> 0.2944877437 | T42: =(I$5*((90/$G$18)*(90/$G$18))/2)*(1+(SQRT(1+(4/(I$5*((90/$G$18)*(90/$G$18))))*$I$23*(1-(SQRT(2)*Vin_rms_min*(SIN($Q42)/Vout)))))) -> 0.2880713583 | U42: =(J$5*((90/$G$18)*(90/$G$18))/2)*(1+(SQRT(1+(4/(J$5*((90/$G$18)*(90/$G$18))))*$J$23*(1-(SQRT(2)*Vin_rms_min*(SIN($Q42)/Vout)))))) -> 0.2703287197 | V42: =(K$5*((90/$G$18)*(90/$G$18))/2)*(1+(SQRT(1+(4/(K$5*((90/$G$18)*(90/$G$18))))*$K$23*(1-(SQRT(2)*Vin_rms_min*(SIN($Q42)/Vout)))))) -> 0.4054930796 | W42: =(L$5*((90/$G$18)*(90/$G$18))/2)*(1+(SQRT(1+(4/(L$5*((90/$G$18)*(90/$G$18))))*$L$23*(1-(SQRT(2)*Vin_rms_min*(SIN($Q42)/Vout)))))) -> 0.5406574394 | Y42: =R42*ABS(1/(Vout/(SQRT(2)*$C$25*SIN($Q42)))) -> 0.03343013368 | Z42: =S42*ABS(1/(Vout/(SQRT(2)*$C$25*SIN($Q42)))) -> 0.03227645147 | AA42: =T42*ABS(1/(Vout/(SQRT(2)*$C$25*SIN($Q42)))) -> 0.03157320267 | AB42: =U42*ABS(1/(Vout/(SQRT(2)*$C$25*SIN($Q42)))) -> 0.02962857365 | AC42: =V42*ABS(1/(Vout/(SQRT(2)*$C$25*SIN($Q42)))) -> 0.04444286047 | AD42: =W42*ABS(1/(Vout/(SQRT(2)*$C$25*SIN($Q42)))) -> 0.0592571473 | AF42: =1/(0.0000128*(R42+Y42+$G$23)) -> 40511.93645 | AG42: =1/(0.0000128*(S42+Z42+$H$23)) -> 87118.77706 | AH42: =1/(0.0000128*(T42+AA42+$I$23)) -> 113943.8777 | AI42: =1/(0.0000128*(U42+AB42+$J$23)) -> 260453.7437 | AJ42: =1/(0.0000128*(V42+AC42+$K$23)) -> 173635.8291 | AK42: =1/(0.0000128*(W42+AD42+$L$23)) -> 130226.8718
Q43: =Q42+0.01 -> 0.37 | R43: =(G$5*((90/$G$18)*(90/$G$18))/2)*(1+(SQRT(1+(4/(G$5*((90/$G$18)*(90/$G$18))))*$G$23*(1-(SQRT(2)*Vin_rms_min*(SIN($Q43)/Vout)))))) -> 0.3045641026 | S43: =(H$5*((90/$G$18)*(90/$G$18))/2)*(1+(SQRT(1+(4/(H$5*((90/$G$18)*(90/$G$18))))*$H$23*(1-(SQRT(2)*Vin_rms_min*(SIN($Q43)/Vout)))))) -> 0.294114923 | T43: =(I$5*((90/$G$18)*(90/$G$18))/2)*(1+(SQRT(1+(4/(I$5*((90/$G$18)*(90/$G$18))))*$I$23*(1-(SQRT(2)*Vin_rms_min*(SIN($Q43)/Vout)))))) -> 0.2877450803 | U43: =(J$5*((90/$G$18)*(90/$G$18))/2)*(1+(SQRT(1+(4/(J$5*((90/$G$18)*(90/$G$18))))*$J$23*(1-(SQRT(2)*Vin_rms_min*(SIN($Q43)/Vout)))))) -> 0.2703287197 | V43: =(K$5*((90/$G$18)*(90/$G$18))/2)*(1+(SQRT(1+(4/(K$5*((90/$G$18)*(90/$G$18))))*$K$23*(1-(SQRT(2)*Vin_rms_min*(SIN($Q43)/Vout)))))) -> 0.4054930796 | W43: =(L$5*((90/$G$18)*(90/$G$18))/2)*(1+(SQRT(1+(4/(L$5*((90/$G$18)*(90/$G$18))))*$L$23*(1-(SQRT(2)*Vin_rms_min*(SIN($Q43)/Vout)))))) -> 0.5406574394 | Y43: =R43*ABS(1/(Vout/(SQRT(2)*$C$25*SIN($Q43)))) -> 0.0342659951 | Z43: =S43*ABS(1/(Vout/(SQRT(2)*$C$25*SIN($Q43)))) -> 0.03309037547 | AA43: =T43*ABS(1/(Vout/(SQRT(2)*$C$25*SIN($Q43)))) -> 0.03237371518 | AB43: =U43*ABS(1/(Vout/(SQRT(2)*$C$25*SIN($Q43)))) -> 0.03041422973 | AC43: =V43*ABS(1/(Vout/(SQRT(2)*$C$25*SIN($Q43)))) -> 0.04562134459 | AD43: =W43*ABS(1/(Vout/(SQRT(2)*$C$25*SIN($Q43)))) -> 0.06082845946 | AF43: =1/(0.0000128*(R43+Y43+$G$23)) -> 40503.82669 | AG43: =1/(0.0000128*(S43+Z43+$H$23)) -> 87075.94586 | AH43: =1/(0.0000128*(T43+AA43+$I$23)) -> 113865.1215 | AI43: =1/(0.0000128*(U43+AB43+$J$23)) -> 259773.3385 | AJ43: =1/(0.0000128*(V43+AC43+$K$23)) -> 173182.2256 | AK43: =1/(0.0000128*(W43+AD43+$L$23)) -> 129886.6692
Q44: =Q43+0.01 -> 0.38 | R44: =(G$5*((90/$G$18)*(90/$G$18))/2)*(1+(SQRT(1+(4/(G$5*((90/$G$18)*(90/$G$18))))*$G$23*(1-(SQRT(2)*Vin_rms_min*(SIN($Q44)/Vout)))))) -> 0.3041153733 | S44: =(H$5*((90/$G$18)*(90/$G$18))/2)*(1+(SQRT(1+(4/(H$5*((90/$G$18)*(90/$G$18))))*$H$23*(1-(SQRT(2)*Vin_rms_min*(SIN($Q44)/Vout)))))) -> 0.2937429691 | T44: =(I$5*((90/$G$18)*(90/$G$18))/2)*(1+(SQRT(1+(4/(I$5*((90/$G$18)*(90/$G$18))))*$I$23*(1-(SQRT(2)*Vin_rms_min*(SIN($Q44)/Vout)))))) -> 0.287419584 | U44: =(J$5*((90/$G$18)*(90/$G$18))/2)*(1+(SQRT(1+(4/(J$5*((90/$G$18)*(90/$G$18))))*$J$23*(1-(SQRT(2)*Vin_rms_min*(SIN($Q44)/Vout)))))) -> 0.2703287197 | V44: =(K$5*((90/$G$18)*(90/$G$18))/2)*(1+(SQRT(1+(4/(K$5*((90/$G$18)*(90/$G$18))))*$K$23*(1-(SQRT(2)*Vin_rms_min*(SIN($Q44)/Vout)))))) -> 0.4054930796 | W44: =(L$5*((90/$G$18)*(90/$G$18))/2)*(1+(SQRT(1+(4/(L$5*((90/$G$18)*(90/$G$18))))*$L$23*(1-(SQRT(2)*Vin_rms_min*(SIN($Q44)/Vout)))))) -> 0.5406574394 | Y44: =R44*ABS(1/(Vout/(SQRT(2)*$C$25*SIN($Q44)))) -> 0.03509593798 | Z44: =S44*ABS(1/(Vout/(SQRT(2)*$C$25*SIN($Q44)))) -> 0.03389892762 | AA44: =T44*ABS(1/(Vout/(SQRT(2)*$C$25*SIN($Q44)))) -> 0.03316918769 | AB44: =U44*ABS(1/(Vout/(SQRT(2)*$C$25*SIN($Q44)))) -> 0.03119684441 | AC44: =V44*ABS(1/(Vout/(SQRT(2)*$C$25*SIN($Q44)))) -> 0.04679526662 | AD44: =W44*ABS(1/(Vout/(SQRT(2)*$C$25*SIN($Q44)))) -> 0.06239368882 | AF44: =1/(0.0000128*(R44+Y44+$G$23)) -> 40495.82311 | AG44: =1/(0.0000128*(S44+Z44+$H$23)) -> 87033.59356 | AH44: =1/(0.0000128*(T44+AA44+$I$23)) -> 113787.1798 | AI44: =1/(0.0000128*(U44+AB44+$J$23)) -> 259099.0924 | AJ44: =1/(0.0000128*(V44+AC44+$K$23)) -> 172732.7283 | AK44: =1/(0.0000128*(W44+AD44+$L$23)) -> 129549.5462
A45: LINE CURRENT: | Q45: =Q44+0.01 -> 0.39 | R45: =(G$5*((90/$G$18)*(90/$G$18))/2)*(1+(SQRT(1+(4/(G$5*((90/$G$18)*(90/$G$18))))*$G$23*(1-(SQRT(2)*Vin_rms_min*(SIN($Q45)/Vout)))))) -> 0.3036677091 | S45: =(H$5*((90/$G$18)*(90/$G$18))/2)*(1+(SQRT(1+(4/(H$5*((90/$G$18)*(90/$G$18))))*$H$23*(1-(SQRT(2)*Vin_rms_min*(SIN($Q45)/Vout)))))) -> 0.2933719231 | T45: =(I$5*((90/$G$18)*(90/$G$18))/2)*(1+(SQRT(1+(4/(I$5*((90/$G$18)*(90/$G$18))))*$I$23*(1-(SQRT(2)*Vin_rms_min*(SIN($Q45)/Vout)))))) -> 0.2870949054 | U45: =(J$5*((90/$G$18)*(90/$G$18))/2)*(1+(SQRT(1+(4/(J$5*((90/$G$18)*(90/$G$18))))*$J$23*(1-(SQRT(2)*Vin_rms_min*(SIN($Q45)/Vout)))))) -> 0.2703287197 | V45: =(K$5*((90/$G$18)*(90/$G$18))/2)*(1+(SQRT(1+(4/(K$5*((90/$G$18)*(90/$G$18))))*$K$23*(1-(SQRT(2)*Vin_rms_min*(SIN($Q45)/Vout)))))) -> 0.4054930796 | W45: =(L$5*((90/$G$18)*(90/$G$18))/2)*(1+(SQRT(1+(4/(L$5*((90/$G$18)*(90/$G$18))))*$L$23*(1-(SQRT(2)*Vin_rms_min*(SIN($Q45)/Vout)))))) -> 0.5406574394 | Y45: =R45*ABS(1/(Vout/(SQRT(2)*$C$25*SIN($Q45)))) -> 0.0359199043 | Z45: =S45*ABS(1/(Vout/(SQRT(2)*$C$25*SIN($Q45)))) -> 0.03470204795 | AA45: =T45*ABS(1/(Vout/(SQRT(2)*$C$25*SIN($Q45)))) -> 0.03395955914 | AB45: =U45*ABS(1/(Vout/(SQRT(2)*$C$25*SIN($Q45)))) -> 0.03197633944 | AC45: =V45*ABS(1/(Vout/(SQRT(2)*$C$25*SIN($Q45)))) -> 0.04796450915 | AD45: =W45*ABS(1/(Vout/(SQRT(2)*$C$25*SIN($Q45)))) -> 0.06395267887 | AF45: =1/(0.0000128*(R45+Y45+$G$23)) -> 40487.92574 | AG45: =1/(0.0000128*(S45+Z45+$H$23)) -> 86991.72064 | AH45: =1/(0.0000128*(T45+AA45+$I$23)) -> 113710.0536 | AI45: =1/(0.0000128*(U45+AB45+$J$23)) -> 258431.0042 | AJ45: =1/(0.0000128*(V45+AC45+$K$23)) -> 172287.3361 | AK45: =1/(0.0000128*(W45+AD45+$L$23)) -> 129215.5021
A46: Maximum Input Power Drawn from the Line: | B46: PIN | C46: =Pout/eff -> 54.94505495 | D46: W | Q46: =Q45+0.01 -> 0.4 | R46: =(G$5*((90/$G$18)*(90/$G$18))/2)*(1+(SQRT(1+(4/(G$5*((90/$G$18)*(90/$G$18))))*$G$23*(1-(SQRT(2)*Vin_rms_min*(SIN($Q46)/Vout)))))) -> 0.3032211601 | S46: =(H$5*((90/$G$18)*(90/$G$18))/2)*(1+(SQRT(1+(4/(H$5*((90/$G$18)*(90/$G$18))))*$H$23*(1-(SQRT(2)*Vin_rms_min*(SIN($Q46)/Vout)))))) -> 0.2930018265 | T46: =(I$5*((90/$G$18)*(90/$G$18))/2)*(1+(SQRT(1+(4/(I$5*((90/$G$18)*(90/$G$18))))*$I$23*(1-(SQRT(2)*Vin_rms_min*(SIN($Q46)/Vout)))))) -> 0.2867710807 | U46: =(J$5*((90/$G$18)*(90/$G$18))/2)*(1+(SQRT(1+(4/(J$5*((90/$G$18)*(90/$G$18))))*$J$23*(1-(SQRT(2)*Vin_rms_min*(SIN($Q46)/Vout)))))) -> 0.2703287197 | V46: =(K$5*((90/$G$18)*(90/$G$18))/2)*(1+(SQRT(1+(4/(K$5*((90/$G$18)*(90/$G$18))))*$K$23*(1-(SQRT(2)*Vin_rms_min*(SIN($Q46)/Vout)))))) -> 0.4054930796 | W46: =(L$5*((90/$G$18)*(90/$G$18))/2)*(1+(SQRT(1+(4/(L$5*((90/$G$18)*(90/$G$18))))*$L$23*(1-(SQRT(2)*Vin_rms_min*(SIN($Q46)/Vout)))))) -> 0.5406574394 | Y46: =R46*ABS(1/(Vout/(SQRT(2)*$C$25*SIN($Q46)))) -> 0.03673783738 | Z46: =S46*ABS(1/(Vout/(SQRT(2)*$C$25*SIN($Q46)))) -> 0.03549967769 | AA46: =T46*ABS(1/(Vout/(SQRT(2)*$C$25*SIN($Q46)))) -> 0.03474476953 | AB46: =U46*ABS(1/(Vout/(SQRT(2)*$C$25*SIN($Q46)))) -> 0.03275263685 | AC46: =V46*ABS(1/(Vout/(SQRT(2)*$C$25*SIN($Q46)))) -> 0.04912895528 | AD46: =W46*ABS(1/(Vout/(SQRT(2)*$C$25*SIN($Q46)))) -> 0.06550527371 | AF46: =1/(0.0000128*(R46+Y46+$G$23)) -> 40480.1346 | AG46: =1/(0.0000128*(S46+Z46+$H$23)) -> 86950.32744 | AH46: =1/(0.0000128*(T46+AA46+$I$23)) -> 113633.7438 | AI46: =1/(0.0000128*(U46+AB46+$J$23)) -> 257769.0719 | AJ46: =1/(0.0000128*(V46+AC46+$K$23)) -> 171846.0479 | AK46: =1/(0.0000128*(W46+AD46+$L$23)) -> 128884.536
A47: Minimum Equivalent Input Resistance | B47: RIN(min) | C47: =Vin_rms_min^2/Pin -> 220.22 | D47: W | Q47: =Q46+0.01 -> 0.41 | R47: =(G$5*((90/$G$18)*(90/$G$18))/2)*(1+(SQRT(1+(4/(G$5*((90/$G$18)*(90/$G$18))))*$G$23*(1-(SQRT(2)*Vin_rms_min*(SIN($Q47)/Vout)))))) -> 0.3027757766 | S47: =(H$5*((90/$G$18)*(90/$G$18))/2)*(1+(SQRT(1+(4/(H$5*((90/$G$18)*(90/$G$18))))*$H$23*(1-(SQRT(2)*Vin_rms_min*(SIN($Q47)/Vout)))))) -> 0.2926327209 | T47: =(I$5*((90/$G$18)*(90/$G$18))/2)*(1+(SQRT(1+(4/(I$5*((90/$G$18)*(90/$G$18))))*$I$23*(1-(SQRT(2)*Vin_rms_min*(SIN($Q47)/Vout)))))) -> 0.2864481461 | U47: =(J$5*((90/$G$18)*(90/$G$18))/2)*(1+(SQRT(1+(4/(J$5*((90/$G$18)*(90/$G$18))))*$J$23*(1-(SQRT(2)*Vin_rms_min*(SIN($Q47)/Vout)))))) -> 0.2703287197 | V47: =(K$5*((90/$G$18)*(90/$G$18))/2)*(1+(SQRT(1+(4/(K$5*((90/$G$18)*(90/$G$18))))*$K$23*(1-(SQRT(2)*Vin_rms_min*(SIN($Q47)/Vout)))))) -> 0.4054930796 | W47: =(L$5*((90/$G$18)*(90/$G$18))/2)*(1+(SQRT(1+(4/(L$5*((90/$G$18)*(90/$G$18))))*$L$23*(1-(SQRT(2)*Vin_rms_min*(SIN($Q47)/Vout)))))) -> 0.5406574394 | Y47: =R47*ABS(1/(Vout/(SQRT(2)*$C$25*SIN($Q47)))) -> 0.03754968196 | Z47: =S47*ABS(1/(Vout/(SQRT(2)*$C$25*SIN($Q47)))) -> 0.03629175928 | AA47: =T47*ABS(1/(Vout/(SQRT(2)*$C$25*SIN($Q47)))) -> 0.03552475996 | AB47: =U47*ABS(1/(Vout/(SQRT(2)*$C$25*SIN($Q47)))) -> 0.03352565903 | AC47: =V47*ABS(1/(Vout/(SQRT(2)*$C$25*SIN($Q47)))) -> 0.05028848855 | AD47: =W47*ABS(1/(Vout/(SQRT(2)*$C$25*SIN($Q47)))) -> 0.06705131807 | AF47: =1/(0.0000128*(R47+Y47+$G$23)) -> 40472.44969 | AG47: =1/(0.0000128*(S47+Z47+$H$23)) -> 86909.41422 | AH47: =1/(0.0000128*(T47+AA47+$I$23)) -> 113558.2511 | AI47: =1/(0.0000128*(U47+AB47+$J$23)) -> 257113.2933 | AJ47: =1/(0.0000128*(V47+AC47+$K$23)) -> 171408.8622 | AK47: =1/(0.0000128*(W47+AD47+$L$23)) -> 128556.6466
A48: Maximum RMS AC Line Current: | B48: IIN_RMS(max) | C48: =Pout/(eff*Vin_rms_min*PF) -> 0.5045459591 | D48: A | Q48: =Q47+0.01 -> 0.42 | R48: =(G$5*((90/$G$18)*(90/$G$18))/2)*(1+(SQRT(1+(4/(G$5*((90/$G$18)*(90/$G$18))))*$G$23*(1-(SQRT(2)*Vin_rms_min*(SIN($Q48)/Vout)))))) -> 0.3023316088 | S48: =(H$5*((90/$G$18)*(90/$G$18))/2)*(1+(SQRT(1+(4/(H$5*((90/$G$18)*(90/$G$18))))*$H$23*(1-(SQRT(2)*Vin_rms_min*(SIN($Q48)/Vout)))))) -> 0.2922646479 | T48: =(I$5*((90/$G$18)*(90/$G$18))/2)*(1+(SQRT(1+(4/(I$5*((90/$G$18)*(90/$G$18))))*$I$23*(1-(SQRT(2)*Vin_rms_min*(SIN($Q48)/Vout)))))) -> 0.286126138 | U48: =(J$5*((90/$G$18)*(90/$G$18))/2)*(1+(SQRT(1+(4/(J$5*((90/$G$18)*(90/$G$18))))*$J$23*(1-(SQRT(2)*Vin_rms_min*(SIN($Q48)/Vout)))))) -> 0.2703287197 | V48: =(K$5*((90/$G$18)*(90/$G$18))/2)*(1+(SQRT(1+(4/(K$5*((90/$G$18)*(90/$G$18))))*$K$23*(1-(SQRT(2)*Vin_rms_min*(SIN($Q48)/Vout)))))) -> 0.4054930796 | W48: =(L$5*((90/$G$18)*(90/$G$18))/2)*(1+(SQRT(1+(4/(L$5*((90/$G$18)*(90/$G$18))))*$L$23*(1-(SQRT(2)*Vin_rms_min*(SIN($Q48)/Vout)))))) -> 0.5406574394 | Y48: =R48*ABS(1/(Vout/(SQRT(2)*$C$25*SIN($Q48)))) -> 0.03835538416 | Z48: =S48*ABS(1/(Vout/(SQRT(2)*$C$25*SIN($Q48)))) -> 0.03707823634 | AA48: =T48*ABS(1/(Vout/(SQRT(2)*$C$25*SIN($Q48)))) -> 0.03629947257 | AB48: =U48*ABS(1/(Vout/(SQRT(2)*$C$25*SIN($Q48)))) -> 0.03429532868 | AC48: =V48*ABS(1/(Vout/(SQRT(2)*$C$25*SIN($Q48)))) -> 0.05144299302 | AD48: =W48*ABS(1/(Vout/(SQRT(2)*$C$25*SIN($Q48)))) -> 0.06859065735 | AF48: =1/(0.0000128*(R48+Y48+$G$23)) -> 40464.87094 | AG48: =1/(0.0000128*(S48+Z48+$H$23)) -> 86868.98109 | AH48: =1/(0.0000128*(T48+AA48+$I$23)) -> 113483.5759 | AI48: =1/(0.0000128*(U48+AB48+$J$23)) -> 256463.6653 | AJ48: =1/(0.0000128*(V48+AC48+$K$23)) -> 170975.7769 | AK48: =1/(0.0000128*(W48+AD48+$L$23)) -> 128231.8327
A49: Maximum Peak AC Line Current, assuming sinusoidal: | B49: IIN_PEAK(max) | C49: =SQRT(2)*Iin_rms_max -> 0.7135357382 | D49: A | Q49: =Q48+0.01 -> 0.43 | R49: =(G$5*((90/$G$18)*(90/$G$18))/2)*(1+(SQRT(1+(4/(G$5*((90/$G$18)*(90/$G$18))))*$G$23*(1-(SQRT(2)*Vin_rms_min*(SIN($Q49)/Vout)))))) -> 0.3018887072 | S49: =(H$5*((90/$G$18)*(90/$G$18))/2)*(1+(SQRT(1+(4/(H$5*((90/$G$18)*(90/$G$18))))*$H$23*(1-(SQRT(2)*Vin_rms_min*(SIN($Q49)/Vout)))))) -> 0.291897649 | T49: =(I$5*((90/$G$18)*(90/$G$18))/2)*(1+(SQRT(1+(4/(I$5*((90/$G$18)*(90/$G$18))))*$I$23*(1-(SQRT(2)*Vin_rms_min*(SIN($Q49)/Vout)))))) -> 0.2858050927 | U49: =(J$5*((90/$G$18)*(90/$G$18))/2)*(1+(SQRT(1+(4/(J$5*((90/$G$18)*(90/$G$18))))*$J$23*(1-(SQRT(2)*Vin_rms_min*(SIN($Q49)/Vout)))))) -> 0.2703287197 | V49: =(K$5*((90/$G$18)*(90/$G$18))/2)*(1+(SQRT(1+(4/(K$5*((90/$G$18)*(90/$G$18))))*$K$23*(1-(SQRT(2)*Vin_rms_min*(SIN($Q49)/Vout)))))) -> 0.4054930796 | W49: =(L$5*((90/$G$18)*(90/$G$18))/2)*(1+(SQRT(1+(4/(L$5*((90/$G$18)*(90/$G$18))))*$L$23*(1-(SQRT(2)*Vin_rms_min*(SIN($Q49)/Vout)))))) -> 0.5406574394 | Y49: =R49*ABS(1/(Vout/(SQRT(2)*$C$25*SIN($Q49)))) -> 0.03915489147 | Z49: =S49*ABS(1/(Vout/(SQRT(2)*$C$25*SIN($Q49)))) -> 0.03785905367 | AA49: =T49*ABS(1/(Vout/(SQRT(2)*$C$25*SIN($Q49)))) -> 0.03706885061 | AB49: =U49*ABS(1/(Vout/(SQRT(2)*$C$25*SIN($Q49)))) -> 0.03506156882 | AC49: =V49*ABS(1/(Vout/(SQRT(2)*$C$25*SIN($Q49)))) -> 0.05259235322 | AD49: =W49*ABS(1/(Vout/(SQRT(2)*$C$25*SIN($Q49)))) -> 0.07012313763 | AF49: =1/(0.0000128*(R49+Y49+$G$23)) -> 40457.3983 | AG49: =1/(0.0000128*(S49+Z49+$H$23)) -> 86829.02808 | AH49: =1/(0.0000128*(T49+AA49+$I$23)) -> 113409.7185 | AI49: =1/(0.0000128*(U49+AB49+$J$23)) -> 255820.1846 | AJ49: =1/(0.0000128*(V49+AC49+$K$23)) -> 170546.7898 | AK49: =1/(0.0000128*(W49+AD49+$L$23)) -> 127910.0923
A50: Maximum Average AC Line Current, assuming sinusoidal: | B50: IIN_AVG(max) | C50: =(2*Iin_pk_max)/pi -> 0.4542509592 | D50: A | Q50: =Q49+0.01 -> 0.44 | R50: =(G$5*((90/$G$18)*(90/$G$18))/2)*(1+(SQRT(1+(4/(G$5*((90/$G$18)*(90/$G$18))))*$G$23*(1-(SQRT(2)*Vin_rms_min*(SIN($Q50)/Vout)))))) -> 0.3014471222 | S50: =(H$5*((90/$G$18)*(90/$G$18))/2)*(1+(SQRT(1+(4/(H$5*((90/$G$18)*(90/$G$18))))*$H$23*(1-(SQRT(2)*Vin_rms_min*(SIN($Q50)/Vout)))))) -> 0.2915317662 | T50: =(I$5*((90/$G$18)*(90/$G$18))/2)*(1+(SQRT(1+(4/(I$5*((90/$G$18)*(90/$G$18))))*$I$23*(1-(SQRT(2)*Vin_rms_min*(SIN($Q50)/Vout)))))) -> 0.2854850467 | U50: =(J$5*((90/$G$18)*(90/$G$18))/2)*(1+(SQRT(1+(4/(J$5*((90/$G$18)*(90/$G$18))))*$J$23*(1-(SQRT(2)*Vin_rms_min*(SIN($Q50)/Vout)))))) -> 0.2703287197 | V50: =(K$5*((90/$G$18)*(90/$G$18))/2)*(1+(SQRT(1+(4/(K$5*((90/$G$18)*(90/$G$18))))*$K$23*(1-(SQRT(2)*Vin_rms_min*(SIN($Q50)/Vout)))))) -> 0.4054930796 | W50: =(L$5*((90/$G$18)*(90/$G$18))/2)*(1+(SQRT(1+(4/(L$5*((90/$G$18)*(90/$G$18))))*$L$23*(1-(SQRT(2)*Vin_rms_min*(SIN($Q50)/Vout)))))) -> 0.5406574394 | Y50: =R50*ABS(1/(Vout/(SQRT(2)*$C$25*SIN($Q50)))) -> 0.03994815277 | Z50: =S50*ABS(1/(Vout/(SQRT(2)*$C$25*SIN($Q50)))) -> 0.03863415728 | AA50: =T50*ABS(1/(Vout/(SQRT(2)*$C$25*SIN($Q50)))) -> 0.03783283839 | AB50: =U50*ABS(1/(Vout/(SQRT(2)*$C$25*SIN($Q50)))) -> 0.03582430283 | AC50: =V50*ABS(1/(Vout/(SQRT(2)*$C$25*SIN($Q50)))) -> 0.05373645424 | AD50: =W50*ABS(1/(Vout/(SQRT(2)*$C$25*SIN($Q50)))) -> 0.07164860565 | AF50: =1/(0.0000128*(R50+Y50+$G$23)) -> 40450.03165 | AG50: =1/(0.0000128*(S50+Z50+$H$23)) -> 86789.55508 | AH50: =1/(0.0000128*(T50+AA50+$I$23)) -> 113336.6792 | AI50: =1/(0.0000128*(U50+AB50+$J$23)) -> 255182.8473 | AJ50: =1/(0.0000128*(V50+AC50+$K$23)) -> 170121.8982 | AK50: =1/(0.0000128*(W50+AD50+$L$23)) -> 127591.4236
A51: Minimum Input Fuse Rating: | B51: IFUSE | C51: =1.5*Iin_rms_max -> 0.7568189386 | D51: A | Q51: =Q50+0.01 -> 0.45 | R51: =(G$5*((90/$G$18)*(90/$G$18))/2)*(1+(SQRT(1+(4/(G$5*((90/$G$18)*(90/$G$18))))*$G$23*(1-(SQRT(2)*Vin_rms_min*(SIN($Q51)/Vout)))))) -> 0.3010069046 | S51: =(H$5*((90/$G$18)*(90/$G$18))/2)*(1+(SQRT(1+(4/(H$5*((90/$G$18)*(90/$G$18))))*$H$23*(1-(SQRT(2)*Vin_rms_min*(SIN($Q51)/Vout)))))) -> 0.2911670412 | T51: =(I$5*((90/$G$18)*(90/$G$18))/2)*(1+(SQRT(1+(4/(I$5*((90/$G$18)*(90/$G$18))))*$I$23*(1-(SQRT(2)*Vin_rms_min*(SIN($Q51)/Vout)))))) -> 0.2851660364 | U51: =(J$5*((90/$G$18)*(90/$G$18))/2)*(1+(SQRT(1+(4/(J$5*((90/$G$18)*(90/$G$18))))*$J$23*(1-(SQRT(2)*Vin_rms_min*(SIN($Q51)/Vout)))))) -> 0.2703287197 | V51: =(K$5*((90/$G$18)*(90/$G$18))/2)*(1+(SQRT(1+(4/(K$5*((90/$G$18)*(90/$G$18))))*$K$23*(1-(SQRT(2)*Vin_rms_min*(SIN($Q51)/Vout)))))) -> 0.4054930796 | W51: =(L$5*((90/$G$18)*(90/$G$18))/2)*(1+(SQRT(1+(4/(L$5*((90/$G$18)*(90/$G$18))))*$L$23*(1-(SQRT(2)*Vin_rms_min*(SIN($Q51)/Vout)))))) -> 0.5406574394 | Y51: =R51*ABS(1/(Vout/(SQRT(2)*$C$25*SIN($Q51)))) -> 0.0407351183 | Z51: =S51*ABS(1/(Vout/(SQRT(2)*$C$25*SIN($Q51)))) -> 0.03940349437 | AA51: =T51*ABS(1/(Vout/(SQRT(2)*$C$25*SIN($Q51)))) -> 0.0385913813 | AB51: =U51*ABS(1/(Vout/(SQRT(2)*$C$25*SIN($Q51)))) -> 0.03658345444 | AC51: =V51*ABS(1/(Vout/(SQRT(2)*$C$25*SIN($Q51)))) -> 0.05487518165 | AD51: =W51*ABS(1/(Vout/(SQRT(2)*$C$25*SIN($Q51)))) -> 0.07316690887 | AF51: =1/(0.0000128*(R51+Y51+$G$23)) -> 40442.77086 | AG51: =1/(0.0000128*(S51+Z51+$H$23)) -> 86750.56191 | AH51: =1/(0.0000128*(T51+AA51+$I$23)) -> 113264.4579 | AI51: =1/(0.0000128*(U51+AB51+$J$23)) -> 254551.6489 | AJ51: =1/(0.0000128*(V51+AC51+$K$23)) -> 169701.0993 | AK51: =1/(0.0000128*(W51+AD51+$L$23)) -> 127275.8245
A52: =IF(Vout>=Vin_pk_max,IF(PF<1,IF(eff<0.97,"","DO NOT PROCEED. ENTER EFFICIENCY LESS < 0.97"),"DO NOT PROCEED. ENTER PF < 1"),"DO NOT PROCEED. OUTPUT VOLTAGE MUST BE > RECTIFIED MAXIMUM INPUT VOLTAGE") ->  | Q52: =Q51+0.01 -> 0.46 | R52: =(G$5*((90/$G$18)*(90/$G$18))/2)*(1+(SQRT(1+(4/(G$5*((90/$G$18)*(90/$G$18))))*$G$23*(1-(SQRT(2)*Vin_rms_min*(SIN($Q52)/Vout)))))) -> 0.3005681049 | S52: =(H$5*((90/$G$18)*(90/$G$18))/2)*(1+(SQRT(1+(4/(H$5*((90/$G$18)*(90/$G$18))))*$H$23*(1-(SQRT(2)*Vin_rms_min*(SIN($Q52)/Vout)))))) -> 0.2908035159 | T52: =(I$5*((90/$G$18)*(90/$G$18))/2)*(1+(SQRT(1+(4/(I$5*((90/$G$18)*(90/$G$18))))*$I$23*(1-(SQRT(2)*Vin_rms_min*(SIN($Q52)/Vout)))))) -> 0.2848480984 | U52: =(J$5*((90/$G$18)*(90/$G$18))/2)*(1+(SQRT(1+(4/(J$5*((90/$G$18)*(90/$G$18))))*$J$23*(1-(SQRT(2)*Vin_rms_min*(SIN($Q52)/Vout)))))) -> 0.2703287197 | V52: =(K$5*((90/$G$18)*(90/$G$18))/2)*(1+(SQRT(1+(4/(K$5*((90/$G$18)*(90/$G$18))))*$K$23*(1-(SQRT(2)*Vin_rms_min*(SIN($Q52)/Vout)))))) -> 0.4054930796 | W52: =(L$5*((90/$G$18)*(90/$G$18))/2)*(1+(SQRT(1+(4/(L$5*((90/$G$18)*(90/$G$18))))*$L$23*(1-(SQRT(2)*Vin_rms_min*(SIN($Q52)/Vout)))))) -> 0.5406574394 | Y52: =R52*ABS(1/(Vout/(SQRT(2)*$C$25*SIN($Q52)))) -> 0.04151573969 | Z52: =S52*ABS(1/(Vout/(SQRT(2)*$C$25*SIN($Q52)))) -> 0.0401670133 | AA52: =T52*ABS(1/(Vout/(SQRT(2)*$C$25*SIN($Q52)))) -> 0.03934442581 | AB52: =U52*ABS(1/(Vout/(SQRT(2)*$C$25*SIN($Q52)))) -> 0.03733894773 | AC52: =V52*ABS(1/(Vout/(SQRT(2)*$C$25*SIN($Q52)))) -> 0.0560084216 | AD52: =W52*ABS(1/(Vout/(SQRT(2)*$C$25*SIN($Q52)))) -> 0.07467789546 | AF52: =1/(0.0000128*(R52+Y52+$G$23)) -> 40435.61578 | AG52: =1/(0.0000128*(S52+Z52+$H$23)) -> 86712.04825 | AH52: =1/(0.0000128*(T52+AA52+$I$23)) -> 113193.0545 | AI52: =1/(0.0000128*(U52+AB52+$J$23)) -> 253926.5846 | AJ52: =1/(0.0000128*(V52+AC52+$K$23)) -> 169284.3898 | AK52: =1/(0.0000128*(W52+AD52+$L$23)) -> 126963.2923
Q53: =Q52+0.01 -> 0.47 | R53: =(G$5*((90/$G$18)*(90/$G$18))/2)*(1+(SQRT(1+(4/(G$5*((90/$G$18)*(90/$G$18))))*$G$23*(1-(SQRT(2)*Vin_rms_min*(SIN($Q53)/Vout)))))) -> 0.3001307741 | S53: =(H$5*((90/$G$18)*(90/$G$18))/2)*(1+(SQRT(1+(4/(H$5*((90/$G$18)*(90/$G$18))))*$H$23*(1-(SQRT(2)*Vin_rms_min*(SIN($Q53)/Vout)))))) -> 0.2904412324 | T53: =(I$5*((90/$G$18)*(90/$G$18))/2)*(1+(SQRT(1+(4/(I$5*((90/$G$18)*(90/$G$18))))*$I$23*(1-(SQRT(2)*Vin_rms_min*(SIN($Q53)/Vout)))))) -> 0.2845312692 | U53: =(J$5*((90/$G$18)*(90/$G$18))/2)*(1+(SQRT(1+(4/(J$5*((90/$G$18)*(90/$G$18))))*$J$23*(1-(SQRT(2)*Vin_rms_min*(SIN($Q53)/Vout)))))) -> 0.2703287197 | V53: =(K$5*((90/$G$18)*(90/$G$18))/2)*(1+(SQRT(1+(4/(K$5*((90/$G$18)*(90/$G$18))))*$K$23*(1-(SQRT(2)*Vin_rms_min*(SIN($Q53)/Vout)))))) -> 0.4054930796 | W53: =(L$5*((90/$G$18)*(90/$G$18))/2)*(1+(SQRT(1+(4/(L$5*((90/$G$18)*(90/$G$18))))*$L$23*(1-(SQRT(2)*Vin_rms_min*(SIN($Q53)/Vout)))))) -> 0.5406574394 | Y53: =R53*ABS(1/(Vout/(SQRT(2)*$C$25*SIN($Q53)))) -> 0.04228996993 | Z53: =S53*ABS(1/(Vout/(SQRT(2)*$C$25*SIN($Q53)))) -> 0.04092466365 | AA53: =T53*ABS(1/(Vout/(SQRT(2)*$C$25*SIN($Q53)))) -> 0.04009191944 | AB53: =U53*ABS(1/(Vout/(SQRT(2)*$C$25*SIN($Q53)))) -> 0.03809070716 | AC53: =V53*ABS(1/(Vout/(SQRT(2)*$C$25*SIN($Q53)))) -> 0.05713606075 | AD53: =W53*ABS(1/(Vout/(SQRT(2)*$C$25*SIN($Q53)))) -> 0.07618141433 | AF53: =1/(0.0000128*(R53+Y53+$G$23)) -> 40428.56621 | AG53: =1/(0.0000128*(S53+Z53+$H$23)) -> 86674.01368 | AH53: =1/(0.0000128*(T53+AA53+$I$23)) -> 113122.4686 | AI53: =1/(0.0000128*(U53+AB53+$J$23)) -> 253307.6492 | AJ53: =1/(0.0000128*(V53+AC53+$K$23)) -> 168871.7662 | AK53: =1/(0.0000128*(W53+AD53+$L$23)) -> 126653.8246
A54: BOOST INDUCTOR DESIGN: | Q54: =Q53+0.01 -> 0.48 | R54: =(G$5*((90/$G$18)*(90/$G$18))/2)*(1+(SQRT(1+(4/(G$5*((90/$G$18)*(90/$G$18))))*$G$23*(1-(SQRT(2)*Vin_rms_min*(SIN($Q54)/Vout)))))) -> 0.2996949631 | S54: =(H$5*((90/$G$18)*(90/$G$18))/2)*(1+(SQRT(1+(4/(H$5*((90/$G$18)*(90/$G$18))))*$H$23*(1-(SQRT(2)*Vin_rms_min*(SIN($Q54)/Vout)))))) -> 0.2900802326 | T54: =(I$5*((90/$G$18)*(90/$G$18))/2)*(1+(SQRT(1+(4/(I$5*((90/$G$18)*(90/$G$18))))*$I$23*(1-(SQRT(2)*Vin_rms_min*(SIN($Q54)/Vout)))))) -> 0.2842155855 | U54: =(J$5*((90/$G$18)*(90/$G$18))/2)*(1+(SQRT(1+(4/(J$5*((90/$G$18)*(90/$G$18))))*$J$23*(1-(SQRT(2)*Vin_rms_min*(SIN($Q54)/Vout)))))) -> 0.2703287197 | V54: =(K$5*((90/$G$18)*(90/$G$18))/2)*(1+(SQRT(1+(4/(K$5*((90/$G$18)*(90/$G$18))))*$K$23*(1-(SQRT(2)*Vin_rms_min*(SIN($Q54)/Vout)))))) -> 0.4054930796 | W54: =(L$5*((90/$G$18)*(90/$G$18))/2)*(1+(SQRT(1+(4/(L$5*((90/$G$18)*(90/$G$18))))*$L$23*(1-(SQRT(2)*Vin_rms_min*(SIN($Q54)/Vout)))))) -> 0.5406574394 | Y54: =R54*ABS(1/(Vout/(SQRT(2)*$C$25*SIN($Q54)))) -> 0.04305776336 | Z54: =S54*ABS(1/(Vout/(SQRT(2)*$C$25*SIN($Q54)))) -> 0.04167639616 | AA54: =T54*ABS(1/(Vout/(SQRT(2)*$C$25*SIN($Q54)))) -> 0.04083381081 | AB54: =U54*ABS(1/(Vout/(SQRT(2)*$C$25*SIN($Q54)))) -> 0.03883865756 | AC54: =V54*ABS(1/(Vout/(SQRT(2)*$C$25*SIN($Q54)))) -> 0.05825798633 | AD54: =W54*ABS(1/(Vout/(SQRT(2)*$C$25*SIN($Q54)))) -> 0.07767731511 | AF54: =1/(0.0000128*(R54+Y54+$G$23)) -> 40421.62193 | AG54: =1/(0.0000128*(S54+Z54+$H$23)) -> 86636.45768 | AH54: =1/(0.0000128*(T54+AA54+$I$23)) -> 113052.6999 | AI54: =1/(0.0000128*(U54+AB54+$J$23)) -> 252694.837 | AJ54: =1/(0.0000128*(V54+AC54+$K$23)) -> 168463.2247 | AK54: =1/(0.0000128*(W54+AD54+$L$23)) -> 126347.4185
A55: Maximum ON time when GFF=GFF0 | B55: TON(max0) | C55: 12.8 | D55: µs | Q55: =Q54+0.01 -> 0.49 | R55: =(G$5*((90/$G$18)*(90/$G$18))/2)*(1+(SQRT(1+(4/(G$5*((90/$G$18)*(90/$G$18))))*$G$23*(1-(SQRT(2)*Vin_rms_min*(SIN($Q55)/Vout)))))) -> 0.2992607228 | S55: =(H$5*((90/$G$18)*(90/$G$18))/2)*(1+(SQRT(1+(4/(H$5*((90/$G$18)*(90/$G$18))))*$H$23*(1-(SQRT(2)*Vin_rms_min*(SIN($Q55)/Vout)))))) -> 0.2897205586 | T55: =(I$5*((90/$G$18)*(90/$G$18))/2)*(1+(SQRT(1+(4/(I$5*((90/$G$18)*(90/$G$18))))*$I$23*(1-(SQRT(2)*Vin_rms_min*(SIN($Q55)/Vout)))))) -> 0.283901084 | U55: =(J$5*((90/$G$18)*(90/$G$18))/2)*(1+(SQRT(1+(4/(J$5*((90/$G$18)*(90/$G$18))))*$J$23*(1-(SQRT(2)*Vin_rms_min*(SIN($Q55)/Vout)))))) -> 0.2703287197 | V55: =(K$5*((90/$G$18)*(90/$G$18))/2)*(1+(SQRT(1+(4/(K$5*((90/$G$18)*(90/$G$18))))*$K$23*(1-(SQRT(2)*Vin_rms_min*(SIN($Q55)/Vout)))))) -> 0.4054930796 | W55: =(L$5*((90/$G$18)*(90/$G$18))/2)*(1+(SQRT(1+(4/(L$5*((90/$G$18)*(90/$G$18))))*$L$23*(1-(SQRT(2)*Vin_rms_min*(SIN($Q55)/Vout)))))) -> 0.5406574394 | Y55: =R55*ABS(1/(Vout/(SQRT(2)*$C$25*SIN($Q55)))) -> 0.04381907569 | Z55: =S55*ABS(1/(Vout/(SQRT(2)*$C$25*SIN($Q55)))) -> 0.04242216274 | AA55: =T55*ABS(1/(Vout/(SQRT(2)*$C$25*SIN($Q55)))) -> 0.04157004958 | AB55: =U55*ABS(1/(Vout/(SQRT(2)*$C$25*SIN($Q55)))) -> 0.03958272412 | AC55: =V55*ABS(1/(Vout/(SQRT(2)*$C$25*SIN($Q55)))) -> 0.05937408617 | AD55: =W55*ABS(1/(Vout/(SQRT(2)*$C$25*SIN($Q55)))) -> 0.07916544823 | AF55: =1/(0.0000128*(R55+Y55+$G$23)) -> 40414.7827 | AG55: =1/(0.0000128*(S55+Z55+$H$23)) -> 86599.37962 | AH55: =1/(0.0000128*(T55+AA55+$I$23)) -> 112983.7476 | AI55: =1/(0.0000128*(U55+AB55+$J$23)) -> 252088.1418 | AJ55: =1/(0.0000128*(V55+AC55+$K$23)) -> 168058.7612 | AK55: =1/(0.0000128*(W55+AD55+$L$23)) -> 126044.0709
A56: Maximum ON time when GFF=GFF1 | B56: TON(max1) | C56: 10.98 | D56: µs | Q56: =Q55+0.01 -> 0.5 | R56: =(G$5*((90/$G$18)*(90/$G$18))/2)*(1+(SQRT(1+(4/(G$5*((90/$G$18)*(90/$G$18))))*$G$23*(1-(SQRT(2)*Vin_rms_min*(SIN($Q56)/Vout)))))) -> 0.2988281043 | S56: =(H$5*((90/$G$18)*(90/$G$18))/2)*(1+(SQRT(1+(4/(H$5*((90/$G$18)*(90/$G$18))))*$H$23*(1-(SQRT(2)*Vin_rms_min*(SIN($Q56)/Vout)))))) -> 0.2893622526 | T56: =(I$5*((90/$G$18)*(90/$G$18))/2)*(1+(SQRT(1+(4/(I$5*((90/$G$18)*(90/$G$18))))*$I$23*(1-(SQRT(2)*Vin_rms_min*(SIN($Q56)/Vout)))))) -> 0.2835878012 | U56: =(J$5*((90/$G$18)*(90/$G$18))/2)*(1+(SQRT(1+(4/(J$5*((90/$G$18)*(90/$G$18))))*$J$23*(1-(SQRT(2)*Vin_rms_min*(SIN($Q56)/Vout)))))) -> 0.2703287197 | V56: =(K$5*((90/$G$18)*(90/$G$18))/2)*(1+(SQRT(1+(4/(K$5*((90/$G$18)*(90/$G$18))))*$K$23*(1-(SQRT(2)*Vin_rms_min*(SIN($Q56)/Vout)))))) -> 0.4054930796 | W56: =(L$5*((90/$G$18)*(90/$G$18))/2)*(1+(SQRT(1+(4/(L$5*((90/$G$18)*(90/$G$18))))*$L$23*(1-(SQRT(2)*Vin_rms_min*(SIN($Q56)/Vout)))))) -> 0.5406574394 | Y56: =R56*ABS(1/(Vout/(SQRT(2)*$C$25*SIN($Q56)))) -> 0.04457386396 | Z56: =S56*ABS(1/(Vout/(SQRT(2)*$C$25*SIN($Q56)))) -> 0.04316191648 | AA56: =T56*ABS(1/(Vout/(SQRT(2)*$C$25*SIN($Q56)))) -> 0.04230058649 | AB56: =U56*ABS(1/(Vout/(SQRT(2)*$C$25*SIN($Q56)))) -> 0.04032283244 | AC56: =V56*ABS(1/(Vout/(SQRT(2)*$C$25*SIN($Q56)))) -> 0.06048424865 | AD56: =W56*ABS(1/(Vout/(SQRT(2)*$C$25*SIN($Q56)))) -> 0.08064566487 | AF56: =1/(0.0000128*(R56+Y56+$G$23)) -> 40408.04824 | AG56: =1/(0.0000128*(S56+Z56+$H$23)) -> 86562.77879 | AH56: =1/(0.0000128*(T56+AA56+$I$23)) -> 112915.6109 | AI56: =1/(0.0000128*(U56+AB56+$J$23)) -> 251487.5572 | AJ56: =1/(0.0000128*(V56+AC56+$K$23)) -> 167658.3715 | AK56: =1/(0.0000128*(W56+AD56+$L$23)) -> 125743.7786
A57: Feed-Forward Comparator Falling Threshold Switching From GFF1 to GFF0 | B57: VFF0_Fall | C57: 0.331 | D57: V | Q57: =Q56+0.01 -> 0.51 | R57: =(G$5*((90/$G$18)*(90/$G$18))/2)*(1+(SQRT(1+(4/(G$5*((90/$G$18)*(90/$G$18))))*$G$23*(1-(SQRT(2)*Vin_rms_min*(SIN($Q57)/Vout)))))) -> 0.2983971587 | S57: =(H$5*((90/$G$18)*(90/$G$18))/2)*(1+(SQRT(1+(4/(H$5*((90/$G$18)*(90/$G$18))))*$H$23*(1-(SQRT(2)*Vin_rms_min*(SIN($Q57)/Vout)))))) -> 0.2890053567 | T57: =(I$5*((90/$G$18)*(90/$G$18))/2)*(1+(SQRT(1+(4/(I$5*((90/$G$18)*(90/$G$18))))*$I$23*(1-(SQRT(2)*Vin_rms_min*(SIN($Q57)/Vout)))))) -> 0.2832757739 | U57: =(J$5*((90/$G$18)*(90/$G$18))/2)*(1+(SQRT(1+(4/(J$5*((90/$G$18)*(90/$G$18))))*$J$23*(1-(SQRT(2)*Vin_rms_min*(SIN($Q57)/Vout)))))) -> 0.2703287197 | V57: =(K$5*((90/$G$18)*(90/$G$18))/2)*(1+(SQRT(1+(4/(K$5*((90/$G$18)*(90/$G$18))))*$K$23*(1-(SQRT(2)*Vin_rms_min*(SIN($Q57)/Vout)))))) -> 0.4054930796 | W57: =(L$5*((90/$G$18)*(90/$G$18))/2)*(1+(SQRT(1+(4/(L$5*((90/$G$18)*(90/$G$18))))*$L$23*(1-(SQRT(2)*Vin_rms_min*(SIN($Q57)/Vout)))))) -> 0.5406574394 | Y57: =R57*ABS(1/(Vout/(SQRT(2)*$C$25*SIN($Q57)))) -> 0.04532208658 | Z57: =S57*ABS(1/(Vout/(SQRT(2)*$C$25*SIN($Q57)))) -> 0.04389561164 | AA57: =T57*ABS(1/(Vout/(SQRT(2)*$C$25*SIN($Q57)))) -> 0.04302537332 | AB57: =U57*ABS(1/(Vout/(SQRT(2)*$C$25*SIN($Q57)))) -> 0.04105890851 | AC57: =V57*ABS(1/(Vout/(SQRT(2)*$C$25*SIN($Q57)))) -> 0.06158836276 | AD57: =W57*ABS(1/(Vout/(SQRT(2)*$C$25*SIN($Q57)))) -> 0.08211781701 | AF57: =1/(0.0000128*(R57+Y57+$G$23)) -> 40401.41825 | AG57: =1/(0.0000128*(S57+Z57+$H$23)) -> 86526.65435 | AH57: =1/(0.0000128*(T57+AA57+$I$23)) -> 112848.2891 | AI57: =1/(0.0000128*(U57+AB57+$J$23)) -> 250893.0764 | AJ57: =1/(0.0000128*(V57+AC57+$K$23)) -> 167262.0509 | AK57: =1/(0.0000128*(W57+AD57+$L$23)) -> 125446.5382
A58: Initial ZCD/CS Pin Divider Ratio | B58: KZC_initial | C58: 401 | E58: =IF(Lbst>C59,"DECREASE BOOST INDUCTANCE TO LEAST THAN RECOMMENDED MAXIMUM VALUE","") ->  | Q58: =Q57+0.01 -> 0.52 | R58: =(G$5*((90/$G$18)*(90/$G$18))/2)*(1+(SQRT(1+(4/(G$5*((90/$G$18)*(90/$G$18))))*$G$23*(1-(SQRT(2)*Vin_rms_min*(SIN($Q58)/Vout)))))) -> 0.2979679373 | S58: =(H$5*((90/$G$18)*(90/$G$18))/2)*(1+(SQRT(1+(4/(H$5*((90/$G$18)*(90/$G$18))))*$H$23*(1-(SQRT(2)*Vin_rms_min*(SIN($Q58)/Vout)))))) -> 0.2886499131 | T58: =(I$5*((90/$G$18)*(90/$G$18))/2)*(1+(SQRT(1+(4/(I$5*((90/$G$18)*(90/$G$18))))*$I$23*(1-(SQRT(2)*Vin_rms_min*(SIN($Q58)/Vout)))))) -> 0.2829650389 | U58: =(J$5*((90/$G$18)*(90/$G$18))/2)*(1+(SQRT(1+(4/(J$5*((90/$G$18)*(90/$G$18))))*$J$23*(1-(SQRT(2)*Vin_rms_min*(SIN($Q58)/Vout)))))) -> 0.2703287197 | V58: =(K$5*((90/$G$18)*(90/$G$18))/2)*(1+(SQRT(1+(4/(K$5*((90/$G$18)*(90/$G$18))))*$K$23*(1-(SQRT(2)*Vin_rms_min*(SIN($Q58)/Vout)))))) -> 0.4054930796 | W58: =(L$5*((90/$G$18)*(90/$G$18))/2)*(1+(SQRT(1+(4/(L$5*((90/$G$18)*(90/$G$18))))*$L$23*(1-(SQRT(2)*Vin_rms_min*(SIN($Q58)/Vout)))))) -> 0.5406574394 | Y58: =R58*ABS(1/(Vout/(SQRT(2)*$C$25*SIN($Q58)))) -> 0.04606370326 | Z58: =S58*ABS(1/(Vout/(SQRT(2)*$C$25*SIN($Q58)))) -> 0.04462320364 | AA58: =T58*ABS(1/(Vout/(SQRT(2)*$C$25*SIN($Q58)))) -> 0.04374436292 | AB58: =U58*ABS(1/(Vout/(SQRT(2)*$C$25*SIN($Q58)))) -> 0.04179087872 | AC58: =V58*ABS(1/(Vout/(SQRT(2)*$C$25*SIN($Q58)))) -> 0.06268631808 | AD58: =W58*ABS(1/(Vout/(SQRT(2)*$C$25*SIN($Q58)))) -> 0.08358175744 | AF58: =1/(0.0000128*(R58+Y58+$G$23)) -> 40394.89239 | AG58: =1/(0.0000128*(S58+Z58+$H$23)) -> 86491.00538 | AH58: =1/(0.0000128*(T58+AA58+$I$23)) -> 112781.7809 | AI58: =1/(0.0000128*(U58+AB58+$J$23)) -> 250304.6921 | AJ58: =1/(0.0000128*(V58+AC58+$K$23)) -> 166869.7948 | AK58: =1/(0.0000128*(W58+AD58+$L$23)) -> 125152.3461
A59: Recommended Maximum Boost Inductor Value: | B59: LBST(recommended) | C59: =MIN(Vin_rms_min^2*Ton_max0/(2*Pin),(Kzc_initial*VFF0)^2*Ton_max1/(4*Pin)) -> 880.1535998 | D59: µH | Q59: =Q58+0.01 -> 0.53 | R59: =(G$5*((90/$G$18)*(90/$G$18))/2)*(1+(SQRT(1+(4/(G$5*((90/$G$18)*(90/$G$18))))*$G$23*(1-(SQRT(2)*Vin_rms_min*(SIN($Q59)/Vout)))))) -> 0.2975404911 | S59: =(H$5*((90/$G$18)*(90/$G$18))/2)*(1+(SQRT(1+(4/(H$5*((90/$G$18)*(90/$G$18))))*$H$23*(1-(SQRT(2)*Vin_rms_min*(SIN($Q59)/Vout)))))) -> 0.2882959641 | T59: =(I$5*((90/$G$18)*(90/$G$18))/2)*(1+(SQRT(1+(4/(I$5*((90/$G$18)*(90/$G$18))))*$I$23*(1-(SQRT(2)*Vin_rms_min*(SIN($Q59)/Vout)))))) -> 0.2826556329 | U59: =(J$5*((90/$G$18)*(90/$G$18))/2)*(1+(SQRT(1+(4/(J$5*((90/$G$18)*(90/$G$18))))*$J$23*(1-(SQRT(2)*Vin_rms_min*(SIN($Q59)/Vout)))))) -> 0.2703287197 | V59: =(K$5*((90/$G$18)*(90/$G$18))/2)*(1+(SQRT(1+(4/(K$5*((90/$G$18)*(90/$G$18))))*$K$23*(1-(SQRT(2)*Vin_rms_min*(SIN($Q59)/Vout)))))) -> 0.4054930796 | W59: =(L$5*((90/$G$18)*(90/$G$18))/2)*(1+(SQRT(1+(4/(L$5*((90/$G$18)*(90/$G$18))))*$L$23*(1-(SQRT(2)*Vin_rms_min*(SIN($Q59)/Vout)))))) -> 0.5406574394 | Y59: =R59*ABS(1/(Vout/(SQRT(2)*$C$25*SIN($Q59)))) -> 0.04679867508 | Z59: =S59*ABS(1/(Vout/(SQRT(2)*$C$25*SIN($Q59)))) -> 0.04534464905 | AA59: =T59*ABS(1/(Vout/(SQRT(2)*$C$25*SIN($Q59)))) -> 0.0444575092 | AB59: =U59*ABS(1/(Vout/(SQRT(2)*$C$25*SIN($Q59)))) -> 0.04251866988 | AC59: =V59*ABS(1/(Vout/(SQRT(2)*$C$25*SIN($Q59)))) -> 0.06377800482 | AD59: =W59*ABS(1/(Vout/(SQRT(2)*$C$25*SIN($Q59)))) -> 0.08503733976 | AF59: =1/(0.0000128*(R59+Y59+$G$23)) -> 40388.47032 | AG59: =1/(0.0000128*(S59+Z59+$H$23)) -> 86455.83085 | AH59: =1/(0.0000128*(T59+AA59+$I$23)) -> 112716.0852 | AI59: =1/(0.0000128*(U59+AB59+$J$23)) -> 249722.3969 | AJ59: =1/(0.0000128*(V59+AC59+$K$23)) -> 166481.5979 | AK59: =1/(0.0000128*(W59+AD59+$L$23)) -> 124861.1985
A60: Actual Boost Inductor Value Used: | B60: LBST(actual) | C60: 680 | D60: µH | Q60: =Q59+0.01 -> 0.54 | R60: =(G$5*((90/$G$18)*(90/$G$18))/2)*(1+(SQRT(1+(4/(G$5*((90/$G$18)*(90/$G$18))))*$G$23*(1-(SQRT(2)*Vin_rms_min*(SIN($Q60)/Vout)))))) -> 0.2971148716 | S60: =(H$5*((90/$G$18)*(90/$G$18))/2)*(1+(SQRT(1+(4/(H$5*((90/$G$18)*(90/$G$18))))*$H$23*(1-(SQRT(2)*Vin_rms_min*(SIN($Q60)/Vout)))))) -> 0.2879435519 | T60: =(I$5*((90/$G$18)*(90/$G$18))/2)*(1+(SQRT(1+(4/(I$5*((90/$G$18)*(90/$G$18))))*$I$23*(1-(SQRT(2)*Vin_rms_min*(SIN($Q60)/Vout)))))) -> 0.2823475926 | U60: =(J$5*((90/$G$18)*(90/$G$18))/2)*(1+(SQRT(1+(4/(J$5*((90/$G$18)*(90/$G$18))))*$J$23*(1-(SQRT(2)*Vin_rms_min*(SIN($Q60)/Vout)))))) -> 0.2703287197 | V60: =(K$5*((90/$G$18)*(90/$G$18))/2)*(1+(SQRT(1+(4/(K$5*((90/$G$18)*(90/$G$18))))*$K$23*(1-(SQRT(2)*Vin_rms_min*(SIN($Q60)/Vout)))))) -> 0.4054930796 | W60: =(L$5*((90/$G$18)*(90/$G$18))/2)*(1+(SQRT(1+(4/(L$5*((90/$G$18)*(90/$G$18))))*$L$23*(1-(SQRT(2)*Vin_rms_min*(SIN($Q60)/Vout)))))) -> 0.5406574394 | Y60: =R60*ABS(1/(Vout/(SQRT(2)*$C$25*SIN($Q60)))) -> 0.04752696439 | Z60: =S60*ABS(1/(Vout/(SQRT(2)*$C$25*SIN($Q60)))) -> 0.0460599056 | AA60: =T60*ABS(1/(Vout/(SQRT(2)*$C$25*SIN($Q60)))) -> 0.0451647671 | AB60: =U60*ABS(1/(Vout/(SQRT(2)*$C$25*SIN($Q60)))) -> 0.04324220921 | AC60: =V60*ABS(1/(Vout/(SQRT(2)*$C$25*SIN($Q60)))) -> 0.06486331381 | AD60: =W60*ABS(1/(Vout/(SQRT(2)*$C$25*SIN($Q60)))) -> 0.08648441842 | AF60: =1/(0.0000128*(R60+Y60+$G$23)) -> 40382.15165 | AG60: =1/(0.0000128*(S60+Z60+$H$23)) -> 86421.12964 | AH60: =1/(0.0000128*(T60+AA60+$I$23)) -> 112651.2007 | AI60: =1/(0.0000128*(U60+AB60+$J$23)) -> 249146.1829 | AJ60: =1/(0.0000128*(V60+AC60+$K$23)) -> 166097.4552 | AK60: =1/(0.0000128*(W60+AD60+$L$23)) -> 124573.0914
A61: DC resistance Value for Boost Inductor | B61: DCR | C61: 0.437 | D61: W | Q61: =Q60+0.01 -> 0.55 | R61: =(G$5*((90/$G$18)*(90/$G$18))/2)*(1+(SQRT(1+(4/(G$5*((90/$G$18)*(90/$G$18))))*$G$23*(1-(SQRT(2)*Vin_rms_min*(SIN($Q61)/Vout)))))) -> 0.2966911299 | S61: =(H$5*((90/$G$18)*(90/$G$18))/2)*(1+(SQRT(1+(4/(H$5*((90/$G$18)*(90/$G$18))))*$H$23*(1-(SQRT(2)*Vin_rms_min*(SIN($Q61)/Vout)))))) -> 0.2875927189 | T61: =(I$5*((90/$G$18)*(90/$G$18))/2)*(1+(SQRT(1+(4/(I$5*((90/$G$18)*(90/$G$18))))*$I$23*(1-(SQRT(2)*Vin_rms_min*(SIN($Q61)/Vout)))))) -> 0.2820409547 | U61: =(J$5*((90/$G$18)*(90/$G$18))/2)*(1+(SQRT(1+(4/(J$5*((90/$G$18)*(90/$G$18))))*$J$23*(1-(SQRT(2)*Vin_rms_min*(SIN($Q61)/Vout)))))) -> 0.2703287197 | V61: =(K$5*((90/$G$18)*(90/$G$18))/2)*(1+(SQRT(1+(4/(K$5*((90/$G$18)*(90/$G$18))))*$K$23*(1-(SQRT(2)*Vin_rms_min*(SIN($Q61)/Vout)))))) -> 0.4054930796 | W61: =(L$5*((90/$G$18)*(90/$G$18))/2)*(1+(SQRT(1+(4/(L$5*((90/$G$18)*(90/$G$18))))*$L$23*(1-(SQRT(2)*Vin_rms_min*(SIN($Q61)/Vout)))))) -> 0.5406574394 | Y61: =R61*ABS(1/(Vout/(SQRT(2)*$C$25*SIN($Q61)))) -> 0.04824853489 | Z61: =S61*ABS(1/(Vout/(SQRT(2)*$C$25*SIN($Q61)))) -> 0.04676893216 | AA61: =T61*ABS(1/(Vout/(SQRT(2)*$C$25*SIN($Q61)))) -> 0.04586609262 | AB61: =U61*ABS(1/(Vout/(SQRT(2)*$C$25*SIN($Q61)))) -> 0.04396142435 | AC61: =V61*ABS(1/(Vout/(SQRT(2)*$C$25*SIN($Q61)))) -> 0.06594213653 | AD61: =W61*ABS(1/(Vout/(SQRT(2)*$C$25*SIN($Q61)))) -> 0.08792284871 | AF61: =1/(0.0000128*(R61+Y61+$G$23)) -> 40375.93596 | AG61: =1/(0.0000128*(S61+Z61+$H$23)) -> 86386.90054 | AH61: =1/(0.0000128*(T61+AA61+$I$23)) -> 112587.1257 | AI61: =1/(0.0000128*(U61+AB61+$J$23)) -> 248576.0418 | AJ61: =1/(0.0000128*(V61+AC61+$K$23)) -> 165717.3612 | AK61: =1/(0.0000128*(W61+AD61+$L$23)) -> 124288.0209
A62: Actual Maximum Inductor Peak Current: | B62: IL_PEAK(max) | C62: =MAX(Vin_pk_min*Ton_max0/Lbst,Kzc_initial*VFF0*Ton_max1/Lbst) -> 2.928253964 | D62: A | Q62: =Q61+0.01 -> 0.56 | R62: =(G$5*((90/$G$18)*(90/$G$18))/2)*(1+(SQRT(1+(4/(G$5*((90/$G$18)*(90/$G$18))))*$G$23*(1-(SQRT(2)*Vin_rms_min*(SIN($Q62)/Vout)))))) -> 0.2962693176 | S62: =(H$5*((90/$G$18)*(90/$G$18))/2)*(1+(SQRT(1+(4/(H$5*((90/$G$18)*(90/$G$18))))*$H$23*(1-(SQRT(2)*Vin_rms_min*(SIN($Q62)/Vout)))))) -> 0.2872435072 | T62: =(I$5*((90/$G$18)*(90/$G$18))/2)*(1+(SQRT(1+(4/(I$5*((90/$G$18)*(90/$G$18))))*$I$23*(1-(SQRT(2)*Vin_rms_min*(SIN($Q62)/Vout)))))) -> 0.2817357562 | U62: =(J$5*((90/$G$18)*(90/$G$18))/2)*(1+(SQRT(1+(4/(J$5*((90/$G$18)*(90/$G$18))))*$J$23*(1-(SQRT(2)*Vin_rms_min*(SIN($Q62)/Vout)))))) -> 0.2703287197 | V62: =(K$5*((90/$G$18)*(90/$G$18))/2)*(1+(SQRT(1+(4/(K$5*((90/$G$18)*(90/$G$18))))*$K$23*(1-(SQRT(2)*Vin_rms_min*(SIN($Q62)/Vout)))))) -> 0.4054930796 | W62: =(L$5*((90/$G$18)*(90/$G$18))/2)*(1+(SQRT(1+(4/(L$5*((90/$G$18)*(90/$G$18))))*$L$23*(1-(SQRT(2)*Vin_rms_min*(SIN($Q62)/Vout)))))) -> 0.5406574394 | Y62: =R62*ABS(1/(Vout/(SQRT(2)*$C$25*SIN($Q62)))) -> 0.04896335156 | Z62: =S62*ABS(1/(Vout/(SQRT(2)*$C$25*SIN($Q62)))) -> 0.04747168874 | AA62: =T62*ABS(1/(Vout/(SQRT(2)*$C$25*SIN($Q62)))) -> 0.04656144278 | AB62: =U62*ABS(1/(Vout/(SQRT(2)*$C$25*SIN($Q62)))) -> 0.04467624339 | AC62: =V62*ABS(1/(Vout/(SQRT(2)*$C$25*SIN($Q62)))) -> 0.06701436509 | AD62: =W62*ABS(1/(Vout/(SQRT(2)*$C$25*SIN($Q62)))) -> 0.08935248678 | AF62: =1/(0.0000128*(R62+Y62+$G$23)) -> 40369.82284 | AG62: =1/(0.0000128*(S62+Z62+$H$23)) -> 86353.14224 | AH62: =1/(0.0000128*(T62+AA62+$I$23)) -> 112523.8588 | AI62: =1/(0.0000128*(U62+AB62+$J$23)) -> 248011.9654 | AJ62: =1/(0.0000128*(V62+AC62+$K$23)) -> 165341.3102 | AK62: =1/(0.0000128*(W62+AD62+$L$23)) -> 124005.9827
A63: Maximum Inductor RMS Current: | B63: IL_RMS(max) | C63: =IL_pk_max/SQRT(6) -> 1.195454675 | D63: A | Q63: =Q62+0.01 -> 0.57 | R63: =(G$5*((90/$G$18)*(90/$G$18))/2)*(1+(SQRT(1+(4/(G$5*((90/$G$18)*(90/$G$18))))*$G$23*(1-(SQRT(2)*Vin_rms_min*(SIN($Q63)/Vout)))))) -> 0.2958494858 | S63: =(H$5*((90/$G$18)*(90/$G$18))/2)*(1+(SQRT(1+(4/(H$5*((90/$G$18)*(90/$G$18))))*$H$23*(1-(SQRT(2)*Vin_rms_min*(SIN($Q63)/Vout)))))) -> 0.2868959592 | T63: =(I$5*((90/$G$18)*(90/$G$18))/2)*(1+(SQRT(1+(4/(I$5*((90/$G$18)*(90/$G$18))))*$I$23*(1-(SQRT(2)*Vin_rms_min*(SIN($Q63)/Vout)))))) -> 0.2814320336 | U63: =(J$5*((90/$G$18)*(90/$G$18))/2)*(1+(SQRT(1+(4/(J$5*((90/$G$18)*(90/$G$18))))*$J$23*(1-(SQRT(2)*Vin_rms_min*(SIN($Q63)/Vout)))))) -> 0.2703287197 | V63: =(K$5*((90/$G$18)*(90/$G$18))/2)*(1+(SQRT(1+(4/(K$5*((90/$G$18)*(90/$G$18))))*$K$23*(1-(SQRT(2)*Vin_rms_min*(SIN($Q63)/Vout)))))) -> 0.4054930796 | W63: =(L$5*((90/$G$18)*(90/$G$18))/2)*(1+(SQRT(1+(4/(L$5*((90/$G$18)*(90/$G$18))))*$L$23*(1-(SQRT(2)*Vin_rms_min*(SIN($Q63)/Vout)))))) -> 0.5406574394 | Y63: =R63*ABS(1/(Vout/(SQRT(2)*$C$25*SIN($Q63)))) -> 0.04967138068 | Z63: =S63*ABS(1/(Vout/(SQRT(2)*$C$25*SIN($Q63)))) -> 0.04816813647 | AA63: =T63*ABS(1/(Vout/(SQRT(2)*$C$25*SIN($Q63)))) -> 0.04725077563 | AB63: =U63*ABS(1/(Vout/(SQRT(2)*$C$25*SIN($Q63)))) -> 0.04538659484 | AC63: =V63*ABS(1/(Vout/(SQRT(2)*$C$25*SIN($Q63)))) -> 0.06807989226 | AD63: =W63*ABS(1/(Vout/(SQRT(2)*$C$25*SIN($Q63)))) -> 0.09077318969 | AF63: =1/(0.0000128*(R63+Y63+$G$23)) -> 40363.8118 | AG63: =1/(0.0000128*(S63+Z63+$H$23)) -> 86319.85334 | AH63: =1/(0.0000128*(T63+AA63+$I$23)) -> 112461.3982 | AI63: =1/(0.0000128*(U63+AB63+$J$23)) -> 247453.9447 | AJ63: =1/(0.0000128*(V63+AC63+$K$23)) -> 164969.2965 | AK63: =1/(0.0000128*(W63+AD63+$L$23)) -> 123726.9724
A64: Boost Inductor Power Dissipation: | B64: PLBST | C64: =IL_rms_max^2*DCR -> 0.6245218916 | D64: W | Q64: =Q63+0.01 -> 0.58 | R64: =(G$5*((90/$G$18)*(90/$G$18))/2)*(1+(SQRT(1+(4/(G$5*((90/$G$18)*(90/$G$18))))*$G$23*(1-(SQRT(2)*Vin_rms_min*(SIN($Q64)/Vout)))))) -> 0.2954316861 | S64: =(H$5*((90/$G$18)*(90/$G$18))/2)*(1+(SQRT(1+(4/(H$5*((90/$G$18)*(90/$G$18))))*$H$23*(1-(SQRT(2)*Vin_rms_min*(SIN($Q64)/Vout)))))) -> 0.2865501172 | T64: =(I$5*((90/$G$18)*(90/$G$18))/2)*(1+(SQRT(1+(4/(I$5*((90/$G$18)*(90/$G$18))))*$I$23*(1-(SQRT(2)*Vin_rms_min*(SIN($Q64)/Vout)))))) -> 0.2811298237 | U64: =(J$5*((90/$G$18)*(90/$G$18))/2)*(1+(SQRT(1+(4/(J$5*((90/$G$18)*(90/$G$18))))*$J$23*(1-(SQRT(2)*Vin_rms_min*(SIN($Q64)/Vout)))))) -> 0.2703287197 | V64: =(K$5*((90/$G$18)*(90/$G$18))/2)*(1+(SQRT(1+(4/(K$5*((90/$G$18)*(90/$G$18))))*$K$23*(1-(SQRT(2)*Vin_rms_min*(SIN($Q64)/Vout)))))) -> 0.4054930796 | W64: =(L$5*((90/$G$18)*(90/$G$18))/2)*(1+(SQRT(1+(4/(L$5*((90/$G$18)*(90/$G$18))))*$L$23*(1-(SQRT(2)*Vin_rms_min*(SIN($Q64)/Vout)))))) -> 0.5406574394 | Y64: =R64*ABS(1/(Vout/(SQRT(2)*$C$25*SIN($Q64)))) -> 0.05037258981 | Z64: =S64*ABS(1/(Vout/(SQRT(2)*$C$25*SIN($Q64)))) -> 0.04885823761 | AA64: =T64*ABS(1/(Vout/(SQRT(2)*$C$25*SIN($Q64)))) -> 0.04793405027 | AB64: =U64*ABS(1/(Vout/(SQRT(2)*$C$25*SIN($Q64)))) -> 0.04609240767 | AC64: =V64*ABS(1/(Vout/(SQRT(2)*$C$25*SIN($Q64)))) -> 0.06913861151 | AD64: =W64*ABS(1/(Vout/(SQRT(2)*$C$25*SIN($Q64)))) -> 0.09218481534 | AF64: =1/(0.0000128*(R64+Y64+$G$23)) -> 40357.90238 | AG64: =1/(0.0000128*(S64+Z64+$H$23)) -> 86287.03235 | AH64: =1/(0.0000128*(T64+AA64+$I$23)) -> 112399.7418 | AI64: =1/(0.0000128*(U64+AB64+$J$23)) -> 246901.9709 | AJ64: =1/(0.0000128*(V64+AC64+$K$23)) -> 164601.314 | AK64: =1/(0.0000128*(W64+AD64+$L$23)) -> 123450.9855
Q65: =Q64+0.01 -> 0.59 | R65: =(G$5*((90/$G$18)*(90/$G$18))/2)*(1+(SQRT(1+(4/(G$5*((90/$G$18)*(90/$G$18))))*$G$23*(1-(SQRT(2)*Vin_rms_min*(SIN($Q65)/Vout)))))) -> 0.2950159697 | S65: =(H$5*((90/$G$18)*(90/$G$18))/2)*(1+(SQRT(1+(4/(H$5*((90/$G$18)*(90/$G$18))))*$H$23*(1-(SQRT(2)*Vin_rms_min*(SIN($Q65)/Vout)))))) -> 0.2862060235 | T65: =(I$5*((90/$G$18)*(90/$G$18))/2)*(1+(SQRT(1+(4/(I$5*((90/$G$18)*(90/$G$18))))*$I$23*(1-(SQRT(2)*Vin_rms_min*(SIN($Q65)/Vout)))))) -> 0.2808291632 | U65: =(J$5*((90/$G$18)*(90/$G$18))/2)*(1+(SQRT(1+(4/(J$5*((90/$G$18)*(90/$G$18))))*$J$23*(1-(SQRT(2)*Vin_rms_min*(SIN($Q65)/Vout)))))) -> 0.2703287197 | V65: =(K$5*((90/$G$18)*(90/$G$18))/2)*(1+(SQRT(1+(4/(K$5*((90/$G$18)*(90/$G$18))))*$K$23*(1-(SQRT(2)*Vin_rms_min*(SIN($Q65)/Vout)))))) -> 0.4054930796 | W65: =(L$5*((90/$G$18)*(90/$G$18))/2)*(1+(SQRT(1+(4/(L$5*((90/$G$18)*(90/$G$18))))*$L$23*(1-(SQRT(2)*Vin_rms_min*(SIN($Q65)/Vout)))))) -> 0.5406574394 | Y65: =R65*ABS(1/(Vout/(SQRT(2)*$C$25*SIN($Q65)))) -> 0.05106694777 | Z65: =S65*ABS(1/(Vout/(SQRT(2)*$C$25*SIN($Q65)))) -> 0.04954195554 | AA65: =T65*ABS(1/(Vout/(SQRT(2)*$C$25*SIN($Q65)))) -> 0.0486112268 | AB65: =U65*ABS(1/(Vout/(SQRT(2)*$C$25*SIN($Q65)))) -> 0.0467936113 | AC65: =V65*ABS(1/(Vout/(SQRT(2)*$C$25*SIN($Q65)))) -> 0.07019041695 | AD65: =W65*ABS(1/(Vout/(SQRT(2)*$C$25*SIN($Q65)))) -> 0.0935872226 | AF65: =1/(0.0000128*(R65+Y65+$G$23)) -> 40352.09406 | AG65: =1/(0.0000128*(S65+Z65+$H$23)) -> 86254.67769 | AH65: =1/(0.0000128*(T65+AA65+$I$23)) -> 112338.8879 | AI65: =1/(0.0000128*(U65+AB65+$J$23)) -> 246356.0347 | AJ65: =1/(0.0000128*(V65+AC65+$K$23)) -> 164237.3565 | AK65: =1/(0.0000128*(W65+AD65+$L$23)) -> 123178.0174
Q66: =Q65+0.01 -> 0.6 | R66: =(G$5*((90/$G$18)*(90/$G$18))/2)*(1+(SQRT(1+(4/(G$5*((90/$G$18)*(90/$G$18))))*$G$23*(1-(SQRT(2)*Vin_rms_min*(SIN($Q66)/Vout)))))) -> 0.294602388 | S66: =(H$5*((90/$G$18)*(90/$G$18))/2)*(1+(SQRT(1+(4/(H$5*((90/$G$18)*(90/$G$18))))*$H$23*(1-(SQRT(2)*Vin_rms_min*(SIN($Q66)/Vout)))))) -> 0.2858637203 | T66: =(I$5*((90/$G$18)*(90/$G$18))/2)*(1+(SQRT(1+(4/(I$5*((90/$G$18)*(90/$G$18))))*$I$23*(1-(SQRT(2)*Vin_rms_min*(SIN($Q66)/Vout)))))) -> 0.2805300889 | U66: =(J$5*((90/$G$18)*(90/$G$18))/2)*(1+(SQRT(1+(4/(J$5*((90/$G$18)*(90/$G$18))))*$J$23*(1-(SQRT(2)*Vin_rms_min*(SIN($Q66)/Vout)))))) -> 0.2703287197 | V66: =(K$5*((90/$G$18)*(90/$G$18))/2)*(1+(SQRT(1+(4/(K$5*((90/$G$18)*(90/$G$18))))*$K$23*(1-(SQRT(2)*Vin_rms_min*(SIN($Q66)/Vout)))))) -> 0.4054930796 | W66: =(L$5*((90/$G$18)*(90/$G$18))/2)*(1+(SQRT(1+(4/(L$5*((90/$G$18)*(90/$G$18))))*$L$23*(1-(SQRT(2)*Vin_rms_min*(SIN($Q66)/Vout)))))) -> 0.5406574394 | Y66: =R66*ABS(1/(Vout/(SQRT(2)*$C$25*SIN($Q66)))) -> 0.05175442465 | Z66: =S66*ABS(1/(Vout/(SQRT(2)*$C$25*SIN($Q66)))) -> 0.05021925475 | AA66: =T66*ABS(1/(Vout/(SQRT(2)*$C$25*SIN($Q66)))) -> 0.04928226634 | AB66: =U66*ABS(1/(Vout/(SQRT(2)*$C$25*SIN($Q66)))) -> 0.0474901356 | AC66: =V66*ABS(1/(Vout/(SQRT(2)*$C$25*SIN($Q66)))) -> 0.07123520341 | AD66: =W66*ABS(1/(Vout/(SQRT(2)*$C$25*SIN($Q66)))) -> 0.09498027121 | AF66: =1/(0.0000128*(R66+Y66+$G$23)) -> 40346.38631 | AG66: =1/(0.0000128*(S66+Z66+$H$23)) -> 86222.7877 | AH66: =1/(0.0000128*(T66+AA66+$I$23)) -> 112278.8341 | AI66: =1/(0.0000128*(U66+AB66+$J$23)) -> 245816.1267 | AJ66: =1/(0.0000128*(V66+AC66+$K$23)) -> 163877.4178 | AK66: =1/(0.0000128*(W66+AD66+$L$23)) -> 122908.0633
A67: CURRENT SENSE RESISTOR: | Q67: =Q66+0.01 -> 0.61 | R67: =(G$5*((90/$G$18)*(90/$G$18))/2)*(1+(SQRT(1+(4/(G$5*((90/$G$18)*(90/$G$18))))*$G$23*(1-(SQRT(2)*Vin_rms_min*(SIN($Q67)/Vout)))))) -> 0.2941909925 | S67: =(H$5*((90/$G$18)*(90/$G$18))/2)*(1+(SQRT(1+(4/(H$5*((90/$G$18)*(90/$G$18))))*$H$23*(1-(SQRT(2)*Vin_rms_min*(SIN($Q67)/Vout)))))) -> 0.2855232499 | T67: =(I$5*((90/$G$18)*(90/$G$18))/2)*(1+(SQRT(1+(4/(I$5*((90/$G$18)*(90/$G$18))))*$I$23*(1-(SQRT(2)*Vin_rms_min*(SIN($Q67)/Vout)))))) -> 0.2802326374 | U67: =(J$5*((90/$G$18)*(90/$G$18))/2)*(1+(SQRT(1+(4/(J$5*((90/$G$18)*(90/$G$18))))*$J$23*(1-(SQRT(2)*Vin_rms_min*(SIN($Q67)/Vout)))))) -> 0.2703287197 | V67: =(K$5*((90/$G$18)*(90/$G$18))/2)*(1+(SQRT(1+(4/(K$5*((90/$G$18)*(90/$G$18))))*$K$23*(1-(SQRT(2)*Vin_rms_min*(SIN($Q67)/Vout)))))) -> 0.4054930796 | W67: =(L$5*((90/$G$18)*(90/$G$18))/2)*(1+(SQRT(1+(4/(L$5*((90/$G$18)*(90/$G$18))))*$L$23*(1-(SQRT(2)*Vin_rms_min*(SIN($Q67)/Vout)))))) -> 0.5406574394 | Y67: =R67*ABS(1/(Vout/(SQRT(2)*$C$25*SIN($Q67)))) -> 0.05243499179 | Z67: =S67*ABS(1/(Vout/(SQRT(2)*$C$25*SIN($Q67)))) -> 0.05089010081 | AA67: =T67*ABS(1/(Vout/(SQRT(2)*$C$25*SIN($Q67)))) -> 0.04994713099 | AB67: =U67*ABS(1/(Vout/(SQRT(2)*$C$25*SIN($Q67)))) -> 0.04818191094 | AC67: =V67*ABS(1/(Vout/(SQRT(2)*$C$25*SIN($Q67)))) -> 0.0722728664 | AD67: =W67*ABS(1/(Vout/(SQRT(2)*$C$25*SIN($Q67)))) -> 0.09636382187 | AF67: =1/(0.0000128*(R67+Y67+$G$23)) -> 40340.77857 | AG67: =1/(0.0000128*(S67+Z67+$H$23)) -> 86191.36064 | AH67: =1/(0.0000128*(T67+AA67+$I$23)) -> 112219.5783 | AI67: =1/(0.0000128*(U67+AB67+$J$23)) -> 245282.237 | AJ67: =1/(0.0000128*(V67+AC67+$K$23)) -> 163521.4913 | AK67: =1/(0.0000128*(W67+AD67+$L$23)) -> 122641.1185
A68: Minimum OCP1 Threshold | B68: VZCOCP1(min) | C68: 0.45 | D68: V | Q68: =Q67+0.01 -> 0.62 | R68: =(G$5*((90/$G$18)*(90/$G$18))/2)*(1+(SQRT(1+(4/(G$5*((90/$G$18)*(90/$G$18))))*$G$23*(1-(SQRT(2)*Vin_rms_min*(SIN($Q68)/Vout)))))) -> 0.2937818344 | S68: =(H$5*((90/$G$18)*(90/$G$18))/2)*(1+(SQRT(1+(4/(H$5*((90/$G$18)*(90/$G$18))))*$H$23*(1-(SQRT(2)*Vin_rms_min*(SIN($Q68)/Vout)))))) -> 0.2851846545 | T68: =(I$5*((90/$G$18)*(90/$G$18))/2)*(1+(SQRT(1+(4/(I$5*((90/$G$18)*(90/$G$18))))*$I$23*(1-(SQRT(2)*Vin_rms_min*(SIN($Q68)/Vout)))))) -> 0.2799368453 | U68: =(J$5*((90/$G$18)*(90/$G$18))/2)*(1+(SQRT(1+(4/(J$5*((90/$G$18)*(90/$G$18))))*$J$23*(1-(SQRT(2)*Vin_rms_min*(SIN($Q68)/Vout)))))) -> 0.2703287197 | V68: =(K$5*((90/$G$18)*(90/$G$18))/2)*(1+(SQRT(1+(4/(K$5*((90/$G$18)*(90/$G$18))))*$K$23*(1-(SQRT(2)*Vin_rms_min*(SIN($Q68)/Vout)))))) -> 0.4054930796 | W68: =(L$5*((90/$G$18)*(90/$G$18))/2)*(1+(SQRT(1+(4/(L$5*((90/$G$18)*(90/$G$18))))*$L$23*(1-(SQRT(2)*Vin_rms_min*(SIN($Q68)/Vout)))))) -> 0.5406574394 | Y68: =R68*ABS(1/(Vout/(SQRT(2)*$C$25*SIN($Q68)))) -> 0.05310862174 | Z68: =S68*ABS(1/(Vout/(SQRT(2)*$C$25*SIN($Q68)))) -> 0.05155446038 | AA68: =T68*ABS(1/(Vout/(SQRT(2)*$C$25*SIN($Q68)))) -> 0.0506057839 | AB68: =U68*ABS(1/(Vout/(SQRT(2)*$C$25*SIN($Q68)))) -> 0.04886886812 | AC68: =V68*ABS(1/(Vout/(SQRT(2)*$C$25*SIN($Q68)))) -> 0.07330330217 | AD68: =W68*ABS(1/(Vout/(SQRT(2)*$C$25*SIN($Q68)))) -> 0.09773773623 | AF68: =1/(0.0000128*(R68+Y68+$G$23)) -> 40335.27025 | AG68: =1/(0.0000128*(S68+Z68+$H$23)) -> 86160.39467 | AH68: =1/(0.0000128*(T68+AA68+$I$23)) -> 112161.118 | AI68: =1/(0.0000128*(U68+AB68+$J$23)) -> 244754.3558 | AJ68: =1/(0.0000128*(V68+AC68+$K$23)) -> 163169.5706 | AK68: =1/(0.0000128*(W68+AD68+$L$23)) -> 122377.1779
A69: Minimum OCP1 Threshold | B69: VZCOCP1(max) | C69: 0.55 | D69: V | E69: =IF(Rcs>0.5/IL_pk_max,"DECREASE Rsense","") ->  | Q69: =Q68+0.01 -> 0.63 | R69: =(G$5*((90/$G$18)*(90/$G$18))/2)*(1+(SQRT(1+(4/(G$5*((90/$G$18)*(90/$G$18))))*$G$23*(1-(SQRT(2)*Vin_rms_min*(SIN($Q69)/Vout)))))) -> 0.2933749652 | S69: =(H$5*((90/$G$18)*(90/$G$18))/2)*(1+(SQRT(1+(4/(H$5*((90/$G$18)*(90/$G$18))))*$H$23*(1-(SQRT(2)*Vin_rms_min*(SIN($Q69)/Vout)))))) -> 0.2848479764 | T69: =(I$5*((90/$G$18)*(90/$G$18))/2)*(1+(SQRT(1+(4/(I$5*((90/$G$18)*(90/$G$18))))*$I$23*(1-(SQRT(2)*Vin_rms_min*(SIN($Q69)/Vout)))))) -> 0.2796427491 | U69: =(J$5*((90/$G$18)*(90/$G$18))/2)*(1+(SQRT(1+(4/(J$5*((90/$G$18)*(90/$G$18))))*$J$23*(1-(SQRT(2)*Vin_rms_min*(SIN($Q69)/Vout)))))) -> 0.2703287197 | V69: =(K$5*((90/$G$18)*(90/$G$18))/2)*(1+(SQRT(1+(4/(K$5*((90/$G$18)*(90/$G$18))))*$K$23*(1-(SQRT(2)*Vin_rms_min*(SIN($Q69)/Vout)))))) -> 0.4054930796 | W69: =(L$5*((90/$G$18)*(90/$G$18))/2)*(1+(SQRT(1+(4/(L$5*((90/$G$18)*(90/$G$18))))*$L$23*(1-(SQRT(2)*Vin_rms_min*(SIN($Q69)/Vout)))))) -> 0.5406574394 | Y69: =R69*ABS(1/(Vout/(SQRT(2)*$C$25*SIN($Q69)))) -> 0.05377528831 | Z69: =S69*ABS(1/(Vout/(SQRT(2)*$C$25*SIN($Q69)))) -> 0.05221230123 | AA69: =T69*ABS(1/(Vout/(SQRT(2)*$C$25*SIN($Q69)))) -> 0.05125818916 | AB69: =U69*ABS(1/(Vout/(SQRT(2)*$C$25*SIN($Q69)))) -> 0.04955093845 | AC69: =V69*ABS(1/(Vout/(SQRT(2)*$C$25*SIN($Q69)))) -> 0.07432640768 | AD69: =W69*ABS(1/(Vout/(SQRT(2)*$C$25*SIN($Q69)))) -> 0.0991018769 | AF69: =1/(0.0000128*(R69+Y69+$G$23)) -> 40329.86076 | AG69: =1/(0.0000128*(S69+Z69+$H$23)) -> 86129.88787 | AH69: =1/(0.0000128*(T69+AA69+$I$23)) -> 112103.4507 | AI69: =1/(0.0000128*(U69+AB69+$J$23)) -> 244232.4731 | AJ69: =1/(0.0000128*(V69+AC69+$K$23)) -> 162821.6487 | AK69: =1/(0.0000128*(W69+AD69+$L$23)) -> 122116.2365
A70: Recommanded Current Sense Resistor for OCP1: | B70: RCS(recommanded) | C70: =Vzcocp1_min/IL_pk_max -> 0.1536751953 | D70: W | Q70: =Q69+0.01 -> 0.64 | R70: =(G$5*((90/$G$18)*(90/$G$18))/2)*(1+(SQRT(1+(4/(G$5*((90/$G$18)*(90/$G$18))))*$G$23*(1-(SQRT(2)*Vin_rms_min*(SIN($Q70)/Vout)))))) -> 0.292970436 | S70: =(H$5*((90/$G$18)*(90/$G$18))/2)*(1+(SQRT(1+(4/(H$5*((90/$G$18)*(90/$G$18))))*$H$23*(1-(SQRT(2)*Vin_rms_min*(SIN($Q70)/Vout)))))) -> 0.2845132575 | T70: =(I$5*((90/$G$18)*(90/$G$18))/2)*(1+(SQRT(1+(4/(I$5*((90/$G$18)*(90/$G$18))))*$I$23*(1-(SQRT(2)*Vin_rms_min*(SIN($Q70)/Vout)))))) -> 0.2793503856 | U70: =(J$5*((90/$G$18)*(90/$G$18))/2)*(1+(SQRT(1+(4/(J$5*((90/$G$18)*(90/$G$18))))*$J$23*(1-(SQRT(2)*Vin_rms_min*(SIN($Q70)/Vout)))))) -> 0.2703287197 | V70: =(K$5*((90/$G$18)*(90/$G$18))/2)*(1+(SQRT(1+(4/(K$5*((90/$G$18)*(90/$G$18))))*$K$23*(1-(SQRT(2)*Vin_rms_min*(SIN($Q70)/Vout)))))) -> 0.4054930796 | W70: =(L$5*((90/$G$18)*(90/$G$18))/2)*(1+(SQRT(1+(4/(L$5*((90/$G$18)*(90/$G$18))))*$L$23*(1-(SQRT(2)*Vin_rms_min*(SIN($Q70)/Vout)))))) -> 0.5406574394 | Y70: =R70*ABS(1/(Vout/(SQRT(2)*$C$25*SIN($Q70)))) -> 0.05443496649 | Z70: =S70*ABS(1/(Vout/(SQRT(2)*$C$25*SIN($Q70)))) -> 0.05286359215 | AA70: =T70*ABS(1/(Vout/(SQRT(2)*$C$25*SIN($Q70)))) -> 0.05190431187 | AB70: =U70*ABS(1/(Vout/(SQRT(2)*$C$25*SIN($Q70)))) -> 0.05022805373 | AC70: =V70*ABS(1/(Vout/(SQRT(2)*$C$25*SIN($Q70)))) -> 0.0753420806 | AD70: =W70*ABS(1/(Vout/(SQRT(2)*$C$25*SIN($Q70)))) -> 0.1004561075 | AF70: =1/(0.0000128*(R70+Y70+$G$23)) -> 40324.54947 | AG70: =1/(0.0000128*(S70+Z70+$H$23)) -> 86099.83826 | AH70: =1/(0.0000128*(T70+AA70+$I$23)) -> 112046.5739 | AI70: =1/(0.0000128*(U70+AB70+$J$23)) -> 243716.5784 | AJ70: =1/(0.0000128*(V70+AC70+$K$23)) -> 162477.7189 | AK70: =1/(0.0000128*(W70+AD70+$L$23)) -> 121858.2892
A71: Actual Value for RCS - Current Sense Resistor: | B71: RCS | C71: 0.15 | D71: W | Q71: =Q70+0.01 -> 0.65 | R71: =(G$5*((90/$G$18)*(90/$G$18))/2)*(1+(SQRT(1+(4/(G$5*((90/$G$18)*(90/$G$18))))*$G$23*(1-(SQRT(2)*Vin_rms_min*(SIN($Q71)/Vout)))))) -> 0.2925682981 | S71: =(H$5*((90/$G$18)*(90/$G$18))/2)*(1+(SQRT(1+(4/(H$5*((90/$G$18)*(90/$G$18))))*$H$23*(1-(SQRT(2)*Vin_rms_min*(SIN($Q71)/Vout)))))) -> 0.2841805401 | T71: =(I$5*((90/$G$18)*(90/$G$18))/2)*(1+(SQRT(1+(4/(I$5*((90/$G$18)*(90/$G$18))))*$I$23*(1-(SQRT(2)*Vin_rms_min*(SIN($Q71)/Vout)))))) -> 0.279059791 | U71: =(J$5*((90/$G$18)*(90/$G$18))/2)*(1+(SQRT(1+(4/(J$5*((90/$G$18)*(90/$G$18))))*$J$23*(1-(SQRT(2)*Vin_rms_min*(SIN($Q71)/Vout)))))) -> 0.2703287197 | V71: =(K$5*((90/$G$18)*(90/$G$18))/2)*(1+(SQRT(1+(4/(K$5*((90/$G$18)*(90/$G$18))))*$K$23*(1-(SQRT(2)*Vin_rms_min*(SIN($Q71)/Vout)))))) -> 0.4054930796 | W71: =(L$5*((90/$G$18)*(90/$G$18))/2)*(1+(SQRT(1+(4/(L$5*((90/$G$18)*(90/$G$18))))*$L$23*(1-(SQRT(2)*Vin_rms_min*(SIN($Q71)/Vout)))))) -> 0.5406574394 | Y71: =R71*ABS(1/(Vout/(SQRT(2)*$C$25*SIN($Q71)))) -> 0.05508763248 | Z71: =S71*ABS(1/(Vout/(SQRT(2)*$C$25*SIN($Q71)))) -> 0.05350830303 | AA71: =T71*ABS(1/(Vout/(SQRT(2)*$C$25*SIN($Q71)))) -> 0.0525441181 | AB71: =U71*ABS(1/(Vout/(SQRT(2)*$C$25*SIN($Q71)))) -> 0.05090014625 | AC71: =V71*ABS(1/(Vout/(SQRT(2)*$C$25*SIN($Q71)))) -> 0.07635021937 | AD71: =W71*ABS(1/(Vout/(SQRT(2)*$C$25*SIN($Q71)))) -> 0.1018002925 | AF71: =1/(0.0000128*(R71+Y71+$G$23)) -> 40319.33573 | AG71: =1/(0.0000128*(S71+Z71+$H$23)) -> 86070.24377 | AH71: =1/(0.0000128*(T71+AA71+$I$23)) -> 111990.4848 | AI71: =1/(0.0000128*(U71+AB71+$J$23)) -> 243206.6613 | AJ71: =1/(0.0000128*(V71+AC71+$K$23)) -> 162137.7742 | AK71: =1/(0.0000128*(W71+AD71+$L$23)) -> 121603.3306
A72: Recommanded Minimum Inductor Saturated Current: | B72: IL_SAT(min) | C72: =Vzcocp1_max/Rcs -> 3.666666667 | D72: A | Q72: =Q71+0.01 -> 0.66 | R72: =(G$5*((90/$G$18)*(90/$G$18))/2)*(1+(SQRT(1+(4/(G$5*((90/$G$18)*(90/$G$18))))*$G$23*(1-(SQRT(2)*Vin_rms_min*(SIN($Q72)/Vout)))))) -> 0.2921686027 | S72: =(H$5*((90/$G$18)*(90/$G$18))/2)*(1+(SQRT(1+(4/(H$5*((90/$G$18)*(90/$G$18))))*$H$23*(1-(SQRT(2)*Vin_rms_min*(SIN($Q72)/Vout)))))) -> 0.2838498662 | T72: =(I$5*((90/$G$18)*(90/$G$18))/2)*(1+(SQRT(1+(4/(I$5*((90/$G$18)*(90/$G$18))))*$I$23*(1-(SQRT(2)*Vin_rms_min*(SIN($Q72)/Vout)))))) -> 0.2787710019 | U72: =(J$5*((90/$G$18)*(90/$G$18))/2)*(1+(SQRT(1+(4/(J$5*((90/$G$18)*(90/$G$18))))*$J$23*(1-(SQRT(2)*Vin_rms_min*(SIN($Q72)/Vout)))))) -> 0.2703287197 | V72: =(K$5*((90/$G$18)*(90/$G$18))/2)*(1+(SQRT(1+(4/(K$5*((90/$G$18)*(90/$G$18))))*$K$23*(1-(SQRT(2)*Vin_rms_min*(SIN($Q72)/Vout)))))) -> 0.4054930796 | W72: =(L$5*((90/$G$18)*(90/$G$18))/2)*(1+(SQRT(1+(4/(L$5*((90/$G$18)*(90/$G$18))))*$L$23*(1-(SQRT(2)*Vin_rms_min*(SIN($Q72)/Vout)))))) -> 0.5406574394 | Y72: =R72*ABS(1/(Vout/(SQRT(2)*$C$25*SIN($Q72)))) -> 0.05573326366 | Z72: =S72*ABS(1/(Vout/(SQRT(2)*$C$25*SIN($Q72)))) -> 0.05414640479 | AA72: =T72*ABS(1/(Vout/(SQRT(2)*$C$25*SIN($Q72)))) -> 0.05317757488 | AB72: =U72*ABS(1/(Vout/(SQRT(2)*$C$25*SIN($Q72)))) -> 0.0515671488 | AC72: =V72*ABS(1/(Vout/(SQRT(2)*$C$25*SIN($Q72)))) -> 0.07735072319 | AD72: =W72*ABS(1/(Vout/(SQRT(2)*$C$25*SIN($Q72)))) -> 0.1031342976 | AF72: =1/(0.0000128*(R72+Y72+$G$23)) -> 40314.21888 | AG72: =1/(0.0000128*(S72+Z72+$H$23)) -> 86041.10226 | AH72: =1/(0.0000128*(T72+AA72+$I$23)) -> 111935.1806 | AI72: =1/(0.0000128*(U72+AB72+$J$23)) -> 242702.7112 | AJ72: =1/(0.0000128*(V72+AC72+$K$23)) -> 161801.8074 | AK72: =1/(0.0000128*(W72+AD72+$L$23)) -> 121351.3556
A73: Power Dissipated in RCS: | B73: PRsense | C73: =Rcs*(Vin_rms_min/Rin_min)*SQRT(4/3-32*Vin_pk_min/(9*pi*Vout)) -> 0.07421780132 | D73: W | Q73: =Q72+0.01 -> 0.67 | R73: =(G$5*((90/$G$18)*(90/$G$18))/2)*(1+(SQRT(1+(4/(G$5*((90/$G$18)*(90/$G$18))))*$G$23*(1-(SQRT(2)*Vin_rms_min*(SIN($Q73)/Vout)))))) -> 0.291771401 | S73: =(H$5*((90/$G$18)*(90/$G$18))/2)*(1+(SQRT(1+(4/(H$5*((90/$G$18)*(90/$G$18))))*$H$23*(1-(SQRT(2)*Vin_rms_min*(SIN($Q73)/Vout)))))) -> 0.2835212777 | T73: =(I$5*((90/$G$18)*(90/$G$18))/2)*(1+(SQRT(1+(4/(I$5*((90/$G$18)*(90/$G$18))))*$I$23*(1-(SQRT(2)*Vin_rms_min*(SIN($Q73)/Vout)))))) -> 0.2784840546 | U73: =(J$5*((90/$G$18)*(90/$G$18))/2)*(1+(SQRT(1+(4/(J$5*((90/$G$18)*(90/$G$18))))*$J$23*(1-(SQRT(2)*Vin_rms_min*(SIN($Q73)/Vout)))))) -> 0.2703287197 | V73: =(K$5*((90/$G$18)*(90/$G$18))/2)*(1+(SQRT(1+(4/(K$5*((90/$G$18)*(90/$G$18))))*$K$23*(1-(SQRT(2)*Vin_rms_min*(SIN($Q73)/Vout)))))) -> 0.4054930796 | W73: =(L$5*((90/$G$18)*(90/$G$18))/2)*(1+(SQRT(1+(4/(L$5*((90/$G$18)*(90/$G$18))))*$L$23*(1-(SQRT(2)*Vin_rms_min*(SIN($Q73)/Vout)))))) -> 0.5406574394 | Y73: =R73*ABS(1/(Vout/(SQRT(2)*$C$25*SIN($Q73)))) -> 0.05637183856 | Z73: =S73*ABS(1/(Vout/(SQRT(2)*$C$25*SIN($Q73)))) -> 0.05477786939 | AA73: =T73*ABS(1/(Vout/(SQRT(2)*$C$25*SIN($Q73)))) -> 0.05380465019 | AB73: =U73*ABS(1/(Vout/(SQRT(2)*$C$25*SIN($Q73)))) -> 0.05222899467 | AC73: =V73*ABS(1/(Vout/(SQRT(2)*$C$25*SIN($Q73)))) -> 0.078343492 | AD73: =W73*ABS(1/(Vout/(SQRT(2)*$C$25*SIN($Q73)))) -> 0.1044579893 | AF73: =1/(0.0000128*(R73+Y73+$G$23)) -> 40309.19821 | AG73: =1/(0.0000128*(S73+Z73+$H$23)) -> 86012.41149 | AH73: =1/(0.0000128*(T73+AA73+$I$23)) -> 111880.6583 | AI73: =1/(0.0000128*(U73+AB73+$J$23)) -> 242204.7172 | AJ73: =1/(0.0000128*(V73+AC73+$K$23)) -> 161469.8115 | AK73: =1/(0.0000128*(W73+AD73+$L$23)) -> 121102.3586
A74: Recommended Current Sense Filter Capacitor: | B74: CCS_Fliter | C74: 10 | D74: pF | Q74: =Q73+0.01 -> 0.68 | R74: =(G$5*((90/$G$18)*(90/$G$18))/2)*(1+(SQRT(1+(4/(G$5*((90/$G$18)*(90/$G$18))))*$G$23*(1-(SQRT(2)*Vin_rms_min*(SIN($Q74)/Vout)))))) -> 0.2913767439 | S74: =(H$5*((90/$G$18)*(90/$G$18))/2)*(1+(SQRT(1+(4/(H$5*((90/$G$18)*(90/$G$18))))*$H$23*(1-(SQRT(2)*Vin_rms_min*(SIN($Q74)/Vout)))))) -> 0.2831948166 | T74: =(I$5*((90/$G$18)*(90/$G$18))/2)*(1+(SQRT(1+(4/(I$5*((90/$G$18)*(90/$G$18))))*$I$23*(1-(SQRT(2)*Vin_rms_min*(SIN($Q74)/Vout)))))) -> 0.2781989853 | U74: =(J$5*((90/$G$18)*(90/$G$18))/2)*(1+(SQRT(1+(4/(J$5*((90/$G$18)*(90/$G$18))))*$J$23*(1-(SQRT(2)*Vin_rms_min*(SIN($Q74)/Vout)))))) -> 0.2703287197 | V74: =(K$5*((90/$G$18)*(90/$G$18))/2)*(1+(SQRT(1+(4/(K$5*((90/$G$18)*(90/$G$18))))*$K$23*(1-(SQRT(2)*Vin_rms_min*(SIN($Q74)/Vout)))))) -> 0.4054930796 | W74: =(L$5*((90/$G$18)*(90/$G$18))/2)*(1+(SQRT(1+(4/(L$5*((90/$G$18)*(90/$G$18))))*$L$23*(1-(SQRT(2)*Vin_rms_min*(SIN($Q74)/Vout)))))) -> 0.5406574394 | Y74: =R74*ABS(1/(Vout/(SQRT(2)*$C$25*SIN($Q74)))) -> 0.05700333688 | Z74: =S74*ABS(1/(Vout/(SQRT(2)*$C$25*SIN($Q74)))) -> 0.05540266982 | AA74: =T74*ABS(1/(Vout/(SQRT(2)*$C$25*SIN($Q74)))) -> 0.05442531298 | AB74: =U74*ABS(1/(Vout/(SQRT(2)*$C$25*SIN($Q74)))) -> 0.05288561769 | AC74: =V74*ABS(1/(Vout/(SQRT(2)*$C$25*SIN($Q74)))) -> 0.07932842653 | AD74: =W74*ABS(1/(Vout/(SQRT(2)*$C$25*SIN($Q74)))) -> 0.1057712354 | AF74: =1/(0.0000128*(R74+Y74+$G$23)) -> 40304.27302 | AG74: =1/(0.0000128*(S74+Z74+$H$23)) -> 85984.16919 | AH74: =1/(0.0000128*(T74+AA74+$I$23)) -> 111826.915 | AI74: =1/(0.0000128*(U74+AB74+$J$23)) -> 241712.6685 | AJ74: =1/(0.0000128*(V74+AC74+$K$23)) -> 161141.779 | AK74: =1/(0.0000128*(W74+AD74+$L$23)) -> 120856.3343
A75: Recommended Current Sense Filter Resistor: | B75: RCS_Filter | C75: =30*ns/Ccs_filter/picoF -> 3000 | D75: W | Q75: =Q74+0.01 -> 0.69 | R75: =(G$5*((90/$G$18)*(90/$G$18))/2)*(1+(SQRT(1+(4/(G$5*((90/$G$18)*(90/$G$18))))*$G$23*(1-(SQRT(2)*Vin_rms_min*(SIN($Q75)/Vout)))))) -> 0.2909846824 | S75: =(H$5*((90/$G$18)*(90/$G$18))/2)*(1+(SQRT(1+(4/(H$5*((90/$G$18)*(90/$G$18))))*$H$23*(1-(SQRT(2)*Vin_rms_min*(SIN($Q75)/Vout)))))) -> 0.2828705246 | T75: =(I$5*((90/$G$18)*(90/$G$18))/2)*(1+(SQRT(1+(4/(I$5*((90/$G$18)*(90/$G$18))))*$I$23*(1-(SQRT(2)*Vin_rms_min*(SIN($Q75)/Vout)))))) -> 0.2779158304 | U75: =(J$5*((90/$G$18)*(90/$G$18))/2)*(1+(SQRT(1+(4/(J$5*((90/$G$18)*(90/$G$18))))*$J$23*(1-(SQRT(2)*Vin_rms_min*(SIN($Q75)/Vout)))))) -> 0.2703287197 | V75: =(K$5*((90/$G$18)*(90/$G$18))/2)*(1+(SQRT(1+(4/(K$5*((90/$G$18)*(90/$G$18))))*$K$23*(1-(SQRT(2)*Vin_rms_min*(SIN($Q75)/Vout)))))) -> 0.4054930796 | W75: =(L$5*((90/$G$18)*(90/$G$18))/2)*(1+(SQRT(1+(4/(L$5*((90/$G$18)*(90/$G$18))))*$L$23*(1-(SQRT(2)*Vin_rms_min*(SIN($Q75)/Vout)))))) -> 0.5406574394 | Y75: =R75*ABS(1/(Vout/(SQRT(2)*$C$25*SIN($Q75)))) -> 0.05762773947 | Z75: =S75*ABS(1/(Vout/(SQRT(2)*$C$25*SIN($Q75)))) -> 0.05602078006 | AA75: =T75*ABS(1/(Vout/(SQRT(2)*$C$25*SIN($Q75)))) -> 0.05503953312 | AB75: =U75*ABS(1/(Vout/(SQRT(2)*$C$25*SIN($Q75)))) -> 0.05353695219 | AC75: =V75*ABS(1/(Vout/(SQRT(2)*$C$25*SIN($Q75)))) -> 0.08030542828 | AD75: =W75*ABS(1/(Vout/(SQRT(2)*$C$25*SIN($Q75)))) -> 0.1070739044 | AF75: =1/(0.0000128*(R75+Y75+$G$23)) -> 40299.44259 | AG75: =1/(0.0000128*(S75+Z75+$H$23)) -> 85956.373 | AH75: =1/(0.0000128*(T75+AA75+$I$23)) -> 111773.9474 | AI75: =1/(0.0000128*(U75+AB75+$J$23)) -> 241226.554 | AJ75: =1/(0.0000128*(V75+AC75+$K$23)) -> 160817.7027 | AK75: =1/(0.0000128*(W75+AD75+$L$23)) -> 120613.277
A76: Resistance of Thermistor at 25°C: | B76: RNTC | C76: 4.7 | D76: W | Q76: =Q75+0.01 -> 0.7 | R76: =(G$5*((90/$G$18)*(90/$G$18))/2)*(1+(SQRT(1+(4/(G$5*((90/$G$18)*(90/$G$18))))*$G$23*(1-(SQRT(2)*Vin_rms_min*(SIN($Q76)/Vout)))))) -> 0.2905952675 | S76: =(H$5*((90/$G$18)*(90/$G$18))/2)*(1+(SQRT(1+(4/(H$5*((90/$G$18)*(90/$G$18))))*$H$23*(1-(SQRT(2)*Vin_rms_min*(SIN($Q76)/Vout)))))) -> 0.2825484436 | T76: =(I$5*((90/$G$18)*(90/$G$18))/2)*(1+(SQRT(1+(4/(I$5*((90/$G$18)*(90/$G$18))))*$I$23*(1-(SQRT(2)*Vin_rms_min*(SIN($Q76)/Vout)))))) -> 0.2776346258 | U76: =(J$5*((90/$G$18)*(90/$G$18))/2)*(1+(SQRT(1+(4/(J$5*((90/$G$18)*(90/$G$18))))*$J$23*(1-(SQRT(2)*Vin_rms_min*(SIN($Q76)/Vout)))))) -> 0.2703287197 | V76: =(K$5*((90/$G$18)*(90/$G$18))/2)*(1+(SQRT(1+(4/(K$5*((90/$G$18)*(90/$G$18))))*$K$23*(1-(SQRT(2)*Vin_rms_min*(SIN($Q76)/Vout)))))) -> 0.4054930796 | W76: =(L$5*((90/$G$18)*(90/$G$18))/2)*(1+(SQRT(1+(4/(L$5*((90/$G$18)*(90/$G$18))))*$L$23*(1-(SQRT(2)*Vin_rms_min*(SIN($Q76)/Vout)))))) -> 0.5406574394 | Y76: =R76*ABS(1/(Vout/(SQRT(2)*$C$25*SIN($Q76)))) -> 0.05824502826 | Z76: =S76*ABS(1/(Vout/(SQRT(2)*$C$25*SIN($Q76)))) -> 0.05663217513 | AA76: =T76*ABS(1/(Vout/(SQRT(2)*$C$25*SIN($Q76)))) -> 0.0556472814 | AB76: =U76*ABS(1/(Vout/(SQRT(2)*$C$25*SIN($Q76)))) -> 0.05418293304 | AC76: =V76*ABS(1/(Vout/(SQRT(2)*$C$25*SIN($Q76)))) -> 0.08127439956 | AD76: =W76*ABS(1/(Vout/(SQRT(2)*$C$25*SIN($Q76)))) -> 0.1083658661 | AF76: =1/(0.0000128*(R76+Y76+$G$23)) -> 40294.70616 | AG76: =1/(0.0000128*(S76+Z76+$H$23)) -> 85929.02047 | AH76: =1/(0.0000128*(T76+AA76+$I$23)) -> 111721.7523 | AI76: =1/(0.0000128*(U76+AB76+$J$23)) -> 240746.3625 | AJ76: =1/(0.0000128*(V76+AC76+$K$23)) -> 160497.575 | AK76: =1/(0.0000128*(W76+AD76+$L$23)) -> 120373.1813
A77: Maximum Inrush Current: | B77: IINRUSH | C77: =Vin_pk_max/Rntc -> 39.11654534 | D77: A | Q77: =Q76+0.01 -> 0.71 | R77: =(G$5*((90/$G$18)*(90/$G$18))/2)*(1+(SQRT(1+(4/(G$5*((90/$G$18)*(90/$G$18))))*$G$23*(1-(SQRT(2)*Vin_rms_min*(SIN($Q77)/Vout)))))) -> 0.2902085498 | S77: =(H$5*((90/$G$18)*(90/$G$18))/2)*(1+(SQRT(1+(4/(H$5*((90/$G$18)*(90/$G$18))))*$H$23*(1-(SQRT(2)*Vin_rms_min*(SIN($Q77)/Vout)))))) -> 0.2822286151 | T77: =(I$5*((90/$G$18)*(90/$G$18))/2)*(1+(SQRT(1+(4/(I$5*((90/$G$18)*(90/$G$18))))*$I$23*(1-(SQRT(2)*Vin_rms_min*(SIN($Q77)/Vout)))))) -> 0.2773554076 | U77: =(J$5*((90/$G$18)*(90/$G$18))/2)*(1+(SQRT(1+(4/(J$5*((90/$G$18)*(90/$G$18))))*$J$23*(1-(SQRT(2)*Vin_rms_min*(SIN($Q77)/Vout)))))) -> 0.2703287197 | V77: =(K$5*((90/$G$18)*(90/$G$18))/2)*(1+(SQRT(1+(4/(K$5*((90/$G$18)*(90/$G$18))))*$K$23*(1-(SQRT(2)*Vin_rms_min*(SIN($Q77)/Vout)))))) -> 0.4054930796 | W77: =(L$5*((90/$G$18)*(90/$G$18))/2)*(1+(SQRT(1+(4/(L$5*((90/$G$18)*(90/$G$18))))*$L$23*(1-(SQRT(2)*Vin_rms_min*(SIN($Q77)/Vout)))))) -> 0.5406574394 | Y77: =R77*ABS(1/(Vout/(SQRT(2)*$C$25*SIN($Q77)))) -> 0.05885518632 | Z77: =S77*ABS(1/(Vout/(SQRT(2)*$C$25*SIN($Q77)))) -> 0.05723683101 | AA77: =T77*ABS(1/(Vout/(SQRT(2)*$C$25*SIN($Q77)))) -> 0.05624852955 | AB77: =U77*ABS(1/(Vout/(SQRT(2)*$C$25*SIN($Q77)))) -> 0.05482349564 | AC77: =V77*ABS(1/(Vout/(SQRT(2)*$C$25*SIN($Q77)))) -> 0.08223524346 | AD77: =W77*ABS(1/(Vout/(SQRT(2)*$C$25*SIN($Q77)))) -> 0.1096469913 | AF77: =1/(0.0000128*(R77+Y77+$G$23)) -> 40290.06295 | AG77: =1/(0.0000128*(S77+Z77+$H$23)) -> 85902.10913 | AH77: =1/(0.0000128*(T77+AA77+$I$23)) -> 111670.3264 | AI77: =1/(0.0000128*(U77+AB77+$J$23)) -> 240272.0828 | AJ77: =1/(0.0000128*(V77+AC77+$K$23)) -> 160181.3885 | AK77: =1/(0.0000128*(W77+AD77+$L$23)) -> 120136.0414
Q78: =Q77+0.01 -> 0.72 | R78: =(G$5*((90/$G$18)*(90/$G$18))/2)*(1+(SQRT(1+(4/(G$5*((90/$G$18)*(90/$G$18))))*$G$23*(1-(SQRT(2)*Vin_rms_min*(SIN($Q78)/Vout)))))) -> 0.2898245802 | S78: =(H$5*((90/$G$18)*(90/$G$18))/2)*(1+(SQRT(1+(4/(H$5*((90/$G$18)*(90/$G$18))))*$H$23*(1-(SQRT(2)*Vin_rms_min*(SIN($Q78)/Vout)))))) -> 0.2819110806 | T78: =(I$5*((90/$G$18)*(90/$G$18))/2)*(1+(SQRT(1+(4/(I$5*((90/$G$18)*(90/$G$18))))*$I$23*(1-(SQRT(2)*Vin_rms_min*(SIN($Q78)/Vout)))))) -> 0.2770782118 | U78: =(J$5*((90/$G$18)*(90/$G$18))/2)*(1+(SQRT(1+(4/(J$5*((90/$G$18)*(90/$G$18))))*$J$23*(1-(SQRT(2)*Vin_rms_min*(SIN($Q78)/Vout)))))) -> 0.2703287197 | V78: =(K$5*((90/$G$18)*(90/$G$18))/2)*(1+(SQRT(1+(4/(K$5*((90/$G$18)*(90/$G$18))))*$K$23*(1-(SQRT(2)*Vin_rms_min*(SIN($Q78)/Vout)))))) -> 0.4054930796 | W78: =(L$5*((90/$G$18)*(90/$G$18))/2)*(1+(SQRT(1+(4/(L$5*((90/$G$18)*(90/$G$18))))*$L$23*(1-(SQRT(2)*Vin_rms_min*(SIN($Q78)/Vout)))))) -> 0.5406574394 | Y78: =R78*ABS(1/(Vout/(SQRT(2)*$C$25*SIN($Q78)))) -> 0.05945819779 | Z78: =S78*ABS(1/(Vout/(SQRT(2)*$C$25*SIN($Q78)))) -> 0.05783472466 | AA78: =T78*ABS(1/(Vout/(SQRT(2)*$C$25*SIN($Q78)))) -> 0.05684325019 | AB78: =U78*ABS(1/(Vout/(SQRT(2)*$C$25*SIN($Q78)))) -> 0.05545857594 | AC78: =V78*ABS(1/(Vout/(SQRT(2)*$C$25*SIN($Q78)))) -> 0.0831878639 | AD78: =W78*ABS(1/(Vout/(SQRT(2)*$C$25*SIN($Q78)))) -> 0.1109171519 | AF78: =1/(0.0000128*(R78+Y78+$G$23)) -> 40285.51219 | AG78: =1/(0.0000128*(S78+Z78+$H$23)) -> 85875.63641 | AH78: =1/(0.0000128*(T78+AA78+$I$23)) -> 111619.6663 | AI78: =1/(0.0000128*(U78+AB78+$J$23)) -> 239803.7033 | AJ78: =1/(0.0000128*(V78+AC78+$K$23)) -> 159869.1356 | AK78: =1/(0.0000128*(W78+AD78+$L$23)) -> 119901.8517
Q79: =Q78+0.01 -> 0.73 | R79: =(G$5*((90/$G$18)*(90/$G$18))/2)*(1+(SQRT(1+(4/(G$5*((90/$G$18)*(90/$G$18))))*$G$23*(1-(SQRT(2)*Vin_rms_min*(SIN($Q79)/Vout)))))) -> 0.289443409 | S79: =(H$5*((90/$G$18)*(90/$G$18))/2)*(1+(SQRT(1+(4/(H$5*((90/$G$18)*(90/$G$18))))*$H$23*(1-(SQRT(2)*Vin_rms_min*(SIN($Q79)/Vout)))))) -> 0.2815958817 | T79: =(I$5*((90/$G$18)*(90/$G$18))/2)*(1+(SQRT(1+(4/(I$5*((90/$G$18)*(90/$G$18))))*$I$23*(1-(SQRT(2)*Vin_rms_min*(SIN($Q79)/Vout)))))) -> 0.2768030741 | U79: =(J$5*((90/$G$18)*(90/$G$18))/2)*(1+(SQRT(1+(4/(J$5*((90/$G$18)*(90/$G$18))))*$J$23*(1-(SQRT(2)*Vin_rms_min*(SIN($Q79)/Vout)))))) -> 0.2703287197 | V79: =(K$5*((90/$G$18)*(90/$G$18))/2)*(1+(SQRT(1+(4/(K$5*((90/$G$18)*(90/$G$18))))*$K$23*(1-(SQRT(2)*Vin_rms_min*(SIN($Q79)/Vout)))))) -> 0.4054930796 | W79: =(L$5*((90/$G$18)*(90/$G$18))/2)*(1+(SQRT(1+(4/(L$5*((90/$G$18)*(90/$G$18))))*$L$23*(1-(SQRT(2)*Vin_rms_min*(SIN($Q79)/Vout)))))) -> 0.5406574394 | Y79: =R79*ABS(1/(Vout/(SQRT(2)*$C$25*SIN($Q79)))) -> 0.0600540479 | Z79: =S79*ABS(1/(Vout/(SQRT(2)*$C$25*SIN($Q79)))) -> 0.05842583401 | AA79: =T79*ABS(1/(Vout/(SQRT(2)*$C$25*SIN($Q79)))) -> 0.05743141683 | AB79: =U79*ABS(1/(Vout/(SQRT(2)*$C$25*SIN($Q79)))) -> 0.05608811042 | AC79: =V79*ABS(1/(Vout/(SQRT(2)*$C$25*SIN($Q79)))) -> 0.08413216563 | AD79: =W79*ABS(1/(Vout/(SQRT(2)*$C$25*SIN($Q79)))) -> 0.1121762208 | AF79: =1/(0.0000128*(R79+Y79+$G$23)) -> 40281.05308 | AG79: =1/(0.0000128*(S79+Z79+$H$23)) -> 85849.59969 | AH79: =1/(0.0000128*(T79+AA79+$I$23)) -> 111569.7684 | AI79: =1/(0.0000128*(U79+AB79+$J$23)) -> 239341.2128 | AJ79: =1/(0.0000128*(V79+AC79+$K$23)) -> 159560.8085 | AK79: =1/(0.0000128*(W79+AD79+$L$23)) -> 119670.6064
A80: ZCD RESISTOR: | Q80: =Q79+0.01 -> 0.74 | R80: =(G$5*((90/$G$18)*(90/$G$18))/2)*(1+(SQRT(1+(4/(G$5*((90/$G$18)*(90/$G$18))))*$G$23*(1-(SQRT(2)*Vin_rms_min*(SIN($Q80)/Vout)))))) -> 0.2890650867 | S80: =(H$5*((90/$G$18)*(90/$G$18))/2)*(1+(SQRT(1+(4/(H$5*((90/$G$18)*(90/$G$18))))*$H$23*(1-(SQRT(2)*Vin_rms_min*(SIN($Q80)/Vout)))))) -> 0.2812830596 | T80: =(I$5*((90/$G$18)*(90/$G$18))/2)*(1+(SQRT(1+(4/(I$5*((90/$G$18)*(90/$G$18))))*$I$23*(1-(SQRT(2)*Vin_rms_min*(SIN($Q80)/Vout)))))) -> 0.2765300302 | U80: =(J$5*((90/$G$18)*(90/$G$18))/2)*(1+(SQRT(1+(4/(J$5*((90/$G$18)*(90/$G$18))))*$J$23*(1-(SQRT(2)*Vin_rms_min*(SIN($Q80)/Vout)))))) -> 0.2703287197 | V80: =(K$5*((90/$G$18)*(90/$G$18))/2)*(1+(SQRT(1+(4/(K$5*((90/$G$18)*(90/$G$18))))*$K$23*(1-(SQRT(2)*Vin_rms_min*(SIN($Q80)/Vout)))))) -> 0.4054930796 | W80: =(L$5*((90/$G$18)*(90/$G$18))/2)*(1+(SQRT(1+(4/(L$5*((90/$G$18)*(90/$G$18))))*$L$23*(1-(SQRT(2)*Vin_rms_min*(SIN($Q80)/Vout)))))) -> 0.5406574394 | Y80: =R80*ABS(1/(Vout/(SQRT(2)*$C$25*SIN($Q80)))) -> 0.06064272291 | Z80: =S80*ABS(1/(Vout/(SQRT(2)*$C$25*SIN($Q80)))) -> 0.05901013795 | AA80: =T80*ABS(1/(Vout/(SQRT(2)*$C$25*SIN($Q80)))) -> 0.05801300389 | AB80: =U80*ABS(1/(Vout/(SQRT(2)*$C$25*SIN($Q80)))) -> 0.05671203614 | AC80: =V80*ABS(1/(Vout/(SQRT(2)*$C$25*SIN($Q80)))) -> 0.08506805422 | AD80: =W80*ABS(1/(Vout/(SQRT(2)*$C$25*SIN($Q80)))) -> 0.1134240723 | AF80: =1/(0.0000128*(R80+Y80+$G$23)) -> 40276.68477 | AG80: =1/(0.0000128*(S80+Z80+$H$23)) -> 85823.99628 | AH80: =1/(0.0000128*(T80+AA80+$I$23)) -> 111520.6293 | AI80: =1/(0.0000128*(U80+AB80+$J$23)) -> 238884.5995 | AJ80: =1/(0.0000128*(V80+AC80+$K$23)) -> 159256.3997 | AK80: =1/(0.0000128*(W80+AD80+$L$23)) -> 119442.2998
A81: Line Rising Threshold at ZCD/CS Pin | B81: VZCBOR | C81: 0.3 | D81: V | Q81: =Q80+0.01 -> 0.75 | R81: =(G$5*((90/$G$18)*(90/$G$18))/2)*(1+(SQRT(1+(4/(G$5*((90/$G$18)*(90/$G$18))))*$G$23*(1-(SQRT(2)*Vin_rms_min*(SIN($Q81)/Vout)))))) -> 0.2886896636 | S81: =(H$5*((90/$G$18)*(90/$G$18))/2)*(1+(SQRT(1+(4/(H$5*((90/$G$18)*(90/$G$18))))*$H$23*(1-(SQRT(2)*Vin_rms_min*(SIN($Q81)/Vout)))))) -> 0.2809726554 | T81: =(I$5*((90/$G$18)*(90/$G$18))/2)*(1+(SQRT(1+(4/(I$5*((90/$G$18)*(90/$G$18))))*$I$23*(1-(SQRT(2)*Vin_rms_min*(SIN($Q81)/Vout)))))) -> 0.2762591158 | U81: =(J$5*((90/$G$18)*(90/$G$18))/2)*(1+(SQRT(1+(4/(J$5*((90/$G$18)*(90/$G$18))))*$J$23*(1-(SQRT(2)*Vin_rms_min*(SIN($Q81)/Vout)))))) -> 0.2703287197 | V81: =(K$5*((90/$G$18)*(90/$G$18))/2)*(1+(SQRT(1+(4/(K$5*((90/$G$18)*(90/$G$18))))*$K$23*(1-(SQRT(2)*Vin_rms_min*(SIN($Q81)/Vout)))))) -> 0.4054930796 | W81: =(L$5*((90/$G$18)*(90/$G$18))/2)*(1+(SQRT(1+(4/(L$5*((90/$G$18)*(90/$G$18))))*$L$23*(1-(SQRT(2)*Vin_rms_min*(SIN($Q81)/Vout)))))) -> 0.5406574394 | Y81: =R81*ABS(1/(Vout/(SQRT(2)*$C$25*SIN($Q81)))) -> 0.06122421012 | Z81: =S81*ABS(1/(Vout/(SQRT(2)*$C$25*SIN($Q81)))) -> 0.05958761627 | AA81: =T81*ABS(1/(Vout/(SQRT(2)*$C$25*SIN($Q81)))) -> 0.05858798664 | AB81: =U81*ABS(1/(Vout/(SQRT(2)*$C$25*SIN($Q81)))) -> 0.05733029071 | AC81: =V81*ABS(1/(Vout/(SQRT(2)*$C$25*SIN($Q81)))) -> 0.08599543606 | AD81: =W81*ABS(1/(Vout/(SQRT(2)*$C$25*SIN($Q81)))) -> 0.1146605814 | AF81: =1/(0.0000128*(R81+Y81+$G$23)) -> 40272.40645 | AG81: =1/(0.0000128*(S81+Z81+$H$23)) -> 85798.82346 | AH81: =1/(0.0000128*(T81+AA81+$I$23)) -> 111472.2451 | AI81: =1/(0.0000128*(U81+AB81+$J$23)) -> 238433.852 | AJ81: =1/(0.0000128*(V81+AC81+$K$23)) -> 158955.9013 | AK81: =1/(0.0000128*(W81+AD81+$L$23)) -> 119216.926
A82: Second Output Over-Voltage Protection Threshold | B82: VOVP2TH | C82: 1.125 | D82: V | E82: =IF(Rzc1>39,"RECOMMENDED VALUE IS LESS THAN OR EQUAL TO 39Meg","") ->  | Q82: =Q81+0.01 -> 0.76 | R82: =(G$5*((90/$G$18)*(90/$G$18))/2)*(1+(SQRT(1+(4/(G$5*((90/$G$18)*(90/$G$18))))*$G$23*(1-(SQRT(2)*Vin_rms_min*(SIN($Q82)/Vout)))))) -> 0.2883171898 | S82: =(H$5*((90/$G$18)*(90/$G$18))/2)*(1+(SQRT(1+(4/(H$5*((90/$G$18)*(90/$G$18))))*$H$23*(1-(SQRT(2)*Vin_rms_min*(SIN($Q82)/Vout)))))) -> 0.2806647103 | T82: =(I$5*((90/$G$18)*(90/$G$18))/2)*(1+(SQRT(1+(4/(I$5*((90/$G$18)*(90/$G$18))))*$I$23*(1-(SQRT(2)*Vin_rms_min*(SIN($Q82)/Vout)))))) -> 0.2759903662 | U82: =(J$5*((90/$G$18)*(90/$G$18))/2)*(1+(SQRT(1+(4/(J$5*((90/$G$18)*(90/$G$18))))*$J$23*(1-(SQRT(2)*Vin_rms_min*(SIN($Q82)/Vout)))))) -> 0.2703287197 | V82: =(K$5*((90/$G$18)*(90/$G$18))/2)*(1+(SQRT(1+(4/(K$5*((90/$G$18)*(90/$G$18))))*$K$23*(1-(SQRT(2)*Vin_rms_min*(SIN($Q82)/Vout)))))) -> 0.4054930796 | W82: =(L$5*((90/$G$18)*(90/$G$18))/2)*(1+(SQRT(1+(4/(L$5*((90/$G$18)*(90/$G$18))))*$L$23*(1-(SQRT(2)*Vin_rms_min*(SIN($Q82)/Vout)))))) -> 0.5406574394 | Y82: =R82*ABS(1/(Vout/(SQRT(2)*$C$25*SIN($Q82)))) -> 0.06179849786 | Z82: =S82*ABS(1/(Vout/(SQRT(2)*$C$25*SIN($Q82)))) -> 0.06015824972 | AA82: =T82*ABS(1/(Vout/(SQRT(2)*$C$25*SIN($Q82)))) -> 0.05915634121 | AB82: =U82*ABS(1/(Vout/(SQRT(2)*$C$25*SIN($Q82)))) -> 0.05794281229 | AC82: =V82*ABS(1/(Vout/(SQRT(2)*$C$25*SIN($Q82)))) -> 0.08691421844 | AD82: =W82*ABS(1/(Vout/(SQRT(2)*$C$25*SIN($Q82)))) -> 0.1158856246 | AF82: =1/(0.0000128*(R82+Y82+$G$23)) -> 40268.21725 | AG82: =1/(0.0000128*(S82+Z82+$H$23)) -> 85774.07842 | AH82: =1/(0.0000128*(T82+AA82+$I$23)) -> 111424.6122 | AI82: =1/(0.0000128*(U82+AB82+$J$23)) -> 237988.9585 | AJ82: =1/(0.0000128*(V82+AC82+$K$23)) -> 158659.3056 | AK82: =1/(0.0000128*(W82+AD82+$L$23)) -> 118994.4792
A83: Recommended Value for the Top Divider Resistor: | B83: RZC1(recommended) | C83: 10 | D83: MW | Q83: =Q82+0.01 -> 0.77 | R83: =(G$5*((90/$G$18)*(90/$G$18))/2)*(1+(SQRT(1+(4/(G$5*((90/$G$18)*(90/$G$18))))*$G$23*(1-(SQRT(2)*Vin_rms_min*(SIN($Q83)/Vout)))))) -> 0.2879477152 | S83: =(H$5*((90/$G$18)*(90/$G$18))/2)*(1+(SQRT(1+(4/(H$5*((90/$G$18)*(90/$G$18))))*$H$23*(1-(SQRT(2)*Vin_rms_min*(SIN($Q83)/Vout)))))) -> 0.2803592651 | T83: =(I$5*((90/$G$18)*(90/$G$18))/2)*(1+(SQRT(1+(4/(I$5*((90/$G$18)*(90/$G$18))))*$I$23*(1-(SQRT(2)*Vin_rms_min*(SIN($Q83)/Vout)))))) -> 0.2757238168 | U83: =(J$5*((90/$G$18)*(90/$G$18))/2)*(1+(SQRT(1+(4/(J$5*((90/$G$18)*(90/$G$18))))*$J$23*(1-(SQRT(2)*Vin_rms_min*(SIN($Q83)/Vout)))))) -> 0.2703287197 | V83: =(K$5*((90/$G$18)*(90/$G$18))/2)*(1+(SQRT(1+(4/(K$5*((90/$G$18)*(90/$G$18))))*$K$23*(1-(SQRT(2)*Vin_rms_min*(SIN($Q83)/Vout)))))) -> 0.4054930796 | W83: =(L$5*((90/$G$18)*(90/$G$18))/2)*(1+(SQRT(1+(4/(L$5*((90/$G$18)*(90/$G$18))))*$L$23*(1-(SQRT(2)*Vin_rms_min*(SIN($Q83)/Vout)))))) -> 0.5406574394 | Y83: =R83*ABS(1/(Vout/(SQRT(2)*$C$25*SIN($Q83)))) -> 0.06236557546 | Z83: =S83*ABS(1/(Vout/(SQRT(2)*$C$25*SIN($Q83)))) -> 0.06072201994 | AA83: =T83*ABS(1/(Vout/(SQRT(2)*$C$25*SIN($Q83)))) -> 0.05971804461 | AB83: =U83*ABS(1/(Vout/(SQRT(2)*$C$25*SIN($Q83)))) -> 0.05854953965 | AC83: =V83*ABS(1/(Vout/(SQRT(2)*$C$25*SIN($Q83)))) -> 0.08782430947 | AD83: =W83*ABS(1/(Vout/(SQRT(2)*$C$25*SIN($Q83)))) -> 0.1170990793 | AF83: =1/(0.0000128*(R83+Y83+$G$23)) -> 40264.1163 | AG83: =1/(0.0000128*(S83+Z83+$H$23)) -> 85749.75832 | AH83: =1/(0.0000128*(T83+AA83+$I$23)) -> 111377.7268 | AI83: =1/(0.0000128*(U83+AB83+$J$23)) -> 237549.9072 | AJ83: =1/(0.0000128*(V83+AC83+$K$23)) -> 158366.6048 | AK83: =1/(0.0000128*(W83+AD83+$L$23)) -> 118774.9536
A84: Actual Value of the Top Divider Resistor: | B84: RZC1(actual) | C84: 10 | D84: MW | Q84: =Q83+0.01 -> 0.78 | R84: =(G$5*((90/$G$18)*(90/$G$18))/2)*(1+(SQRT(1+(4/(G$5*((90/$G$18)*(90/$G$18))))*$G$23*(1-(SQRT(2)*Vin_rms_min*(SIN($Q84)/Vout)))))) -> 0.2875812897 | S84: =(H$5*((90/$G$18)*(90/$G$18))/2)*(1+(SQRT(1+(4/(H$5*((90/$G$18)*(90/$G$18))))*$H$23*(1-(SQRT(2)*Vin_rms_min*(SIN($Q84)/Vout)))))) -> 0.2800563606 | T84: =(I$5*((90/$G$18)*(90/$G$18))/2)*(1+(SQRT(1+(4/(I$5*((90/$G$18)*(90/$G$18))))*$I$23*(1-(SQRT(2)*Vin_rms_min*(SIN($Q84)/Vout)))))) -> 0.2754595027 | U84: =(J$5*((90/$G$18)*(90/$G$18))/2)*(1+(SQRT(1+(4/(J$5*((90/$G$18)*(90/$G$18))))*$J$23*(1-(SQRT(2)*Vin_rms_min*(SIN($Q84)/Vout)))))) -> 0.2703287197 | V84: =(K$5*((90/$G$18)*(90/$G$18))/2)*(1+(SQRT(1+(4/(K$5*((90/$G$18)*(90/$G$18))))*$K$23*(1-(SQRT(2)*Vin_rms_min*(SIN($Q84)/Vout)))))) -> 0.4054930796 | W84: =(L$5*((90/$G$18)*(90/$G$18))/2)*(1+(SQRT(1+(4/(L$5*((90/$G$18)*(90/$G$18))))*$L$23*(1-(SQRT(2)*Vin_rms_min*(SIN($Q84)/Vout)))))) -> 0.5406574394 | Y84: =R84*ABS(1/(Vout/(SQRT(2)*$C$25*SIN($Q84)))) -> 0.06292543321 | Z84: =S84*ABS(1/(Vout/(SQRT(2)*$C$25*SIN($Q84)))) -> 0.06127890945 | AA84: =T84*ABS(1/(Vout/(SQRT(2)*$C$25*SIN($Q84)))) -> 0.06027307464 | AB84: =U84*ABS(1/(Vout/(SQRT(2)*$C$25*SIN($Q84)))) -> 0.05915041209 | AC84: =V84*ABS(1/(Vout/(SQRT(2)*$C$25*SIN($Q84)))) -> 0.08872561814 | AD84: =W84*ABS(1/(Vout/(SQRT(2)*$C$25*SIN($Q84)))) -> 0.1183008242 | AF84: =1/(0.0000128*(R84+Y84+$G$23)) -> 40260.10272 | AG84: =1/(0.0000128*(S84+Z84+$H$23)) -> 85725.86025 | AH84: =1/(0.0000128*(T84+AA84+$I$23)) -> 111331.5849 | AI84: =1/(0.0000128*(U84+AB84+$J$23)) -> 237116.6865 | AJ84: =1/(0.0000128*(V84+AC84+$K$23)) -> 158077.791 | AK84: =1/(0.0000128*(W84+AD84+$L$23)) -> 118558.3432
A85: Recommended Value for the Bottom Divider Resistor: | B85: RZC2(recommended) | C85: =Vzcbo_R*Rzc1*kΩ/(Vin_pk_min-Vzcbo_R) -> 19.32199234 | D85: kW | Q85: =Q84+0.01 -> 0.79 | R85: =(G$5*((90/$G$18)*(90/$G$18))/2)*(1+(SQRT(1+(4/(G$5*((90/$G$18)*(90/$G$18))))*$G$23*(1-(SQRT(2)*Vin_rms_min*(SIN($Q85)/Vout)))))) -> 0.2872179629 | S85: =(H$5*((90/$G$18)*(90/$G$18))/2)*(1+(SQRT(1+(4/(H$5*((90/$G$18)*(90/$G$18))))*$H$23*(1-(SQRT(2)*Vin_rms_min*(SIN($Q85)/Vout)))))) -> 0.2797560373 | T85: =(I$5*((90/$G$18)*(90/$G$18))/2)*(1+(SQRT(1+(4/(I$5*((90/$G$18)*(90/$G$18))))*$I$23*(1-(SQRT(2)*Vin_rms_min*(SIN($Q85)/Vout)))))) -> 0.2751974591 | U85: =(J$5*((90/$G$18)*(90/$G$18))/2)*(1+(SQRT(1+(4/(J$5*((90/$G$18)*(90/$G$18))))*$J$23*(1-(SQRT(2)*Vin_rms_min*(SIN($Q85)/Vout)))))) -> 0.2703287197 | V85: =(K$5*((90/$G$18)*(90/$G$18))/2)*(1+(SQRT(1+(4/(K$5*((90/$G$18)*(90/$G$18))))*$K$23*(1-(SQRT(2)*Vin_rms_min*(SIN($Q85)/Vout)))))) -> 0.4054930796 | W85: =(L$5*((90/$G$18)*(90/$G$18))/2)*(1+(SQRT(1+(4/(L$5*((90/$G$18)*(90/$G$18))))*$L$23*(1-(SQRT(2)*Vin_rms_min*(SIN($Q85)/Vout)))))) -> 0.5406574394 | Y85: =R85*ABS(1/(Vout/(SQRT(2)*$C$25*SIN($Q85)))) -> 0.06347806237 | Z85: =S85*ABS(1/(Vout/(SQRT(2)*$C$25*SIN($Q85)))) -> 0.06182890167 | AA85: =T85*ABS(1/(Vout/(SQRT(2)*$C$25*SIN($Q85)))) -> 0.06082140997 | AB85: =U85*ABS(1/(Vout/(SQRT(2)*$C$25*SIN($Q85)))) -> 0.05974536955 | AC85: =V85*ABS(1/(Vout/(SQRT(2)*$C$25*SIN($Q85)))) -> 0.08961805432 | AD85: =W85*ABS(1/(Vout/(SQRT(2)*$C$25*SIN($Q85)))) -> 0.1194907391 | AF85: =1/(0.0000128*(R85+Y85+$G$23)) -> 40256.17561 | AG85: =1/(0.0000128*(S85+Z85+$H$23)) -> 85702.38127 | AH85: =1/(0.0000128*(T85+AA85+$I$23)) -> 111286.1825 | AI85: =1/(0.0000128*(U85+AB85+$J$23)) -> 236689.2844 | AJ85: =1/(0.0000128*(V85+AC85+$K$23)) -> 157792.8563 | AK85: =1/(0.0000128*(W85+AD85+$L$23)) -> 118344.6422
A86: Actual Value of the Bottom Divider Resistor: | B86: RZC2(actual) | C86: 20 | D86: kW | Q86: =Q85+0.01 -> 0.8 | R86: =(G$5*((90/$G$18)*(90/$G$18))/2)*(1+(SQRT(1+(4/(G$5*((90/$G$18)*(90/$G$18))))*$G$23*(1-(SQRT(2)*Vin_rms_min*(SIN($Q86)/Vout)))))) -> 0.2868577841 | S86: =(H$5*((90/$G$18)*(90/$G$18))/2)*(1+(SQRT(1+(4/(H$5*((90/$G$18)*(90/$G$18))))*$H$23*(1-(SQRT(2)*Vin_rms_min*(SIN($Q86)/Vout)))))) -> 0.2794583356 | T86: =(I$5*((90/$G$18)*(90/$G$18))/2)*(1+(SQRT(1+(4/(I$5*((90/$G$18)*(90/$G$18))))*$I$23*(1-(SQRT(2)*Vin_rms_min*(SIN($Q86)/Vout)))))) -> 0.2749377206 | U86: =(J$5*((90/$G$18)*(90/$G$18))/2)*(1+(SQRT(1+(4/(J$5*((90/$G$18)*(90/$G$18))))*$J$23*(1-(SQRT(2)*Vin_rms_min*(SIN($Q86)/Vout)))))) -> 0.2703287197 | V86: =(K$5*((90/$G$18)*(90/$G$18))/2)*(1+(SQRT(1+(4/(K$5*((90/$G$18)*(90/$G$18))))*$K$23*(1-(SQRT(2)*Vin_rms_min*(SIN($Q86)/Vout)))))) -> 0.4054930796 | W86: =(L$5*((90/$G$18)*(90/$G$18))/2)*(1+(SQRT(1+(4/(L$5*((90/$G$18)*(90/$G$18))))*$L$23*(1-(SQRT(2)*Vin_rms_min*(SIN($Q86)/Vout)))))) -> 0.5406574394 | Y86: =R86*ABS(1/(Vout/(SQRT(2)*$C$25*SIN($Q86)))) -> 0.06402345516 | Z86: =S86*ABS(1/(Vout/(SQRT(2)*$C$25*SIN($Q86)))) -> 0.06237198087 | AA86: =T86*ABS(1/(Vout/(SQRT(2)*$C$25*SIN($Q86)))) -> 0.06136303006 | AB86: =U86*ABS(1/(Vout/(SQRT(2)*$C$25*SIN($Q86)))) -> 0.06033435251 | AC86: =V86*ABS(1/(Vout/(SQRT(2)*$C$25*SIN($Q86)))) -> 0.09050152877 | AD86: =W86*ABS(1/(Vout/(SQRT(2)*$C$25*SIN($Q86)))) -> 0.120668705 | AF86: =1/(0.0000128*(R86+Y86+$G$23)) -> 40252.33405 | AG86: =1/(0.0000128*(S86+Z86+$H$23)) -> 85679.31838 | AH86: =1/(0.0000128*(T86+AA86+$I$23)) -> 111241.5157 | AI86: =1/(0.0000128*(U86+AB86+$J$23)) -> 236267.6893 | AJ86: =1/(0.0000128*(V86+AC86+$K$23)) -> 157511.7928 | AK86: =1/(0.0000128*(W86+AD86+$L$23)) -> 118133.8446
A87: Power dissipated in Drain Voltage Divider at Maximum Input Voltage and No Load | B87: PRZC1+RZC2 | C87: =Vin_pk_max^2/(Rzc1*MegΩ+Rzc2*kΩ) -> 0.003373253493 | D87: W | Q87: =Q86+0.01 -> 0.81 | R87: =(G$5*((90/$G$18)*(90/$G$18))/2)*(1+(SQRT(1+(4/(G$5*((90/$G$18)*(90/$G$18))))*$G$23*(1-(SQRT(2)*Vin_rms_min*(SIN($Q87)/Vout)))))) -> 0.2865008025 | S87: =(H$5*((90/$G$18)*(90/$G$18))/2)*(1+(SQRT(1+(4/(H$5*((90/$G$18)*(90/$G$18))))*$H$23*(1-(SQRT(2)*Vin_rms_min*(SIN($Q87)/Vout)))))) -> 0.2791632959 | T87: =(I$5*((90/$G$18)*(90/$G$18))/2)*(1+(SQRT(1+(4/(I$5*((90/$G$18)*(90/$G$18))))*$I$23*(1-(SQRT(2)*Vin_rms_min*(SIN($Q87)/Vout)))))) -> 0.2746803221 | U87: =(J$5*((90/$G$18)*(90/$G$18))/2)*(1+(SQRT(1+(4/(J$5*((90/$G$18)*(90/$G$18))))*$J$23*(1-(SQRT(2)*Vin_rms_min*(SIN($Q87)/Vout)))))) -> 0.2703287197 | V87: =(K$5*((90/$G$18)*(90/$G$18))/2)*(1+(SQRT(1+(4/(K$5*((90/$G$18)*(90/$G$18))))*$K$23*(1-(SQRT(2)*Vin_rms_min*(SIN($Q87)/Vout)))))) -> 0.4054930796 | W87: =(L$5*((90/$G$18)*(90/$G$18))/2)*(1+(SQRT(1+(4/(L$5*((90/$G$18)*(90/$G$18))))*$L$23*(1-(SQRT(2)*Vin_rms_min*(SIN($Q87)/Vout)))))) -> 0.5406574394 | Y87: =R87*ABS(1/(Vout/(SQRT(2)*$C$25*SIN($Q87)))) -> 0.06456160468 | Z87: =S87*ABS(1/(Vout/(SQRT(2)*$C$25*SIN($Q87)))) -> 0.06290813217 | AA87: =T87*ABS(1/(Vout/(SQRT(2)*$C$25*SIN($Q87)))) -> 0.06189791516 | AB87: =U87*ABS(1/(Vout/(SQRT(2)*$C$25*SIN($Q87)))) -> 0.0609173021 | AC87: =V87*ABS(1/(Vout/(SQRT(2)*$C$25*SIN($Q87)))) -> 0.09137595314 | AD87: =W87*ABS(1/(Vout/(SQRT(2)*$C$25*SIN($Q87)))) -> 0.1218346042 | AF87: =1/(0.0000128*(R87+Y87+$G$23)) -> 40248.57713 | AG87: =1/(0.0000128*(S87+Z87+$H$23)) -> 85656.66854 | AH87: =1/(0.0000128*(T87+AA87+$I$23)) -> 111197.5804 | AI87: =1/(0.0000128*(U87+AB87+$J$23)) -> 235851.8891 | AJ87: =1/(0.0000128*(V87+AC87+$K$23)) -> 157234.5927 | AK87: =1/(0.0000128*(W87+AD87+$L$23)) -> 117925.9445
A88: Ratio of Drain Resistor Divider | B88: KZC | C88: =1+Rzc1*MegΩ/(Rzc2*kΩ) -> 501 | Q88: =Q87+0.01 -> 0.82 | R88: =(G$5*((90/$G$18)*(90/$G$18))/2)*(1+(SQRT(1+(4/(G$5*((90/$G$18)*(90/$G$18))))*$G$23*(1-(SQRT(2)*Vin_rms_min*(SIN($Q88)/Vout)))))) -> 0.2861470672 | S88: =(H$5*((90/$G$18)*(90/$G$18))/2)*(1+(SQRT(1+(4/(H$5*((90/$G$18)*(90/$G$18))))*$H$23*(1-(SQRT(2)*Vin_rms_min*(SIN($Q88)/Vout)))))) -> 0.278870958 | T88: =(I$5*((90/$G$18)*(90/$G$18))/2)*(1+(SQRT(1+(4/(I$5*((90/$G$18)*(90/$G$18))))*$I$23*(1-(SQRT(2)*Vin_rms_min*(SIN($Q88)/Vout)))))) -> 0.274425298 | U88: =(J$5*((90/$G$18)*(90/$G$18))/2)*(1+(SQRT(1+(4/(J$5*((90/$G$18)*(90/$G$18))))*$J$23*(1-(SQRT(2)*Vin_rms_min*(SIN($Q88)/Vout)))))) -> 0.2703287197 | V88: =(K$5*((90/$G$18)*(90/$G$18))/2)*(1+(SQRT(1+(4/(K$5*((90/$G$18)*(90/$G$18))))*$K$23*(1-(SQRT(2)*Vin_rms_min*(SIN($Q88)/Vout)))))) -> 0.4054930796 | W88: =(L$5*((90/$G$18)*(90/$G$18))/2)*(1+(SQRT(1+(4/(L$5*((90/$G$18)*(90/$G$18))))*$L$23*(1-(SQRT(2)*Vin_rms_min*(SIN($Q88)/Vout)))))) -> 0.5406574394 | Y88: =R88*ABS(1/(Vout/(SQRT(2)*$C$25*SIN($Q88)))) -> 0.06509250497 | Z88: =S88*ABS(1/(Vout/(SQRT(2)*$C$25*SIN($Q88)))) -> 0.06343734151 | AA88: =T88*ABS(1/(Vout/(SQRT(2)*$C$25*SIN($Q88)))) -> 0.06242604632 | AB88: =U88*ABS(1/(Vout/(SQRT(2)*$C$25*SIN($Q88)))) -> 0.06149416 | AC88: =V88*ABS(1/(Vout/(SQRT(2)*$C$25*SIN($Q88)))) -> 0.09224124 | AD88: =W88*ABS(1/(Vout/(SQRT(2)*$C$25*SIN($Q88)))) -> 0.12298832 | AF88: =1/(0.0000128*(R88+Y88+$G$23)) -> 40244.90389 | AG88: =1/(0.0000128*(S88+Z88+$H$23)) -> 85634.42867 | AH88: =1/(0.0000128*(T88+AA88+$I$23)) -> 111154.3723 | AI88: =1/(0.0000128*(U88+AB88+$J$23)) -> 235441.8721 | AJ88: =1/(0.0000128*(V88+AC88+$K$23)) -> 156961.2481 | AK88: =1/(0.0000128*(W88+AD88+$L$23)) -> 117720.936
A89: =IF(C22="UCC28056A","","OVP Set Point: Typical DC Output Voltage to Trigger OVP:") ->  | B89: =IF(C22="UCC28056A","","VOVP2") ->  | C89: =IF(C22="UCC28056A","",Kzc*Vovp2th+Vf) ->  | D89: =IF(C22="UCC28056A","","V") ->  | Q89: =Q88+0.01 -> 0.83 | R89: =(G$5*((90/$G$18)*(90/$G$18))/2)*(1+(SQRT(1+(4/(G$5*((90/$G$18)*(90/$G$18))))*$G$23*(1-(SQRT(2)*Vin_rms_min*(SIN($Q89)/Vout)))))) -> 0.2857966269 | S89: =(H$5*((90/$G$18)*(90/$G$18))/2)*(1+(SQRT(1+(4/(H$5*((90/$G$18)*(90/$G$18))))*$H$23*(1-(SQRT(2)*Vin_rms_min*(SIN($Q89)/Vout)))))) -> 0.278581362 | T89: =(I$5*((90/$G$18)*(90/$G$18))/2)*(1+(SQRT(1+(4/(I$5*((90/$G$18)*(90/$G$18))))*$I$23*(1-(SQRT(2)*Vin_rms_min*(SIN($Q89)/Vout)))))) -> 0.2741726826 | U89: =(J$5*((90/$G$18)*(90/$G$18))/2)*(1+(SQRT(1+(4/(J$5*((90/$G$18)*(90/$G$18))))*$J$23*(1-(SQRT(2)*Vin_rms_min*(SIN($Q89)/Vout)))))) -> 0.2703287197 | V89: =(K$5*((90/$G$18)*(90/$G$18))/2)*(1+(SQRT(1+(4/(K$5*((90/$G$18)*(90/$G$18))))*$K$23*(1-(SQRT(2)*Vin_rms_min*(SIN($Q89)/Vout)))))) -> 0.4054930796 | W89: =(L$5*((90/$G$18)*(90/$G$18))/2)*(1+(SQRT(1+(4/(L$5*((90/$G$18)*(90/$G$18))))*$L$23*(1-(SQRT(2)*Vin_rms_min*(SIN($Q89)/Vout)))))) -> 0.5406574394 | Y89: =R89*ABS(1/(Vout/(SQRT(2)*$C$25*SIN($Q89)))) -> 0.06561615093 | Z89: =S89*ABS(1/(Vout/(SQRT(2)*$C$25*SIN($Q89)))) -> 0.06395959565 | AA89: =T89*ABS(1/(Vout/(SQRT(2)*$C$25*SIN($Q89)))) -> 0.06294740537 | AB89: =U89*ABS(1/(Vout/(SQRT(2)*$C$25*SIN($Q89)))) -> 0.06206486854 | AC89: =V89*ABS(1/(Vout/(SQRT(2)*$C$25*SIN($Q89)))) -> 0.0930973028 | AD89: =W89*ABS(1/(Vout/(SQRT(2)*$C$25*SIN($Q89)))) -> 0.1241297371 | AF89: =1/(0.0000128*(R89+Y89+$G$23)) -> 40241.31338 | AG89: =1/(0.0000128*(S89+Z89+$H$23)) -> 85612.59563 | AH89: =1/(0.0000128*(T89+AA89+$I$23)) -> 111111.8873 | AI89: =1/(0.0000128*(U89+AB89+$J$23)) -> 235037.6264 | AJ89: =1/(0.0000128*(V89+AC89+$K$23)) -> 156691.7509 | AK89: =1/(0.0000128*(W89+AD89+$L$23)) -> 117518.8132
Q90: =Q89+0.01 -> 0.84 | R90: =(G$5*((90/$G$18)*(90/$G$18))/2)*(1+(SQRT(1+(4/(G$5*((90/$G$18)*(90/$G$18))))*$G$23*(1-(SQRT(2)*Vin_rms_min*(SIN($Q90)/Vout)))))) -> 0.2854495301 | S90: =(H$5*((90/$G$18)*(90/$G$18))/2)*(1+(SQRT(1+(4/(H$5*((90/$G$18)*(90/$G$18))))*$H$23*(1-(SQRT(2)*Vin_rms_min*(SIN($Q90)/Vout)))))) -> 0.2782945473 | T90: =(I$5*((90/$G$18)*(90/$G$18))/2)*(1+(SQRT(1+(4/(I$5*((90/$G$18)*(90/$G$18))))*$I$23*(1-(SQRT(2)*Vin_rms_min*(SIN($Q90)/Vout)))))) -> 0.2739225103 | U90: =(J$5*((90/$G$18)*(90/$G$18))/2)*(1+(SQRT(1+(4/(J$5*((90/$G$18)*(90/$G$18))))*$J$23*(1-(SQRT(2)*Vin_rms_min*(SIN($Q90)/Vout)))))) -> 0.2703287197 | V90: =(K$5*((90/$G$18)*(90/$G$18))/2)*(1+(SQRT(1+(4/(K$5*((90/$G$18)*(90/$G$18))))*$K$23*(1-(SQRT(2)*Vin_rms_min*(SIN($Q90)/Vout)))))) -> 0.4054930796 | W90: =(L$5*((90/$G$18)*(90/$G$18))/2)*(1+(SQRT(1+(4/(L$5*((90/$G$18)*(90/$G$18))))*$L$23*(1-(SQRT(2)*Vin_rms_min*(SIN($Q90)/Vout)))))) -> 0.5406574394 | Y90: =R90*ABS(1/(Vout/(SQRT(2)*$C$25*SIN($Q90)))) -> 0.06613253832 | Z90: =S90*ABS(1/(Vout/(SQRT(2)*$C$25*SIN($Q90)))) -> 0.06447488217 | AA90: =T90*ABS(1/(Vout/(SQRT(2)*$C$25*SIN($Q90)))) -> 0.06346197489 | AB90: =U90*ABS(1/(Vout/(SQRT(2)*$C$25*SIN($Q90)))) -> 0.06262937064 | AC90: =V90*ABS(1/(Vout/(SQRT(2)*$C$25*SIN($Q90)))) -> 0.09394405596 | AD90: =W90*ABS(1/(Vout/(SQRT(2)*$C$25*SIN($Q90)))) -> 0.1252587413 | AF90: =1/(0.0000128*(R90+Y90+$G$23)) -> 40237.80466 | AG90: =1/(0.0000128*(S90+Z90+$H$23)) -> 85591.16626 | AH90: =1/(0.0000128*(T90+AA90+$I$23)) -> 111070.1212 | AI90: =1/(0.0000128*(U90+AB90+$J$23)) -> 234639.1401 | AJ90: =1/(0.0000128*(V90+AC90+$K$23)) -> 156426.0934 | AK90: =1/(0.0000128*(W90+AD90+$L$23)) -> 117319.57
Q91: =Q90+0.01 -> 0.85 | R91: =(G$5*((90/$G$18)*(90/$G$18))/2)*(1+(SQRT(1+(4/(G$5*((90/$G$18)*(90/$G$18))))*$G$23*(1-(SQRT(2)*Vin_rms_min*(SIN($Q91)/Vout)))))) -> 0.285105825 | S91: =(H$5*((90/$G$18)*(90/$G$18))/2)*(1+(SQRT(1+(4/(H$5*((90/$G$18)*(90/$G$18))))*$H$23*(1-(SQRT(2)*Vin_rms_min*(SIN($Q91)/Vout)))))) -> 0.2780105535 | T91: =(I$5*((90/$G$18)*(90/$G$18))/2)*(1+(SQRT(1+(4/(I$5*((90/$G$18)*(90/$G$18))))*$I$23*(1-(SQRT(2)*Vin_rms_min*(SIN($Q91)/Vout)))))) -> 0.2736748148 | U91: =(J$5*((90/$G$18)*(90/$G$18))/2)*(1+(SQRT(1+(4/(J$5*((90/$G$18)*(90/$G$18))))*$J$23*(1-(SQRT(2)*Vin_rms_min*(SIN($Q91)/Vout)))))) -> 0.2703287197 | V91: =(K$5*((90/$G$18)*(90/$G$18))/2)*(1+(SQRT(1+(4/(K$5*((90/$G$18)*(90/$G$18))))*$K$23*(1-(SQRT(2)*Vin_rms_min*(SIN($Q91)/Vout)))))) -> 0.4054930796 | W91: =(L$5*((90/$G$18)*(90/$G$18))/2)*(1+(SQRT(1+(4/(L$5*((90/$G$18)*(90/$G$18))))*$L$23*(1-(SQRT(2)*Vin_rms_min*(SIN($Q91)/Vout)))))) -> 0.5406574394 | Y91: =R91*ABS(1/(Vout/(SQRT(2)*$C$25*SIN($Q91)))) -> 0.06664166374 | Z91: =S91*ABS(1/(Vout/(SQRT(2)*$C$25*SIN($Q91)))) -> 0.06498318938 | AA91: =T91*ABS(1/(Vout/(SQRT(2)*$C$25*SIN($Q91)))) -> 0.06396973819 | AB91: =U91*ABS(1/(Vout/(SQRT(2)*$C$25*SIN($Q91)))) -> 0.06318760986 | AC91: =V91*ABS(1/(Vout/(SQRT(2)*$C$25*SIN($Q91)))) -> 0.09478141478 | AD91: =W91*ABS(1/(Vout/(SQRT(2)*$C$25*SIN($Q91)))) -> 0.1263752197 | AF91: =1/(0.0000128*(R91+Y91+$G$23)) -> 40234.37674 | AG91: =1/(0.0000128*(S91+Z91+$H$23)) -> 85570.13738 | AH91: =1/(0.0000128*(T91+AA91+$I$23)) -> 111029.0695 | AI91: =1/(0.0000128*(U91+AB91+$J$23)) -> 234246.4014 | AJ91: =1/(0.0000128*(V91+AC91+$K$23)) -> 156164.2676 | AK91: =1/(0.0000128*(W91+AD91+$L$23)) -> 117123.2007
A92: BRIDGE RECTIFIER: | Q92: =Q91+0.01 -> 0.86 | R92: =(G$5*((90/$G$18)*(90/$G$18))/2)*(1+(SQRT(1+(4/(G$5*((90/$G$18)*(90/$G$18))))*$G$23*(1-(SQRT(2)*Vin_rms_min*(SIN($Q92)/Vout)))))) -> 0.2847655598 | S92: =(H$5*((90/$G$18)*(90/$G$18))/2)*(1+(SQRT(1+(4/(H$5*((90/$G$18)*(90/$G$18))))*$H$23*(1-(SQRT(2)*Vin_rms_min*(SIN($Q92)/Vout)))))) -> 0.2777294197 | T92: =(I$5*((90/$G$18)*(90/$G$18))/2)*(1+(SQRT(1+(4/(I$5*((90/$G$18)*(90/$G$18))))*$I$23*(1-(SQRT(2)*Vin_rms_min*(SIN($Q92)/Vout)))))) -> 0.27342963 | U92: =(J$5*((90/$G$18)*(90/$G$18))/2)*(1+(SQRT(1+(4/(J$5*((90/$G$18)*(90/$G$18))))*$J$23*(1-(SQRT(2)*Vin_rms_min*(SIN($Q92)/Vout)))))) -> 0.2703287197 | V92: =(K$5*((90/$G$18)*(90/$G$18))/2)*(1+(SQRT(1+(4/(K$5*((90/$G$18)*(90/$G$18))))*$K$23*(1-(SQRT(2)*Vin_rms_min*(SIN($Q92)/Vout)))))) -> 0.4054930796 | W92: =(L$5*((90/$G$18)*(90/$G$18))/2)*(1+(SQRT(1+(4/(L$5*((90/$G$18)*(90/$G$18))))*$L$23*(1-(SQRT(2)*Vin_rms_min*(SIN($Q92)/Vout)))))) -> 0.5406574394 | Y92: =R92*ABS(1/(Vout/(SQRT(2)*$C$25*SIN($Q92)))) -> 0.06714352462 | Z92: =S92*ABS(1/(Vout/(SQRT(2)*$C$25*SIN($Q92)))) -> 0.06548450641 | AA92: =T92*ABS(1/(Vout/(SQRT(2)*$C$25*SIN($Q92)))) -> 0.06447067933 | AB92: =U92*ABS(1/(Vout/(SQRT(2)*$C$25*SIN($Q92)))) -> 0.06373953037 | AC92: =V92*ABS(1/(Vout/(SQRT(2)*$C$25*SIN($Q92)))) -> 0.09560929555 | AD92: =W92*ABS(1/(Vout/(SQRT(2)*$C$25*SIN($Q92)))) -> 0.1274790607 | AF92: =1/(0.0000128*(R92+Y92+$G$23)) -> 40231.02864 | AG92: =1/(0.0000128*(S92+Z92+$H$23)) -> 85549.50573 | AH92: =1/(0.0000128*(T92+AA92+$I$23)) -> 110988.728 | AI92: =1/(0.0000128*(U92+AB92+$J$23)) -> 233859.3984 | AJ92: =1/(0.0000128*(V92+AC92+$K$23)) -> 155906.2656 | AK92: =1/(0.0000128*(W92+AD92+$L$23)) -> 116929.6992
A93: Bridge Rectifier Forward Voltage, at IIN_PEAK(max): | B93: VF_BRIDGE | C93: 1 | D93: V | Q93: =Q92+0.01 -> 0.87 | R93: =(G$5*((90/$G$18)*(90/$G$18))/2)*(1+(SQRT(1+(4/(G$5*((90/$G$18)*(90/$G$18))))*$G$23*(1-(SQRT(2)*Vin_rms_min*(SIN($Q93)/Vout)))))) -> 0.2844287821 | S93: =(H$5*((90/$G$18)*(90/$G$18))/2)*(1+(SQRT(1+(4/(H$5*((90/$G$18)*(90/$G$18))))*$H$23*(1-(SQRT(2)*Vin_rms_min*(SIN($Q93)/Vout)))))) -> 0.2774511849 | T93: =(I$5*((90/$G$18)*(90/$G$18))/2)*(1+(SQRT(1+(4/(I$5*((90/$G$18)*(90/$G$18))))*$I$23*(1-(SQRT(2)*Vin_rms_min*(SIN($Q93)/Vout)))))) -> 0.2731869894 | U93: =(J$5*((90/$G$18)*(90/$G$18))/2)*(1+(SQRT(1+(4/(J$5*((90/$G$18)*(90/$G$18))))*$J$23*(1-(SQRT(2)*Vin_rms_min*(SIN($Q93)/Vout)))))) -> 0.2703287197 | V93: =(K$5*((90/$G$18)*(90/$G$18))/2)*(1+(SQRT(1+(4/(K$5*((90/$G$18)*(90/$G$18))))*$K$23*(1-(SQRT(2)*Vin_rms_min*(SIN($Q93)/Vout)))))) -> 0.4054930796 | W93: =(L$5*((90/$G$18)*(90/$G$18))/2)*(1+(SQRT(1+(4/(L$5*((90/$G$18)*(90/$G$18))))*$L$23*(1-(SQRT(2)*Vin_rms_min*(SIN($Q93)/Vout)))))) -> 0.5406574394 | Y93: =R93*ABS(1/(Vout/(SQRT(2)*$C$25*SIN($Q93)))) -> 0.06763811914 | Z93: =S93*ABS(1/(Vout/(SQRT(2)*$C$25*SIN($Q93)))) -> 0.06597882309 | AA93: =T93*ABS(1/(Vout/(SQRT(2)*$C$25*SIN($Q93)))) -> 0.06496478309 | AB93: =U93*ABS(1/(Vout/(SQRT(2)*$C$25*SIN($Q93)))) -> 0.06428507698 | AC93: =V93*ABS(1/(Vout/(SQRT(2)*$C$25*SIN($Q93)))) -> 0.09642761546 | AD93: =W93*ABS(1/(Vout/(SQRT(2)*$C$25*SIN($Q93)))) -> 0.128570154 | AF93: =1/(0.0000128*(R93+Y93+$G$23)) -> 40227.75938 | AG93: =1/(0.0000128*(S93+Z93+$H$23)) -> 85529.26805 | AH93: =1/(0.0000128*(T93+AA93+$I$23)) -> 110949.0923 | AI93: =1/(0.0000128*(U93+AB93+$J$23)) -> 233478.1195 | AJ93: =1/(0.0000128*(V93+AC93+$K$23)) -> 155652.0796 | AK93: =1/(0.0000128*(W93+AD93+$L$23)) -> 116739.0597
A94: Bridge Rectifier Thermal Resistance, Junction to Case: | B94: RqJC(Bridge) | C94: 2.2 | D94: °C/W | Q94: =Q93+0.01 -> 0.88 | R94: =(G$5*((90/$G$18)*(90/$G$18))/2)*(1+(SQRT(1+(4/(G$5*((90/$G$18)*(90/$G$18))))*$G$23*(1-(SQRT(2)*Vin_rms_min*(SIN($Q94)/Vout)))))) -> 0.2840955394 | S94: =(H$5*((90/$G$18)*(90/$G$18))/2)*(1+(SQRT(1+(4/(H$5*((90/$G$18)*(90/$G$18))))*$H$23*(1-(SQRT(2)*Vin_rms_min*(SIN($Q94)/Vout)))))) -> 0.2771758878 | T94: =(I$5*((90/$G$18)*(90/$G$18))/2)*(1+(SQRT(1+(4/(I$5*((90/$G$18)*(90/$G$18))))*$I$23*(1-(SQRT(2)*Vin_rms_min*(SIN($Q94)/Vout)))))) -> 0.2729469263 | U94: =(J$5*((90/$G$18)*(90/$G$18))/2)*(1+(SQRT(1+(4/(J$5*((90/$G$18)*(90/$G$18))))*$J$23*(1-(SQRT(2)*Vin_rms_min*(SIN($Q94)/Vout)))))) -> 0.2703287197 | V94: =(K$5*((90/$G$18)*(90/$G$18))/2)*(1+(SQRT(1+(4/(K$5*((90/$G$18)*(90/$G$18))))*$K$23*(1-(SQRT(2)*Vin_rms_min*(SIN($Q94)/Vout)))))) -> 0.4054930796 | W94: =(L$5*((90/$G$18)*(90/$G$18))/2)*(1+(SQRT(1+(4/(L$5*((90/$G$18)*(90/$G$18))))*$L$23*(1-(SQRT(2)*Vin_rms_min*(SIN($Q94)/Vout)))))) -> 0.5406574394 | Y94: =R94*ABS(1/(Vout/(SQRT(2)*$C$25*SIN($Q94)))) -> 0.06812544631 | Z94: =S94*ABS(1/(Vout/(SQRT(2)*$C$25*SIN($Q94)))) -> 0.06646613002 | AA94: =T94*ABS(1/(Vout/(SQRT(2)*$C$25*SIN($Q94)))) -> 0.06545203494 | AB94: =U94*ABS(1/(Vout/(SQRT(2)*$C$25*SIN($Q94)))) -> 0.06482419513 | AC94: =V94*ABS(1/(Vout/(SQRT(2)*$C$25*SIN($Q94)))) -> 0.0972362927 | AD94: =W94*ABS(1/(Vout/(SQRT(2)*$C$25*SIN($Q94)))) -> 0.1296483903 | AF94: =1/(0.0000128*(R94+Y94+$G$23)) -> 40224.56794 | AG94: =1/(0.0000128*(S94+Z94+$H$23)) -> 85509.42106 | AH94: =1/(0.0000128*(T94+AA94+$I$23)) -> 110910.1579 | AI94: =1/(0.0000128*(U94+AB94+$J$23)) -> 233102.5527 | AJ94: =1/(0.0000128*(V94+AC94+$K$23)) -> 155401.7018 | AK94: =1/(0.0000128*(W94+AD94+$L$23)) -> 116551.2764
A95: Case to Heatsink Thermal Resistance: | B95: RθCHS(Bridge) | C95: 0.61 | D95: °C/W | Q95: =Q94+0.01 -> 0.89 | R95: =(G$5*((90/$G$18)*(90/$G$18))/2)*(1+(SQRT(1+(4/(G$5*((90/$G$18)*(90/$G$18))))*$G$23*(1-(SQRT(2)*Vin_rms_min*(SIN($Q95)/Vout)))))) -> 0.2837658788 | S95: =(H$5*((90/$G$18)*(90/$G$18))/2)*(1+(SQRT(1+(4/(H$5*((90/$G$18)*(90/$G$18))))*$H$23*(1-(SQRT(2)*Vin_rms_min*(SIN($Q95)/Vout)))))) -> 0.2769035668 | T95: =(I$5*((90/$G$18)*(90/$G$18))/2)*(1+(SQRT(1+(4/(I$5*((90/$G$18)*(90/$G$18))))*$I$23*(1-(SQRT(2)*Vin_rms_min*(SIN($Q95)/Vout)))))) -> 0.2727094738 | U95: =(J$5*((90/$G$18)*(90/$G$18))/2)*(1+(SQRT(1+(4/(J$5*((90/$G$18)*(90/$G$18))))*$J$23*(1-(SQRT(2)*Vin_rms_min*(SIN($Q95)/Vout)))))) -> 0.2703287197 | V95: =(K$5*((90/$G$18)*(90/$G$18))/2)*(1+(SQRT(1+(4/(K$5*((90/$G$18)*(90/$G$18))))*$K$23*(1-(SQRT(2)*Vin_rms_min*(SIN($Q95)/Vout)))))) -> 0.4054930796 | W95: =(L$5*((90/$G$18)*(90/$G$18))/2)*(1+(SQRT(1+(4/(L$5*((90/$G$18)*(90/$G$18))))*$L$23*(1-(SQRT(2)*Vin_rms_min*(SIN($Q95)/Vout)))))) -> 0.5406574394 | Y95: =R95*ABS(1/(Vout/(SQRT(2)*$C$25*SIN($Q95)))) -> 0.06860550585 | Z95: =S95*ABS(1/(Vout/(SQRT(2)*$C$25*SIN($Q95)))) -> 0.06694641849 | AA95: =T95*ABS(1/(Vout/(SQRT(2)*$C$25*SIN($Q95)))) -> 0.06593242105 | AB95: =U95*ABS(1/(Vout/(SQRT(2)*$C$25*SIN($Q95)))) -> 0.06535683092 | AC95: =V95*ABS(1/(Vout/(SQRT(2)*$C$25*SIN($Q95)))) -> 0.09803524638 | AD95: =W95*ABS(1/(Vout/(SQRT(2)*$C$25*SIN($Q95)))) -> 0.1307136618 | AF95: =1/(0.0000128*(R95+Y95+$G$23)) -> 40221.45333 | AG95: =1/(0.0000128*(S95+Z95+$H$23)) -> 85489.96143 | AH95: =1/(0.0000128*(T95+AA95+$I$23)) -> 110871.9203 | AI95: =1/(0.0000128*(U95+AB95+$J$23)) -> 232732.6864 | AJ95: =1/(0.0000128*(V95+AC95+$K$23)) -> 155155.1243 | AK95: =1/(0.0000128*(W95+AD95+$L$23)) -> 116366.3432
A96: Bridge Rectifier Maximum Junction Temperature: | B96: TJ(max) | C96: 125 | D96: °C | Q96: =Q95+0.01 -> 0.9 | R96: =(G$5*((90/$G$18)*(90/$G$18))/2)*(1+(SQRT(1+(4/(G$5*((90/$G$18)*(90/$G$18))))*$G$23*(1-(SQRT(2)*Vin_rms_min*(SIN($Q96)/Vout)))))) -> 0.2834398472 | S96: =(H$5*((90/$G$18)*(90/$G$18))/2)*(1+(SQRT(1+(4/(H$5*((90/$G$18)*(90/$G$18))))*$H$23*(1-(SQRT(2)*Vin_rms_min*(SIN($Q96)/Vout)))))) -> 0.2766342603 | T96: =(I$5*((90/$G$18)*(90/$G$18))/2)*(1+(SQRT(1+(4/(I$5*((90/$G$18)*(90/$G$18))))*$I$23*(1-(SQRT(2)*Vin_rms_min*(SIN($Q96)/Vout)))))) -> 0.2724746648 | U96: =(J$5*((90/$G$18)*(90/$G$18))/2)*(1+(SQRT(1+(4/(J$5*((90/$G$18)*(90/$G$18))))*$J$23*(1-(SQRT(2)*Vin_rms_min*(SIN($Q96)/Vout)))))) -> 0.2703287197 | V96: =(K$5*((90/$G$18)*(90/$G$18))/2)*(1+(SQRT(1+(4/(K$5*((90/$G$18)*(90/$G$18))))*$K$23*(1-(SQRT(2)*Vin_rms_min*(SIN($Q96)/Vout)))))) -> 0.4054930796 | W96: =(L$5*((90/$G$18)*(90/$G$18))/2)*(1+(SQRT(1+(4/(L$5*((90/$G$18)*(90/$G$18))))*$L$23*(1-(SQRT(2)*Vin_rms_min*(SIN($Q96)/Vout)))))) -> 0.5406574394 | Y96: =R96*ABS(1/(Vout/(SQRT(2)*$C$25*SIN($Q96)))) -> 0.06907829823 | Z96: =S96*ABS(1/(Vout/(SQRT(2)*$C$25*SIN($Q96)))) -> 0.06741968048 | AA96: =T96*ABS(1/(Vout/(SQRT(2)*$C$25*SIN($Q96)))) -> 0.06640592824 | AB96: =U96*ABS(1/(Vout/(SQRT(2)*$C$25*SIN($Q96)))) -> 0.06588293108 | AC96: =V96*ABS(1/(Vout/(SQRT(2)*$C$25*SIN($Q96)))) -> 0.09882439662 | AD96: =W96*ABS(1/(Vout/(SQRT(2)*$C$25*SIN($Q96)))) -> 0.1317658622 | AF96: =1/(0.0000128*(R96+Y96+$G$23)) -> 40218.41453 | AG96: =1/(0.0000128*(S96+Z96+$H$23)) -> 85470.88581 | AH96: =1/(0.0000128*(T96+AA96+$I$23)) -> 110834.375 | AI96: =1/(0.0000128*(U96+AB96+$J$23)) -> 232368.509 | AJ96: =1/(0.0000128*(V96+AC96+$K$23)) -> 154912.3393 | AK96: =1/(0.0000128*(W96+AD96+$L$23)) -> 116184.2545
A97: Bridge Rectifier Minimum Average Current Rating: | B97: IBRIDGE(rated) | C97: =1.5*Iin_avg_max -> 0.6813764388 | D97: A | Q97: =Q96+0.01 -> 0.91 | R97: =(G$5*((90/$G$18)*(90/$G$18))/2)*(1+(SQRT(1+(4/(G$5*((90/$G$18)*(90/$G$18))))*$G$23*(1-(SQRT(2)*Vin_rms_min*(SIN($Q97)/Vout)))))) -> 0.2831174911 | S97: =(H$5*((90/$G$18)*(90/$G$18))/2)*(1+(SQRT(1+(4/(H$5*((90/$G$18)*(90/$G$18))))*$H$23*(1-(SQRT(2)*Vin_rms_min*(SIN($Q97)/Vout)))))) -> 0.2763680061 | T97: =(I$5*((90/$G$18)*(90/$G$18))/2)*(1+(SQRT(1+(4/(I$5*((90/$G$18)*(90/$G$18))))*$I$23*(1-(SQRT(2)*Vin_rms_min*(SIN($Q97)/Vout)))))) -> 0.2722425319 | U97: =(J$5*((90/$G$18)*(90/$G$18))/2)*(1+(SQRT(1+(4/(J$5*((90/$G$18)*(90/$G$18))))*$J$23*(1-(SQRT(2)*Vin_rms_min*(SIN($Q97)/Vout)))))) -> 0.2703287197 | V97: =(K$5*((90/$G$18)*(90/$G$18))/2)*(1+(SQRT(1+(4/(K$5*((90/$G$18)*(90/$G$18))))*$K$23*(1-(SQRT(2)*Vin_rms_min*(SIN($Q97)/Vout)))))) -> 0.4054930796 | W97: =(L$5*((90/$G$18)*(90/$G$18))/2)*(1+(SQRT(1+(4/(L$5*((90/$G$18)*(90/$G$18))))*$L$23*(1-(SQRT(2)*Vin_rms_min*(SIN($Q97)/Vout)))))) -> 0.5406574394 | Y97: =R97*ABS(1/(Vout/(SQRT(2)*$C$25*SIN($Q97)))) -> 0.0695438246 | Z97: =S97*ABS(1/(Vout/(SQRT(2)*$C$25*SIN($Q97)))) -> 0.06788590865 | AA97: =T97*ABS(1/(Vout/(SQRT(2)*$C$25*SIN($Q97)))) -> 0.06687254402 | AB97: =U97*ABS(1/(Vout/(SQRT(2)*$C$25*SIN($Q97)))) -> 0.06640244301 | AC97: =V97*ABS(1/(Vout/(SQRT(2)*$C$25*SIN($Q97)))) -> 0.09960366451 | AD97: =W97*ABS(1/(Vout/(SQRT(2)*$C$25*SIN($Q97)))) -> 0.132804886 | AF97: =1/(0.0000128*(R97+Y97+$G$23)) -> 40215.45051 | AG97: =1/(0.0000128*(S97+Z97+$H$23)) -> 85452.19084 | AH97: =1/(0.0000128*(T97+AA97+$I$23)) -> 110797.5175 | AI97: =1/(0.0000128*(U97+AB97+$J$23)) -> 232010.0087 | AJ97: =1/(0.0000128*(V97+AC97+$K$23)) -> 154673.3391 | AK97: =1/(0.0000128*(W97+AD97+$L$23)) -> 116005.0044
A98: Bridge Rectifier Minimum DC Blocking Voltage Rating: | B98: VDC_BLOCKING(rated) | C98: =Vin_pk_max*1.25 -> 229.8097039 | D98: V | Q98: =Q97+0.01 -> 0.92 | R98: =(G$5*((90/$G$18)*(90/$G$18))/2)*(1+(SQRT(1+(4/(G$5*((90/$G$18)*(90/$G$18))))*$G$23*(1-(SQRT(2)*Vin_rms_min*(SIN($Q98)/Vout)))))) -> 0.2827988567 | S98: =(H$5*((90/$G$18)*(90/$G$18))/2)*(1+(SQRT(1+(4/(H$5*((90/$G$18)*(90/$G$18))))*$H$23*(1-(SQRT(2)*Vin_rms_min*(SIN($Q98)/Vout)))))) -> 0.2761048419 | T98: =(I$5*((90/$G$18)*(90/$G$18))/2)*(1+(SQRT(1+(4/(I$5*((90/$G$18)*(90/$G$18))))*$I$23*(1-(SQRT(2)*Vin_rms_min*(SIN($Q98)/Vout)))))) -> 0.2720131075 | U98: =(J$5*((90/$G$18)*(90/$G$18))/2)*(1+(SQRT(1+(4/(J$5*((90/$G$18)*(90/$G$18))))*$J$23*(1-(SQRT(2)*Vin_rms_min*(SIN($Q98)/Vout)))))) -> 0.2703287197 | V98: =(K$5*((90/$G$18)*(90/$G$18))/2)*(1+(SQRT(1+(4/(K$5*((90/$G$18)*(90/$G$18))))*$K$23*(1-(SQRT(2)*Vin_rms_min*(SIN($Q98)/Vout)))))) -> 0.4054930796 | W98: =(L$5*((90/$G$18)*(90/$G$18))/2)*(1+(SQRT(1+(4/(L$5*((90/$G$18)*(90/$G$18))))*$L$23*(1-(SQRT(2)*Vin_rms_min*(SIN($Q98)/Vout)))))) -> 0.5406574394 | Y98: =R98*ABS(1/(Vout/(SQRT(2)*$C$25*SIN($Q98)))) -> 0.07000208681 | Z98: =S98*ABS(1/(Vout/(SQRT(2)*$C$25*SIN($Q98)))) -> 0.06834509635 | AA98: =T98*ABS(1/(Vout/(SQRT(2)*$C$25*SIN($Q98)))) -> 0.06733225653 | AB98: =U98*ABS(1/(Vout/(SQRT(2)*$C$25*SIN($Q98)))) -> 0.06691531474 | AC98: =V98*ABS(1/(Vout/(SQRT(2)*$C$25*SIN($Q98)))) -> 0.1003729721 | AD98: =W98*ABS(1/(Vout/(SQRT(2)*$C$25*SIN($Q98)))) -> 0.1338306295 | AF98: =1/(0.0000128*(R98+Y98+$G$23)) -> 40212.56025 | AG98: =1/(0.0000128*(S98+Z98+$H$23)) -> 85433.87312 | AH98: =1/(0.0000128*(T98+AA98+$I$23)) -> 110761.3433 | AI98: =1/(0.0000128*(U98+AB98+$J$23)) -> 231657.1741 | AJ98: =1/(0.0000128*(V98+AC98+$K$23)) -> 154438.1161 | AK98: =1/(0.0000128*(W98+AD98+$L$23)) -> 115828.587
A99: Bridge Rectifier Power Dissipation: | B99: PBRIDGE | C99: =2*Vf_bridge*Iin_avg_max -> 0.9085019184 | D99: W | Q99: =Q98+0.01 -> 0.93 | R99: =(G$5*((90/$G$18)*(90/$G$18))/2)*(1+(SQRT(1+(4/(G$5*((90/$G$18)*(90/$G$18))))*$G$23*(1-(SQRT(2)*Vin_rms_min*(SIN($Q99)/Vout)))))) -> 0.2824839899 | S99: =(H$5*((90/$G$18)*(90/$G$18))/2)*(1+(SQRT(1+(4/(H$5*((90/$G$18)*(90/$G$18))))*$H$23*(1-(SQRT(2)*Vin_rms_min*(SIN($Q99)/Vout)))))) -> 0.275844805 | T99: =(I$5*((90/$G$18)*(90/$G$18))/2)*(1+(SQRT(1+(4/(I$5*((90/$G$18)*(90/$G$18))))*$I$23*(1-(SQRT(2)*Vin_rms_min*(SIN($Q99)/Vout)))))) -> 0.2717864237 | U99: =(J$5*((90/$G$18)*(90/$G$18))/2)*(1+(SQRT(1+(4/(J$5*((90/$G$18)*(90/$G$18))))*$J$23*(1-(SQRT(2)*Vin_rms_min*(SIN($Q99)/Vout)))))) -> 0.2703287197 | V99: =(K$5*((90/$G$18)*(90/$G$18))/2)*(1+(SQRT(1+(4/(K$5*((90/$G$18)*(90/$G$18))))*$K$23*(1-(SQRT(2)*Vin_rms_min*(SIN($Q99)/Vout)))))) -> 0.4054930796 | W99: =(L$5*((90/$G$18)*(90/$G$18))/2)*(1+(SQRT(1+(4/(L$5*((90/$G$18)*(90/$G$18))))*$L$23*(1-(SQRT(2)*Vin_rms_min*(SIN($Q99)/Vout)))))) -> 0.5406574394 | Y99: =R99*ABS(1/(Vout/(SQRT(2)*$C$25*SIN($Q99)))) -> 0.07045308737 | Z99: =S99*ABS(1/(Vout/(SQRT(2)*$C$25*SIN($Q99)))) -> 0.06879723752 | AA99: =T99*ABS(1/(Vout/(SQRT(2)*$C$25*SIN($Q99)))) -> 0.06778505452 | AB99: =U99*ABS(1/(Vout/(SQRT(2)*$C$25*SIN($Q99)))) -> 0.067421495 | AC99: =V99*ABS(1/(Vout/(SQRT(2)*$C$25*SIN($Q99)))) -> 0.1011322425 | AD99: =W99*ABS(1/(Vout/(SQRT(2)*$C$25*SIN($Q99)))) -> 0.13484299 | AF99: =1/(0.0000128*(R99+Y99+$G$23)) -> 40209.74272 | AG99: =1/(0.0000128*(S99+Z99+$H$23)) -> 85415.92926 | AH99: =1/(0.0000128*(T99+AA99+$I$23)) -> 110725.8476 | AI99: =1/(0.0000128*(U99+AB99+$J$23)) -> 231309.9936 | AJ99: =1/(0.0000128*(V99+AC99+$K$23)) -> 154206.6624 | AK99: =1/(0.0000128*(W99+AD99+$L$23)) -> 115654.9968
A100: Required Heat Sink Thermal Impedance: | B100: RqHS_AMB(Bridge) | C100: =((Tj_bridge-Tamb)/Pbridge)-Rjc_bridge-Rchs_bridge -> 79.74348555 | D100: °C/W | Q100: =Q99+0.01 -> 0.94 | R100: =(G$5*((90/$G$18)*(90/$G$18))/2)*(1+(SQRT(1+(4/(G$5*((90/$G$18)*(90/$G$18))))*$G$23*(1-(SQRT(2)*Vin_rms_min*(SIN($Q100)/Vout)))))) -> 0.282172936 | S100: =(H$5*((90/$G$18)*(90/$G$18))/2)*(1+(SQRT(1+(4/(H$5*((90/$G$18)*(90/$G$18))))*$H$23*(1-(SQRT(2)*Vin_rms_min*(SIN($Q100)/Vout)))))) -> 0.2755879325 | T100: =(I$5*((90/$G$18)*(90/$G$18))/2)*(1+(SQRT(1+(4/(I$5*((90/$G$18)*(90/$G$18))))*$I$23*(1-(SQRT(2)*Vin_rms_min*(SIN($Q100)/Vout)))))) -> 0.2715625123 | U100: =(J$5*((90/$G$18)*(90/$G$18))/2)*(1+(SQRT(1+(4/(J$5*((90/$G$18)*(90/$G$18))))*$J$23*(1-(SQRT(2)*Vin_rms_min*(SIN($Q100)/Vout)))))) -> 0.2703287197 | V100: =(K$5*((90/$G$18)*(90/$G$18))/2)*(1+(SQRT(1+(4/(K$5*((90/$G$18)*(90/$G$18))))*$K$23*(1-(SQRT(2)*Vin_rms_min*(SIN($Q100)/Vout)))))) -> 0.4054930796 | W100: =(L$5*((90/$G$18)*(90/$G$18))/2)*(1+(SQRT(1+(4/(L$5*((90/$G$18)*(90/$G$18))))*$L$23*(1-(SQRT(2)*Vin_rms_min*(SIN($Q100)/Vout)))))) -> 0.5406574394 | Y100: =R100*ABS(1/(Vout/(SQRT(2)*$C$25*SIN($Q100)))) -> 0.07089682942 | Z100: =S100*ABS(1/(Vout/(SQRT(2)*$C$25*SIN($Q100)))) -> 0.06924232675 | AA100: =T100*ABS(1/(Vout/(SQRT(2)*$C$25*SIN($Q100)))) -> 0.06823092739 | AB100: =U100*ABS(1/(Vout/(SQRT(2)*$C$25*SIN($Q100)))) -> 0.06792093316 | AC100: =V100*ABS(1/(Vout/(SQRT(2)*$C$25*SIN($Q100)))) -> 0.1018813997 | AD100: =W100*ABS(1/(Vout/(SQRT(2)*$C$25*SIN($Q100)))) -> 0.1358418663 | AF100: =1/(0.0000128*(R100+Y100+$G$23)) -> 40206.99688 | AG100: =1/(0.0000128*(S100+Z100+$H$23)) -> 85398.35583 | AH100: =1/(0.0000128*(T100+AA100+$I$23)) -> 110691.026 | AI100: =1/(0.0000128*(U100+AB100+$J$23)) -> 230968.4558 | AJ100: =1/(0.0000128*(V100+AC100+$K$23)) -> 153978.9705 | AK100: =1/(0.0000128*(W100+AD100+$L$23)) -> 115484.2279
Q101: =Q100+0.01 -> 0.95 | R101: =(G$5*((90/$G$18)*(90/$G$18))/2)*(1+(SQRT(1+(4/(G$5*((90/$G$18)*(90/$G$18))))*$G$23*(1-(SQRT(2)*Vin_rms_min*(SIN($Q101)/Vout)))))) -> 0.2818657404 | S101: =(H$5*((90/$G$18)*(90/$G$18))/2)*(1+(SQRT(1+(4/(H$5*((90/$G$18)*(90/$G$18))))*$H$23*(1-(SQRT(2)*Vin_rms_min*(SIN($Q101)/Vout)))))) -> 0.2753342611 | T101: =(I$5*((90/$G$18)*(90/$G$18))/2)*(1+(SQRT(1+(4/(I$5*((90/$G$18)*(90/$G$18))))*$I$23*(1-(SQRT(2)*Vin_rms_min*(SIN($Q101)/Vout)))))) -> 0.2713414049 | U101: =(J$5*((90/$G$18)*(90/$G$18))/2)*(1+(SQRT(1+(4/(J$5*((90/$G$18)*(90/$G$18))))*$J$23*(1-(SQRT(2)*Vin_rms_min*(SIN($Q101)/Vout)))))) -> 0.2703287197 | V101: =(K$5*((90/$G$18)*(90/$G$18))/2)*(1+(SQRT(1+(4/(K$5*((90/$G$18)*(90/$G$18))))*$K$23*(1-(SQRT(2)*Vin_rms_min*(SIN($Q101)/Vout)))))) -> 0.4054930796 | W101: =(L$5*((90/$G$18)*(90/$G$18))/2)*(1+(SQRT(1+(4/(L$5*((90/$G$18)*(90/$G$18))))*$L$23*(1-(SQRT(2)*Vin_rms_min*(SIN($Q101)/Vout)))))) -> 0.5406574394 | Y101: =R101*ABS(1/(Vout/(SQRT(2)*$C$25*SIN($Q101)))) -> 0.07133331671 | Z101: =S101*ABS(1/(Vout/(SQRT(2)*$C$25*SIN($Q101)))) -> 0.06968035924 | AA101: =T101*ABS(1/(Vout/(SQRT(2)*$C$25*SIN($Q101)))) -> 0.0686698651 | AB101: =U101*ABS(1/(Vout/(SQRT(2)*$C$25*SIN($Q101)))) -> 0.06841357929 | AC101: =V101*ABS(1/(Vout/(SQRT(2)*$C$25*SIN($Q101)))) -> 0.1026203689 | AD101: =W101*ABS(1/(Vout/(SQRT(2)*$C$25*SIN($Q101)))) -> 0.1368271586 | AF101: =1/(0.0000128*(R101+Y101+$G$23)) -> 40204.32169 | AG101: =1/(0.0000128*(S101+Z101+$H$23)) -> 85381.1494 | AH101: =1/(0.0000128*(T101+AA101+$I$23)) -> 110656.8738 | AI101: =1/(0.0000128*(U101+AB101+$J$23)) -> 230632.5494 | AJ101: =1/(0.0000128*(V101+AC101+$K$23)) -> 153755.0329 | AK101: =1/(0.0000128*(W101+AD101+$L$23)) -> 115316.2747
Q102: =Q101+0.01 -> 0.96 | R102: =(G$5*((90/$G$18)*(90/$G$18))/2)*(1+(SQRT(1+(4/(G$5*((90/$G$18)*(90/$G$18))))*$G$23*(1-(SQRT(2)*Vin_rms_min*(SIN($Q102)/Vout)))))) -> 0.2815624476 | S102: =(H$5*((90/$G$18)*(90/$G$18))/2)*(1+(SQRT(1+(4/(H$5*((90/$G$18)*(90/$G$18))))*$H$23*(1-(SQRT(2)*Vin_rms_min*(SIN($Q102)/Vout)))))) -> 0.2750838273 | T102: =(I$5*((90/$G$18)*(90/$G$18))/2)*(1+(SQRT(1+(4/(I$5*((90/$G$18)*(90/$G$18))))*$I$23*(1-(SQRT(2)*Vin_rms_min*(SIN($Q102)/Vout)))))) -> 0.2711231327 | U102: =(J$5*((90/$G$18)*(90/$G$18))/2)*(1+(SQRT(1+(4/(J$5*((90/$G$18)*(90/$G$18))))*$J$23*(1-(SQRT(2)*Vin_rms_min*(SIN($Q102)/Vout)))))) -> 0.2703287197 | V102: =(K$5*((90/$G$18)*(90/$G$18))/2)*(1+(SQRT(1+(4/(K$5*((90/$G$18)*(90/$G$18))))*$K$23*(1-(SQRT(2)*Vin_rms_min*(SIN($Q102)/Vout)))))) -> 0.4054930796 | W102: =(L$5*((90/$G$18)*(90/$G$18))/2)*(1+(SQRT(1+(4/(L$5*((90/$G$18)*(90/$G$18))))*$L$23*(1-(SQRT(2)*Vin_rms_min*(SIN($Q102)/Vout)))))) -> 0.5406574394 | Y102: =R102*ABS(1/(Vout/(SQRT(2)*$C$25*SIN($Q102)))) -> 0.07176255358 | Z102: =S102*ABS(1/(Vout/(SQRT(2)*$C$25*SIN($Q102)))) -> 0.07011133077 | AA102: =T102*ABS(1/(Vout/(SQRT(2)*$C$25*SIN($Q102)))) -> 0.06910185823 | AB102: =U102*ABS(1/(Vout/(SQRT(2)*$C$25*SIN($Q102)))) -> 0.06889938412 | AC102: =V102*ABS(1/(Vout/(SQRT(2)*$C$25*SIN($Q102)))) -> 0.1033490762 | AD102: =W102*ABS(1/(Vout/(SQRT(2)*$C$25*SIN($Q102)))) -> 0.1377987682 | AF102: =1/(0.0000128*(R102+Y102+$G$23)) -> 40201.71611 | AG102: =1/(0.0000128*(S102+Z102+$H$23)) -> 85364.30652 | AH102: =1/(0.0000128*(T102+AA102+$I$23)) -> 110623.3863 | AI102: =1/(0.0000128*(U102+AB102+$J$23)) -> 230302.263 | AJ102: =1/(0.0000128*(V102+AC102+$K$23)) -> 153534.842 | AK102: =1/(0.0000128*(W102+AD102+$L$23)) -> 115151.1315
A103: INPUT CAPACITOR: | Q103: =Q102+0.01 -> 0.97 | R103: =(G$5*((90/$G$18)*(90/$G$18))/2)*(1+(SQRT(1+(4/(G$5*((90/$G$18)*(90/$G$18))))*$G$23*(1-(SQRT(2)*Vin_rms_min*(SIN($Q103)/Vout)))))) -> 0.2812631021 | S103: =(H$5*((90/$G$18)*(90/$G$18))/2)*(1+(SQRT(1+(4/(H$5*((90/$G$18)*(90/$G$18))))*$H$23*(1-(SQRT(2)*Vin_rms_min*(SIN($Q103)/Vout)))))) -> 0.2748366673 | T103: =(I$5*((90/$G$18)*(90/$G$18))/2)*(1+(SQRT(1+(4/(I$5*((90/$G$18)*(90/$G$18))))*$I$23*(1-(SQRT(2)*Vin_rms_min*(SIN($Q103)/Vout)))))) -> 0.2709077268 | U103: =(J$5*((90/$G$18)*(90/$G$18))/2)*(1+(SQRT(1+(4/(J$5*((90/$G$18)*(90/$G$18))))*$J$23*(1-(SQRT(2)*Vin_rms_min*(SIN($Q103)/Vout)))))) -> 0.2703287197 | V103: =(K$5*((90/$G$18)*(90/$G$18))/2)*(1+(SQRT(1+(4/(K$5*((90/$G$18)*(90/$G$18))))*$K$23*(1-(SQRT(2)*Vin_rms_min*(SIN($Q103)/Vout)))))) -> 0.4054930796 | W103: =(L$5*((90/$G$18)*(90/$G$18))/2)*(1+(SQRT(1+(4/(L$5*((90/$G$18)*(90/$G$18))))*$L$23*(1-(SQRT(2)*Vin_rms_min*(SIN($Q103)/Vout)))))) -> 0.5406574394 | Y103: =R103*ABS(1/(Vout/(SQRT(2)*$C$25*SIN($Q103)))) -> 0.07218454494 | Z103: =S103*ABS(1/(Vout/(SQRT(2)*$C$25*SIN($Q103)))) -> 0.07053523767 | AA103: =T103*ABS(1/(Vout/(SQRT(2)*$C$25*SIN($Q103)))) -> 0.06952689789 | AB103: =U103*ABS(1/(Vout/(SQRT(2)*$C$25*SIN($Q103)))) -> 0.06937829907 | AC103: =V103*ABS(1/(Vout/(SQRT(2)*$C$25*SIN($Q103)))) -> 0.1040674486 | AD103: =W103*ABS(1/(Vout/(SQRT(2)*$C$25*SIN($Q103)))) -> 0.1387565981 | AF103: =1/(0.0000128*(R103+Y103+$G$23)) -> 40199.17908 | AG103: =1/(0.0000128*(S103+Z103+$H$23)) -> 85347.82374 | AH103: =1/(0.0000128*(T103+AA103+$I$23)) -> 110590.5589 | AI103: =1/(0.0000128*(U103+AB103+$J$23)) -> 229977.5856 | AJ103: =1/(0.0000128*(V103+AC103+$K$23)) -> 153318.3904 | AK103: =1/(0.0000128*(W103+AD103+$L$23)) -> 114988.7928
A104: Maximum High Frequency Voltage Ripple Factor (i.e. 0.03 for 3%, 0.12 for 12%): | B104: VCin_ripple_factor | C104: 0.12 | Q104: =Q103+0.01 -> 0.98 | R104: =(G$5*((90/$G$18)*(90/$G$18))/2)*(1+(SQRT(1+(4/(G$5*((90/$G$18)*(90/$G$18))))*$G$23*(1-(SQRT(2)*Vin_rms_min*(SIN($Q104)/Vout)))))) -> 0.2809677479 | S104: =(H$5*((90/$G$18)*(90/$G$18))/2)*(1+(SQRT(1+(4/(H$5*((90/$G$18)*(90/$G$18))))*$H$23*(1-(SQRT(2)*Vin_rms_min*(SIN($Q104)/Vout)))))) -> 0.2745928166 | T104: =(I$5*((90/$G$18)*(90/$G$18))/2)*(1+(SQRT(1+(4/(I$5*((90/$G$18)*(90/$G$18))))*$I$23*(1-(SQRT(2)*Vin_rms_min*(SIN($Q104)/Vout)))))) -> 0.2706952179 | U104: =(J$5*((90/$G$18)*(90/$G$18))/2)*(1+(SQRT(1+(4/(J$5*((90/$G$18)*(90/$G$18))))*$J$23*(1-(SQRT(2)*Vin_rms_min*(SIN($Q104)/Vout)))))) -> 0.2703287197 | V104: =(K$5*((90/$G$18)*(90/$G$18))/2)*(1+(SQRT(1+(4/(K$5*((90/$G$18)*(90/$G$18))))*$K$23*(1-(SQRT(2)*Vin_rms_min*(SIN($Q104)/Vout)))))) -> 0.4054930796 | W104: =(L$5*((90/$G$18)*(90/$G$18))/2)*(1+(SQRT(1+(4/(L$5*((90/$G$18)*(90/$G$18))))*$L$23*(1-(SQRT(2)*Vin_rms_min*(SIN($Q104)/Vout)))))) -> 0.5406574394 | Y104: =R104*ABS(1/(Vout/(SQRT(2)*$C$25*SIN($Q104)))) -> 0.07259929623 | Z104: =S104*ABS(1/(Vout/(SQRT(2)*$C$25*SIN($Q104)))) -> 0.07095207684 | AA104: =T104*ABS(1/(Vout/(SQRT(2)*$C$25*SIN($Q104)))) -> 0.06994497576 | AB104: =U104*ABS(1/(Vout/(SQRT(2)*$C$25*SIN($Q104)))) -> 0.06985027624 | AC104: =V104*ABS(1/(Vout/(SQRT(2)*$C$25*SIN($Q104)))) -> 0.1047754144 | AD104: =W104*ABS(1/(Vout/(SQRT(2)*$C$25*SIN($Q104)))) -> 0.1397005525 | AF104: =1/(0.0000128*(R104+Y104+$G$23)) -> 40196.70957 | AG104: =1/(0.0000128*(S104+Z104+$H$23)) -> 85331.69761 | AH104: =1/(0.0000128*(T104+AA104+$I$23)) -> 110558.387 | AI104: =1/(0.0000128*(U104+AB104+$J$23)) -> 229658.506 | AJ104: =1/(0.0000128*(V104+AC104+$K$23)) -> 153105.6707 | AK104: =1/(0.0000128*(W104+AD104+$L$23)) -> 114829.253
A105: Maximum Inductor Voltage Ripple: | B105: VIN_RIPPLE | C105: =V_ripplefactor*Vin_pk_min -> 18.66761902 | D105: V | Q105: =Q104+0.01 -> 0.99 | R105: =(G$5*((90/$G$18)*(90/$G$18))/2)*(1+(SQRT(1+(4/(G$5*((90/$G$18)*(90/$G$18))))*$G$23*(1-(SQRT(2)*Vin_rms_min*(SIN($Q105)/Vout)))))) -> 0.2806764283 | S105: =(H$5*((90/$G$18)*(90/$G$18))/2)*(1+(SQRT(1+(4/(H$5*((90/$G$18)*(90/$G$18))))*$H$23*(1-(SQRT(2)*Vin_rms_min*(SIN($Q105)/Vout)))))) -> 0.2743523109 | T105: =(I$5*((90/$G$18)*(90/$G$18))/2)*(1+(SQRT(1+(4/(I$5*((90/$G$18)*(90/$G$18))))*$I$23*(1-(SQRT(2)*Vin_rms_min*(SIN($Q105)/Vout)))))) -> 0.2704856364 | U105: =(J$5*((90/$G$18)*(90/$G$18))/2)*(1+(SQRT(1+(4/(J$5*((90/$G$18)*(90/$G$18))))*$J$23*(1-(SQRT(2)*Vin_rms_min*(SIN($Q105)/Vout)))))) -> 0.2703287197 | V105: =(K$5*((90/$G$18)*(90/$G$18))/2)*(1+(SQRT(1+(4/(K$5*((90/$G$18)*(90/$G$18))))*$K$23*(1-(SQRT(2)*Vin_rms_min*(SIN($Q105)/Vout)))))) -> 0.4054930796 | W105: =(L$5*((90/$G$18)*(90/$G$18))/2)*(1+(SQRT(1+(4/(L$5*((90/$G$18)*(90/$G$18))))*$L$23*(1-(SQRT(2)*Vin_rms_min*(SIN($Q105)/Vout)))))) -> 0.5406574394 | Y105: =R105*ABS(1/(Vout/(SQRT(2)*$C$25*SIN($Q105)))) -> 0.07300681342 | Z105: =S105*ABS(1/(Vout/(SQRT(2)*$C$25*SIN($Q105)))) -> 0.0713618457 | AA105: =T105*ABS(1/(Vout/(SQRT(2)*$C$25*SIN($Q105)))) -> 0.07035608407 | AB105: =U105*ABS(1/(Vout/(SQRT(2)*$C$25*SIN($Q105)))) -> 0.07031526845 | AC105: =V105*ABS(1/(Vout/(SQRT(2)*$C$25*SIN($Q105)))) -> 0.1054729027 | AD105: =W105*ABS(1/(Vout/(SQRT(2)*$C$25*SIN($Q105)))) -> 0.1406305369 | AF105: =1/(0.0000128*(R105+Y105+$G$23)) -> 40194.30652 | AG105: =1/(0.0000128*(S105+Z105+$H$23)) -> 85315.92467 | AH105: =1/(0.0000128*(T105+AA105+$I$23)) -> 110526.8658 | AI105: =1/(0.0000128*(U105+AB105+$J$23)) -> 229345.0133 | AJ105: =1/(0.0000128*(V105+AC105+$K$23)) -> 152896.6755 | AK105: =1/(0.0000128*(W105+AD105+$L$23)) -> 114672.5067
A106: Switching Frequency at Lowest line and Maximum Output Power, fSW: | B106: fSW | C106: =Vin_pk_min^2*(Vout-Vin_pk_min)/(4*Pin*Vout*Lbst)*kHz -> 111.5467762 | D106: kHz | Q106: =Q105+0.01 -> 1 | R106: =(G$5*((90/$G$18)*(90/$G$18))/2)*(1+(SQRT(1+(4/(G$5*((90/$G$18)*(90/$G$18))))*$G$23*(1-(SQRT(2)*Vin_rms_min*(SIN($Q106)/Vout)))))) -> 0.2803891866 | S106: =(H$5*((90/$G$18)*(90/$G$18))/2)*(1+(SQRT(1+(4/(H$5*((90/$G$18)*(90/$G$18))))*$H$23*(1-(SQRT(2)*Vin_rms_min*(SIN($Q106)/Vout)))))) -> 0.274115185 | T106: =(I$5*((90/$G$18)*(90/$G$18))/2)*(1+(SQRT(1+(4/(I$5*((90/$G$18)*(90/$G$18))))*$I$23*(1-(SQRT(2)*Vin_rms_min*(SIN($Q106)/Vout)))))) -> 0.2702790122 | U106: =(J$5*((90/$G$18)*(90/$G$18))/2)*(1+(SQRT(1+(4/(J$5*((90/$G$18)*(90/$G$18))))*$J$23*(1-(SQRT(2)*Vin_rms_min*(SIN($Q106)/Vout)))))) -> 0.2703287197 | V106: =(K$5*((90/$G$18)*(90/$G$18))/2)*(1+(SQRT(1+(4/(K$5*((90/$G$18)*(90/$G$18))))*$K$23*(1-(SQRT(2)*Vin_rms_min*(SIN($Q106)/Vout)))))) -> 0.4054930796 | W106: =(L$5*((90/$G$18)*(90/$G$18))/2)*(1+(SQRT(1+(4/(L$5*((90/$G$18)*(90/$G$18))))*$L$23*(1-(SQRT(2)*Vin_rms_min*(SIN($Q106)/Vout)))))) -> 0.5406574394 | Y106: =R106*ABS(1/(Vout/(SQRT(2)*$C$25*SIN($Q106)))) -> 0.07340710297 | Z106: =S106*ABS(1/(Vout/(SQRT(2)*$C$25*SIN($Q106)))) -> 0.07176454219 | AA106: =T106*ABS(1/(Vout/(SQRT(2)*$C$25*SIN($Q106)))) -> 0.07076021554 | AB106: =U106*ABS(1/(Vout/(SQRT(2)*$C$25*SIN($Q106)))) -> 0.07077322918 | AC106: =V106*ABS(1/(Vout/(SQRT(2)*$C$25*SIN($Q106)))) -> 0.1061598438 | AD106: =W106*ABS(1/(Vout/(SQRT(2)*$C$25*SIN($Q106)))) -> 0.1415464584 | AF106: =1/(0.0000128*(R106+Y106+$G$23)) -> 40191.96889 | AG106: =1/(0.0000128*(S106+Z106+$H$23)) -> 85300.50145 | AH106: =1/(0.0000128*(T106+AA106+$I$23)) -> 110495.9908 | AI106: =1/(0.0000128*(U106+AB106+$J$23)) -> 229037.0965 | AJ106: =1/(0.0000128*(V106+AC106+$K$23)) -> 152691.3977 | AK106: =1/(0.0000128*(W106+AD106+$L$23)) -> 114518.5483
A107: Recommended Input Capacitor Value: | B107: CIN(recommended) | C107: =Iin_pk_max/(8*fsw*kHz*Vin_ripple)/uF -> 0.04283312797 | D107: µF | Q107: =Q106+0.01 -> 1.01 | R107: =(G$5*((90/$G$18)*(90/$G$18))/2)*(1+(SQRT(1+(4/(G$5*((90/$G$18)*(90/$G$18))))*$G$23*(1-(SQRT(2)*Vin_rms_min*(SIN($Q107)/Vout)))))) -> 0.2801060654 | S107: =(H$5*((90/$G$18)*(90/$G$18))/2)*(1+(SQRT(1+(4/(H$5*((90/$G$18)*(90/$G$18))))*$H$23*(1-(SQRT(2)*Vin_rms_min*(SIN($Q107)/Vout)))))) -> 0.2738814738 | T107: =(I$5*((90/$G$18)*(90/$G$18))/2)*(1+(SQRT(1+(4/(I$5*((90/$G$18)*(90/$G$18))))*$I$23*(1-(SQRT(2)*Vin_rms_min*(SIN($Q107)/Vout)))))) -> 0.2700753752 | U107: =(J$5*((90/$G$18)*(90/$G$18))/2)*(1+(SQRT(1+(4/(J$5*((90/$G$18)*(90/$G$18))))*$J$23*(1-(SQRT(2)*Vin_rms_min*(SIN($Q107)/Vout)))))) -> 0.2703287197 | V107: =(K$5*((90/$G$18)*(90/$G$18))/2)*(1+(SQRT(1+(4/(K$5*((90/$G$18)*(90/$G$18))))*$K$23*(1-(SQRT(2)*Vin_rms_min*(SIN($Q107)/Vout)))))) -> 0.4054930796 | W107: =(L$5*((90/$G$18)*(90/$G$18))/2)*(1+(SQRT(1+(4/(L$5*((90/$G$18)*(90/$G$18))))*$L$23*(1-(SQRT(2)*Vin_rms_min*(SIN($Q107)/Vout)))))) -> 0.5406574394 | Y107: =R107*ABS(1/(Vout/(SQRT(2)*$C$25*SIN($Q107)))) -> 0.07380017179 | Z107: =S107*ABS(1/(Vout/(SQRT(2)*$C$25*SIN($Q107)))) -> 0.07216016471 | AA107: =T107*ABS(1/(Vout/(SQRT(2)*$C$25*SIN($Q107)))) -> 0.07115736341 | AB107: =U107*ABS(1/(Vout/(SQRT(2)*$C$25*SIN($Q107)))) -> 0.07122411266 | AC107: =V107*ABS(1/(Vout/(SQRT(2)*$C$25*SIN($Q107)))) -> 0.106836169 | AD107: =W107*ABS(1/(Vout/(SQRT(2)*$C$25*SIN($Q107)))) -> 0.1424482253 | AF107: =1/(0.0000128*(R107+Y107+$G$23)) -> 40189.69563 | AG107: =1/(0.0000128*(S107+Z107+$H$23)) -> 85285.4245 | AH107: =1/(0.0000128*(T107+AA107+$I$23)) -> 110465.7572 | AI107: =1/(0.0000128*(U107+AB107+$J$23)) -> 228734.7449 | AJ107: =1/(0.0000128*(V107+AC107+$K$23)) -> 152489.83 | AK107: =1/(0.0000128*(W107+AD107+$L$23)) -> 114367.3725
A108: Actual Value of Input Capacitor Used: | B108: CIN | C108: 0.1 | D108: µF | Q108: =Q107+0.01 -> 1.02 | R108: =(G$5*((90/$G$18)*(90/$G$18))/2)*(1+(SQRT(1+(4/(G$5*((90/$G$18)*(90/$G$18))))*$G$23*(1-(SQRT(2)*Vin_rms_min*(SIN($Q108)/Vout)))))) -> 0.2798271068 | S108: =(H$5*((90/$G$18)*(90/$G$18))/2)*(1+(SQRT(1+(4/(H$5*((90/$G$18)*(90/$G$18))))*$H$23*(1-(SQRT(2)*Vin_rms_min*(SIN($Q108)/Vout)))))) -> 0.2736512115 | T108: =(I$5*((90/$G$18)*(90/$G$18))/2)*(1+(SQRT(1+(4/(I$5*((90/$G$18)*(90/$G$18))))*$I$23*(1-(SQRT(2)*Vin_rms_min*(SIN($Q108)/Vout)))))) -> 0.2698747548 | U108: =(J$5*((90/$G$18)*(90/$G$18))/2)*(1+(SQRT(1+(4/(J$5*((90/$G$18)*(90/$G$18))))*$J$23*(1-(SQRT(2)*Vin_rms_min*(SIN($Q108)/Vout)))))) -> 0.2703287197 | V108: =(K$5*((90/$G$18)*(90/$G$18))/2)*(1+(SQRT(1+(4/(K$5*((90/$G$18)*(90/$G$18))))*$K$23*(1-(SQRT(2)*Vin_rms_min*(SIN($Q108)/Vout)))))) -> 0.4054930796 | W108: =(L$5*((90/$G$18)*(90/$G$18))/2)*(1+(SQRT(1+(4/(L$5*((90/$G$18)*(90/$G$18))))*$L$23*(1-(SQRT(2)*Vin_rms_min*(SIN($Q108)/Vout)))))) -> 0.5406574394 | Y108: =R108*ABS(1/(Vout/(SQRT(2)*$C$25*SIN($Q108)))) -> 0.07418602726 | Z108: =S108*ABS(1/(Vout/(SQRT(2)*$C$25*SIN($Q108)))) -> 0.07254871218 | AA108: =T108*ABS(1/(Vout/(SQRT(2)*$C$25*SIN($Q108)))) -> 0.07154752141 | AB108: =U108*ABS(1/(Vout/(SQRT(2)*$C$25*SIN($Q108)))) -> 0.07166787378 | AC108: =V108*ABS(1/(Vout/(SQRT(2)*$C$25*SIN($Q108)))) -> 0.1075018107 | AD108: =W108*ABS(1/(Vout/(SQRT(2)*$C$25*SIN($Q108)))) -> 0.1433357476 | AF108: =1/(0.0000128*(R108+Y108+$G$23)) -> 40187.48569 | AG108: =1/(0.0000128*(S108+Z108+$H$23)) -> 85270.69036 | AH108: =1/(0.0000128*(T108+AA108+$I$23)) -> 110436.1604 | AI108: =1/(0.0000128*(U108+AB108+$J$23)) -> 228437.9479 | AJ108: =1/(0.0000128*(V108+AC108+$K$23)) -> 152291.9653 | AK108: =1/(0.0000128*(W108+AD108+$L$23)) -> 114218.9739
A109: Required Minimum Voltage Rating for CIN: | B109: VCIN(rating) | C109: =1.25*Vin_pk_max -> 229.8097039 | D109: V | Q109: =Q108+0.01 -> 1.03 | R109: =(G$5*((90/$G$18)*(90/$G$18))/2)*(1+(SQRT(1+(4/(G$5*((90/$G$18)*(90/$G$18))))*$G$23*(1-(SQRT(2)*Vin_rms_min*(SIN($Q109)/Vout)))))) -> 0.2795523527 | S109: =(H$5*((90/$G$18)*(90/$G$18))/2)*(1+(SQRT(1+(4/(H$5*((90/$G$18)*(90/$G$18))))*$H$23*(1-(SQRT(2)*Vin_rms_min*(SIN($Q109)/Vout)))))) -> 0.273424432 | T109: =(I$5*((90/$G$18)*(90/$G$18))/2)*(1+(SQRT(1+(4/(I$5*((90/$G$18)*(90/$G$18))))*$I$23*(1-(SQRT(2)*Vin_rms_min*(SIN($Q109)/Vout)))))) -> 0.2696771801 | U109: =(J$5*((90/$G$18)*(90/$G$18))/2)*(1+(SQRT(1+(4/(J$5*((90/$G$18)*(90/$G$18))))*$J$23*(1-(SQRT(2)*Vin_rms_min*(SIN($Q109)/Vout)))))) -> 0.2703287197 | V109: =(K$5*((90/$G$18)*(90/$G$18))/2)*(1+(SQRT(1+(4/(K$5*((90/$G$18)*(90/$G$18))))*$K$23*(1-(SQRT(2)*Vin_rms_min*(SIN($Q109)/Vout)))))) -> 0.4054930796 | W109: =(L$5*((90/$G$18)*(90/$G$18))/2)*(1+(SQRT(1+(4/(L$5*((90/$G$18)*(90/$G$18))))*$L$23*(1-(SQRT(2)*Vin_rms_min*(SIN($Q109)/Vout)))))) -> 0.5406574394 | Y109: =R109*ABS(1/(Vout/(SQRT(2)*$C$25*SIN($Q109)))) -> 0.07456467718 | Z109: =S109*ABS(1/(Vout/(SQRT(2)*$C$25*SIN($Q109)))) -> 0.07293018394 | AA109: =T109*ABS(1/(Vout/(SQRT(2)*$C$25*SIN($Q109)))) -> 0.07193068375 | AB109: =U109*ABS(1/(Vout/(SQRT(2)*$C$25*SIN($Q109)))) -> 0.07210446817 | AC109: =V109*ABS(1/(Vout/(SQRT(2)*$C$25*SIN($Q109)))) -> 0.1081567023 | AD109: =W109*ABS(1/(Vout/(SQRT(2)*$C$25*SIN($Q109)))) -> 0.1442089363 | AF109: =1/(0.0000128*(R109+Y109+$G$23)) -> 40185.33802 | AG109: =1/(0.0000128*(S109+Z109+$H$23)) -> 85256.29559 | AH109: =1/(0.0000128*(T109+AA109+$I$23)) -> 110407.1958 | AI109: =1/(0.0000128*(U109+AB109+$J$23)) -> 228146.6948 | AJ109: =1/(0.0000128*(V109+AC109+$K$23)) -> 152097.7965 | AK109: =1/(0.0000128*(W109+AD109+$L$23)) -> 114073.3474
Q110: =Q109+0.01 -> 1.04 | R110: =(G$5*((90/$G$18)*(90/$G$18))/2)*(1+(SQRT(1+(4/(G$5*((90/$G$18)*(90/$G$18))))*$G$23*(1-(SQRT(2)*Vin_rms_min*(SIN($Q110)/Vout)))))) -> 0.2792818443 | S110: =(H$5*((90/$G$18)*(90/$G$18))/2)*(1+(SQRT(1+(4/(H$5*((90/$G$18)*(90/$G$18))))*$H$23*(1-(SQRT(2)*Vin_rms_min*(SIN($Q110)/Vout)))))) -> 0.2732011689 | T110: =(I$5*((90/$G$18)*(90/$G$18))/2)*(1+(SQRT(1+(4/(I$5*((90/$G$18)*(90/$G$18))))*$I$23*(1-(SQRT(2)*Vin_rms_min*(SIN($Q110)/Vout)))))) -> 0.2694826797 | U110: =(J$5*((90/$G$18)*(90/$G$18))/2)*(1+(SQRT(1+(4/(J$5*((90/$G$18)*(90/$G$18))))*$J$23*(1-(SQRT(2)*Vin_rms_min*(SIN($Q110)/Vout)))))) -> 0.2703287197 | V110: =(K$5*((90/$G$18)*(90/$G$18))/2)*(1+(SQRT(1+(4/(K$5*((90/$G$18)*(90/$G$18))))*$K$23*(1-(SQRT(2)*Vin_rms_min*(SIN($Q110)/Vout)))))) -> 0.4054930796 | W110: =(L$5*((90/$G$18)*(90/$G$18))/2)*(1+(SQRT(1+(4/(L$5*((90/$G$18)*(90/$G$18))))*$L$23*(1-(SQRT(2)*Vin_rms_min*(SIN($Q110)/Vout)))))) -> 0.5406574394 | Y110: =R110*ABS(1/(Vout/(SQRT(2)*$C$25*SIN($Q110)))) -> 0.07493612973 | Z110: =S110*ABS(1/(Vout/(SQRT(2)*$C$25*SIN($Q110)))) -> 0.07330457977 | AA110: =T110*ABS(1/(Vout/(SQRT(2)*$C$25*SIN($Q110)))) -> 0.07230684506 | AB110: =U110*ABS(1/(Vout/(SQRT(2)*$C$25*SIN($Q110)))) -> 0.07253385218 | AC110: =V110*ABS(1/(Vout/(SQRT(2)*$C$25*SIN($Q110)))) -> 0.1088007783 | AD110: =W110*ABS(1/(Vout/(SQRT(2)*$C$25*SIN($Q110)))) -> 0.1450677044 | AF110: =1/(0.0000128*(R110+Y110+$G$23)) -> 40183.25159 | AG110: =1/(0.0000128*(S110+Z110+$H$23)) -> 85242.23674 | AH110: =1/(0.0000128*(T110+AA110+$I$23)) -> 110378.8588 | AI110: =1/(0.0000128*(U110+AB110+$J$23)) -> 227860.9752 | AJ110: =1/(0.0000128*(V110+AC110+$K$23)) -> 151907.3168 | AK110: =1/(0.0000128*(W110+AD110+$L$23)) -> 113930.4876
Q111: =Q110+0.01 -> 1.05 | R111: =(G$5*((90/$G$18)*(90/$G$18))/2)*(1+(SQRT(1+(4/(G$5*((90/$G$18)*(90/$G$18))))*$G$23*(1-(SQRT(2)*Vin_rms_min*(SIN($Q111)/Vout)))))) -> 0.2790156224 | S111: =(H$5*((90/$G$18)*(90/$G$18))/2)*(1+(SQRT(1+(4/(H$5*((90/$G$18)*(90/$G$18))))*$H$23*(1-(SQRT(2)*Vin_rms_min*(SIN($Q111)/Vout)))))) -> 0.2729814553 | T111: =(I$5*((90/$G$18)*(90/$G$18))/2)*(1+(SQRT(1+(4/(I$5*((90/$G$18)*(90/$G$18))))*$I$23*(1-(SQRT(2)*Vin_rms_min*(SIN($Q111)/Vout)))))) -> 0.2692912821 | U111: =(J$5*((90/$G$18)*(90/$G$18))/2)*(1+(SQRT(1+(4/(J$5*((90/$G$18)*(90/$G$18))))*$J$23*(1-(SQRT(2)*Vin_rms_min*(SIN($Q111)/Vout)))))) -> 0.2703287197 | V111: =(K$5*((90/$G$18)*(90/$G$18))/2)*(1+(SQRT(1+(4/(K$5*((90/$G$18)*(90/$G$18))))*$K$23*(1-(SQRT(2)*Vin_rms_min*(SIN($Q111)/Vout)))))) -> 0.4054930796 | W111: =(L$5*((90/$G$18)*(90/$G$18))/2)*(1+(SQRT(1+(4/(L$5*((90/$G$18)*(90/$G$18))))*$L$23*(1-(SQRT(2)*Vin_rms_min*(SIN($Q111)/Vout)))))) -> 0.5406574394 | Y111: =R111*ABS(1/(Vout/(SQRT(2)*$C$25*SIN($Q111)))) -> 0.07530039347 | Z111: =S111*ABS(1/(Vout/(SQRT(2)*$C$25*SIN($Q111)))) -> 0.07367189987 | AA111: =T111*ABS(1/(Vout/(SQRT(2)*$C$25*SIN($Q111)))) -> 0.07267600046 | AB111: =U111*ABS(1/(Vout/(SQRT(2)*$C$25*SIN($Q111)))) -> 0.07295598286 | AC111: =V111*ABS(1/(Vout/(SQRT(2)*$C$25*SIN($Q111)))) -> 0.1094339743 | AD111: =W111*ABS(1/(Vout/(SQRT(2)*$C$25*SIN($Q111)))) -> 0.1459119657 | AF111: =1/(0.0000128*(R111+Y111+$G$23)) -> 40181.22536 | AG111: =1/(0.0000128*(S111+Z111+$H$23)) -> 85228.51038 | AH111: =1/(0.0000128*(T111+AA111+$I$23)) -> 110351.1446 | AI111: =1/(0.0000128*(U111+AB111+$J$23)) -> 227580.7789 | AJ111: =1/(0.0000128*(V111+AC111+$K$23)) -> 151720.5193 | AK111: =1/(0.0000128*(W111+AD111+$L$23)) -> 113790.3895
A112: BOOST DIODE: | Q112: =Q111+0.01 -> 1.06 | R112: =(G$5*((90/$G$18)*(90/$G$18))/2)*(1+(SQRT(1+(4/(G$5*((90/$G$18)*(90/$G$18))))*$G$23*(1-(SQRT(2)*Vin_rms_min*(SIN($Q112)/Vout)))))) -> 0.2787537271 | S112: =(H$5*((90/$G$18)*(90/$G$18))/2)*(1+(SQRT(1+(4/(H$5*((90/$G$18)*(90/$G$18))))*$H$23*(1-(SQRT(2)*Vin_rms_min*(SIN($Q112)/Vout)))))) -> 0.2727653239 | T112: =(I$5*((90/$G$18)*(90/$G$18))/2)*(1+(SQRT(1+(4/(I$5*((90/$G$18)*(90/$G$18))))*$I$23*(1-(SQRT(2)*Vin_rms_min*(SIN($Q112)/Vout)))))) -> 0.2691030152 | U112: =(J$5*((90/$G$18)*(90/$G$18))/2)*(1+(SQRT(1+(4/(J$5*((90/$G$18)*(90/$G$18))))*$J$23*(1-(SQRT(2)*Vin_rms_min*(SIN($Q112)/Vout)))))) -> 0.2703287197 | V112: =(K$5*((90/$G$18)*(90/$G$18))/2)*(1+(SQRT(1+(4/(K$5*((90/$G$18)*(90/$G$18))))*$K$23*(1-(SQRT(2)*Vin_rms_min*(SIN($Q112)/Vout)))))) -> 0.4054930796 | W112: =(L$5*((90/$G$18)*(90/$G$18))/2)*(1+(SQRT(1+(4/(L$5*((90/$G$18)*(90/$G$18))))*$L$23*(1-(SQRT(2)*Vin_rms_min*(SIN($Q112)/Vout)))))) -> 0.5406574394 | Y112: =R112*ABS(1/(Vout/(SQRT(2)*$C$25*SIN($Q112)))) -> 0.07565747731 | Z112: =S112*ABS(1/(Vout/(SQRT(2)*$C$25*SIN($Q112)))) -> 0.07403214485 | AA112: =T112*ABS(1/(Vout/(SQRT(2)*$C$25*SIN($Q112)))) -> 0.07303814546 | AB112: =U112*ABS(1/(Vout/(SQRT(2)*$C$25*SIN($Q112)))) -> 0.073370818 | AC112: =V112*ABS(1/(Vout/(SQRT(2)*$C$25*SIN($Q112)))) -> 0.110056227 | AD112: =W112*ABS(1/(Vout/(SQRT(2)*$C$25*SIN($Q112)))) -> 0.146741636 | AF112: =1/(0.0000128*(R112+Y112+$G$23)) -> 40179.25829 | AG112: =1/(0.0000128*(S112+Z112+$H$23)) -> 85215.11311 | AH112: =1/(0.0000128*(T112+AA112+$I$23)) -> 110324.0488 | AI112: =1/(0.0000128*(U112+AB112+$J$23)) -> 227306.0957 | AJ112: =1/(0.0000128*(V112+AC112+$K$23)) -> 151537.3971 | AK112: =1/(0.0000128*(W112+AD112+$L$23)) -> 113653.0478
A113: Forward Voltage Drop, at IL_PEAK(max),125°C: | B113: VF | C113: 1.25 | D113: V | Q113: =Q112+0.01 -> 1.07 | R113: =(G$5*((90/$G$18)*(90/$G$18))/2)*(1+(SQRT(1+(4/(G$5*((90/$G$18)*(90/$G$18))))*$G$23*(1-(SQRT(2)*Vin_rms_min*(SIN($Q113)/Vout)))))) -> 0.2784961983 | S113: =(H$5*((90/$G$18)*(90/$G$18))/2)*(1+(SQRT(1+(4/(H$5*((90/$G$18)*(90/$G$18))))*$H$23*(1-(SQRT(2)*Vin_rms_min*(SIN($Q113)/Vout)))))) -> 0.2725528069 | T113: =(I$5*((90/$G$18)*(90/$G$18))/2)*(1+(SQRT(1+(4/(I$5*((90/$G$18)*(90/$G$18))))*$I$23*(1-(SQRT(2)*Vin_rms_min*(SIN($Q113)/Vout)))))) -> 0.2689179068 | U113: =(J$5*((90/$G$18)*(90/$G$18))/2)*(1+(SQRT(1+(4/(J$5*((90/$G$18)*(90/$G$18))))*$J$23*(1-(SQRT(2)*Vin_rms_min*(SIN($Q113)/Vout)))))) -> 0.2703287197 | V113: =(K$5*((90/$G$18)*(90/$G$18))/2)*(1+(SQRT(1+(4/(K$5*((90/$G$18)*(90/$G$18))))*$K$23*(1-(SQRT(2)*Vin_rms_min*(SIN($Q113)/Vout)))))) -> 0.4054930796 | W113: =(L$5*((90/$G$18)*(90/$G$18))/2)*(1+(SQRT(1+(4/(L$5*((90/$G$18)*(90/$G$18))))*$L$23*(1-(SQRT(2)*Vin_rms_min*(SIN($Q113)/Vout)))))) -> 0.5406574394 | Y113: =R113*ABS(1/(Vout/(SQRT(2)*$C$25*SIN($Q113)))) -> 0.07600739049 | Z113: =S113*ABS(1/(Vout/(SQRT(2)*$C$25*SIN($Q113)))) -> 0.07438531567 | AA113: =T113*ABS(1/(Vout/(SQRT(2)*$C$25*SIN($Q113)))) -> 0.073393276 | AB113: =U113*ABS(1/(Vout/(SQRT(2)*$C$25*SIN($Q113)))) -> 0.07377831613 | AC113: =V113*ABS(1/(Vout/(SQRT(2)*$C$25*SIN($Q113)))) -> 0.1106674742 | AD113: =W113*ABS(1/(Vout/(SQRT(2)*$C$25*SIN($Q113)))) -> 0.1475566323 | AF113: =1/(0.0000128*(R113+Y113+$G$23)) -> 40177.34935 | AG113: =1/(0.0000128*(S113+Z113+$H$23)) -> 85202.04153 | AH113: =1/(0.0000128*(T113+AA113+$I$23)) -> 110297.5668 | AI113: =1/(0.0000128*(U113+AB113+$J$23)) -> 227036.9154 | AJ113: =1/(0.0000128*(V113+AC113+$K$23)) -> 151357.9436 | AK113: =1/(0.0000128*(W113+AD113+$L$23)) -> 113518.4577
A114: Boost Diode Maximum Junction Temperature: | B114: TJ(max) | C114: 125 | D114: °C | Q114: =Q113+0.01 -> 1.08 | R114: =(G$5*((90/$G$18)*(90/$G$18))/2)*(1+(SQRT(1+(4/(G$5*((90/$G$18)*(90/$G$18))))*$G$23*(1-(SQRT(2)*Vin_rms_min*(SIN($Q114)/Vout)))))) -> 0.2782430753 | S114: =(H$5*((90/$G$18)*(90/$G$18))/2)*(1+(SQRT(1+(4/(H$5*((90/$G$18)*(90/$G$18))))*$H$23*(1-(SQRT(2)*Vin_rms_min*(SIN($Q114)/Vout)))))) -> 0.2723439363 | T114: =(I$5*((90/$G$18)*(90/$G$18))/2)*(1+(SQRT(1+(4/(I$5*((90/$G$18)*(90/$G$18))))*$I$23*(1-(SQRT(2)*Vin_rms_min*(SIN($Q114)/Vout)))))) -> 0.268735984 | U114: =(J$5*((90/$G$18)*(90/$G$18))/2)*(1+(SQRT(1+(4/(J$5*((90/$G$18)*(90/$G$18))))*$J$23*(1-(SQRT(2)*Vin_rms_min*(SIN($Q114)/Vout)))))) -> 0.2703287197 | V114: =(K$5*((90/$G$18)*(90/$G$18))/2)*(1+(SQRT(1+(4/(K$5*((90/$G$18)*(90/$G$18))))*$K$23*(1-(SQRT(2)*Vin_rms_min*(SIN($Q114)/Vout)))))) -> 0.4054930796 | W114: =(L$5*((90/$G$18)*(90/$G$18))/2)*(1+(SQRT(1+(4/(L$5*((90/$G$18)*(90/$G$18))))*$L$23*(1-(SQRT(2)*Vin_rms_min*(SIN($Q114)/Vout)))))) -> 0.5406574394 | Y114: =R114*ABS(1/(Vout/(SQRT(2)*$C$25*SIN($Q114)))) -> 0.07635014254 | Z114: =S114*ABS(1/(Vout/(SQRT(2)*$C$25*SIN($Q114)))) -> 0.07473141366 | AA114: =T114*ABS(1/(Vout/(SQRT(2)*$C$25*SIN($Q114)))) -> 0.0737413884 | AB114: =U114*ABS(1/(Vout/(SQRT(2)*$C$25*SIN($Q114)))) -> 0.07417843648 | AC114: =V114*ABS(1/(Vout/(SQRT(2)*$C$25*SIN($Q114)))) -> 0.1112676547 | AD114: =W114*ABS(1/(Vout/(SQRT(2)*$C$25*SIN($Q114)))) -> 0.148356873 | AF114: =1/(0.0000128*(R114+Y114+$G$23)) -> 40175.49752 | AG114: =1/(0.0000128*(S114+Z114+$H$23)) -> 85189.29225 | AH114: =1/(0.0000128*(T114+AA114+$I$23)) -> 110271.694 | AI114: =1/(0.0000128*(U114+AB114+$J$23)) -> 226773.2283 | AJ114: =1/(0.0000128*(V114+AC114+$K$23)) -> 151182.1522 | AK114: =1/(0.0000128*(W114+AD114+$L$23)) -> 113386.6142
A115: Boost Diode Thermal Resistance, Junction to Case: | B115: RqJC(Diode) | C115: 28 | D115: °C/W | Q115: =Q114+0.01 -> 1.09 | R115: =(G$5*((90/$G$18)*(90/$G$18))/2)*(1+(SQRT(1+(4/(G$5*((90/$G$18)*(90/$G$18))))*$G$23*(1-(SQRT(2)*Vin_rms_min*(SIN($Q115)/Vout)))))) -> 0.2779943966 | S115: =(H$5*((90/$G$18)*(90/$G$18))/2)*(1+(SQRT(1+(4/(H$5*((90/$G$18)*(90/$G$18))))*$H$23*(1-(SQRT(2)*Vin_rms_min*(SIN($Q115)/Vout)))))) -> 0.2721387433 | T115: =(I$5*((90/$G$18)*(90/$G$18))/2)*(1+(SQRT(1+(4/(I$5*((90/$G$18)*(90/$G$18))))*$I$23*(1-(SQRT(2)*Vin_rms_min*(SIN($Q115)/Vout)))))) -> 0.2685572737 | U115: =(J$5*((90/$G$18)*(90/$G$18))/2)*(1+(SQRT(1+(4/(J$5*((90/$G$18)*(90/$G$18))))*$J$23*(1-(SQRT(2)*Vin_rms_min*(SIN($Q115)/Vout)))))) -> 0.2703287197 | V115: =(K$5*((90/$G$18)*(90/$G$18))/2)*(1+(SQRT(1+(4/(K$5*((90/$G$18)*(90/$G$18))))*$K$23*(1-(SQRT(2)*Vin_rms_min*(SIN($Q115)/Vout)))))) -> 0.4054930796 | W115: =(L$5*((90/$G$18)*(90/$G$18))/2)*(1+(SQRT(1+(4/(L$5*((90/$G$18)*(90/$G$18))))*$L$23*(1-(SQRT(2)*Vin_rms_min*(SIN($Q115)/Vout)))))) -> 0.5406574394 | Y115: =R115*ABS(1/(Vout/(SQRT(2)*$C$25*SIN($Q115)))) -> 0.07668574328 | Z115: =S115*ABS(1/(Vout/(SQRT(2)*$C$25*SIN($Q115)))) -> 0.0750704405 | AA115: =T115*ABS(1/(Vout/(SQRT(2)*$C$25*SIN($Q115)))) -> 0.07408247936 | AB115: =U115*ABS(1/(Vout/(SQRT(2)*$C$25*SIN($Q115)))) -> 0.07457113905 | AC115: =V115*ABS(1/(Vout/(SQRT(2)*$C$25*SIN($Q115)))) -> 0.1118567086 | AD115: =W115*ABS(1/(Vout/(SQRT(2)*$C$25*SIN($Q115)))) -> 0.1491422781 | AF115: =1/(0.0000128*(R115+Y115+$G$23)) -> 40173.70178 | AG115: =1/(0.0000128*(S115+Z115+$H$23)) -> 85176.86192 | AH115: =1/(0.0000128*(T115+AA115+$I$23)) -> 110246.4259 | AI115: =1/(0.0000128*(U115+AB115+$J$23)) -> 226515.0246 | AJ115: =1/(0.0000128*(V115+AC115+$K$23)) -> 151010.0164 | AK115: =1/(0.0000128*(W115+AD115+$L$23)) -> 113257.5123
A116: Boost Diode Thermal Resistance, Case to Heatsink: | B116: RqCHS(Diode) | C116: 0.32 | D116: °C/W | Q116: =Q115+0.01 -> 1.1 | R116: =(G$5*((90/$G$18)*(90/$G$18))/2)*(1+(SQRT(1+(4/(G$5*((90/$G$18)*(90/$G$18))))*$G$23*(1-(SQRT(2)*Vin_rms_min*(SIN($Q116)/Vout)))))) -> 0.2777502003 | S116: =(H$5*((90/$G$18)*(90/$G$18))/2)*(1+(SQRT(1+(4/(H$5*((90/$G$18)*(90/$G$18))))*$H$23*(1-(SQRT(2)*Vin_rms_min*(SIN($Q116)/Vout)))))) -> 0.271937259 | T116: =(I$5*((90/$G$18)*(90/$G$18))/2)*(1+(SQRT(1+(4/(I$5*((90/$G$18)*(90/$G$18))))*$I$23*(1-(SQRT(2)*Vin_rms_min*(SIN($Q116)/Vout)))))) -> 0.2683818024 | U116: =(J$5*((90/$G$18)*(90/$G$18))/2)*(1+(SQRT(1+(4/(J$5*((90/$G$18)*(90/$G$18))))*$J$23*(1-(SQRT(2)*Vin_rms_min*(SIN($Q116)/Vout)))))) -> 0.2703287197 | V116: =(K$5*((90/$G$18)*(90/$G$18))/2)*(1+(SQRT(1+(4/(K$5*((90/$G$18)*(90/$G$18))))*$K$23*(1-(SQRT(2)*Vin_rms_min*(SIN($Q116)/Vout)))))) -> 0.4054930796 | W116: =(L$5*((90/$G$18)*(90/$G$18))/2)*(1+(SQRT(1+(4/(L$5*((90/$G$18)*(90/$G$18))))*$L$23*(1-(SQRT(2)*Vin_rms_min*(SIN($Q116)/Vout)))))) -> 0.5406574394 | Y116: =R116*ABS(1/(Vout/(SQRT(2)*$C$25*SIN($Q116)))) -> 0.07701420276 | Z116: =S116*ABS(1/(Vout/(SQRT(2)*$C$25*SIN($Q116)))) -> 0.07540239819 | AA116: =T116*ABS(1/(Vout/(SQRT(2)*$C$25*SIN($Q116)))) -> 0.07441654594 | AB116: =U116*ABS(1/(Vout/(SQRT(2)*$C$25*SIN($Q116)))) -> 0.07495638457 | AC116: =V116*ABS(1/(Vout/(SQRT(2)*$C$25*SIN($Q116)))) -> 0.1124345769 | AD116: =W116*ABS(1/(Vout/(SQRT(2)*$C$25*SIN($Q116)))) -> 0.1499127691 | AF116: =1/(0.0000128*(R116+Y116+$G$23)) -> 40171.96113 | AG116: =1/(0.0000128*(S116+Z116+$H$23)) -> 85164.7472 | AH116: =1/(0.0000128*(T116+AA116+$I$23)) -> 110221.758 | AI116: =1/(0.0000128*(U116+AB116+$J$23)) -> 226262.2946 | AJ116: =1/(0.0000128*(V116+AC116+$K$23)) -> 150841.5298 | AK116: =1/(0.0000128*(W116+AD116+$L$23)) -> 113131.1473
A117: Total Boost Diode Losses: | B117: PDIODE | C117: =Vf*Iout -> 0.125 | D117: W | Q117: =Q116+0.01 -> 1.11 | R117: =(G$5*((90/$G$18)*(90/$G$18))/2)*(1+(SQRT(1+(4/(G$5*((90/$G$18)*(90/$G$18))))*$G$23*(1-(SQRT(2)*Vin_rms_min*(SIN($Q117)/Vout)))))) -> 0.2775105242 | S117: =(H$5*((90/$G$18)*(90/$G$18))/2)*(1+(SQRT(1+(4/(H$5*((90/$G$18)*(90/$G$18))))*$H$23*(1-(SQRT(2)*Vin_rms_min*(SIN($Q117)/Vout)))))) -> 0.2717395138 | T117: =(I$5*((90/$G$18)*(90/$G$18))/2)*(1+(SQRT(1+(4/(I$5*((90/$G$18)*(90/$G$18))))*$I$23*(1-(SQRT(2)*Vin_rms_min*(SIN($Q117)/Vout)))))) -> 0.2682095961 | U117: =(J$5*((90/$G$18)*(90/$G$18))/2)*(1+(SQRT(1+(4/(J$5*((90/$G$18)*(90/$G$18))))*$J$23*(1-(SQRT(2)*Vin_rms_min*(SIN($Q117)/Vout)))))) -> 0.2703287197 | V117: =(K$5*((90/$G$18)*(90/$G$18))/2)*(1+(SQRT(1+(4/(K$5*((90/$G$18)*(90/$G$18))))*$K$23*(1-(SQRT(2)*Vin_rms_min*(SIN($Q117)/Vout)))))) -> 0.4054930796 | W117: =(L$5*((90/$G$18)*(90/$G$18))/2)*(1+(SQRT(1+(4/(L$5*((90/$G$18)*(90/$G$18))))*$L$23*(1-(SQRT(2)*Vin_rms_min*(SIN($Q117)/Vout)))))) -> 0.5406574394 | Y117: =R117*ABS(1/(Vout/(SQRT(2)*$C$25*SIN($Q117)))) -> 0.07733553128 | Z117: =S117*ABS(1/(Vout/(SQRT(2)*$C$25*SIN($Q117)))) -> 0.07572728902 | AA117: =T117*ABS(1/(Vout/(SQRT(2)*$C$25*SIN($Q117)))) -> 0.07474358557 | AB117: =U117*ABS(1/(Vout/(SQRT(2)*$C$25*SIN($Q117)))) -> 0.07533413452 | AC117: =V117*ABS(1/(Vout/(SQRT(2)*$C$25*SIN($Q117)))) -> 0.1130012018 | AD117: =W117*ABS(1/(Vout/(SQRT(2)*$C$25*SIN($Q117)))) -> 0.150668269 | AF117: =1/(0.0000128*(R117+Y117+$G$23)) -> 40170.27455 | AG117: =1/(0.0000128*(S117+Z117+$H$23)) -> 85152.94478 | AH117: =1/(0.0000128*(T117+AA117+$I$23)) -> 110197.6858 | AI117: =1/(0.0000128*(U117+AB117+$J$23)) -> 226015.0289 | AJ117: =1/(0.0000128*(V117+AC117+$K$23)) -> 150676.686 | AK117: =1/(0.0000128*(W117+AD117+$L$23)) -> 113007.5145
A118: Required Heat Sink Thermal Impedance: | B118: RqHS_AMB(Diode) | C118: =((Tj_diode-Tamb)/Pdiode)-Rth_diode-Rth_case_hs -> 571.68 | D118: °C/W | Q118: =Q117+0.01 -> 1.12 | R118: =(G$5*((90/$G$18)*(90/$G$18))/2)*(1+(SQRT(1+(4/(G$5*((90/$G$18)*(90/$G$18))))*$G$23*(1-(SQRT(2)*Vin_rms_min*(SIN($Q118)/Vout)))))) -> 0.2772754051 | S118: =(H$5*((90/$G$18)*(90/$G$18))/2)*(1+(SQRT(1+(4/(H$5*((90/$G$18)*(90/$G$18))))*$H$23*(1-(SQRT(2)*Vin_rms_min*(SIN($Q118)/Vout)))))) -> 0.2715455377 | T118: =(I$5*((90/$G$18)*(90/$G$18))/2)*(1+(SQRT(1+(4/(I$5*((90/$G$18)*(90/$G$18))))*$I$23*(1-(SQRT(2)*Vin_rms_min*(SIN($Q118)/Vout)))))) -> 0.2680406806 | U118: =(J$5*((90/$G$18)*(90/$G$18))/2)*(1+(SQRT(1+(4/(J$5*((90/$G$18)*(90/$G$18))))*$J$23*(1-(SQRT(2)*Vin_rms_min*(SIN($Q118)/Vout)))))) -> 0.2703287197 | V118: =(K$5*((90/$G$18)*(90/$G$18))/2)*(1+(SQRT(1+(4/(K$5*((90/$G$18)*(90/$G$18))))*$K$23*(1-(SQRT(2)*Vin_rms_min*(SIN($Q118)/Vout)))))) -> 0.4054930796 | W118: =(L$5*((90/$G$18)*(90/$G$18))/2)*(1+(SQRT(1+(4/(L$5*((90/$G$18)*(90/$G$18))))*$L$23*(1-(SQRT(2)*Vin_rms_min*(SIN($Q118)/Vout)))))) -> 0.5406574394 | Y118: =R118*ABS(1/(Vout/(SQRT(2)*$C$25*SIN($Q118)))) -> 0.07764973934 | Z118: =S118*ABS(1/(Vout/(SQRT(2)*$C$25*SIN($Q118)))) -> 0.07604511556 | AA118: =T118*ABS(1/(Vout/(SQRT(2)*$C$25*SIN($Q118)))) -> 0.07506359597 | AB118: =U118*ABS(1/(Vout/(SQRT(2)*$C$25*SIN($Q118)))) -> 0.07570435111 | AC118: =V118*ABS(1/(Vout/(SQRT(2)*$C$25*SIN($Q118)))) -> 0.1135565267 | AD118: =W118*ABS(1/(Vout/(SQRT(2)*$C$25*SIN($Q118)))) -> 0.1514087022 | AF118: =1/(0.0000128*(R118+Y118+$G$23)) -> 40168.64105 | AG118: =1/(0.0000128*(S118+Z118+$H$23)) -> 85141.45138 | AH118: =1/(0.0000128*(T118+AA118+$I$23)) -> 110174.2051 | AI118: =1/(0.0000128*(U118+AB118+$J$23)) -> 225773.2182 | AJ118: =1/(0.0000128*(V118+AC118+$K$23)) -> 150515.4788 | AK118: =1/(0.0000128*(W118+AD118+$L$23)) -> 112886.6091
A119: Maximum Diode RMS Current | B119: IDIODE_RMS(max) | C119: =(4/3)*Iin_rms_max*SQRT(2/pi*(Vin_pk_min/Vout)) -> 0.2993976379 | D119: A | Q119: =Q118+0.01 -> 1.13 | R119: =(G$5*((90/$G$18)*(90/$G$18))/2)*(1+(SQRT(1+(4/(G$5*((90/$G$18)*(90/$G$18))))*$G$23*(1-(SQRT(2)*Vin_rms_min*(SIN($Q119)/Vout)))))) -> 0.2770448795 | S119: =(H$5*((90/$G$18)*(90/$G$18))/2)*(1+(SQRT(1+(4/(H$5*((90/$G$18)*(90/$G$18))))*$H$23*(1-(SQRT(2)*Vin_rms_min*(SIN($Q119)/Vout)))))) -> 0.2713553603 | T119: =(I$5*((90/$G$18)*(90/$G$18))/2)*(1+(SQRT(1+(4/(I$5*((90/$G$18)*(90/$G$18))))*$I$23*(1-(SQRT(2)*Vin_rms_min*(SIN($Q119)/Vout)))))) -> 0.2678750811 | U119: =(J$5*((90/$G$18)*(90/$G$18))/2)*(1+(SQRT(1+(4/(J$5*((90/$G$18)*(90/$G$18))))*$J$23*(1-(SQRT(2)*Vin_rms_min*(SIN($Q119)/Vout)))))) -> 0.2703287197 | V119: =(K$5*((90/$G$18)*(90/$G$18))/2)*(1+(SQRT(1+(4/(K$5*((90/$G$18)*(90/$G$18))))*$K$23*(1-(SQRT(2)*Vin_rms_min*(SIN($Q119)/Vout)))))) -> 0.4054930796 | W119: =(L$5*((90/$G$18)*(90/$G$18))/2)*(1+(SQRT(1+(4/(L$5*((90/$G$18)*(90/$G$18))))*$L$23*(1-(SQRT(2)*Vin_rms_min*(SIN($Q119)/Vout)))))) -> 0.5406574394 | Y119: =R119*ABS(1/(Vout/(SQRT(2)*$C$25*SIN($Q119)))) -> 0.07795683762 | Z119: =S119*ABS(1/(Vout/(SQRT(2)*$C$25*SIN($Q119)))) -> 0.07635588068 | AA119: =T119*ABS(1/(Vout/(SQRT(2)*$C$25*SIN($Q119)))) -> 0.07537657522 | AB119: =U119*ABS(1/(Vout/(SQRT(2)*$C$25*SIN($Q119)))) -> 0.07606699733 | AC119: =V119*ABS(1/(Vout/(SQRT(2)*$C$25*SIN($Q119)))) -> 0.114100496 | AD119: =W119*ABS(1/(Vout/(SQRT(2)*$C$25*SIN($Q119)))) -> 0.1521339947 | AF119: =1/(0.0000128*(R119+Y119+$G$23)) -> 40167.05966 | AG119: =1/(0.0000128*(S119+Z119+$H$23)) -> 85130.26376 | AH119: =1/(0.0000128*(T119+AA119+$I$23)) -> 110151.3113 | AI119: =1/(0.0000128*(U119+AB119+$J$23)) -> 225536.8532 | AJ119: =1/(0.0000128*(V119+AC119+$K$23)) -> 150357.9022 | AK119: =1/(0.0000128*(W119+AD119+$L$23)) -> 112768.4266
A120: Maximum Diode Average Current | B120: IDIODE_AVG(max) | C120: =Iout -> 0.1 | D120: A | Q120: =Q119+0.01 -> 1.14 | R120: =(G$5*((90/$G$18)*(90/$G$18))/2)*(1+(SQRT(1+(4/(G$5*((90/$G$18)*(90/$G$18))))*$G$23*(1-(SQRT(2)*Vin_rms_min*(SIN($Q120)/Vout)))))) -> 0.2768189831 | S120: =(H$5*((90/$G$18)*(90/$G$18))/2)*(1+(SQRT(1+(4/(H$5*((90/$G$18)*(90/$G$18))))*$H$23*(1-(SQRT(2)*Vin_rms_min*(SIN($Q120)/Vout)))))) -> 0.2711690105 | T120: =(I$5*((90/$G$18)*(90/$G$18))/2)*(1+(SQRT(1+(4/(I$5*((90/$G$18)*(90/$G$18))))*$I$23*(1-(SQRT(2)*Vin_rms_min*(SIN($Q120)/Vout)))))) -> 0.2677128223 | U120: =(J$5*((90/$G$18)*(90/$G$18))/2)*(1+(SQRT(1+(4/(J$5*((90/$G$18)*(90/$G$18))))*$J$23*(1-(SQRT(2)*Vin_rms_min*(SIN($Q120)/Vout)))))) -> 0.2703287197 | V120: =(K$5*((90/$G$18)*(90/$G$18))/2)*(1+(SQRT(1+(4/(K$5*((90/$G$18)*(90/$G$18))))*$K$23*(1-(SQRT(2)*Vin_rms_min*(SIN($Q120)/Vout)))))) -> 0.4054930796 | W120: =(L$5*((90/$G$18)*(90/$G$18))/2)*(1+(SQRT(1+(4/(L$5*((90/$G$18)*(90/$G$18))))*$L$23*(1-(SQRT(2)*Vin_rms_min*(SIN($Q120)/Vout)))))) -> 0.5406574394 | Y120: =R120*ABS(1/(Vout/(SQRT(2)*$C$25*SIN($Q120)))) -> 0.07825683695 | Z120: =S120*ABS(1/(Vout/(SQRT(2)*$C$25*SIN($Q120)))) -> 0.07665958745 | AA120: =T120*ABS(1/(Vout/(SQRT(2)*$C$25*SIN($Q120)))) -> 0.07568252166 | AB120: =U120*ABS(1/(Vout/(SQRT(2)*$C$25*SIN($Q120)))) -> 0.07642203691 | AC120: =V120*ABS(1/(Vout/(SQRT(2)*$C$25*SIN($Q120)))) -> 0.1146330554 | AD120: =W120*ABS(1/(Vout/(SQRT(2)*$C$25*SIN($Q120)))) -> 0.1528440738 | AF120: =1/(0.0000128*(R120+Y120+$G$23)) -> 40165.52938 | AG120: =1/(0.0000128*(S120+Z120+$H$23)) -> 85119.37869 | AH120: =1/(0.0000128*(T120+AA120+$I$23)) -> 110129.0002 | AI120: =1/(0.0000128*(U120+AB120+$J$23)) -> 225305.9251 | AJ120: =1/(0.0000128*(V120+AC120+$K$23)) -> 150203.9501 | AK120: =1/(0.0000128*(W120+AD120+$L$23)) -> 112652.9625
A121: Required Diode Rated Average Current | B121: IDIODE_RATED | C121: =CEILING(MAX(3*(Id_avg_max),2*Id_rms_max),1) -> 1 | D121: A | Q121: =Q120+0.01 -> 1.15 | R121: =(G$5*((90/$G$18)*(90/$G$18))/2)*(1+(SQRT(1+(4/(G$5*((90/$G$18)*(90/$G$18))))*$G$23*(1-(SQRT(2)*Vin_rms_min*(SIN($Q121)/Vout)))))) -> 0.2765977511 | S121: =(H$5*((90/$G$18)*(90/$G$18))/2)*(1+(SQRT(1+(4/(H$5*((90/$G$18)*(90/$G$18))))*$H$23*(1-(SQRT(2)*Vin_rms_min*(SIN($Q121)/Vout)))))) -> 0.2709865169 | T121: =(I$5*((90/$G$18)*(90/$G$18))/2)*(1+(SQRT(1+(4/(I$5*((90/$G$18)*(90/$G$18))))*$I$23*(1-(SQRT(2)*Vin_rms_min*(SIN($Q121)/Vout)))))) -> 0.2675539286 | U121: =(J$5*((90/$G$18)*(90/$G$18))/2)*(1+(SQRT(1+(4/(J$5*((90/$G$18)*(90/$G$18))))*$J$23*(1-(SQRT(2)*Vin_rms_min*(SIN($Q121)/Vout)))))) -> 0.2703287197 | V121: =(K$5*((90/$G$18)*(90/$G$18))/2)*(1+(SQRT(1+(4/(K$5*((90/$G$18)*(90/$G$18))))*$K$23*(1-(SQRT(2)*Vin_rms_min*(SIN($Q121)/Vout)))))) -> 0.4054930796 | W121: =(L$5*((90/$G$18)*(90/$G$18))/2)*(1+(SQRT(1+(4/(L$5*((90/$G$18)*(90/$G$18))))*$L$23*(1-(SQRT(2)*Vin_rms_min*(SIN($Q121)/Vout)))))) -> 0.5406574394 | Y121: =R121*ABS(1/(Vout/(SQRT(2)*$C$25*SIN($Q121)))) -> 0.07854974833 | Z121: =S121*ABS(1/(Vout/(SQRT(2)*$C$25*SIN($Q121)))) -> 0.07695623921 | AA121: =T121*ABS(1/(Vout/(SQRT(2)*$C$25*SIN($Q121)))) -> 0.07598143394 | AB121: =U121*ABS(1/(Vout/(SQRT(2)*$C$25*SIN($Q121)))) -> 0.07676943436 | AC121: =V121*ABS(1/(Vout/(SQRT(2)*$C$25*SIN($Q121)))) -> 0.1151541515 | AD121: =W121*ABS(1/(Vout/(SQRT(2)*$C$25*SIN($Q121)))) -> 0.1535388687 | AF121: =1/(0.0000128*(R121+Y121+$G$23)) -> 40164.04927 | AG121: =1/(0.0000128*(S121+Z121+$H$23)) -> 85108.79298 | AH121: =1/(0.0000128*(T121+AA121+$I$23)) -> 110107.2676 | AI121: =1/(0.0000128*(U121+AB121+$J$23)) -> 225080.4249 | AJ121: =1/(0.0000128*(V121+AC121+$K$23)) -> 150053.6166 | AK121: =1/(0.0000128*(W121+AD121+$L$23)) -> 112540.2124
A122: Required Diode Blocking Voltage: | B122: VBLOCKING | C122: =Vovp2 ->  | D122: V | Q122: =Q121+0.01 -> 1.16 | R122: =(G$5*((90/$G$18)*(90/$G$18))/2)*(1+(SQRT(1+(4/(G$5*((90/$G$18)*(90/$G$18))))*$G$23*(1-(SQRT(2)*Vin_rms_min*(SIN($Q122)/Vout)))))) -> 0.2763812182 | S122: =(H$5*((90/$G$18)*(90/$G$18))/2)*(1+(SQRT(1+(4/(H$5*((90/$G$18)*(90/$G$18))))*$H$23*(1-(SQRT(2)*Vin_rms_min*(SIN($Q122)/Vout)))))) -> 0.2708079075 | T122: =(I$5*((90/$G$18)*(90/$G$18))/2)*(1+(SQRT(1+(4/(I$5*((90/$G$18)*(90/$G$18))))*$I$23*(1-(SQRT(2)*Vin_rms_min*(SIN($Q122)/Vout)))))) -> 0.267398424 | U122: =(J$5*((90/$G$18)*(90/$G$18))/2)*(1+(SQRT(1+(4/(J$5*((90/$G$18)*(90/$G$18))))*$J$23*(1-(SQRT(2)*Vin_rms_min*(SIN($Q122)/Vout)))))) -> 0.2703287197 | V122: =(K$5*((90/$G$18)*(90/$G$18))/2)*(1+(SQRT(1+(4/(K$5*((90/$G$18)*(90/$G$18))))*$K$23*(1-(SQRT(2)*Vin_rms_min*(SIN($Q122)/Vout)))))) -> 0.4054930796 | W122: =(L$5*((90/$G$18)*(90/$G$18))/2)*(1+(SQRT(1+(4/(L$5*((90/$G$18)*(90/$G$18))))*$L$23*(1-(SQRT(2)*Vin_rms_min*(SIN($Q122)/Vout)))))) -> 0.5406574394 | Y122: =R122*ABS(1/(Vout/(SQRT(2)*$C$25*SIN($Q122)))) -> 0.07883558282 | Z122: =S122*ABS(1/(Vout/(SQRT(2)*$C$25*SIN($Q122)))) -> 0.07724583948 | AA122: =T122*ABS(1/(Vout/(SQRT(2)*$C$25*SIN($Q122)))) -> 0.07627331097 | AB122: =U122*ABS(1/(Vout/(SQRT(2)*$C$25*SIN($Q122)))) -> 0.07710915493 | AC122: =V122*ABS(1/(Vout/(SQRT(2)*$C$25*SIN($Q122)))) -> 0.1156637324 | AD122: =W122*ABS(1/(Vout/(SQRT(2)*$C$25*SIN($Q122)))) -> 0.1542183099 | AF122: =1/(0.0000128*(R122+Y122+$G$23)) -> 40162.61836 | AG122: =1/(0.0000128*(S122+Z122+$H$23)) -> 85098.5035 | AH122: =1/(0.0000128*(T122+AA122+$I$23)) -> 110086.109 | AI122: =1/(0.0000128*(U122+AB122+$J$23)) -> 224860.344 | AJ122: =1/(0.0000128*(V122+AC122+$K$23)) -> 149906.896 | AK122: =1/(0.0000128*(W122+AD122+$L$23)) -> 112430.172
Q123: =Q122+0.01 -> 1.17 | R123: =(G$5*((90/$G$18)*(90/$G$18))/2)*(1+(SQRT(1+(4/(G$5*((90/$G$18)*(90/$G$18))))*$G$23*(1-(SQRT(2)*Vin_rms_min*(SIN($Q123)/Vout)))))) -> 0.2761694182 | S123: =(H$5*((90/$G$18)*(90/$G$18))/2)*(1+(SQRT(1+(4/(H$5*((90/$G$18)*(90/$G$18))))*$H$23*(1-(SQRT(2)*Vin_rms_min*(SIN($Q123)/Vout)))))) -> 0.2706332097 | T123: =(I$5*((90/$G$18)*(90/$G$18))/2)*(1+(SQRT(1+(4/(I$5*((90/$G$18)*(90/$G$18))))*$I$23*(1-(SQRT(2)*Vin_rms_min*(SIN($Q123)/Vout)))))) -> 0.267246332 | U123: =(J$5*((90/$G$18)*(90/$G$18))/2)*(1+(SQRT(1+(4/(J$5*((90/$G$18)*(90/$G$18))))*$J$23*(1-(SQRT(2)*Vin_rms_min*(SIN($Q123)/Vout)))))) -> 0.2703287197 | V123: =(K$5*((90/$G$18)*(90/$G$18))/2)*(1+(SQRT(1+(4/(K$5*((90/$G$18)*(90/$G$18))))*$K$23*(1-(SQRT(2)*Vin_rms_min*(SIN($Q123)/Vout)))))) -> 0.4054930796 | W123: =(L$5*((90/$G$18)*(90/$G$18))/2)*(1+(SQRT(1+(4/(L$5*((90/$G$18)*(90/$G$18))))*$L$23*(1-(SQRT(2)*Vin_rms_min*(SIN($Q123)/Vout)))))) -> 0.5406574394 | Y123: =R123*ABS(1/(Vout/(SQRT(2)*$C$25*SIN($Q123)))) -> 0.07911435162 | Z123: =S123*ABS(1/(Vout/(SQRT(2)*$C$25*SIN($Q123)))) -> 0.07752839199 | AA123: =T123*ABS(1/(Vout/(SQRT(2)*$C$25*SIN($Q123)))) -> 0.07655815193 | AB123: =U123*ABS(1/(Vout/(SQRT(2)*$C$25*SIN($Q123)))) -> 0.07744116464 | AC123: =V123*ABS(1/(Vout/(SQRT(2)*$C$25*SIN($Q123)))) -> 0.116161747 | AD123: =W123*ABS(1/(Vout/(SQRT(2)*$C$25*SIN($Q123)))) -> 0.1548823293 | AF123: =1/(0.0000128*(R123+Y123+$G$23)) -> 40161.23571 | AG123: =1/(0.0000128*(S123+Z123+$H$23)) -> 85088.50714 | AH123: =1/(0.0000128*(T123+AA123+$I$23)) -> 110065.5205 | AI123: =1/(0.0000128*(U123+AB123+$J$23)) -> 224645.6738 | AJ123: =1/(0.0000128*(V123+AC123+$K$23)) -> 149763.7825 | AK123: =1/(0.0000128*(W123+AD123+$L$23)) -> 112322.8369
E124: =IF(VCC<12,"Bias voltage should be >12V","") ->  | Q124: =Q123+0.01 -> 1.18 | R124: =(G$5*((90/$G$18)*(90/$G$18))/2)*(1+(SQRT(1+(4/(G$5*((90/$G$18)*(90/$G$18))))*$G$23*(1-(SQRT(2)*Vin_rms_min*(SIN($Q124)/Vout)))))) -> 0.2759623845 | S124: =(H$5*((90/$G$18)*(90/$G$18))/2)*(1+(SQRT(1+(4/(H$5*((90/$G$18)*(90/$G$18))))*$H$23*(1-(SQRT(2)*Vin_rms_min*(SIN($Q124)/Vout)))))) -> 0.2704624506 | T124: =(I$5*((90/$G$18)*(90/$G$18))/2)*(1+(SQRT(1+(4/(I$5*((90/$G$18)*(90/$G$18))))*$I$23*(1-(SQRT(2)*Vin_rms_min*(SIN($Q124)/Vout)))))) -> 0.2670976756 | U124: =(J$5*((90/$G$18)*(90/$G$18))/2)*(1+(SQRT(1+(4/(J$5*((90/$G$18)*(90/$G$18))))*$J$23*(1-(SQRT(2)*Vin_rms_min*(SIN($Q124)/Vout)))))) -> 0.2703287197 | V124: =(K$5*((90/$G$18)*(90/$G$18))/2)*(1+(SQRT(1+(4/(K$5*((90/$G$18)*(90/$G$18))))*$K$23*(1-(SQRT(2)*Vin_rms_min*(SIN($Q124)/Vout)))))) -> 0.4054930796 | W124: =(L$5*((90/$G$18)*(90/$G$18))/2)*(1+(SQRT(1+(4/(L$5*((90/$G$18)*(90/$G$18))))*$L$23*(1-(SQRT(2)*Vin_rms_min*(SIN($Q124)/Vout)))))) -> 0.5406574394 | Y124: =R124*ABS(1/(Vout/(SQRT(2)*$C$25*SIN($Q124)))) -> 0.07938606597 | Z124: =S124*ABS(1/(Vout/(SQRT(2)*$C$25*SIN($Q124)))) -> 0.07780390065 | AA124: =T124*ABS(1/(Vout/(SQRT(2)*$C$25*SIN($Q124)))) -> 0.07683595622 | AB124: =U124*ABS(1/(Vout/(SQRT(2)*$C$25*SIN($Q124)))) -> 0.0777654303 | AC124: =V124*ABS(1/(Vout/(SQRT(2)*$C$25*SIN($Q124)))) -> 0.1166481455 | AD124: =W124*ABS(1/(Vout/(SQRT(2)*$C$25*SIN($Q124)))) -> 0.1555308606 | AF124: =1/(0.0000128*(R124+Y124+$G$23)) -> 40159.90039 | AG124: =1/(0.0000128*(S124+Z124+$H$23)) -> 85078.80082 | AH124: =1/(0.0000128*(T124+AA124+$I$23)) -> 110045.4979 | AI124: =1/(0.0000128*(U124+AB124+$J$23)) -> 224436.4061 | AJ124: =1/(0.0000128*(V124+AC124+$K$23)) -> 149624.2707 | AK124: =1/(0.0000128*(W124+AD124+$L$23)) -> 112218.203
A125: SWITCHING ELEMENT: | Q125: =Q124+0.01 -> 1.19 | R125: =(G$5*((90/$G$18)*(90/$G$18))/2)*(1+(SQRT(1+(4/(G$5*((90/$G$18)*(90/$G$18))))*$G$23*(1-(SQRT(2)*Vin_rms_min*(SIN($Q125)/Vout)))))) -> 0.2757601496 | S125: =(H$5*((90/$G$18)*(90/$G$18))/2)*(1+(SQRT(1+(4/(H$5*((90/$G$18)*(90/$G$18))))*$H$23*(1-(SQRT(2)*Vin_rms_min*(SIN($Q125)/Vout)))))) -> 0.2702956566 | T125: =(I$5*((90/$G$18)*(90/$G$18))/2)*(1+(SQRT(1+(4/(I$5*((90/$G$18)*(90/$G$18))))*$I$23*(1-(SQRT(2)*Vin_rms_min*(SIN($Q125)/Vout)))))) -> 0.2669524773 | U125: =(J$5*((90/$G$18)*(90/$G$18))/2)*(1+(SQRT(1+(4/(J$5*((90/$G$18)*(90/$G$18))))*$J$23*(1-(SQRT(2)*Vin_rms_min*(SIN($Q125)/Vout)))))) -> 0.2703287197 | V125: =(K$5*((90/$G$18)*(90/$G$18))/2)*(1+(SQRT(1+(4/(K$5*((90/$G$18)*(90/$G$18))))*$K$23*(1-(SQRT(2)*Vin_rms_min*(SIN($Q125)/Vout)))))) -> 0.4054930796 | W125: =(L$5*((90/$G$18)*(90/$G$18))/2)*(1+(SQRT(1+(4/(L$5*((90/$G$18)*(90/$G$18))))*$L$23*(1-(SQRT(2)*Vin_rms_min*(SIN($Q125)/Vout)))))) -> 0.5406574394 | Y125: =R125*ABS(1/(Vout/(SQRT(2)*$C$25*SIN($Q125)))) -> 0.07965073715 | Z125: =S125*ABS(1/(Vout/(SQRT(2)*$C$25*SIN($Q125)))) -> 0.07807236951 | AA125: =T125*ABS(1/(Vout/(SQRT(2)*$C$25*SIN($Q125)))) -> 0.07710672349 | AB125: =U125*ABS(1/(Vout/(SQRT(2)*$C$25*SIN($Q125)))) -> 0.07808191949 | AC125: =V125*ABS(1/(Vout/(SQRT(2)*$C$25*SIN($Q125)))) -> 0.1171228792 | AD125: =W125*ABS(1/(Vout/(SQRT(2)*$C$25*SIN($Q125)))) -> 0.156163839 | AF125: =1/(0.0000128*(R125+Y125+$G$23)) -> 40158.6115 | AG125: =1/(0.0000128*(S125+Z125+$H$23)) -> 85069.38153 | AH125: =1/(0.0000128*(T125+AA125+$I$23)) -> 110026.0371 | AI125: =1/(0.0000128*(U125+AB125+$J$23)) -> 224232.5326 | AJ125: =1/(0.0000128*(V125+AC125+$K$23)) -> 149488.355 | AK125: =1/(0.0000128*(W125+AD125+$L$23)) -> 112116.2663
A126: VCC Bias Voltage to the UCC28056: | B126: VCC | C126: 15 | D126: V | Q126: =Q125+0.01 -> 1.2 | R126: =(G$5*((90/$G$18)*(90/$G$18))/2)*(1+(SQRT(1+(4/(G$5*((90/$G$18)*(90/$G$18))))*$G$23*(1-(SQRT(2)*Vin_rms_min*(SIN($Q126)/Vout)))))) -> 0.2755627456 | S126: =(H$5*((90/$G$18)*(90/$G$18))/2)*(1+(SQRT(1+(4/(H$5*((90/$G$18)*(90/$G$18))))*$H$23*(1-(SQRT(2)*Vin_rms_min*(SIN($Q126)/Vout)))))) -> 0.2701328535 | T126: =(I$5*((90/$G$18)*(90/$G$18))/2)*(1+(SQRT(1+(4/(I$5*((90/$G$18)*(90/$G$18))))*$I$23*(1-(SQRT(2)*Vin_rms_min*(SIN($Q126)/Vout)))))) -> 0.2668107593 | U126: =(J$5*((90/$G$18)*(90/$G$18))/2)*(1+(SQRT(1+(4/(J$5*((90/$G$18)*(90/$G$18))))*$J$23*(1-(SQRT(2)*Vin_rms_min*(SIN($Q126)/Vout)))))) -> 0.2703287197 | V126: =(K$5*((90/$G$18)*(90/$G$18))/2)*(1+(SQRT(1+(4/(K$5*((90/$G$18)*(90/$G$18))))*$K$23*(1-(SQRT(2)*Vin_rms_min*(SIN($Q126)/Vout)))))) -> 0.4054930796 | W126: =(L$5*((90/$G$18)*(90/$G$18))/2)*(1+(SQRT(1+(4/(L$5*((90/$G$18)*(90/$G$18))))*$L$23*(1-(SQRT(2)*Vin_rms_min*(SIN($Q126)/Vout)))))) -> 0.5406574394 | Y126: =R126*ABS(1/(Vout/(SQRT(2)*$C$25*SIN($Q126)))) -> 0.07990837649 | Z126: =S126*ABS(1/(Vout/(SQRT(2)*$C$25*SIN($Q126)))) -> 0.07833380277 | AA126: =T126*ABS(1/(Vout/(SQRT(2)*$C$25*SIN($Q126)))) -> 0.07737045356 | AB126: =U126*ABS(1/(Vout/(SQRT(2)*$C$25*SIN($Q126)))) -> 0.07839060054 | AC126: =V126*ABS(1/(Vout/(SQRT(2)*$C$25*SIN($Q126)))) -> 0.1175859008 | AD126: =W126*ABS(1/(Vout/(SQRT(2)*$C$25*SIN($Q126)))) -> 0.1567812011 | AF126: =1/(0.0000128*(R126+Y126+$G$23)) -> 40157.36811 | AG126: =1/(0.0000128*(S126+Z126+$H$23)) -> 85060.2463 | AH126: =1/(0.0000128*(T126+AA126+$I$23)) -> 110007.1342 | AI126: =1/(0.0000128*(U126+AB126+$J$23)) -> 224034.0453 | AJ126: =1/(0.0000128*(V126+AC126+$K$23)) -> 149356.0302 | AK126: =1/(0.0000128*(W126+AD126+$L$23)) -> 112017.0227
A127: Gate-Source Voltage: | B127: VGS | C127: =IF(VCC>=15,15,VCC) -> 15 | D127: V | Q127: =Q126+0.01 -> 1.21 | R127: =(G$5*((90/$G$18)*(90/$G$18))/2)*(1+(SQRT(1+(4/(G$5*((90/$G$18)*(90/$G$18))))*$G$23*(1-(SQRT(2)*Vin_rms_min*(SIN($Q127)/Vout)))))) -> 0.2753702036 | S127: =(H$5*((90/$G$18)*(90/$G$18))/2)*(1+(SQRT(1+(4/(H$5*((90/$G$18)*(90/$G$18))))*$H$23*(1-(SQRT(2)*Vin_rms_min*(SIN($Q127)/Vout)))))) -> 0.2699740667 | T127: =(I$5*((90/$G$18)*(90/$G$18))/2)*(1+(SQRT(1+(4/(I$5*((90/$G$18)*(90/$G$18))))*$I$23*(1-(SQRT(2)*Vin_rms_min*(SIN($Q127)/Vout)))))) -> 0.2666725432 | U127: =(J$5*((90/$G$18)*(90/$G$18))/2)*(1+(SQRT(1+(4/(J$5*((90/$G$18)*(90/$G$18))))*$J$23*(1-(SQRT(2)*Vin_rms_min*(SIN($Q127)/Vout)))))) -> 0.2703287197 | V127: =(K$5*((90/$G$18)*(90/$G$18))/2)*(1+(SQRT(1+(4/(K$5*((90/$G$18)*(90/$G$18))))*$K$23*(1-(SQRT(2)*Vin_rms_min*(SIN($Q127)/Vout)))))) -> 0.4054930796 | W127: =(L$5*((90/$G$18)*(90/$G$18))/2)*(1+(SQRT(1+(4/(L$5*((90/$G$18)*(90/$G$18))))*$L$23*(1-(SQRT(2)*Vin_rms_min*(SIN($Q127)/Vout)))))) -> 0.5406574394 | Y127: =R127*ABS(1/(Vout/(SQRT(2)*$C$25*SIN($Q127)))) -> 0.0801589953 | Z127: =S127*ABS(1/(Vout/(SQRT(2)*$C$25*SIN($Q127)))) -> 0.07858820476 | AA127: =T127*ABS(1/(Vout/(SQRT(2)*$C$25*SIN($Q127)))) -> 0.0776271465 | AB127: =U127*ABS(1/(Vout/(SQRT(2)*$C$25*SIN($Q127)))) -> 0.07869144261 | AC127: =V127*ABS(1/(Vout/(SQRT(2)*$C$25*SIN($Q127)))) -> 0.1180371639 | AD127: =W127*ABS(1/(Vout/(SQRT(2)*$C$25*SIN($Q127)))) -> 0.1573828852 | AF127: =1/(0.0000128*(R127+Y127+$G$23)) -> 40156.16936 | AG127: =1/(0.0000128*(S127+Z127+$H$23)) -> 85051.39219 | AH127: =1/(0.0000128*(T127+AA127+$I$23)) -> 109988.7852 | AI127: =1/(0.0000128*(U127+AB127+$J$23)) -> 223840.9365 | AJ127: =1/(0.0000128*(V127+AC127+$K$23)) -> 149227.291 | AK127: =1/(0.0000128*(W127+AD127+$L$23)) -> 111920.4683
A128: Drain-Source RMS Current: | B128: IDS_RMS(max) | C128: =(Vin_rms_min/Rin_min)*SQRT(4/3-32*Vin_pk_min/(9*pi*Vout)) -> 0.4947853421 | D128: A | Q128: =Q127+0.01 -> 1.22 | R128: =(G$5*((90/$G$18)*(90/$G$18))/2)*(1+(SQRT(1+(4/(G$5*((90/$G$18)*(90/$G$18))))*$G$23*(1-(SQRT(2)*Vin_rms_min*(SIN($Q128)/Vout)))))) -> 0.2751825544 | S128: =(H$5*((90/$G$18)*(90/$G$18))/2)*(1+(SQRT(1+(4/(H$5*((90/$G$18)*(90/$G$18))))*$H$23*(1-(SQRT(2)*Vin_rms_min*(SIN($Q128)/Vout)))))) -> 0.269819321 | T128: =(I$5*((90/$G$18)*(90/$G$18))/2)*(1+(SQRT(1+(4/(I$5*((90/$G$18)*(90/$G$18))))*$I$23*(1-(SQRT(2)*Vin_rms_min*(SIN($Q128)/Vout)))))) -> 0.2665378501 | U128: =(J$5*((90/$G$18)*(90/$G$18))/2)*(1+(SQRT(1+(4/(J$5*((90/$G$18)*(90/$G$18))))*$J$23*(1-(SQRT(2)*Vin_rms_min*(SIN($Q128)/Vout)))))) -> 0.2703287197 | V128: =(K$5*((90/$G$18)*(90/$G$18))/2)*(1+(SQRT(1+(4/(K$5*((90/$G$18)*(90/$G$18))))*$K$23*(1-(SQRT(2)*Vin_rms_min*(SIN($Q128)/Vout)))))) -> 0.4054930796 | W128: =(L$5*((90/$G$18)*(90/$G$18))/2)*(1+(SQRT(1+(4/(L$5*((90/$G$18)*(90/$G$18))))*$L$23*(1-(SQRT(2)*Vin_rms_min*(SIN($Q128)/Vout)))))) -> 0.5406574394 | Y128: =R128*ABS(1/(Vout/(SQRT(2)*$C$25*SIN($Q128)))) -> 0.08040260488 | Z128: =S128*ABS(1/(Vout/(SQRT(2)*$C$25*SIN($Q128)))) -> 0.0788355799 | AA128: =T128*ABS(1/(Vout/(SQRT(2)*$C$25*SIN($Q128)))) -> 0.07787680253 | AB128: =U128*ABS(1/(Vout/(SQRT(2)*$C$25*SIN($Q128)))) -> 0.07898441559 | AC128: =V128*ABS(1/(Vout/(SQRT(2)*$C$25*SIN($Q128)))) -> 0.1184766234 | AD128: =W128*ABS(1/(Vout/(SQRT(2)*$C$25*SIN($Q128)))) -> 0.1579688312 | AF128: =1/(0.0000128*(R128+Y128+$G$23)) -> 40155.01436 | AG128: =1/(0.0000128*(S128+Z128+$H$23)) -> 85042.81632 | AH128: =1/(0.0000128*(T128+AA128+$I$23)) -> 109970.9863 | AI128: =1/(0.0000128*(U128+AB128+$J$23)) -> 223653.1985 | AJ128: =1/(0.0000128*(V128+AC128+$K$23)) -> 149102.1324 | AK128: =1/(0.0000128*(W128+AD128+$L$23)) -> 111826.5993
A129: FET On-Resistance at TJ = 125°C: | B129: RDSon | C129: 0.2 | D129: W | Q129: =Q128+0.01 -> 1.23 | R129: =(G$5*((90/$G$18)*(90/$G$18))/2)*(1+(SQRT(1+(4/(G$5*((90/$G$18)*(90/$G$18))))*$G$23*(1-(SQRT(2)*Vin_rms_min*(SIN($Q129)/Vout)))))) -> 0.2749998277 | S129: =(H$5*((90/$G$18)*(90/$G$18))/2)*(1+(SQRT(1+(4/(H$5*((90/$G$18)*(90/$G$18))))*$H$23*(1-(SQRT(2)*Vin_rms_min*(SIN($Q129)/Vout)))))) -> 0.2696686405 | T129: =(I$5*((90/$G$18)*(90/$G$18))/2)*(1+(SQRT(1+(4/(I$5*((90/$G$18)*(90/$G$18))))*$I$23*(1-(SQRT(2)*Vin_rms_min*(SIN($Q129)/Vout)))))) -> 0.2664067007 | U129: =(J$5*((90/$G$18)*(90/$G$18))/2)*(1+(SQRT(1+(4/(J$5*((90/$G$18)*(90/$G$18))))*$J$23*(1-(SQRT(2)*Vin_rms_min*(SIN($Q129)/Vout)))))) -> 0.2703287197 | V129: =(K$5*((90/$G$18)*(90/$G$18))/2)*(1+(SQRT(1+(4/(K$5*((90/$G$18)*(90/$G$18))))*$K$23*(1-(SQRT(2)*Vin_rms_min*(SIN($Q129)/Vout)))))) -> 0.4054930796 | W129: =(L$5*((90/$G$18)*(90/$G$18))/2)*(1+(SQRT(1+(4/(L$5*((90/$G$18)*(90/$G$18))))*$L$23*(1-(SQRT(2)*Vin_rms_min*(SIN($Q129)/Vout)))))) -> 0.5406574394 | Y129: =R129*ABS(1/(Vout/(SQRT(2)*$C$25*SIN($Q129)))) -> 0.08063921648 | Z129: =S129*ABS(1/(Vout/(SQRT(2)*$C$25*SIN($Q129)))) -> 0.07907593272 | AA129: =T129*ABS(1/(Vout/(SQRT(2)*$C$25*SIN($Q129)))) -> 0.07811942205 | AB129: =U129*ABS(1/(Vout/(SQRT(2)*$C$25*SIN($Q129)))) -> 0.0792694902 | AC129: =V129*ABS(1/(Vout/(SQRT(2)*$C$25*SIN($Q129)))) -> 0.1189042353 | AD129: =W129*ABS(1/(Vout/(SQRT(2)*$C$25*SIN($Q129)))) -> 0.1585389804 | AF129: =1/(0.0000128*(R129+Y129+$G$23)) -> 40153.90225 | AG129: =1/(0.0000128*(S129+Z129+$H$23)) -> 85034.51588 | AH129: =1/(0.0000128*(T129+AA129+$I$23)) -> 109953.7336 | AI129: =1/(0.0000128*(U129+AB129+$J$23)) -> 223470.8239 | AJ129: =1/(0.0000128*(V129+AC129+$K$23)) -> 148980.5493 | AK129: =1/(0.0000128*(W129+AD129+$L$23)) -> 111735.4119
A130: FET Gate Charge at VGS: | B130: Qg | C130: 29 | D130: nC | Q130: =Q129+0.01 -> 1.24 | R130: =(G$5*((90/$G$18)*(90/$G$18))/2)*(1+(SQRT(1+(4/(G$5*((90/$G$18)*(90/$G$18))))*$G$23*(1-(SQRT(2)*Vin_rms_min*(SIN($Q130)/Vout)))))) -> 0.2748220529 | S130: =(H$5*((90/$G$18)*(90/$G$18))/2)*(1+(SQRT(1+(4/(H$5*((90/$G$18)*(90/$G$18))))*$H$23*(1-(SQRT(2)*Vin_rms_min*(SIN($Q130)/Vout)))))) -> 0.2695220488 | T130: =(I$5*((90/$G$18)*(90/$G$18))/2)*(1+(SQRT(1+(4/(I$5*((90/$G$18)*(90/$G$18))))*$I$23*(1-(SQRT(2)*Vin_rms_min*(SIN($Q130)/Vout)))))) -> 0.266279115 | U130: =(J$5*((90/$G$18)*(90/$G$18))/2)*(1+(SQRT(1+(4/(J$5*((90/$G$18)*(90/$G$18))))*$J$23*(1-(SQRT(2)*Vin_rms_min*(SIN($Q130)/Vout)))))) -> 0.2703287197 | V130: =(K$5*((90/$G$18)*(90/$G$18))/2)*(1+(SQRT(1+(4/(K$5*((90/$G$18)*(90/$G$18))))*$K$23*(1-(SQRT(2)*Vin_rms_min*(SIN($Q130)/Vout)))))) -> 0.4054930796 | W130: =(L$5*((90/$G$18)*(90/$G$18))/2)*(1+(SQRT(1+(4/(L$5*((90/$G$18)*(90/$G$18))))*$L$23*(1-(SQRT(2)*Vin_rms_min*(SIN($Q130)/Vout)))))) -> 0.5406574394 | Y130: =R130*ABS(1/(Vout/(SQRT(2)*$C$25*SIN($Q130)))) -> 0.0808688413 | Z130: =S130*ABS(1/(Vout/(SQRT(2)*$C$25*SIN($Q130)))) -> 0.07930926782 | AA130: =T130*ABS(1/(Vout/(SQRT(2)*$C$25*SIN($Q130)))) -> 0.0783550056 | AB130: =U130*ABS(1/(Vout/(SQRT(2)*$C$25*SIN($Q130)))) -> 0.07954663792 | AC130: =V130*ABS(1/(Vout/(SQRT(2)*$C$25*SIN($Q130)))) -> 0.1193199569 | AD130: =W130*ABS(1/(Vout/(SQRT(2)*$C$25*SIN($Q130)))) -> 0.1590932758 | AF130: =1/(0.0000128*(R130+Y130+$G$23)) -> 40152.83221 | AG130: =1/(0.0000128*(S130+Z130+$H$23)) -> 85026.48809 | AH130: =1/(0.0000128*(T130+AA130+$I$23)) -> 109937.0235 | AI130: =1/(0.0000128*(U130+AB130+$J$23)) -> 223293.8053 | AJ130: =1/(0.0000128*(V130+AC130+$K$23)) -> 148862.5369 | AK130: =1/(0.0000128*(W130+AD130+$L$23)) -> 111646.9027
A131: FET Rise Time: | B131: tr | C131: 5 | D131: ns | Q131: =Q130+0.01 -> 1.25 | R131: =(G$5*((90/$G$18)*(90/$G$18))/2)*(1+(SQRT(1+(4/(G$5*((90/$G$18)*(90/$G$18))))*$G$23*(1-(SQRT(2)*Vin_rms_min*(SIN($Q131)/Vout)))))) -> 0.2746492583 | S131: =(H$5*((90/$G$18)*(90/$G$18))/2)*(1+(SQRT(1+(4/(H$5*((90/$G$18)*(90/$G$18))))*$H$23*(1-(SQRT(2)*Vin_rms_min*(SIN($Q131)/Vout)))))) -> 0.2693795691 | T131: =(I$5*((90/$G$18)*(90/$G$18))/2)*(1+(SQRT(1+(4/(I$5*((90/$G$18)*(90/$G$18))))*$I$23*(1-(SQRT(2)*Vin_rms_min*(SIN($Q131)/Vout)))))) -> 0.2661551128 | U131: =(J$5*((90/$G$18)*(90/$G$18))/2)*(1+(SQRT(1+(4/(J$5*((90/$G$18)*(90/$G$18))))*$J$23*(1-(SQRT(2)*Vin_rms_min*(SIN($Q131)/Vout)))))) -> 0.2703287197 | V131: =(K$5*((90/$G$18)*(90/$G$18))/2)*(1+(SQRT(1+(4/(K$5*((90/$G$18)*(90/$G$18))))*$K$23*(1-(SQRT(2)*Vin_rms_min*(SIN($Q131)/Vout)))))) -> 0.4054930796 | W131: =(L$5*((90/$G$18)*(90/$G$18))/2)*(1+(SQRT(1+(4/(L$5*((90/$G$18)*(90/$G$18))))*$L$23*(1-(SQRT(2)*Vin_rms_min*(SIN($Q131)/Vout)))))) -> 0.5406574394 | Y131: =R131*ABS(1/(Vout/(SQRT(2)*$C$25*SIN($Q131)))) -> 0.08109149046 | Z131: =S131*ABS(1/(Vout/(SQRT(2)*$C$25*SIN($Q131)))) -> 0.07953558983 | AA131: =T131*ABS(1/(Vout/(SQRT(2)*$C$25*SIN($Q131)))) -> 0.0785835539 | AB131: =U131*ABS(1/(Vout/(SQRT(2)*$C$25*SIN($Q131)))) -> 0.07981583105 | AC131: =V131*ABS(1/(Vout/(SQRT(2)*$C$25*SIN($Q131)))) -> 0.1197237466 | AD131: =W131*ABS(1/(Vout/(SQRT(2)*$C$25*SIN($Q131)))) -> 0.1596316621 | AF131: =1/(0.0000128*(R131+Y131+$G$23)) -> 40151.80339 | AG131: =1/(0.0000128*(S131+Z131+$H$23)) -> 85018.73023 | AH131: =1/(0.0000128*(T131+AA131+$I$23)) -> 109920.8523 | AI131: =1/(0.0000128*(U131+AB131+$J$23)) -> 223122.1358 | AJ131: =1/(0.0000128*(V131+AC131+$K$23)) -> 148748.0905 | AK131: =1/(0.0000128*(W131+AD131+$L$23)) -> 111561.0679
A132: FET Fall Time: | B132: tf | C132: 4.5 | D132: ns | Q132: =Q131+0.01 -> 1.26 | R132: =(G$5*((90/$G$18)*(90/$G$18))/2)*(1+(SQRT(1+(4/(G$5*((90/$G$18)*(90/$G$18))))*$G$23*(1-(SQRT(2)*Vin_rms_min*(SIN($Q132)/Vout)))))) -> 0.2744814716 | S132: =(H$5*((90/$G$18)*(90/$G$18))/2)*(1+(SQRT(1+(4/(H$5*((90/$G$18)*(90/$G$18))))*$H$23*(1-(SQRT(2)*Vin_rms_min*(SIN($Q132)/Vout)))))) -> 0.2692412236 | T132: =(I$5*((90/$G$18)*(90/$G$18))/2)*(1+(SQRT(1+(4/(I$5*((90/$G$18)*(90/$G$18))))*$I$23*(1-(SQRT(2)*Vin_rms_min*(SIN($Q132)/Vout)))))) -> 0.2660347132 | U132: =(J$5*((90/$G$18)*(90/$G$18))/2)*(1+(SQRT(1+(4/(J$5*((90/$G$18)*(90/$G$18))))*$J$23*(1-(SQRT(2)*Vin_rms_min*(SIN($Q132)/Vout)))))) -> 0.2703287197 | V132: =(K$5*((90/$G$18)*(90/$G$18))/2)*(1+(SQRT(1+(4/(K$5*((90/$G$18)*(90/$G$18))))*$K$23*(1-(SQRT(2)*Vin_rms_min*(SIN($Q132)/Vout)))))) -> 0.4054930796 | W132: =(L$5*((90/$G$18)*(90/$G$18))/2)*(1+(SQRT(1+(4/(L$5*((90/$G$18)*(90/$G$18))))*$L$23*(1-(SQRT(2)*Vin_rms_min*(SIN($Q132)/Vout)))))) -> 0.5406574394 | Y132: =R132*ABS(1/(Vout/(SQRT(2)*$C$25*SIN($Q132)))) -> 0.08130717497 | Z132: =S132*ABS(1/(Vout/(SQRT(2)*$C$25*SIN($Q132)))) -> 0.07975490347 | AA132: =T132*ABS(1/(Vout/(SQRT(2)*$C$25*SIN($Q132)))) -> 0.07880506776 | AB132: =U132*ABS(1/(Vout/(SQRT(2)*$C$25*SIN($Q132)))) -> 0.08007704266 | AC132: =V132*ABS(1/(Vout/(SQRT(2)*$C$25*SIN($Q132)))) -> 0.120115564 | AD132: =W132*ABS(1/(Vout/(SQRT(2)*$C$25*SIN($Q132)))) -> 0.1601540853 | AF132: =1/(0.0000128*(R132+Y132+$G$23)) -> 40150.81501 | AG132: =1/(0.0000128*(S132+Z132+$H$23)) -> 85011.23966 | AH132: =1/(0.0000128*(T132+AA132+$I$23)) -> 109905.2165 | AI132: =1/(0.0000128*(U132+AB132+$J$23)) -> 222955.8083 | AJ132: =1/(0.0000128*(V132+AC132+$K$23)) -> 148637.2056 | AK132: =1/(0.0000128*(W132+AD132+$L$23)) -> 111477.9042
A133: FET Output Capacitance: | B133: COSS | C133: 56 | D133: pF | Q133: =Q132+0.01 -> 1.27 | R133: =(G$5*((90/$G$18)*(90/$G$18))/2)*(1+(SQRT(1+(4/(G$5*((90/$G$18)*(90/$G$18))))*$G$23*(1-(SQRT(2)*Vin_rms_min*(SIN($Q133)/Vout)))))) -> 0.2743187199 | S133: =(H$5*((90/$G$18)*(90/$G$18))/2)*(1+(SQRT(1+(4/(H$5*((90/$G$18)*(90/$G$18))))*$H$23*(1-(SQRT(2)*Vin_rms_min*(SIN($Q133)/Vout)))))) -> 0.2691070342 | T133: =(I$5*((90/$G$18)*(90/$G$18))/2)*(1+(SQRT(1+(4/(I$5*((90/$G$18)*(90/$G$18))))*$I$23*(1-(SQRT(2)*Vin_rms_min*(SIN($Q133)/Vout)))))) -> 0.2659179347 | U133: =(J$5*((90/$G$18)*(90/$G$18))/2)*(1+(SQRT(1+(4/(J$5*((90/$G$18)*(90/$G$18))))*$J$23*(1-(SQRT(2)*Vin_rms_min*(SIN($Q133)/Vout)))))) -> 0.2703287197 | V133: =(K$5*((90/$G$18)*(90/$G$18))/2)*(1+(SQRT(1+(4/(K$5*((90/$G$18)*(90/$G$18))))*$K$23*(1-(SQRT(2)*Vin_rms_min*(SIN($Q133)/Vout)))))) -> 0.4054930796 | W133: =(L$5*((90/$G$18)*(90/$G$18))/2)*(1+(SQRT(1+(4/(L$5*((90/$G$18)*(90/$G$18))))*$L$23*(1-(SQRT(2)*Vin_rms_min*(SIN($Q133)/Vout)))))) -> 0.5406574394 | Y133: =R133*ABS(1/(Vout/(SQRT(2)*$C$25*SIN($Q133)))) -> 0.08151590572 | Z133: =S133*ABS(1/(Vout/(SQRT(2)*$C$25*SIN($Q133)))) -> 0.07996721345 | AA133: =T133*ABS(1/(Vout/(SQRT(2)*$C$25*SIN($Q133)))) -> 0.07901954813 | AB133: =U133*ABS(1/(Vout/(SQRT(2)*$C$25*SIN($Q133)))) -> 0.08033024663 | AC133: =V133*ABS(1/(Vout/(SQRT(2)*$C$25*SIN($Q133)))) -> 0.12049537 | AD133: =W133*ABS(1/(Vout/(SQRT(2)*$C$25*SIN($Q133)))) -> 0.1606604933 | AF133: =1/(0.0000128*(R133+Y133+$G$23)) -> 40149.86627 | AG133: =1/(0.0000128*(S133+Z133+$H$23)) -> 85004.01376 | AH133: =1/(0.0000128*(T133+AA133+$I$23)) -> 109890.1125 | AI133: =1/(0.0000128*(U133+AB133+$J$23)) -> 222794.8163 | AJ133: =1/(0.0000128*(V133+AC133+$K$23)) -> 148529.8775 | AK133: =1/(0.0000128*(W133+AD133+$L$23)) -> 111397.4082
A134: FET Maximum Junction Temperature: | B134: TJ(max) | C134: 125 | D134: °C | Q134: =Q133+0.01 -> 1.28 | R134: =(G$5*((90/$G$18)*(90/$G$18))/2)*(1+(SQRT(1+(4/(G$5*((90/$G$18)*(90/$G$18))))*$G$23*(1-(SQRT(2)*Vin_rms_min*(SIN($Q134)/Vout)))))) -> 0.2741610295 | S134: =(H$5*((90/$G$18)*(90/$G$18))/2)*(1+(SQRT(1+(4/(H$5*((90/$G$18)*(90/$G$18))))*$H$23*(1-(SQRT(2)*Vin_rms_min*(SIN($Q134)/Vout)))))) -> 0.2689770222 | T134: =(I$5*((90/$G$18)*(90/$G$18))/2)*(1+(SQRT(1+(4/(I$5*((90/$G$18)*(90/$G$18))))*$I$23*(1-(SQRT(2)*Vin_rms_min*(SIN($Q134)/Vout)))))) -> 0.2658047955 | U134: =(J$5*((90/$G$18)*(90/$G$18))/2)*(1+(SQRT(1+(4/(J$5*((90/$G$18)*(90/$G$18))))*$J$23*(1-(SQRT(2)*Vin_rms_min*(SIN($Q134)/Vout)))))) -> 0.2703287197 | V134: =(K$5*((90/$G$18)*(90/$G$18))/2)*(1+(SQRT(1+(4/(K$5*((90/$G$18)*(90/$G$18))))*$K$23*(1-(SQRT(2)*Vin_rms_min*(SIN($Q134)/Vout)))))) -> 0.4054930796 | W134: =(L$5*((90/$G$18)*(90/$G$18))/2)*(1+(SQRT(1+(4/(L$5*((90/$G$18)*(90/$G$18))))*$L$23*(1-(SQRT(2)*Vin_rms_min*(SIN($Q134)/Vout)))))) -> 0.5406574394 | Y134: =R134*ABS(1/(Vout/(SQRT(2)*$C$25*SIN($Q134)))) -> 0.08171769346 | Z134: =S134*ABS(1/(Vout/(SQRT(2)*$C$25*SIN($Q134)))) -> 0.0801725245 | AA134: =T134*ABS(1/(Vout/(SQRT(2)*$C$25*SIN($Q134)))) -> 0.07922699605 | AB134: =U134*ABS(1/(Vout/(SQRT(2)*$C$25*SIN($Q134)))) -> 0.08057541765 | AC134: =V134*ABS(1/(Vout/(SQRT(2)*$C$25*SIN($Q134)))) -> 0.1208631265 | AD134: =W134*ABS(1/(Vout/(SQRT(2)*$C$25*SIN($Q134)))) -> 0.1611508353 | AF134: =1/(0.0000128*(R134+Y134+$G$23)) -> 40148.9564 | AG134: =1/(0.0000128*(S134+Z134+$H$23)) -> 84997.05002 | AH134: =1/(0.0000128*(T134+AA134+$I$23)) -> 109875.5371 | AI134: =1/(0.0000128*(U134+AB134+$J$23)) -> 222639.1532 | AJ134: =1/(0.0000128*(V134+AC134+$K$23)) -> 148426.1021 | AK134: =1/(0.0000128*(W134+AD134+$L$23)) -> 111319.5766
A135: FET Thermal Resistance, Junction to Case: | B135: RqJC(FET) | C135: 4.2 | D135: °C/W | Q135: =Q134+0.01 -> 1.29 | R135: =(G$5*((90/$G$18)*(90/$G$18))/2)*(1+(SQRT(1+(4/(G$5*((90/$G$18)*(90/$G$18))))*$G$23*(1-(SQRT(2)*Vin_rms_min*(SIN($Q135)/Vout)))))) -> 0.2740084257 | S135: =(H$5*((90/$G$18)*(90/$G$18))/2)*(1+(SQRT(1+(4/(H$5*((90/$G$18)*(90/$G$18))))*$H$23*(1-(SQRT(2)*Vin_rms_min*(SIN($Q135)/Vout)))))) -> 0.2688512082 | T135: =(I$5*((90/$G$18)*(90/$G$18))/2)*(1+(SQRT(1+(4/(I$5*((90/$G$18)*(90/$G$18))))*$I$23*(1-(SQRT(2)*Vin_rms_min*(SIN($Q135)/Vout)))))) -> 0.2656953131 | U135: =(J$5*((90/$G$18)*(90/$G$18))/2)*(1+(SQRT(1+(4/(J$5*((90/$G$18)*(90/$G$18))))*$J$23*(1-(SQRT(2)*Vin_rms_min*(SIN($Q135)/Vout)))))) -> 0.2703287197 | V135: =(K$5*((90/$G$18)*(90/$G$18))/2)*(1+(SQRT(1+(4/(K$5*((90/$G$18)*(90/$G$18))))*$K$23*(1-(SQRT(2)*Vin_rms_min*(SIN($Q135)/Vout)))))) -> 0.4054930796 | W135: =(L$5*((90/$G$18)*(90/$G$18))/2)*(1+(SQRT(1+(4/(L$5*((90/$G$18)*(90/$G$18))))*$L$23*(1-(SQRT(2)*Vin_rms_min*(SIN($Q135)/Vout)))))) -> 0.5406574394 | Y135: =R135*ABS(1/(Vout/(SQRT(2)*$C$25*SIN($Q135)))) -> 0.0819125488 | Z135: =S135*ABS(1/(Vout/(SQRT(2)*$C$25*SIN($Q135)))) -> 0.08037084136 | AA135: =T135*ABS(1/(Vout/(SQRT(2)*$C$25*SIN($Q135)))) -> 0.07942741268 | AB135: =U135*ABS(1/(Vout/(SQRT(2)*$C$25*SIN($Q135)))) -> 0.08081253119 | AC135: =V135*ABS(1/(Vout/(SQRT(2)*$C$25*SIN($Q135)))) -> 0.1212187968 | AD135: =W135*ABS(1/(Vout/(SQRT(2)*$C$25*SIN($Q135)))) -> 0.1616250624 | AF135: =1/(0.0000128*(R135+Y135+$G$23)) -> 40148.08465 | AG135: =1/(0.0000128*(S135+Z135+$H$23)) -> 84990.34595 | AH135: =1/(0.0000128*(T135+AA135+$I$23)) -> 109861.4869 | AI135: =1/(0.0000128*(U135+AB135+$J$23)) -> 222488.8127 | AJ135: =1/(0.0000128*(V135+AC135+$K$23)) -> 148325.8751 | AK135: =1/(0.0000128*(W135+AD135+$L$23)) -> 111244.4063
A136: FET Thermal Resistance, Case to Heatsink: | B136: RqCHS(FET) | C136: 0.32 | D136: °C/W | Q136: =Q135+0.01 -> 1.3 | R136: =(G$5*((90/$G$18)*(90/$G$18))/2)*(1+(SQRT(1+(4/(G$5*((90/$G$18)*(90/$G$18))))*$G$23*(1-(SQRT(2)*Vin_rms_min*(SIN($Q136)/Vout)))))) -> 0.2738609332 | S136: =(H$5*((90/$G$18)*(90/$G$18))/2)*(1+(SQRT(1+(4/(H$5*((90/$G$18)*(90/$G$18))))*$H$23*(1-(SQRT(2)*Vin_rms_min*(SIN($Q136)/Vout)))))) -> 0.2687296121 | T136: =(I$5*((90/$G$18)*(90/$G$18))/2)*(1+(SQRT(1+(4/(I$5*((90/$G$18)*(90/$G$18))))*$I$23*(1-(SQRT(2)*Vin_rms_min*(SIN($Q136)/Vout)))))) -> 0.2655895046 | U136: =(J$5*((90/$G$18)*(90/$G$18))/2)*(1+(SQRT(1+(4/(J$5*((90/$G$18)*(90/$G$18))))*$J$23*(1-(SQRT(2)*Vin_rms_min*(SIN($Q136)/Vout)))))) -> 0.2703287197 | V136: =(K$5*((90/$G$18)*(90/$G$18))/2)*(1+(SQRT(1+(4/(K$5*((90/$G$18)*(90/$G$18))))*$K$23*(1-(SQRT(2)*Vin_rms_min*(SIN($Q136)/Vout)))))) -> 0.4054930796 | W136: =(L$5*((90/$G$18)*(90/$G$18))/2)*(1+(SQRT(1+(4/(L$5*((90/$G$18)*(90/$G$18))))*$L$23*(1-(SQRT(2)*Vin_rms_min*(SIN($Q136)/Vout)))))) -> 0.5406574394 | Y136: =R136*ABS(1/(Vout/(SQRT(2)*$C$25*SIN($Q136)))) -> 0.08210048214 | Z136: =S136*ABS(1/(Vout/(SQRT(2)*$C$25*SIN($Q136)))) -> 0.08056216874 | AA136: =T136*ABS(1/(Vout/(SQRT(2)*$C$25*SIN($Q136)))) -> 0.07962079921 | AB136: =U136*ABS(1/(Vout/(SQRT(2)*$C$25*SIN($Q136)))) -> 0.08104156355 | AC136: =V136*ABS(1/(Vout/(SQRT(2)*$C$25*SIN($Q136)))) -> 0.1215623453 | AD136: =W136*ABS(1/(Vout/(SQRT(2)*$C$25*SIN($Q136)))) -> 0.1620831271 | AF136: =1/(0.0000128*(R136+Y136+$G$23)) -> 40147.25029 | AG136: =1/(0.0000128*(S136+Z136+$H$23)) -> 84983.89916 | AH136: =1/(0.0000128*(T136+AA136+$I$23)) -> 109847.9586 | AI136: =1/(0.0000128*(U136+AB136+$J$23)) -> 222343.7886 | AJ136: =1/(0.0000128*(V136+AC136+$K$23)) -> 148229.1924 | AK136: =1/(0.0000128*(W136+AD136+$L$23)) -> 111171.8943
A137: Gate Drive Losses (actually dissipated in the gate drive circuitry): | B137: PGATE | C137: =Vgs*Qg*(nC)*fsw*kHz -> 0.04852284765 | D137: W | Q137: =Q136+0.01 -> 1.31 | R137: =(G$5*((90/$G$18)*(90/$G$18))/2)*(1+(SQRT(1+(4/(G$5*((90/$G$18)*(90/$G$18))))*$G$23*(1-(SQRT(2)*Vin_rms_min*(SIN($Q137)/Vout)))))) -> 0.2737185761 | S137: =(H$5*((90/$G$18)*(90/$G$18))/2)*(1+(SQRT(1+(4/(H$5*((90/$G$18)*(90/$G$18))))*$H$23*(1-(SQRT(2)*Vin_rms_min*(SIN($Q137)/Vout)))))) -> 0.2686122532 | T137: =(I$5*((90/$G$18)*(90/$G$18))/2)*(1+(SQRT(1+(4/(I$5*((90/$G$18)*(90/$G$18))))*$I$23*(1-(SQRT(2)*Vin_rms_min*(SIN($Q137)/Vout)))))) -> 0.2654873864 | U137: =(J$5*((90/$G$18)*(90/$G$18))/2)*(1+(SQRT(1+(4/(J$5*((90/$G$18)*(90/$G$18))))*$J$23*(1-(SQRT(2)*Vin_rms_min*(SIN($Q137)/Vout)))))) -> 0.2703287197 | V137: =(K$5*((90/$G$18)*(90/$G$18))/2)*(1+(SQRT(1+(4/(K$5*((90/$G$18)*(90/$G$18))))*$K$23*(1-(SQRT(2)*Vin_rms_min*(SIN($Q137)/Vout)))))) -> 0.4054930796 | W137: =(L$5*((90/$G$18)*(90/$G$18))/2)*(1+(SQRT(1+(4/(L$5*((90/$G$18)*(90/$G$18))))*$L$23*(1-(SQRT(2)*Vin_rms_min*(SIN($Q137)/Vout)))))) -> 0.5406574394 | Y137: =R137*ABS(1/(Vout/(SQRT(2)*$C$25*SIN($Q137)))) -> 0.0822815037 | Z137: =S137*ABS(1/(Vout/(SQRT(2)*$C$25*SIN($Q137)))) -> 0.08074651132 | AA137: =T137*ABS(1/(Vout/(SQRT(2)*$C$25*SIN($Q137)))) -> 0.07980715696 | AB137: =U137*ABS(1/(Vout/(SQRT(2)*$C$25*SIN($Q137)))) -> 0.08126249181 | AC137: =V137*ABS(1/(Vout/(SQRT(2)*$C$25*SIN($Q137)))) -> 0.1218937377 | AD137: =W137*ABS(1/(Vout/(SQRT(2)*$C$25*SIN($Q137)))) -> 0.1625249836 | AF137: =1/(0.0000128*(R137+Y137+$G$23)) -> 40146.45262 | AG137: =1/(0.0000128*(S137+Z137+$H$23)) -> 84977.70731 | AH137: =1/(0.0000128*(T137+AA137+$I$23)) -> 109834.9491 | AI137: =1/(0.0000128*(U137+AB137+$J$23)) -> 222204.0752 | AJ137: =1/(0.0000128*(V137+AC137+$K$23)) -> 148136.0501 | AK137: =1/(0.0000128*(W137+AD137+$L$23)) -> 111102.0376
A138: FET Conduction Losses: | B138: PCOND | C138: =(Ids_rms_max^2)*(Rds_on) -> 0.04896250695 | D138: W | Q138: =Q137+0.01 -> 1.32 | R138: =(G$5*((90/$G$18)*(90/$G$18))/2)*(1+(SQRT(1+(4/(G$5*((90/$G$18)*(90/$G$18))))*$G$23*(1-(SQRT(2)*Vin_rms_min*(SIN($Q138)/Vout)))))) -> 0.2735813775 | S138: =(H$5*((90/$G$18)*(90/$G$18))/2)*(1+(SQRT(1+(4/(H$5*((90/$G$18)*(90/$G$18))))*$H$23*(1-(SQRT(2)*Vin_rms_min*(SIN($Q138)/Vout)))))) -> 0.2684991503 | T138: =(I$5*((90/$G$18)*(90/$G$18))/2)*(1+(SQRT(1+(4/(I$5*((90/$G$18)*(90/$G$18))))*$I$23*(1-(SQRT(2)*Vin_rms_min*(SIN($Q138)/Vout)))))) -> 0.2653889745 | U138: =(J$5*((90/$G$18)*(90/$G$18))/2)*(1+(SQRT(1+(4/(J$5*((90/$G$18)*(90/$G$18))))*$J$23*(1-(SQRT(2)*Vin_rms_min*(SIN($Q138)/Vout)))))) -> 0.2703287197 | V138: =(K$5*((90/$G$18)*(90/$G$18))/2)*(1+(SQRT(1+(4/(K$5*((90/$G$18)*(90/$G$18))))*$K$23*(1-(SQRT(2)*Vin_rms_min*(SIN($Q138)/Vout)))))) -> 0.4054930796 | W138: =(L$5*((90/$G$18)*(90/$G$18))/2)*(1+(SQRT(1+(4/(L$5*((90/$G$18)*(90/$G$18))))*$L$23*(1-(SQRT(2)*Vin_rms_min*(SIN($Q138)/Vout)))))) -> 0.5406574394 | Y138: =R138*ABS(1/(Vout/(SQRT(2)*$C$25*SIN($Q138)))) -> 0.08245562351 | Z138: =S138*ABS(1/(Vout/(SQRT(2)*$C$25*SIN($Q138)))) -> 0.08092387373 | AA138: =T138*ABS(1/(Vout/(SQRT(2)*$C$25*SIN($Q138)))) -> 0.07998648725 | AB138: =U138*ABS(1/(Vout/(SQRT(2)*$C$25*SIN($Q138)))) -> 0.0814752939 | AC138: =V138*ABS(1/(Vout/(SQRT(2)*$C$25*SIN($Q138)))) -> 0.1222129408 | AD138: =W138*ABS(1/(Vout/(SQRT(2)*$C$25*SIN($Q138)))) -> 0.1629505878 | AF138: =1/(0.0000128*(R138+Y138+$G$23)) -> 40145.69094 | AG138: =1/(0.0000128*(S138+Z138+$H$23)) -> 84971.76812 | AH138: =1/(0.0000128*(T138+AA138+$I$23)) -> 109822.4555 | AI138: =1/(0.0000128*(U138+AB138+$J$23)) -> 222069.6666 | AJ138: =1/(0.0000128*(V138+AC138+$K$23)) -> 148046.4444 | AK138: =1/(0.0000128*(W138+AD138+$L$23)) -> 111034.8333
A139: FET Switching Losses: | B139: PSW | C139: =((fsw*kHz)/2)*((tf_FET*ns*Vout*IL_rms_max)+(Coss*picoF*Vout^2)) -> 0.930845188 | D139: W | Q139: =Q138+0.01 -> 1.33 | R139: =(G$5*((90/$G$18)*(90/$G$18))/2)*(1+(SQRT(1+(4/(G$5*((90/$G$18)*(90/$G$18))))*$G$23*(1-(SQRT(2)*Vin_rms_min*(SIN($Q139)/Vout)))))) -> 0.2734493597 | S139: =(H$5*((90/$G$18)*(90/$G$18))/2)*(1+(SQRT(1+(4/(H$5*((90/$G$18)*(90/$G$18))))*$H$23*(1-(SQRT(2)*Vin_rms_min*(SIN($Q139)/Vout)))))) -> 0.2683903214 | T139: =(I$5*((90/$G$18)*(90/$G$18))/2)*(1+(SQRT(1+(4/(I$5*((90/$G$18)*(90/$G$18))))*$I$23*(1-(SQRT(2)*Vin_rms_min*(SIN($Q139)/Vout)))))) -> 0.2652942842 | U139: =(J$5*((90/$G$18)*(90/$G$18))/2)*(1+(SQRT(1+(4/(J$5*((90/$G$18)*(90/$G$18))))*$J$23*(1-(SQRT(2)*Vin_rms_min*(SIN($Q139)/Vout)))))) -> 0.2703287197 | V139: =(K$5*((90/$G$18)*(90/$G$18))/2)*(1+(SQRT(1+(4/(K$5*((90/$G$18)*(90/$G$18))))*$K$23*(1-(SQRT(2)*Vin_rms_min*(SIN($Q139)/Vout)))))) -> 0.4054930796 | W139: =(L$5*((90/$G$18)*(90/$G$18))/2)*(1+(SQRT(1+(4/(L$5*((90/$G$18)*(90/$G$18))))*$L$23*(1-(SQRT(2)*Vin_rms_min*(SIN($Q139)/Vout)))))) -> 0.5406574394 | Y139: =R139*ABS(1/(Vout/(SQRT(2)*$C$25*SIN($Q139)))) -> 0.08262285133 | Z139: =S139*ABS(1/(Vout/(SQRT(2)*$C$25*SIN($Q139)))) -> 0.08109426057 | AA139: =T139*ABS(1/(Vout/(SQRT(2)*$C$25*SIN($Q139)))) -> 0.08015879148 | AB139: =U139*ABS(1/(Vout/(SQRT(2)*$C$25*SIN($Q139)))) -> 0.08167994852 | AC139: =V139*ABS(1/(Vout/(SQRT(2)*$C$25*SIN($Q139)))) -> 0.1225199228 | AD139: =W139*ABS(1/(Vout/(SQRT(2)*$C$25*SIN($Q139)))) -> 0.163359897 | AF139: =1/(0.0000128*(R139+Y139+$G$23)) -> 40144.96459 | AG139: =1/(0.0000128*(S139+Z139+$H$23)) -> 84966.0794 | AH139: =1/(0.0000128*(T139+AA139+$I$23)) -> 109810.4747 | AI139: =1/(0.0000128*(U139+AB139+$J$23)) -> 221940.5573 | AJ139: =1/(0.0000128*(V139+AC139+$K$23)) -> 147960.3715 | AK139: =1/(0.0000128*(W139+AD139+$L$23)) -> 110970.2786
A140: FET Losses, Total: | B140: PFET | C140: =P_FETcond+P_FETsw+P_FETgate -> 1.028330543 | D140: W | Q140: =Q139+0.01 -> 1.34 | R140: =(G$5*((90/$G$18)*(90/$G$18))/2)*(1+(SQRT(1+(4/(G$5*((90/$G$18)*(90/$G$18))))*$G$23*(1-(SQRT(2)*Vin_rms_min*(SIN($Q140)/Vout)))))) -> 0.2733225442 | S140: =(H$5*((90/$G$18)*(90/$G$18))/2)*(1+(SQRT(1+(4/(H$5*((90/$G$18)*(90/$G$18))))*$H$23*(1-(SQRT(2)*Vin_rms_min*(SIN($Q140)/Vout)))))) -> 0.2682857839 | T140: =(I$5*((90/$G$18)*(90/$G$18))/2)*(1+(SQRT(1+(4/(I$5*((90/$G$18)*(90/$G$18))))*$I$23*(1-(SQRT(2)*Vin_rms_min*(SIN($Q140)/Vout)))))) -> 0.2652033304 | U140: =(J$5*((90/$G$18)*(90/$G$18))/2)*(1+(SQRT(1+(4/(J$5*((90/$G$18)*(90/$G$18))))*$J$23*(1-(SQRT(2)*Vin_rms_min*(SIN($Q140)/Vout)))))) -> 0.2703287197 | V140: =(K$5*((90/$G$18)*(90/$G$18))/2)*(1+(SQRT(1+(4/(K$5*((90/$G$18)*(90/$G$18))))*$K$23*(1-(SQRT(2)*Vin_rms_min*(SIN($Q140)/Vout)))))) -> 0.4054930796 | W140: =(L$5*((90/$G$18)*(90/$G$18))/2)*(1+(SQRT(1+(4/(L$5*((90/$G$18)*(90/$G$18))))*$L$23*(1-(SQRT(2)*Vin_rms_min*(SIN($Q140)/Vout)))))) -> 0.5406574394 | Y140: =R140*ABS(1/(Vout/(SQRT(2)*$C$25*SIN($Q140)))) -> 0.08278319672 | Z140: =S140*ABS(1/(Vout/(SQRT(2)*$C$25*SIN($Q140)))) -> 0.08125767632 | AA140: =T140*ABS(1/(Vout/(SQRT(2)*$C$25*SIN($Q140)))) -> 0.08032407109 | AB140: =U140*ABS(1/(Vout/(SQRT(2)*$C$25*SIN($Q140)))) -> 0.08187643522 | AC140: =V140*ABS(1/(Vout/(SQRT(2)*$C$25*SIN($Q140)))) -> 0.1228146528 | AD140: =W140*ABS(1/(Vout/(SQRT(2)*$C$25*SIN($Q140)))) -> 0.1637528704 | AF140: =1/(0.0000128*(R140+Y140+$G$23)) -> 40144.27292 | AG140: =1/(0.0000128*(S140+Z140+$H$23)) -> 84960.63903 | AH140: =1/(0.0000128*(T140+AA140+$I$23)) -> 109799.004 | AI140: =1/(0.0000128*(U140+AB140+$J$23)) -> 221816.742 | AJ140: =1/(0.0000128*(V140+AC140+$K$23)) -> 147877.828 | AK140: =1/(0.0000128*(W140+AD140+$L$23)) -> 110908.371
A141: Required Heat Sink Thermal Impedance: | B141: RqHS_AMB(FET) | C141: =((Tj_FET-Tamb)/P_FET)-Rth_jc_FET-Rth_CHS_FET -> 68.41374737 | D141: °C/W | Q141: =Q140+0.01 -> 1.35 | R141: =(G$5*((90/$G$18)*(90/$G$18))/2)*(1+(SQRT(1+(4/(G$5*((90/$G$18)*(90/$G$18))))*$G$23*(1-(SQRT(2)*Vin_rms_min*(SIN($Q141)/Vout)))))) -> 0.2732009518 | S141: =(H$5*((90/$G$18)*(90/$G$18))/2)*(1+(SQRT(1+(4/(H$5*((90/$G$18)*(90/$G$18))))*$H$23*(1-(SQRT(2)*Vin_rms_min*(SIN($Q141)/Vout)))))) -> 0.2681855546 | T141: =(I$5*((90/$G$18)*(90/$G$18))/2)*(1+(SQRT(1+(4/(I$5*((90/$G$18)*(90/$G$18))))*$I$23*(1-(SQRT(2)*Vin_rms_min*(SIN($Q141)/Vout)))))) -> 0.2651161273 | U141: =(J$5*((90/$G$18)*(90/$G$18))/2)*(1+(SQRT(1+(4/(J$5*((90/$G$18)*(90/$G$18))))*$J$23*(1-(SQRT(2)*Vin_rms_min*(SIN($Q141)/Vout)))))) -> 0.2703287197 | V141: =(K$5*((90/$G$18)*(90/$G$18))/2)*(1+(SQRT(1+(4/(K$5*((90/$G$18)*(90/$G$18))))*$K$23*(1-(SQRT(2)*Vin_rms_min*(SIN($Q141)/Vout)))))) -> 0.4054930796 | W141: =(L$5*((90/$G$18)*(90/$G$18))/2)*(1+(SQRT(1+(4/(L$5*((90/$G$18)*(90/$G$18))))*$L$23*(1-(SQRT(2)*Vin_rms_min*(SIN($Q141)/Vout)))))) -> 0.5406574394 | Y141: =R141*ABS(1/(Vout/(SQRT(2)*$C$25*SIN($Q141)))) -> 0.08293666893 | Z141: =S141*ABS(1/(Vout/(SQRT(2)*$C$25*SIN($Q141)))) -> 0.08141412543 | AA141: =T141*ABS(1/(Vout/(SQRT(2)*$C$25*SIN($Q141)))) -> 0.08048232751 | AB141: =U141*ABS(1/(Vout/(SQRT(2)*$C$25*SIN($Q141)))) -> 0.08206473434 | AC141: =V141*ABS(1/(Vout/(SQRT(2)*$C$25*SIN($Q141)))) -> 0.1230971015 | AD141: =W141*ABS(1/(Vout/(SQRT(2)*$C$25*SIN($Q141)))) -> 0.1641294687 | AF141: =1/(0.0000128*(R141+Y141+$G$23)) -> 40143.61532 | AG141: =1/(0.0000128*(S141+Z141+$H$23)) -> 84955.44495 | AH141: =1/(0.0000128*(T141+AA141+$I$23)) -> 109788.0405 | AI141: =1/(0.0000128*(U141+AB141+$J$23)) -> 221698.2157 | AJ141: =1/(0.0000128*(V141+AC141+$K$23)) -> 147798.8105 | AK141: =1/(0.0000128*(W141+AD141+$L$23)) -> 110849.1079
Q142: =Q141+0.01 -> 1.36 | R142: =(G$5*((90/$G$18)*(90/$G$18))/2)*(1+(SQRT(1+(4/(G$5*((90/$G$18)*(90/$G$18))))*$G$23*(1-(SQRT(2)*Vin_rms_min*(SIN($Q142)/Vout)))))) -> 0.2730846024 | S142: =(H$5*((90/$G$18)*(90/$G$18))/2)*(1+(SQRT(1+(4/(H$5*((90/$G$18)*(90/$G$18))))*$H$23*(1-(SQRT(2)*Vin_rms_min*(SIN($Q142)/Vout)))))) -> 0.2680896496 | T142: =(I$5*((90/$G$18)*(90/$G$18))/2)*(1+(SQRT(1+(4/(I$5*((90/$G$18)*(90/$G$18))))*$I$23*(1-(SQRT(2)*Vin_rms_min*(SIN($Q142)/Vout)))))) -> 0.2650326887 | U142: =(J$5*((90/$G$18)*(90/$G$18))/2)*(1+(SQRT(1+(4/(J$5*((90/$G$18)*(90/$G$18))))*$J$23*(1-(SQRT(2)*Vin_rms_min*(SIN($Q142)/Vout)))))) -> 0.2703287197 | V142: =(K$5*((90/$G$18)*(90/$G$18))/2)*(1+(SQRT(1+(4/(K$5*((90/$G$18)*(90/$G$18))))*$K$23*(1-(SQRT(2)*Vin_rms_min*(SIN($Q142)/Vout)))))) -> 0.4054930796 | W142: =(L$5*((90/$G$18)*(90/$G$18))/2)*(1+(SQRT(1+(4/(L$5*((90/$G$18)*(90/$G$18))))*$L$23*(1-(SQRT(2)*Vin_rms_min*(SIN($Q142)/Vout)))))) -> 0.5406574394 | Y142: =R142*ABS(1/(Vout/(SQRT(2)*$C$25*SIN($Q142)))) -> 0.08308327697 | Z142: =S142*ABS(1/(Vout/(SQRT(2)*$C$25*SIN($Q142)))) -> 0.08156361222 | AA142: =T142*ABS(1/(Vout/(SQRT(2)*$C$25*SIN($Q142)))) -> 0.08063356223 | AB142: =U142*ABS(1/(Vout/(SQRT(2)*$C$25*SIN($Q142)))) -> 0.08224482706 | AC142: =V142*ABS(1/(Vout/(SQRT(2)*$C$25*SIN($Q142)))) -> 0.1233672406 | AD142: =W142*ABS(1/(Vout/(SQRT(2)*$C$25*SIN($Q142)))) -> 0.1644896541 | AF142: =1/(0.0000128*(R142+Y142+$G$23)) -> 40142.99117 | AG142: =1/(0.0000128*(S142+Z142+$H$23)) -> 84950.49519 | AH142: =1/(0.0000128*(T142+AA142+$I$23)) -> 109777.5817 | AI142: =1/(0.0000128*(U142+AB142+$J$23)) -> 221584.9734 | AJ142: =1/(0.0000128*(V142+AC142+$K$23)) -> 147723.3156 | AK142: =1/(0.0000128*(W142+AD142+$L$23)) -> 110792.4867
E143: =IF(Vout_holdup>Vout,"ENTER A LOWER VALUE FOR THE MINIMUM HOLDUP VOLTAGE","") ->  | Q143: =Q142+0.01 -> 1.37 | R143: =(G$5*((90/$G$18)*(90/$G$18))/2)*(1+(SQRT(1+(4/(G$5*((90/$G$18)*(90/$G$18))))*$G$23*(1-(SQRT(2)*Vin_rms_min*(SIN($Q143)/Vout)))))) -> 0.272973515 | S143: =(H$5*((90/$G$18)*(90/$G$18))/2)*(1+(SQRT(1+(4/(H$5*((90/$G$18)*(90/$G$18))))*$H$23*(1-(SQRT(2)*Vin_rms_min*(SIN($Q143)/Vout)))))) -> 0.2679980842 | T143: =(I$5*((90/$G$18)*(90/$G$18))/2)*(1+(SQRT(1+(4/(I$5*((90/$G$18)*(90/$G$18))))*$I$23*(1-(SQRT(2)*Vin_rms_min*(SIN($Q143)/Vout)))))) -> 0.2649530276 | U143: =(J$5*((90/$G$18)*(90/$G$18))/2)*(1+(SQRT(1+(4/(J$5*((90/$G$18)*(90/$G$18))))*$J$23*(1-(SQRT(2)*Vin_rms_min*(SIN($Q143)/Vout)))))) -> 0.2703287197 | V143: =(K$5*((90/$G$18)*(90/$G$18))/2)*(1+(SQRT(1+(4/(K$5*((90/$G$18)*(90/$G$18))))*$K$23*(1-(SQRT(2)*Vin_rms_min*(SIN($Q143)/Vout)))))) -> 0.4054930796 | W143: =(L$5*((90/$G$18)*(90/$G$18))/2)*(1+(SQRT(1+(4/(L$5*((90/$G$18)*(90/$G$18))))*$L$23*(1-(SQRT(2)*Vin_rms_min*(SIN($Q143)/Vout)))))) -> 0.5406574394 | Y143: =R143*ABS(1/(Vout/(SQRT(2)*$C$25*SIN($Q143)))) -> 0.08322302955 | Z143: =S143*ABS(1/(Vout/(SQRT(2)*$C$25*SIN($Q143)))) -> 0.08170614091 | AA143: =T143*ABS(1/(Vout/(SQRT(2)*$C$25*SIN($Q143)))) -> 0.0807777767 | AB143: =U143*ABS(1/(Vout/(SQRT(2)*$C$25*SIN($Q143)))) -> 0.08241669536 | AC143: =V143*ABS(1/(Vout/(SQRT(2)*$C$25*SIN($Q143)))) -> 0.123625043 | AD143: =W143*ABS(1/(Vout/(SQRT(2)*$C$25*SIN($Q143)))) -> 0.1648333907 | AF143: =1/(0.0000128*(R143+Y143+$G$23)) -> 40142.39991 | AG143: =1/(0.0000128*(S143+Z143+$H$23)) -> 84945.78786 | AH143: =1/(0.0000128*(T143+AA143+$I$23)) -> 109767.625 | AI143: =1/(0.0000128*(U143+AB143+$J$23)) -> 221477.0105 | AJ143: =1/(0.0000128*(V143+AC143+$K$23)) -> 147651.3403 | AK143: =1/(0.0000128*(W143+AD143+$L$23)) -> 110738.5053
A144: OUTPUT CAPACITOR: | Q144: =Q143+0.01 -> 1.38 | R144: =(G$5*((90/$G$18)*(90/$G$18))/2)*(1+(SQRT(1+(4/(G$5*((90/$G$18)*(90/$G$18))))*$G$23*(1-(SQRT(2)*Vin_rms_min*(SIN($Q144)/Vout)))))) -> 0.272867708 | S144: =(H$5*((90/$G$18)*(90/$G$18))/2)*(1+(SQRT(1+(4/(H$5*((90/$G$18)*(90/$G$18))))*$H$23*(1-(SQRT(2)*Vin_rms_min*(SIN($Q144)/Vout)))))) -> 0.2679108733 | T144: =(I$5*((90/$G$18)*(90/$G$18))/2)*(1+(SQRT(1+(4/(I$5*((90/$G$18)*(90/$G$18))))*$I$23*(1-(SQRT(2)*Vin_rms_min*(SIN($Q144)/Vout)))))) -> 0.2648771566 | U144: =(J$5*((90/$G$18)*(90/$G$18))/2)*(1+(SQRT(1+(4/(J$5*((90/$G$18)*(90/$G$18))))*$J$23*(1-(SQRT(2)*Vin_rms_min*(SIN($Q144)/Vout)))))) -> 0.2703287197 | V144: =(K$5*((90/$G$18)*(90/$G$18))/2)*(1+(SQRT(1+(4/(K$5*((90/$G$18)*(90/$G$18))))*$K$23*(1-(SQRT(2)*Vin_rms_min*(SIN($Q144)/Vout)))))) -> 0.4054930796 | W144: =(L$5*((90/$G$18)*(90/$G$18))/2)*(1+(SQRT(1+(4/(L$5*((90/$G$18)*(90/$G$18))))*$L$23*(1-(SQRT(2)*Vin_rms_min*(SIN($Q144)/Vout)))))) -> 0.5406574394 | Y144: =R144*ABS(1/(Vout/(SQRT(2)*$C$25*SIN($Q144)))) -> 0.08335593507 | Z144: =S144*ABS(1/(Vout/(SQRT(2)*$C$25*SIN($Q144)))) -> 0.0818417156 | AA144: =T144*ABS(1/(Vout/(SQRT(2)*$C$25*SIN($Q144)))) -> 0.08091497241 | AB144: =U144*ABS(1/(Vout/(SQRT(2)*$C$25*SIN($Q144)))) -> 0.08258032206 | AC144: =V144*ABS(1/(Vout/(SQRT(2)*$C$25*SIN($Q144)))) -> 0.1238704831 | AD144: =W144*ABS(1/(Vout/(SQRT(2)*$C$25*SIN($Q144)))) -> 0.1651606441 | AF144: =1/(0.0000128*(R144+Y144+$G$23)) -> 40141.84098 | AG144: =1/(0.0000128*(S144+Z144+$H$23)) -> 84941.32112 | AH144: =1/(0.0000128*(T144+AA144+$I$23)) -> 109758.1679 | AI144: =1/(0.0000128*(U144+AB144+$J$23)) -> 221374.3224 | AJ144: =1/(0.0000128*(V144+AC144+$K$23)) -> 147582.8816 | AK144: =1/(0.0000128*(W144+AD144+$L$23)) -> 110687.1612
A145: Required Minimum Output Voltage: | B145: VOUT_HOLDUP(min) | C145: 450 | D145: V | Q145: =Q144+0.01 -> 1.39 | R145: =(G$5*((90/$G$18)*(90/$G$18))/2)*(1+(SQRT(1+(4/(G$5*((90/$G$18)*(90/$G$18))))*$G$23*(1-(SQRT(2)*Vin_rms_min*(SIN($Q145)/Vout)))))) -> 0.2727671988 | S145: =(H$5*((90/$G$18)*(90/$G$18))/2)*(1+(SQRT(1+(4/(H$5*((90/$G$18)*(90/$G$18))))*$H$23*(1-(SQRT(2)*Vin_rms_min*(SIN($Q145)/Vout)))))) -> 0.2678280308 | T145: =(I$5*((90/$G$18)*(90/$G$18))/2)*(1+(SQRT(1+(4/(I$5*((90/$G$18)*(90/$G$18))))*$I$23*(1-(SQRT(2)*Vin_rms_min*(SIN($Q145)/Vout)))))) -> 0.2648050877 | U145: =(J$5*((90/$G$18)*(90/$G$18))/2)*(1+(SQRT(1+(4/(J$5*((90/$G$18)*(90/$G$18))))*$J$23*(1-(SQRT(2)*Vin_rms_min*(SIN($Q145)/Vout)))))) -> 0.2703287197 | V145: =(K$5*((90/$G$18)*(90/$G$18))/2)*(1+(SQRT(1+(4/(K$5*((90/$G$18)*(90/$G$18))))*$K$23*(1-(SQRT(2)*Vin_rms_min*(SIN($Q145)/Vout)))))) -> 0.4054930796 | W145: =(L$5*((90/$G$18)*(90/$G$18))/2)*(1+(SQRT(1+(4/(L$5*((90/$G$18)*(90/$G$18))))*$L$23*(1-(SQRT(2)*Vin_rms_min*(SIN($Q145)/Vout)))))) -> 0.5406574394 | Y145: =R145*ABS(1/(Vout/(SQRT(2)*$C$25*SIN($Q145)))) -> 0.08348200162 | Z145: =S145*ABS(1/(Vout/(SQRT(2)*$C$25*SIN($Q145)))) -> 0.08197034027 | AA145: =T145*ABS(1/(Vout/(SQRT(2)*$C$25*SIN($Q145)))) -> 0.0810451508 | AB145: =U145*ABS(1/(Vout/(SQRT(2)*$C$25*SIN($Q145)))) -> 0.0827356908 | AC145: =V145*ABS(1/(Vout/(SQRT(2)*$C$25*SIN($Q145)))) -> 0.1241035362 | AD145: =W145*ABS(1/(Vout/(SQRT(2)*$C$25*SIN($Q145)))) -> 0.1654713816 | AF145: =1/(0.0000128*(R145+Y145+$G$23)) -> 40141.31386 | AG145: =1/(0.0000128*(S145+Z145+$H$23)) -> 84937.09324 | AH145: =1/(0.0000128*(T145+AA145+$I$23)) -> 109749.2082 | AI145: =1/(0.0000128*(U145+AB145+$J$23)) -> 221276.9049 | AJ145: =1/(0.0000128*(V145+AC145+$K$23)) -> 147517.9366 | AK145: =1/(0.0000128*(W145+AD145+$L$23)) -> 110638.4525
A146: Minimum Output Voltage Holdup Time: | B146: tHold_UP(min) | C146: 10 | D146: ms | E146: =IF(Cout<C147,"INCREASE OUTPUT CAPACITANCE TO AT LEAST MINIMUM RECOMMENDED VALUE","") ->  | Q146: =Q145+0.01 -> 1.4 | R146: =(G$5*((90/$G$18)*(90/$G$18))/2)*(1+(SQRT(1+(4/(G$5*((90/$G$18)*(90/$G$18))))*$G$23*(1-(SQRT(2)*Vin_rms_min*(SIN($Q146)/Vout)))))) -> 0.2726720038 | S146: =(H$5*((90/$G$18)*(90/$G$18))/2)*(1+(SQRT(1+(4/(H$5*((90/$G$18)*(90/$G$18))))*$H$23*(1-(SQRT(2)*Vin_rms_min*(SIN($Q146)/Vout)))))) -> 0.2677495701 | T146: =(I$5*((90/$G$18)*(90/$G$18))/2)*(1+(SQRT(1+(4/(I$5*((90/$G$18)*(90/$G$18))))*$I$23*(1-(SQRT(2)*Vin_rms_min*(SIN($Q146)/Vout)))))) -> 0.2647368322 | U146: =(J$5*((90/$G$18)*(90/$G$18))/2)*(1+(SQRT(1+(4/(J$5*((90/$G$18)*(90/$G$18))))*$J$23*(1-(SQRT(2)*Vin_rms_min*(SIN($Q146)/Vout)))))) -> 0.2703287197 | V146: =(K$5*((90/$G$18)*(90/$G$18))/2)*(1+(SQRT(1+(4/(K$5*((90/$G$18)*(90/$G$18))))*$K$23*(1-(SQRT(2)*Vin_rms_min*(SIN($Q146)/Vout)))))) -> 0.4054930796 | W146: =(L$5*((90/$G$18)*(90/$G$18))/2)*(1+(SQRT(1+(4/(L$5*((90/$G$18)*(90/$G$18))))*$L$23*(1-(SQRT(2)*Vin_rms_min*(SIN($Q146)/Vout)))))) -> 0.5406574394 | Y146: =R146*ABS(1/(Vout/(SQRT(2)*$C$25*SIN($Q146)))) -> 0.08360123693 | Z146: =S146*ABS(1/(Vout/(SQRT(2)*$C$25*SIN($Q146)))) -> 0.08209201875 | AA146: =T146*ABS(1/(Vout/(SQRT(2)*$C$25*SIN($Q146)))) -> 0.08116831331 | AB146: =U146*ABS(1/(Vout/(SQRT(2)*$C$25*SIN($Q146)))) -> 0.08288278604 | AC146: =V146*ABS(1/(Vout/(SQRT(2)*$C$25*SIN($Q146)))) -> 0.1243241791 | AD146: =W146*ABS(1/(Vout/(SQRT(2)*$C$25*SIN($Q146)))) -> 0.1657655721 | AF146: =1/(0.0000128*(R146+Y146+$G$23)) -> 40140.81803 | AG146: =1/(0.0000128*(S146+Z146+$H$23)) -> 84933.10256 | AH146: =1/(0.0000128*(T146+AA146+$I$23)) -> 109740.7435 | AI146: =1/(0.0000128*(U146+AB146+$J$23)) -> 221184.754 | AJ146: =1/(0.0000128*(V146+AC146+$K$23)) -> 147456.5026 | AK146: =1/(0.0000128*(W146+AD146+$L$23)) -> 110592.377
A147: Recommended Minimum Output Capacitor Value: | B147: COUT(recommended) | C147: =(((2*Pout*t_holdup*ms)/((Vout^2)-(Vout_holdup^2))))/uF -> 21.05263158 | D147: µF | Q147: =Q146+0.01 -> 1.41 | R147: =(G$5*((90/$G$18)*(90/$G$18))/2)*(1+(SQRT(1+(4/(G$5*((90/$G$18)*(90/$G$18))))*$G$23*(1-(SQRT(2)*Vin_rms_min*(SIN($Q147)/Vout)))))) -> 0.2725821388 | S147: =(H$5*((90/$G$18)*(90/$G$18))/2)*(1+(SQRT(1+(4/(H$5*((90/$G$18)*(90/$G$18))))*$H$23*(1-(SQRT(2)*Vin_rms_min*(SIN($Q147)/Vout)))))) -> 0.2676755039 | T147: =(I$5*((90/$G$18)*(90/$G$18))/2)*(1+(SQRT(1+(4/(I$5*((90/$G$18)*(90/$G$18))))*$I$23*(1-(SQRT(2)*Vin_rms_min*(SIN($Q147)/Vout)))))) -> 0.264672401 | U147: =(J$5*((90/$G$18)*(90/$G$18))/2)*(1+(SQRT(1+(4/(J$5*((90/$G$18)*(90/$G$18))))*$J$23*(1-(SQRT(2)*Vin_rms_min*(SIN($Q147)/Vout)))))) -> 0.2703287197 | V147: =(K$5*((90/$G$18)*(90/$G$18))/2)*(1+(SQRT(1+(4/(K$5*((90/$G$18)*(90/$G$18))))*$K$23*(1-(SQRT(2)*Vin_rms_min*(SIN($Q147)/Vout)))))) -> 0.4054930796 | W147: =(L$5*((90/$G$18)*(90/$G$18))/2)*(1+(SQRT(1+(4/(L$5*((90/$G$18)*(90/$G$18))))*$L$23*(1-(SQRT(2)*Vin_rms_min*(SIN($Q147)/Vout)))))) -> 0.5406574394 | Y147: =R147*ABS(1/(Vout/(SQRT(2)*$C$25*SIN($Q147)))) -> 0.08371364843 | Z147: =S147*ABS(1/(Vout/(SQRT(2)*$C$25*SIN($Q147)))) -> 0.08220675473 | AA147: =T147*ABS(1/(Vout/(SQRT(2)*$C$25*SIN($Q147)))) -> 0.08128446134 | AB147: =U147*ABS(1/(Vout/(SQRT(2)*$C$25*SIN($Q147)))) -> 0.08302159306 | AC147: =V147*ABS(1/(Vout/(SQRT(2)*$C$25*SIN($Q147)))) -> 0.1245323896 | AD147: =W147*ABS(1/(Vout/(SQRT(2)*$C$25*SIN($Q147)))) -> 0.1660431861 | AF147: =1/(0.0000128*(R147+Y147+$G$23)) -> 40140.35303 | AG147: =1/(0.0000128*(S147+Z147+$H$23)) -> 84929.3475 | AH147: =1/(0.0000128*(T147+AA147+$I$23)) -> 109732.7719 | AI147: =1/(0.0000128*(U147+AB147+$J$23)) -> 221097.8657 | AJ147: =1/(0.0000128*(V147+AC147+$K$23)) -> 147398.5771 | AK147: =1/(0.0000128*(W147+AD147+$L$23)) -> 110548.9328
A148: Actual Output Capacitor Value: | B148: COUT | C148: 22 | D148: µF | Q148: =Q147+0.01 -> 1.42 | R148: =(G$5*((90/$G$18)*(90/$G$18))/2)*(1+(SQRT(1+(4/(G$5*((90/$G$18)*(90/$G$18))))*$G$23*(1-(SQRT(2)*Vin_rms_min*(SIN($Q148)/Vout)))))) -> 0.2724976187 | S148: =(H$5*((90/$G$18)*(90/$G$18))/2)*(1+(SQRT(1+(4/(H$5*((90/$G$18)*(90/$G$18))))*$H$23*(1-(SQRT(2)*Vin_rms_min*(SIN($Q148)/Vout)))))) -> 0.2676058442 | T148: =(I$5*((90/$G$18)*(90/$G$18))/2)*(1+(SQRT(1+(4/(I$5*((90/$G$18)*(90/$G$18))))*$I$23*(1-(SQRT(2)*Vin_rms_min*(SIN($Q148)/Vout)))))) -> 0.2646118041 | U148: =(J$5*((90/$G$18)*(90/$G$18))/2)*(1+(SQRT(1+(4/(J$5*((90/$G$18)*(90/$G$18))))*$J$23*(1-(SQRT(2)*Vin_rms_min*(SIN($Q148)/Vout)))))) -> 0.2703287197 | V148: =(K$5*((90/$G$18)*(90/$G$18))/2)*(1+(SQRT(1+(4/(K$5*((90/$G$18)*(90/$G$18))))*$K$23*(1-(SQRT(2)*Vin_rms_min*(SIN($Q148)/Vout)))))) -> 0.4054930796 | W148: =(L$5*((90/$G$18)*(90/$G$18))/2)*(1+(SQRT(1+(4/(L$5*((90/$G$18)*(90/$G$18))))*$L$23*(1-(SQRT(2)*Vin_rms_min*(SIN($Q148)/Vout)))))) -> 0.5406574394 | Y148: =R148*ABS(1/(Vout/(SQRT(2)*$C$25*SIN($Q148)))) -> 0.08381924317 | Z148: =S148*ABS(1/(Vout/(SQRT(2)*$C$25*SIN($Q148)))) -> 0.08231455173 | AA148: =T148*ABS(1/(Vout/(SQRT(2)*$C$25*SIN($Q148)))) -> 0.08139359626 | AB148: =U148*ABS(1/(Vout/(SQRT(2)*$C$25*SIN($Q148)))) -> 0.083152098 | AC148: =V148*ABS(1/(Vout/(SQRT(2)*$C$25*SIN($Q148)))) -> 0.124728147 | AD148: =W148*ABS(1/(Vout/(SQRT(2)*$C$25*SIN($Q148)))) -> 0.166304196 | AF148: =1/(0.0000128*(R148+Y148+$G$23)) -> 40139.91839 | AG148: =1/(0.0000128*(S148+Z148+$H$23)) -> 84925.82657 | AH148: =1/(0.0000128*(T148+AA148+$I$23)) -> 109725.2913 | AI148: =1/(0.0000128*(U148+AB148+$J$23)) -> 221016.2365 | AJ148: =1/(0.0000128*(V148+AC148+$K$23)) -> 147344.1577 | AK148: =1/(0.0000128*(W148+AD148+$L$23)) -> 110508.1182
A149: Output Voltage Peak to Peak Ripple: | B149: VOUT_RIPPLEpp | C149: =Iout/(2*2*pi*fline_min*Cout*uF) -> 6.345890873 | D149: V | Q149: =Q148+0.01 -> 1.43 | R149: =(G$5*((90/$G$18)*(90/$G$18))/2)*(1+(SQRT(1+(4/(G$5*((90/$G$18)*(90/$G$18))))*$G$23*(1-(SQRT(2)*Vin_rms_min*(SIN($Q149)/Vout)))))) -> 0.2724184574 | S149: =(H$5*((90/$G$18)*(90/$G$18))/2)*(1+(SQRT(1+(4/(H$5*((90/$G$18)*(90/$G$18))))*$H$23*(1-(SQRT(2)*Vin_rms_min*(SIN($Q149)/Vout)))))) -> 0.2675406023 | T149: =(I$5*((90/$G$18)*(90/$G$18))/2)*(1+(SQRT(1+(4/(I$5*((90/$G$18)*(90/$G$18))))*$I$23*(1-(SQRT(2)*Vin_rms_min*(SIN($Q149)/Vout)))))) -> 0.2645550514 | U149: =(J$5*((90/$G$18)*(90/$G$18))/2)*(1+(SQRT(1+(4/(J$5*((90/$G$18)*(90/$G$18))))*$J$23*(1-(SQRT(2)*Vin_rms_min*(SIN($Q149)/Vout)))))) -> 0.2703287197 | V149: =(K$5*((90/$G$18)*(90/$G$18))/2)*(1+(SQRT(1+(4/(K$5*((90/$G$18)*(90/$G$18))))*$K$23*(1-(SQRT(2)*Vin_rms_min*(SIN($Q149)/Vout)))))) -> 0.4054930796 | W149: =(L$5*((90/$G$18)*(90/$G$18))/2)*(1+(SQRT(1+(4/(L$5*((90/$G$18)*(90/$G$18))))*$L$23*(1-(SQRT(2)*Vin_rms_min*(SIN($Q149)/Vout)))))) -> 0.5406574394 | Y149: =R149*ABS(1/(Vout/(SQRT(2)*$C$25*SIN($Q149)))) -> 0.08391802781 | Z149: =S149*ABS(1/(Vout/(SQRT(2)*$C$25*SIN($Q149)))) -> 0.08241541312 | AA149: =T149*ABS(1/(Vout/(SQRT(2)*$C$25*SIN($Q149)))) -> 0.0814957194 | AB149: =U149*ABS(1/(Vout/(SQRT(2)*$C$25*SIN($Q149)))) -> 0.0832742878 | AC149: =V149*ABS(1/(Vout/(SQRT(2)*$C$25*SIN($Q149)))) -> 0.1249114317 | AD149: =W149*ABS(1/(Vout/(SQRT(2)*$C$25*SIN($Q149)))) -> 0.1665485756 | AF149: =1/(0.0000128*(R149+Y149+$G$23)) -> 40139.51369 | AG149: =1/(0.0000128*(S149+Z149+$H$23)) -> 84922.53835 | AH149: =1/(0.0000128*(T149+AA149+$I$23)) -> 109718.2999 | AI149: =1/(0.0000128*(U149+AB149+$J$23)) -> 220939.8629 | AJ149: =1/(0.0000128*(V149+AC149+$K$23)) -> 147293.2419 | AK149: =1/(0.0000128*(W149+AD149+$L$23)) -> 110469.9314
A150: =IF(Vout_ripplepp>0.05*Vout,"OUTPUT CAPACITOR must be sized larger so non-linear gain is not triggered","Good! Output voltage peak-peak ripple is less than 5% VOUT") -> Good! Output voltage peak-peak ripple is less than 5% VOUT | Q150: =Q149+0.01 -> 1.44 | R150: =(G$5*((90/$G$18)*(90/$G$18))/2)*(1+(SQRT(1+(4/(G$5*((90/$G$18)*(90/$G$18))))*$G$23*(1-(SQRT(2)*Vin_rms_min*(SIN($Q150)/Vout)))))) -> 0.272344668 | S150: =(H$5*((90/$G$18)*(90/$G$18))/2)*(1+(SQRT(1+(4/(H$5*((90/$G$18)*(90/$G$18))))*$H$23*(1-(SQRT(2)*Vin_rms_min*(SIN($Q150)/Vout)))))) -> 0.2674797887 | T150: =(I$5*((90/$G$18)*(90/$G$18))/2)*(1+(SQRT(1+(4/(I$5*((90/$G$18)*(90/$G$18))))*$I$23*(1-(SQRT(2)*Vin_rms_min*(SIN($Q150)/Vout)))))) -> 0.2645021516 | U150: =(J$5*((90/$G$18)*(90/$G$18))/2)*(1+(SQRT(1+(4/(J$5*((90/$G$18)*(90/$G$18))))*$J$23*(1-(SQRT(2)*Vin_rms_min*(SIN($Q150)/Vout)))))) -> 0.2703287197 | V150: =(K$5*((90/$G$18)*(90/$G$18))/2)*(1+(SQRT(1+(4/(K$5*((90/$G$18)*(90/$G$18))))*$K$23*(1-(SQRT(2)*Vin_rms_min*(SIN($Q150)/Vout)))))) -> 0.4054930796 | W150: =(L$5*((90/$G$18)*(90/$G$18))/2)*(1+(SQRT(1+(4/(L$5*((90/$G$18)*(90/$G$18))))*$L$23*(1-(SQRT(2)*Vin_rms_min*(SIN($Q150)/Vout)))))) -> 0.5406574394 | Y150: =R150*ABS(1/(Vout/(SQRT(2)*$C$25*SIN($Q150)))) -> 0.08401000868 | Z150: =S150*ABS(1/(Vout/(SQRT(2)*$C$25*SIN($Q150)))) -> 0.08250934207 | AA150: =T150*ABS(1/(Vout/(SQRT(2)*$C$25*SIN($Q150)))) -> 0.08159083201 | AB150: =U150*ABS(1/(Vout/(SQRT(2)*$C$25*SIN($Q150)))) -> 0.08338815024 | AC150: =V150*ABS(1/(Vout/(SQRT(2)*$C$25*SIN($Q150)))) -> 0.1250822254 | AD150: =W150*ABS(1/(Vout/(SQRT(2)*$C$25*SIN($Q150)))) -> 0.1667763005 | AF150: =1/(0.0000128*(R150+Y150+$G$23)) -> 40139.13853 | AG150: =1/(0.0000128*(S150+Z150+$H$23)) -> 84919.48153 | AH150: =1/(0.0000128*(T150+AA150+$I$23)) -> 109711.7958 | AI150: =1/(0.0000128*(U150+AB150+$J$23)) -> 220868.7417 | AJ150: =1/(0.0000128*(V150+AC150+$K$23)) -> 147245.8278 | AK150: =1/(0.0000128*(W150+AD150+$L$23)) -> 110434.3709
A151: Output Capacitor Ripple Current at Twice Line Frequency: | B151: ICout_2fline | C151: =Iout/SQRT(2) -> 0.07071067812 | D151: ARMS | Q151: =Q150+0.01 -> 1.45 | R151: =(G$5*((90/$G$18)*(90/$G$18))/2)*(1+(SQRT(1+(4/(G$5*((90/$G$18)*(90/$G$18))))*$G$23*(1-(SQRT(2)*Vin_rms_min*(SIN($Q151)/Vout)))))) -> 0.2722762628 | S151: =(H$5*((90/$G$18)*(90/$G$18))/2)*(1+(SQRT(1+(4/(H$5*((90/$G$18)*(90/$G$18))))*$H$23*(1-(SQRT(2)*Vin_rms_min*(SIN($Q151)/Vout)))))) -> 0.2674234134 | T151: =(I$5*((90/$G$18)*(90/$G$18))/2)*(1+(SQRT(1+(4/(I$5*((90/$G$18)*(90/$G$18))))*$I$23*(1-(SQRT(2)*Vin_rms_min*(SIN($Q151)/Vout)))))) -> 0.2644531133 | U151: =(J$5*((90/$G$18)*(90/$G$18))/2)*(1+(SQRT(1+(4/(J$5*((90/$G$18)*(90/$G$18))))*$J$23*(1-(SQRT(2)*Vin_rms_min*(SIN($Q151)/Vout)))))) -> 0.2703287197 | V151: =(K$5*((90/$G$18)*(90/$G$18))/2)*(1+(SQRT(1+(4/(K$5*((90/$G$18)*(90/$G$18))))*$K$23*(1-(SQRT(2)*Vin_rms_min*(SIN($Q151)/Vout)))))) -> 0.4054930796 | W151: =(L$5*((90/$G$18)*(90/$G$18))/2)*(1+(SQRT(1+(4/(L$5*((90/$G$18)*(90/$G$18))))*$L$23*(1-(SQRT(2)*Vin_rms_min*(SIN($Q151)/Vout)))))) -> 0.5406574394 | Y151: =R151*ABS(1/(Vout/(SQRT(2)*$C$25*SIN($Q151)))) -> 0.08409519168 | Z151: =S151*ABS(1/(Vout/(SQRT(2)*$C$25*SIN($Q151)))) -> 0.0825963416 | AA151: =T151*ABS(1/(Vout/(SQRT(2)*$C$25*SIN($Q151)))) -> 0.08167893533 | AB151: =U151*ABS(1/(Vout/(SQRT(2)*$C$25*SIN($Q151)))) -> 0.08349367393 | AC151: =V151*ABS(1/(Vout/(SQRT(2)*$C$25*SIN($Q151)))) -> 0.1252405109 | AD151: =W151*ABS(1/(Vout/(SQRT(2)*$C$25*SIN($Q151)))) -> 0.1669873479 | AF151: =1/(0.0000128*(R151+Y151+$G$23)) -> 40138.79253 | AG151: =1/(0.0000128*(S151+Z151+$H$23)) -> 84916.65486 | AH151: =1/(0.0000128*(T151+AA151+$I$23)) -> 109705.7774 | AI151: =1/(0.0000128*(U151+AB151+$J$23)) -> 220802.87 | AJ151: =1/(0.0000128*(V151+AC151+$K$23)) -> 147201.9134 | AK151: =1/(0.0000128*(W151+AD151+$L$23)) -> 110401.435
A152: Output Capacitor High Frequency Ripple Current: | B152: ICout_HF | C152: =SQRT(SQRT(32*SQRT(2)/(9*pi)*(Pin/SQRT(Vin_rms_min*Vout)))) -> 0.7825371518 | D152: ARMS | Q152: =Q151+0.01 -> 1.46 | R152: =(G$5*((90/$G$18)*(90/$G$18))/2)*(1+(SQRT(1+(4/(G$5*((90/$G$18)*(90/$G$18))))*$G$23*(1-(SQRT(2)*Vin_rms_min*(SIN($Q152)/Vout)))))) -> 0.2722132531 | S152: =(H$5*((90/$G$18)*(90/$G$18))/2)*(1+(SQRT(1+(4/(H$5*((90/$G$18)*(90/$G$18))))*$H$23*(1-(SQRT(2)*Vin_rms_min*(SIN($Q152)/Vout)))))) -> 0.2673714854 | T152: =(I$5*((90/$G$18)*(90/$G$18))/2)*(1+(SQRT(1+(4/(I$5*((90/$G$18)*(90/$G$18))))*$I$23*(1-(SQRT(2)*Vin_rms_min*(SIN($Q152)/Vout)))))) -> 0.2644079443 | U152: =(J$5*((90/$G$18)*(90/$G$18))/2)*(1+(SQRT(1+(4/(J$5*((90/$G$18)*(90/$G$18))))*$J$23*(1-(SQRT(2)*Vin_rms_min*(SIN($Q152)/Vout)))))) -> 0.2703287197 | V152: =(K$5*((90/$G$18)*(90/$G$18))/2)*(1+(SQRT(1+(4/(K$5*((90/$G$18)*(90/$G$18))))*$K$23*(1-(SQRT(2)*Vin_rms_min*(SIN($Q152)/Vout)))))) -> 0.4054930796 | W152: =(L$5*((90/$G$18)*(90/$G$18))/2)*(1+(SQRT(1+(4/(L$5*((90/$G$18)*(90/$G$18))))*$L$23*(1-(SQRT(2)*Vin_rms_min*(SIN($Q152)/Vout)))))) -> 0.5406574394 | Y152: =R152*ABS(1/(Vout/(SQRT(2)*$C$25*SIN($Q152)))) -> 0.08417358234 | Z152: =S152*ABS(1/(Vout/(SQRT(2)*$C$25*SIN($Q152)))) -> 0.0826764145 | AA152: =T152*ABS(1/(Vout/(SQRT(2)*$C$25*SIN($Q152)))) -> 0.08176003049 | AB152: =U152*ABS(1/(Vout/(SQRT(2)*$C$25*SIN($Q152)))) -> 0.08359084833 | AC152: =V152*ABS(1/(Vout/(SQRT(2)*$C$25*SIN($Q152)))) -> 0.1253862725 | AD152: =W152*ABS(1/(Vout/(SQRT(2)*$C$25*SIN($Q152)))) -> 0.1671816967 | AF152: =1/(0.0000128*(R152+Y152+$G$23)) -> 40138.47534 | AG152: =1/(0.0000128*(S152+Z152+$H$23)) -> 84914.0572 | AH152: =1/(0.0000128*(T152+AA152+$I$23)) -> 109700.2432 | AI152: =1/(0.0000128*(U152+AB152+$J$23)) -> 220742.245 | AJ152: =1/(0.0000128*(V152+AC152+$K$23)) -> 147161.4967 | AK152: =1/(0.0000128*(W152+AD152+$L$23)) -> 110371.1225
A153: Total Output Capacitor Ripple Current: | B153: ICout_RMS(total) | C153: =SQRT((Icout_2fline^2)+(Icout_HF^2)) -> 0.7857253935 | D153: ARMS | Q153: =Q152+0.01 -> 1.47 | R153: =(G$5*((90/$G$18)*(90/$G$18))/2)*(1+(SQRT(1+(4/(G$5*((90/$G$18)*(90/$G$18))))*$G$23*(1-(SQRT(2)*Vin_rms_min*(SIN($Q153)/Vout)))))) -> 0.2721556493 | S153: =(H$5*((90/$G$18)*(90/$G$18))/2)*(1+(SQRT(1+(4/(H$5*((90/$G$18)*(90/$G$18))))*$H$23*(1-(SQRT(2)*Vin_rms_min*(SIN($Q153)/Vout)))))) -> 0.2673240133 | T153: =(I$5*((90/$G$18)*(90/$G$18))/2)*(1+(SQRT(1+(4/(I$5*((90/$G$18)*(90/$G$18))))*$I$23*(1-(SQRT(2)*Vin_rms_min*(SIN($Q153)/Vout)))))) -> 0.2643666516 | U153: =(J$5*((90/$G$18)*(90/$G$18))/2)*(1+(SQRT(1+(4/(J$5*((90/$G$18)*(90/$G$18))))*$J$23*(1-(SQRT(2)*Vin_rms_min*(SIN($Q153)/Vout)))))) -> 0.2703287197 | V153: =(K$5*((90/$G$18)*(90/$G$18))/2)*(1+(SQRT(1+(4/(K$5*((90/$G$18)*(90/$G$18))))*$K$23*(1-(SQRT(2)*Vin_rms_min*(SIN($Q153)/Vout)))))) -> 0.4054930796 | W153: =(L$5*((90/$G$18)*(90/$G$18))/2)*(1+(SQRT(1+(4/(L$5*((90/$G$18)*(90/$G$18))))*$L$23*(1-(SQRT(2)*Vin_rms_min*(SIN($Q153)/Vout)))))) -> 0.5406574394 | Y153: =R153*ABS(1/(Vout/(SQRT(2)*$C$25*SIN($Q153)))) -> 0.08424518577 | Z153: =S153*ABS(1/(Vout/(SQRT(2)*$C$25*SIN($Q153)))) -> 0.0827495634 | AA153: =T153*ABS(1/(Vout/(SQRT(2)*$C$25*SIN($Q153)))) -> 0.08183411857 | AB153: =U153*ABS(1/(Vout/(SQRT(2)*$C$25*SIN($Q153)))) -> 0.08367966371 | AC153: =V153*ABS(1/(Vout/(SQRT(2)*$C$25*SIN($Q153)))) -> 0.1255194956 | AD153: =W153*ABS(1/(Vout/(SQRT(2)*$C$25*SIN($Q153)))) -> 0.1673593274 | AF153: =1/(0.0000128*(R153+Y153+$G$23)) -> 40138.18664 | AG153: =1/(0.0000128*(S153+Z153+$H$23)) -> 84911.68748 | AH153: =1/(0.0000128*(T153+AA153+$I$23)) -> 109695.1917 | AI153: =1/(0.0000128*(U153+AB153+$J$23)) -> 220686.8641 | AJ153: =1/(0.0000128*(V153+AC153+$K$23)) -> 147124.5761 | AK153: =1/(0.0000128*(W153+AD153+$L$23)) -> 110343.432
A154: =IF(Vout_ripplepp>0.04*Vout,"OUTPUT CAPACITOR MUST BE INCREASED TO PREVENT ABNORMAL OPERATING","") ->  | Q154: =Q153+0.01 -> 1.48 | R154: =(G$5*((90/$G$18)*(90/$G$18))/2)*(1+(SQRT(1+(4/(G$5*((90/$G$18)*(90/$G$18))))*$G$23*(1-(SQRT(2)*Vin_rms_min*(SIN($Q154)/Vout)))))) -> 0.2721034612 | S154: =(H$5*((90/$G$18)*(90/$G$18))/2)*(1+(SQRT(1+(4/(H$5*((90/$G$18)*(90/$G$18))))*$H$23*(1-(SQRT(2)*Vin_rms_min*(SIN($Q154)/Vout)))))) -> 0.2672810047 | T154: =(I$5*((90/$G$18)*(90/$G$18))/2)*(1+(SQRT(1+(4/(I$5*((90/$G$18)*(90/$G$18))))*$I$23*(1-(SQRT(2)*Vin_rms_min*(SIN($Q154)/Vout)))))) -> 0.2643292419 | U154: =(J$5*((90/$G$18)*(90/$G$18))/2)*(1+(SQRT(1+(4/(J$5*((90/$G$18)*(90/$G$18))))*$J$23*(1-(SQRT(2)*Vin_rms_min*(SIN($Q154)/Vout)))))) -> 0.2703287197 | V154: =(K$5*((90/$G$18)*(90/$G$18))/2)*(1+(SQRT(1+(4/(K$5*((90/$G$18)*(90/$G$18))))*$K$23*(1-(SQRT(2)*Vin_rms_min*(SIN($Q154)/Vout)))))) -> 0.4054930796 | W154: =(L$5*((90/$G$18)*(90/$G$18))/2)*(1+(SQRT(1+(4/(L$5*((90/$G$18)*(90/$G$18))))*$L$23*(1-(SQRT(2)*Vin_rms_min*(SIN($Q154)/Vout)))))) -> 0.5406574394 | Y154: =R154*ABS(1/(Vout/(SQRT(2)*$C$25*SIN($Q154)))) -> 0.08431000666 | Z154: =S154*ABS(1/(Vout/(SQRT(2)*$C$25*SIN($Q154)))) -> 0.08281579069 | AA154: =T154*ABS(1/(Vout/(SQRT(2)*$C$25*SIN($Q154)))) -> 0.08190120057 | AB154: =U154*ABS(1/(Vout/(SQRT(2)*$C$25*SIN($Q154)))) -> 0.08376011119 | AC154: =V154*ABS(1/(Vout/(SQRT(2)*$C$25*SIN($Q154)))) -> 0.1256401668 | AD154: =W154*ABS(1/(Vout/(SQRT(2)*$C$25*SIN($Q154)))) -> 0.1675202224 | AF154: =1/(0.0000128*(R154+Y154+$G$23)) -> 40137.92614 | AG154: =1/(0.0000128*(S154+Z154+$H$23)) -> 84909.54473 | AH154: =1/(0.0000128*(T154+AA154+$I$23)) -> 109690.6217 | AI154: =1/(0.0000128*(U154+AB154+$J$23)) -> 220636.725 | AJ154: =1/(0.0000128*(V154+AC154+$K$23)) -> 147091.15 | AK154: =1/(0.0000128*(W154+AD154+$L$23)) -> 110318.3625
Q155: =Q154+0.01 -> 1.49 | R155: =(G$5*((90/$G$18)*(90/$G$18))/2)*(1+(SQRT(1+(4/(G$5*((90/$G$18)*(90/$G$18))))*$G$23*(1-(SQRT(2)*Vin_rms_min*(SIN($Q155)/Vout)))))) -> 0.2720566972 | S155: =(H$5*((90/$G$18)*(90/$G$18))/2)*(1+(SQRT(1+(4/(H$5*((90/$G$18)*(90/$G$18))))*$H$23*(1-(SQRT(2)*Vin_rms_min*(SIN($Q155)/Vout)))))) -> 0.2672424666 | T155: =(I$5*((90/$G$18)*(90/$G$18))/2)*(1+(SQRT(1+(4/(I$5*((90/$G$18)*(90/$G$18))))*$I$23*(1-(SQRT(2)*Vin_rms_min*(SIN($Q155)/Vout)))))) -> 0.2642957212 | U155: =(J$5*((90/$G$18)*(90/$G$18))/2)*(1+(SQRT(1+(4/(J$5*((90/$G$18)*(90/$G$18))))*$J$23*(1-(SQRT(2)*Vin_rms_min*(SIN($Q155)/Vout)))))) -> 0.2703287197 | V155: =(K$5*((90/$G$18)*(90/$G$18))/2)*(1+(SQRT(1+(4/(K$5*((90/$G$18)*(90/$G$18))))*$K$23*(1-(SQRT(2)*Vin_rms_min*(SIN($Q155)/Vout)))))) -> 0.4054930796 | W155: =(L$5*((90/$G$18)*(90/$G$18))/2)*(1+(SQRT(1+(4/(L$5*((90/$G$18)*(90/$G$18))))*$L$23*(1-(SQRT(2)*Vin_rms_min*(SIN($Q155)/Vout)))))) -> 0.5406574394 | Y155: =R155*ABS(1/(Vout/(SQRT(2)*$C$25*SIN($Q155)))) -> 0.0843680493 | Z155: =S155*ABS(1/(Vout/(SQRT(2)*$C$25*SIN($Q155)))) -> 0.08287509858 | AA155: =T155*ABS(1/(Vout/(SQRT(2)*$C$25*SIN($Q155)))) -> 0.08196127743 | AB155: =U155*ABS(1/(Vout/(SQRT(2)*$C$25*SIN($Q155)))) -> 0.08383218273 | AC155: =V155*ABS(1/(Vout/(SQRT(2)*$C$25*SIN($Q155)))) -> 0.1257482741 | AD155: =W155*ABS(1/(Vout/(SQRT(2)*$C$25*SIN($Q155)))) -> 0.1676643655 | AF155: =1/(0.0000128*(R155+Y155+$G$23)) -> 40137.69355 | AG155: =1/(0.0000128*(S155+Z155+$H$23)) -> 84907.62806 | AH155: =1/(0.0000128*(T155+AA155+$I$23)) -> 109686.5319 | AI155: =1/(0.0000128*(U155+AB155+$J$23)) -> 220591.8255 | AJ155: =1/(0.0000128*(V155+AC155+$K$23)) -> 147061.217 | AK155: =1/(0.0000128*(W155+AD155+$L$23)) -> 110295.9128
A156: OUTPUT VOLTAGE SET POINT: | Q156: =Q155+0.01 -> 1.5 | R156: =(G$5*((90/$G$18)*(90/$G$18))/2)*(1+(SQRT(1+(4/(G$5*((90/$G$18)*(90/$G$18))))*$G$23*(1-(SQRT(2)*Vin_rms_min*(SIN($Q156)/Vout)))))) -> 0.2720153653 | S156: =(H$5*((90/$G$18)*(90/$G$18))/2)*(1+(SQRT(1+(4/(H$5*((90/$G$18)*(90/$G$18))))*$H$23*(1-(SQRT(2)*Vin_rms_min*(SIN($Q156)/Vout)))))) -> 0.2672084054 | T156: =(I$5*((90/$G$18)*(90/$G$18))/2)*(1+(SQRT(1+(4/(I$5*((90/$G$18)*(90/$G$18))))*$I$23*(1-(SQRT(2)*Vin_rms_min*(SIN($Q156)/Vout)))))) -> 0.2642660947 | U156: =(J$5*((90/$G$18)*(90/$G$18))/2)*(1+(SQRT(1+(4/(J$5*((90/$G$18)*(90/$G$18))))*$J$23*(1-(SQRT(2)*Vin_rms_min*(SIN($Q156)/Vout)))))) -> 0.2703287197 | V156: =(K$5*((90/$G$18)*(90/$G$18))/2)*(1+(SQRT(1+(4/(K$5*((90/$G$18)*(90/$G$18))))*$K$23*(1-(SQRT(2)*Vin_rms_min*(SIN($Q156)/Vout)))))) -> 0.4054930796 | W156: =(L$5*((90/$G$18)*(90/$G$18))/2)*(1+(SQRT(1+(4/(L$5*((90/$G$18)*(90/$G$18))))*$L$23*(1-(SQRT(2)*Vin_rms_min*(SIN($Q156)/Vout)))))) -> 0.5406574394 | Y156: =R156*ABS(1/(Vout/(SQRT(2)*$C$25*SIN($Q156)))) -> 0.08441931753 | Z156: =S156*ABS(1/(Vout/(SQRT(2)*$C$25*SIN($Q156)))) -> 0.08292748905 | AA156: =T156*ABS(1/(Vout/(SQRT(2)*$C$25*SIN($Q156)))) -> 0.08201434997 | AB156: =U156*ABS(1/(Vout/(SQRT(2)*$C$25*SIN($Q156)))) -> 0.08389587112 | AC156: =V156*ABS(1/(Vout/(SQRT(2)*$C$25*SIN($Q156)))) -> 0.1258438067 | AD156: =W156*ABS(1/(Vout/(SQRT(2)*$C$25*SIN($Q156)))) -> 0.1677917422 | AF156: =1/(0.0000128*(R156+Y156+$G$23)) -> 40137.48866 | AG156: =1/(0.0000128*(S156+Z156+$H$23)) -> 84905.93669 | AH156: =1/(0.0000128*(T156+AA156+$I$23)) -> 109682.9214 | AI156: =1/(0.0000128*(U156+AB156+$J$23)) -> 220552.1638 | AJ156: =1/(0.0000128*(V156+AC156+$K$23)) -> 147034.7759 | AK156: =1/(0.0000128*(W156+AD156+$L$23)) -> 110276.0819
A157: Feedback Voltage Reference | B157: VOSReg | C157: 2.5 | D157: V | Q157: =Q156+0.01 -> 1.51 | R157: =(G$5*((90/$G$18)*(90/$G$18))/2)*(1+(SQRT(1+(4/(G$5*((90/$G$18)*(90/$G$18))))*$G$23*(1-(SQRT(2)*Vin_rms_min*(SIN($Q157)/Vout)))))) -> 0.2719794722 | S157: =(H$5*((90/$G$18)*(90/$G$18))/2)*(1+(SQRT(1+(4/(H$5*((90/$G$18)*(90/$G$18))))*$H$23*(1-(SQRT(2)*Vin_rms_min*(SIN($Q157)/Vout)))))) -> 0.2671788266 | T157: =(I$5*((90/$G$18)*(90/$G$18))/2)*(1+(SQRT(1+(4/(I$5*((90/$G$18)*(90/$G$18))))*$I$23*(1-(SQRT(2)*Vin_rms_min*(SIN($Q157)/Vout)))))) -> 0.2642403673 | U157: =(J$5*((90/$G$18)*(90/$G$18))/2)*(1+(SQRT(1+(4/(J$5*((90/$G$18)*(90/$G$18))))*$J$23*(1-(SQRT(2)*Vin_rms_min*(SIN($Q157)/Vout)))))) -> 0.2703287197 | V157: =(K$5*((90/$G$18)*(90/$G$18))/2)*(1+(SQRT(1+(4/(K$5*((90/$G$18)*(90/$G$18))))*$K$23*(1-(SQRT(2)*Vin_rms_min*(SIN($Q157)/Vout)))))) -> 0.4054930796 | W157: =(L$5*((90/$G$18)*(90/$G$18))/2)*(1+(SQRT(1+(4/(L$5*((90/$G$18)*(90/$G$18))))*$L$23*(1-(SQRT(2)*Vin_rms_min*(SIN($Q157)/Vout)))))) -> 0.5406574394 | Y157: =R157*ABS(1/(Vout/(SQRT(2)*$C$25*SIN($Q157)))) -> 0.08446381477 | Z157: =S157*ABS(1/(Vout/(SQRT(2)*$C$25*SIN($Q157)))) -> 0.08297296387 | AA157: =T157*ABS(1/(Vout/(SQRT(2)*$C$25*SIN($Q157)))) -> 0.08206041894 | AB157: =U157*ABS(1/(Vout/(SQRT(2)*$C$25*SIN($Q157)))) -> 0.08395117 | AC157: =V157*ABS(1/(Vout/(SQRT(2)*$C$25*SIN($Q157)))) -> 0.125926755 | AD157: =W157*ABS(1/(Vout/(SQRT(2)*$C$25*SIN($Q157)))) -> 0.16790234 | AF157: =1/(0.0000128*(R157+Y157+$G$23)) -> 40137.31123 | AG157: =1/(0.0000128*(S157+Z157+$H$23)) -> 84904.4699 | AH157: =1/(0.0000128*(T157+AA157+$I$23)) -> 109679.7891 | AI157: =1/(0.0000128*(U157+AB157+$J$23)) -> 220517.7383 | AJ157: =1/(0.0000128*(V157+AC157+$K$23)) -> 147011.8255 | AK157: =1/(0.0000128*(W157+AD157+$L$23)) -> 110258.8691
A158: VOSNS Voltage Divider Ratio | B158: KOS | C158: =Vout/Vosreg -> 200 | Q158: =Q157+0.01 -> 1.52 | R158: =(G$5*((90/$G$18)*(90/$G$18))/2)*(1+(SQRT(1+(4/(G$5*((90/$G$18)*(90/$G$18))))*$G$23*(1-(SQRT(2)*Vin_rms_min*(SIN($Q158)/Vout)))))) -> 0.2719490241 | S158: =(H$5*((90/$G$18)*(90/$G$18))/2)*(1+(SQRT(1+(4/(H$5*((90/$G$18)*(90/$G$18))))*$H$23*(1-(SQRT(2)*Vin_rms_min*(SIN($Q158)/Vout)))))) -> 0.267153735 | T158: =(I$5*((90/$G$18)*(90/$G$18))/2)*(1+(SQRT(1+(4/(I$5*((90/$G$18)*(90/$G$18))))*$I$23*(1-(SQRT(2)*Vin_rms_min*(SIN($Q158)/Vout)))))) -> 0.2642185429 | U158: =(J$5*((90/$G$18)*(90/$G$18))/2)*(1+(SQRT(1+(4/(J$5*((90/$G$18)*(90/$G$18))))*$J$23*(1-(SQRT(2)*Vin_rms_min*(SIN($Q158)/Vout)))))) -> 0.2703287197 | V158: =(K$5*((90/$G$18)*(90/$G$18))/2)*(1+(SQRT(1+(4/(K$5*((90/$G$18)*(90/$G$18))))*$K$23*(1-(SQRT(2)*Vin_rms_min*(SIN($Q158)/Vout)))))) -> 0.4054930796 | W158: =(L$5*((90/$G$18)*(90/$G$18))/2)*(1+(SQRT(1+(4/(L$5*((90/$G$18)*(90/$G$18))))*$L$23*(1-(SQRT(2)*Vin_rms_min*(SIN($Q158)/Vout)))))) -> 0.5406574394 | Y158: =R158*ABS(1/(Vout/(SQRT(2)*$C$25*SIN($Q158)))) -> 0.08450154399 | Z158: =S158*ABS(1/(Vout/(SQRT(2)*$C$25*SIN($Q158)))) -> 0.08301152456 | AA158: =T158*ABS(1/(Vout/(SQRT(2)*$C$25*SIN($Q158)))) -> 0.08209948501 | AB158: =U158*ABS(1/(Vout/(SQRT(2)*$C$25*SIN($Q158)))) -> 0.08399807383 | AC158: =V158*ABS(1/(Vout/(SQRT(2)*$C$25*SIN($Q158)))) -> 0.1259971107 | AD158: =W158*ABS(1/(Vout/(SQRT(2)*$C$25*SIN($Q158)))) -> 0.1679961477 | AF158: =1/(0.0000128*(R158+Y158+$G$23)) -> 40137.16109 | AG158: =1/(0.0000128*(S158+Z158+$H$23)) -> 84903.2271 | AH158: =1/(0.0000128*(T158+AA158+$I$23)) -> 109677.1343 | AI158: =1/(0.0000128*(U158+AB158+$J$23)) -> 220488.5474 | AJ158: =1/(0.0000128*(V158+AC158+$K$23)) -> 146992.3649 | AK158: =1/(0.0000128*(W158+AD158+$L$23)) -> 110244.2737
A159: BLK Pin Start Threshold of UCC256301 | B159: VBLKpinstart | C159: 3.05 | D159: V | Q159: =Q158+0.01 -> 1.53 | R159: =(G$5*((90/$G$18)*(90/$G$18))/2)*(1+(SQRT(1+(4/(G$5*((90/$G$18)*(90/$G$18))))*$G$23*(1-(SQRT(2)*Vin_rms_min*(SIN($Q159)/Vout)))))) -> 0.2719240259 | S159: =(H$5*((90/$G$18)*(90/$G$18))/2)*(1+(SQRT(1+(4/(H$5*((90/$G$18)*(90/$G$18))))*$H$23*(1-(SQRT(2)*Vin_rms_min*(SIN($Q159)/Vout)))))) -> 0.2671331347 | T159: =(I$5*((90/$G$18)*(90/$G$18))/2)*(1+(SQRT(1+(4/(I$5*((90/$G$18)*(90/$G$18))))*$I$23*(1-(SQRT(2)*Vin_rms_min*(SIN($Q159)/Vout)))))) -> 0.2642006251 | U159: =(J$5*((90/$G$18)*(90/$G$18))/2)*(1+(SQRT(1+(4/(J$5*((90/$G$18)*(90/$G$18))))*$J$23*(1-(SQRT(2)*Vin_rms_min*(SIN($Q159)/Vout)))))) -> 0.2703287197 | V159: =(K$5*((90/$G$18)*(90/$G$18))/2)*(1+(SQRT(1+(4/(K$5*((90/$G$18)*(90/$G$18))))*$K$23*(1-(SQRT(2)*Vin_rms_min*(SIN($Q159)/Vout)))))) -> 0.4054930796 | W159: =(L$5*((90/$G$18)*(90/$G$18))/2)*(1+(SQRT(1+(4/(L$5*((90/$G$18)*(90/$G$18))))*$L$23*(1-(SQRT(2)*Vin_rms_min*(SIN($Q159)/Vout)))))) -> 0.5406574394 | Y159: =R159*ABS(1/(Vout/(SQRT(2)*$C$25*SIN($Q159)))) -> 0.08453250773 | Z159: =S159*ABS(1/(Vout/(SQRT(2)*$C$25*SIN($Q159)))) -> 0.08304317244 | AA159: =T159*ABS(1/(Vout/(SQRT(2)*$C$25*SIN($Q159)))) -> 0.08213154874 | AB159: =U159*ABS(1/(Vout/(SQRT(2)*$C$25*SIN($Q159)))) -> 0.08403657792 | AC159: =V159*ABS(1/(Vout/(SQRT(2)*$C$25*SIN($Q159)))) -> 0.1260548669 | AD159: =W159*ABS(1/(Vout/(SQRT(2)*$C$25*SIN($Q159)))) -> 0.1680731558 | AF159: =1/(0.0000128*(R159+Y159+$G$23)) -> 40137.03807 | AG159: =1/(0.0000128*(S159+Z159+$H$23)) -> 84902.20776 | AH159: =1/(0.0000128*(T159+AA159+$I$23)) -> 109674.9562 | AI159: =1/(0.0000128*(U159+AB159+$J$23)) -> 220464.5898 | AJ159: =1/(0.0000128*(V159+AC159+$K$23)) -> 146976.3932 | AK159: =1/(0.0000128*(W159+AD159+$L$23)) -> 110232.2949
A160: Desired Bulk Start Voltage of UCC256301 | B160: VBLKStart | C160: 330 | D160: V | Q160: =Q159+0.01 -> 1.54 | R160: =(G$5*((90/$G$18)*(90/$G$18))/2)*(1+(SQRT(1+(4/(G$5*((90/$G$18)*(90/$G$18))))*$G$23*(1-(SQRT(2)*Vin_rms_min*(SIN($Q160)/Vout)))))) -> 0.2719044818 | S160: =(H$5*((90/$G$18)*(90/$G$18))/2)*(1+(SQRT(1+(4/(H$5*((90/$G$18)*(90/$G$18))))*$H$23*(1-(SQRT(2)*Vin_rms_min*(SIN($Q160)/Vout)))))) -> 0.267117029 | T160: =(I$5*((90/$G$18)*(90/$G$18))/2)*(1+(SQRT(1+(4/(I$5*((90/$G$18)*(90/$G$18))))*$I$23*(1-(SQRT(2)*Vin_rms_min*(SIN($Q160)/Vout)))))) -> 0.2641866168 | U160: =(J$5*((90/$G$18)*(90/$G$18))/2)*(1+(SQRT(1+(4/(J$5*((90/$G$18)*(90/$G$18))))*$J$23*(1-(SQRT(2)*Vin_rms_min*(SIN($Q160)/Vout)))))) -> 0.2703287197 | V160: =(K$5*((90/$G$18)*(90/$G$18))/2)*(1+(SQRT(1+(4/(K$5*((90/$G$18)*(90/$G$18))))*$K$23*(1-(SQRT(2)*Vin_rms_min*(SIN($Q160)/Vout)))))) -> 0.4054930796 | W160: =(L$5*((90/$G$18)*(90/$G$18))/2)*(1+(SQRT(1+(4/(L$5*((90/$G$18)*(90/$G$18))))*$L$23*(1-(SQRT(2)*Vin_rms_min*(SIN($Q160)/Vout)))))) -> 0.5406574394 | Y160: =R160*ABS(1/(Vout/(SQRT(2)*$C$25*SIN($Q160)))) -> 0.08455670806 | Z160: =S160*ABS(1/(Vout/(SQRT(2)*$C$25*SIN($Q160)))) -> 0.0830679086 | AA160: =T160*ABS(1/(Vout/(SQRT(2)*$C$25*SIN($Q160)))) -> 0.0821566106 | AB160: =U160*ABS(1/(Vout/(SQRT(2)*$C$25*SIN($Q160)))) -> 0.08406667842 | AC160: =V160*ABS(1/(Vout/(SQRT(2)*$C$25*SIN($Q160)))) -> 0.1261000176 | AD160: =W160*ABS(1/(Vout/(SQRT(2)*$C$25*SIN($Q160)))) -> 0.1681333568 | AF160: =1/(0.0000128*(R160+Y160+$G$23)) -> 40136.94206 | AG160: =1/(0.0000128*(S160+Z160+$H$23)) -> 84901.41145 | AH160: =1/(0.0000128*(T160+AA160+$I$23)) -> 109673.2544 | AI160: =1/(0.0000128*(U160+AB160+$J$23)) -> 220445.8647 | AJ160: =1/(0.0000128*(V160+AC160+$K$23)) -> 146963.9098 | AK160: =1/(0.0000128*(W160+AD160+$L$23)) -> 110222.9324
A161: BLK Pin Voltage Divider Ratio of UCC256301 | B161: KBLK | C161: =C160/C159 -> 108.1967213 | E161: =IF(Ros1>10,"RECOMMENDED VALUE IS LESS THAN OR EQUAL TO 10Meg","") ->  | Q161: =Q160+0.01 -> 1.55 | R161: =(G$5*((90/$G$18)*(90/$G$18))/2)*(1+(SQRT(1+(4/(G$5*((90/$G$18)*(90/$G$18))))*$G$23*(1-(SQRT(2)*Vin_rms_min*(SIN($Q161)/Vout)))))) -> 0.2718903951 | S161: =(H$5*((90/$G$18)*(90/$G$18))/2)*(1+(SQRT(1+(4/(H$5*((90/$G$18)*(90/$G$18))))*$H$23*(1-(SQRT(2)*Vin_rms_min*(SIN($Q161)/Vout)))))) -> 0.2671054207 | T161: =(I$5*((90/$G$18)*(90/$G$18))/2)*(1+(SQRT(1+(4/(I$5*((90/$G$18)*(90/$G$18))))*$I$23*(1-(SQRT(2)*Vin_rms_min*(SIN($Q161)/Vout)))))) -> 0.2641765202 | U161: =(J$5*((90/$G$18)*(90/$G$18))/2)*(1+(SQRT(1+(4/(J$5*((90/$G$18)*(90/$G$18))))*$J$23*(1-(SQRT(2)*Vin_rms_min*(SIN($Q161)/Vout)))))) -> 0.2703287197 | V161: =(K$5*((90/$G$18)*(90/$G$18))/2)*(1+(SQRT(1+(4/(K$5*((90/$G$18)*(90/$G$18))))*$K$23*(1-(SQRT(2)*Vin_rms_min*(SIN($Q161)/Vout)))))) -> 0.4054930796 | W161: =(L$5*((90/$G$18)*(90/$G$18))/2)*(1+(SQRT(1+(4/(L$5*((90/$G$18)*(90/$G$18))))*$L$23*(1-(SQRT(2)*Vin_rms_min*(SIN($Q161)/Vout)))))) -> 0.5406574394 | Y161: =R161*ABS(1/(Vout/(SQRT(2)*$C$25*SIN($Q161)))) -> 0.08457414662 | Z161: =S161*ABS(1/(Vout/(SQRT(2)*$C$25*SIN($Q161)))) -> 0.08308573388 | AA161: =T161*ABS(1/(Vout/(SQRT(2)*$C$25*SIN($Q161)))) -> 0.08217467094 | AB161: =U161*ABS(1/(Vout/(SQRT(2)*$C$25*SIN($Q161)))) -> 0.08408837233 | AC161: =V161*ABS(1/(Vout/(SQRT(2)*$C$25*SIN($Q161)))) -> 0.1261325585 | AD161: =W161*ABS(1/(Vout/(SQRT(2)*$C$25*SIN($Q161)))) -> 0.1681767447 | AF161: =1/(0.0000128*(R161+Y161+$G$23)) -> 40136.87294 | AG161: =1/(0.0000128*(S161+Z161+$H$23)) -> 84900.83784 | AH161: =1/(0.0000128*(T161+AA161+$I$23)) -> 109672.0283 | AI161: =1/(0.0000128*(U161+AB161+$J$23)) -> 220432.3712 | AJ161: =1/(0.0000128*(V161+AC161+$K$23)) -> 146954.9141 | AK161: =1/(0.0000128*(W161+AD161+$L$23)) -> 110216.1856
A162: Recommended Value for the Top Divider Resistor: | B162: ROS1(recommended) | C162: 10 | D162: MW | Q162: =Q161+0.01 -> 1.56 | R162: =(G$5*((90/$G$18)*(90/$G$18))/2)*(1+(SQRT(1+(4/(G$5*((90/$G$18)*(90/$G$18))))*$G$23*(1-(SQRT(2)*Vin_rms_min*(SIN($Q162)/Vout)))))) -> 0.2718817682 | S162: =(H$5*((90/$G$18)*(90/$G$18))/2)*(1+(SQRT(1+(4/(H$5*((90/$G$18)*(90/$G$18))))*$H$23*(1-(SQRT(2)*Vin_rms_min*(SIN($Q162)/Vout)))))) -> 0.2670983116 | T162: =(I$5*((90/$G$18)*(90/$G$18))/2)*(1+(SQRT(1+(4/(I$5*((90/$G$18)*(90/$G$18))))*$I$23*(1-(SQRT(2)*Vin_rms_min*(SIN($Q162)/Vout)))))) -> 0.2641703368 | U162: =(J$5*((90/$G$18)*(90/$G$18))/2)*(1+(SQRT(1+(4/(J$5*((90/$G$18)*(90/$G$18))))*$J$23*(1-(SQRT(2)*Vin_rms_min*(SIN($Q162)/Vout)))))) -> 0.2703287197 | V162: =(K$5*((90/$G$18)*(90/$G$18))/2)*(1+(SQRT(1+(4/(K$5*((90/$G$18)*(90/$G$18))))*$K$23*(1-(SQRT(2)*Vin_rms_min*(SIN($Q162)/Vout)))))) -> 0.4054930796 | W162: =(L$5*((90/$G$18)*(90/$G$18))/2)*(1+(SQRT(1+(4/(L$5*((90/$G$18)*(90/$G$18))))*$L$23*(1-(SQRT(2)*Vin_rms_min*(SIN($Q162)/Vout)))))) -> 0.5406574394 | Y162: =R162*ABS(1/(Vout/(SQRT(2)*$C$25*SIN($Q162)))) -> 0.08458482458 | Z162: =S162*ABS(1/(Vout/(SQRT(2)*$C$25*SIN($Q162)))) -> 0.0830966489 | AA162: =T162*ABS(1/(Vout/(SQRT(2)*$C$25*SIN($Q162)))) -> 0.08218573004 | AB162: =U162*ABS(1/(Vout/(SQRT(2)*$C$25*SIN($Q162)))) -> 0.08410165747 | AC162: =V162*ABS(1/(Vout/(SQRT(2)*$C$25*SIN($Q162)))) -> 0.1261524862 | AD162: =W162*ABS(1/(Vout/(SQRT(2)*$C$25*SIN($Q162)))) -> 0.1682033149 | AF162: =1/(0.0000128*(R162+Y162+$G$23)) -> 40136.83065 | AG162: =1/(0.0000128*(S162+Z162+$H$23)) -> 84900.4867 | AH162: =1/(0.0000128*(T162+AA162+$I$23)) -> 109671.2777 | AI162: =1/(0.0000128*(U162+AB162+$J$23)) -> 220424.1087 | AJ162: =1/(0.0000128*(V162+AC162+$K$23)) -> 146949.4058 | AK162: =1/(0.0000128*(W162+AD162+$L$23)) -> 110212.0544 | AN162: UCC28056
A163: Actual Value of the Top Divider Resistor: | B163: ROS1(actual) | C163: 10 | D163: MW | Q163: =Q162+0.01 -> 1.57 | R163: =(G$5*((90/$G$18)*(90/$G$18))/2)*(1+(SQRT(1+(4/(G$5*((90/$G$18)*(90/$G$18))))*$G$23*(1-(SQRT(2)*Vin_rms_min*(SIN($Q163)/Vout)))))) -> 0.2718786024 | S163: =(H$5*((90/$G$18)*(90/$G$18))/2)*(1+(SQRT(1+(4/(H$5*((90/$G$18)*(90/$G$18))))*$H$23*(1-(SQRT(2)*Vin_rms_min*(SIN($Q163)/Vout)))))) -> 0.2670957028 | T163: =(I$5*((90/$G$18)*(90/$G$18))/2)*(1+(SQRT(1+(4/(I$5*((90/$G$18)*(90/$G$18))))*$I$23*(1-(SQRT(2)*Vin_rms_min*(SIN($Q163)/Vout)))))) -> 0.2641680678 | U163: =(J$5*((90/$G$18)*(90/$G$18))/2)*(1+(SQRT(1+(4/(J$5*((90/$G$18)*(90/$G$18))))*$J$23*(1-(SQRT(2)*Vin_rms_min*(SIN($Q163)/Vout)))))) -> 0.2703287197 | V163: =(K$5*((90/$G$18)*(90/$G$18))/2)*(1+(SQRT(1+(4/(K$5*((90/$G$18)*(90/$G$18))))*$K$23*(1-(SQRT(2)*Vin_rms_min*(SIN($Q163)/Vout)))))) -> 0.4054930796 | W163: =(L$5*((90/$G$18)*(90/$G$18))/2)*(1+(SQRT(1+(4/(L$5*((90/$G$18)*(90/$G$18))))*$L$23*(1-(SQRT(2)*Vin_rms_min*(SIN($Q163)/Vout)))))) -> 0.5406574394 | Y163: =R163*ABS(1/(Vout/(SQRT(2)*$C$25*SIN($Q163)))) -> 0.08458874268 | Z163: =S163*ABS(1/(Vout/(SQRT(2)*$C$25*SIN($Q163)))) -> 0.08310065402 | AA163: =T163*ABS(1/(Vout/(SQRT(2)*$C$25*SIN($Q163)))) -> 0.08218978807 | AB163: =U163*ABS(1/(Vout/(SQRT(2)*$C$25*SIN($Q163)))) -> 0.08410653251 | AC163: =V163*ABS(1/(Vout/(SQRT(2)*$C$25*SIN($Q163)))) -> 0.1261597988 | AD163: =W163*ABS(1/(Vout/(SQRT(2)*$C$25*SIN($Q163)))) -> 0.168213065 | AF163: =1/(0.0000128*(R163+Y163+$G$23)) -> 40136.81514 | AG163: =1/(0.0000128*(S163+Z163+$H$23)) -> 84900.35787 | AH163: =1/(0.0000128*(T163+AA163+$I$23)) -> 109671.0022 | AI163: =1/(0.0000128*(U163+AB163+$J$23)) -> 220421.0769 | AJ163: =1/(0.0000128*(V163+AC163+$K$23)) -> 146947.3846 | AK163: =1/(0.0000128*(W163+AD163+$L$23)) -> 110210.5385 | AN163: UCC28056A
A164: Recommended Value for the Middle Divider Resistor: | B164: ROS2(recommended) | C164: =((Kos-1)/(Kblk-1)-1)*Ros1/Kos*kΩ -> 42.82000306 | D164: kW | Q164: =Q163+0.01 -> 1.58 | R164: =(G$5*((90/$G$18)*(90/$G$18))/2)*(1+(SQRT(1+(4/(G$5*((90/$G$18)*(90/$G$18))))*$G$23*(1-(SQRT(2)*Vin_rms_min*(SIN($Q164)/Vout)))))) -> 0.2718808983 | S164: =(H$5*((90/$G$18)*(90/$G$18))/2)*(1+(SQRT(1+(4/(H$5*((90/$G$18)*(90/$G$18))))*$H$23*(1-(SQRT(2)*Vin_rms_min*(SIN($Q164)/Vout)))))) -> 0.2670975947 | T164: =(I$5*((90/$G$18)*(90/$G$18))/2)*(1+(SQRT(1+(4/(I$5*((90/$G$18)*(90/$G$18))))*$I$23*(1-(SQRT(2)*Vin_rms_min*(SIN($Q164)/Vout)))))) -> 0.2641697134 | U164: =(J$5*((90/$G$18)*(90/$G$18))/2)*(1+(SQRT(1+(4/(J$5*((90/$G$18)*(90/$G$18))))*$J$23*(1-(SQRT(2)*Vin_rms_min*(SIN($Q164)/Vout)))))) -> 0.2703287197 | V164: =(K$5*((90/$G$18)*(90/$G$18))/2)*(1+(SQRT(1+(4/(K$5*((90/$G$18)*(90/$G$18))))*$K$23*(1-(SQRT(2)*Vin_rms_min*(SIN($Q164)/Vout)))))) -> 0.4054930796 | W164: =(L$5*((90/$G$18)*(90/$G$18))/2)*(1+(SQRT(1+(4/(L$5*((90/$G$18)*(90/$G$18))))*$L$23*(1-(SQRT(2)*Vin_rms_min*(SIN($Q164)/Vout)))))) -> 0.5406574394 | Y164: =R164*ABS(1/(Vout/(SQRT(2)*$C$25*SIN($Q164)))) -> 0.08458590116 | Z164: =S164*ABS(1/(Vout/(SQRT(2)*$C$25*SIN($Q164)))) -> 0.08309774938 | AA164: =T164*ABS(1/(Vout/(SQRT(2)*$C$25*SIN($Q164)))) -> 0.08218684507 | AB164: =U164*ABS(1/(Vout/(SQRT(2)*$C$25*SIN($Q164)))) -> 0.08410299697 | AC164: =V164*ABS(1/(Vout/(SQRT(2)*$C$25*SIN($Q164)))) -> 0.1261544955 | AD164: =W164*ABS(1/(Vout/(SQRT(2)*$C$25*SIN($Q164)))) -> 0.1682059939 | AF164: =1/(0.0000128*(R164+Y164+$G$23)) -> 40136.82639 | AG164: =1/(0.0000128*(S164+Z164+$H$23)) -> 84900.4513 | AH164: =1/(0.0000128*(T164+AA164+$I$23)) -> 109671.202 | AI164: =1/(0.0000128*(U164+AB164+$J$23)) -> 220423.2757 | AJ164: =1/(0.0000128*(V164+AC164+$K$23)) -> 146948.8505 | AK164: =1/(0.0000128*(W164+AD164+$L$23)) -> 110211.6378 | AN164: UCC28056B
A165: Actual Value of the Middle Divider Resistor: | B165: ROS2(actual) | C165: 0 | D165: kW | Q165: =Q164+0.01 -> 1.59 | R165: =(G$5*((90/$G$18)*(90/$G$18))/2)*(1+(SQRT(1+(4/(G$5*((90/$G$18)*(90/$G$18))))*$G$23*(1-(SQRT(2)*Vin_rms_min*(SIN($Q165)/Vout)))))) -> 0.2718886556 | S165: =(H$5*((90/$G$18)*(90/$G$18))/2)*(1+(SQRT(1+(4/(H$5*((90/$G$18)*(90/$G$18))))*$H$23*(1-(SQRT(2)*Vin_rms_min*(SIN($Q165)/Vout)))))) -> 0.2671039872 | T165: =(I$5*((90/$G$18)*(90/$G$18))/2)*(1+(SQRT(1+(4/(I$5*((90/$G$18)*(90/$G$18))))*$I$23*(1-(SQRT(2)*Vin_rms_min*(SIN($Q165)/Vout)))))) -> 0.2641752734 | U165: =(J$5*((90/$G$18)*(90/$G$18))/2)*(1+(SQRT(1+(4/(J$5*((90/$G$18)*(90/$G$18))))*$J$23*(1-(SQRT(2)*Vin_rms_min*(SIN($Q165)/Vout)))))) -> 0.2703287197 | V165: =(K$5*((90/$G$18)*(90/$G$18))/2)*(1+(SQRT(1+(4/(K$5*((90/$G$18)*(90/$G$18))))*$K$23*(1-(SQRT(2)*Vin_rms_min*(SIN($Q165)/Vout)))))) -> 0.4054930796 | W165: =(L$5*((90/$G$18)*(90/$G$18))/2)*(1+(SQRT(1+(4/(L$5*((90/$G$18)*(90/$G$18))))*$L$23*(1-(SQRT(2)*Vin_rms_min*(SIN($Q165)/Vout)))))) -> 0.5406574394 | Y165: =R165*ABS(1/(Vout/(SQRT(2)*$C$25*SIN($Q165)))) -> 0.08457629985 | Z165: =S165*ABS(1/(Vout/(SQRT(2)*$C$25*SIN($Q165)))) -> 0.0830879349 | AA165: =T165*ABS(1/(Vout/(SQRT(2)*$C$25*SIN($Q165)))) -> 0.082176901 | AB165: =U165*ABS(1/(Vout/(SQRT(2)*$C$25*SIN($Q165)))) -> 0.0840910512 | AC165: =V165*ABS(1/(Vout/(SQRT(2)*$C$25*SIN($Q165)))) -> 0.1261365768 | AD165: =W165*ABS(1/(Vout/(SQRT(2)*$C$25*SIN($Q165)))) -> 0.1681821024 | AF165: =1/(0.0000128*(R165+Y165+$G$23)) -> 40136.86441 | AG165: =1/(0.0000128*(S165+Z165+$H$23)) -> 84900.76703 | AH165: =1/(0.0000128*(T165+AA165+$I$23)) -> 109671.8769 | AI165: =1/(0.0000128*(U165+AB165+$J$23)) -> 220430.7051 | AJ165: =1/(0.0000128*(V165+AC165+$K$23)) -> 146953.8034 | AK165: =1/(0.0000128*(W165+AD165+$L$23)) -> 110215.3525 | AN165: UCC28056C
A166: Actual Value of the Bottom Divider Resistor: | B166: ROS3(recommended) | C166: =(Ros1*MegΩ+Ros2*kΩ)/(Kos-1)/kΩ -> 50.25125628 | D166: kW | E166: =IF(Vout<Vin_pk_max,"DO NOT PROCEED WITHOUT ADJUSTING THE RESISTOR DIVIDER IN ORDER TO ACHIEVE THE DESIRED OUTPUT VOLTAGE",IF(Vout_nom>1.05*Vout,"ADJUST BOTTOM DIVIDER RESISTOR FOR DESIRED OUTPUT VOLTAGE","")) ->  | Q166: =Q165+0.01 -> 1.6 | R166: =(G$5*((90/$G$18)*(90/$G$18))/2)*(1+(SQRT(1+(4/(G$5*((90/$G$18)*(90/$G$18))))*$G$23*(1-(SQRT(2)*Vin_rms_min*(SIN($Q166)/Vout)))))) -> 0.2719018728 | S166: =(H$5*((90/$G$18)*(90/$G$18))/2)*(1+(SQRT(1+(4/(H$5*((90/$G$18)*(90/$G$18))))*$H$23*(1-(SQRT(2)*Vin_rms_min*(SIN($Q166)/Vout)))))) -> 0.2671148791 | T166: =(I$5*((90/$G$18)*(90/$G$18))/2)*(1+(SQRT(1+(4/(I$5*((90/$G$18)*(90/$G$18))))*$I$23*(1-(SQRT(2)*Vin_rms_min*(SIN($Q166)/Vout)))))) -> 0.2641847468 | U166: =(J$5*((90/$G$18)*(90/$G$18))/2)*(1+(SQRT(1+(4/(J$5*((90/$G$18)*(90/$G$18))))*$J$23*(1-(SQRT(2)*Vin_rms_min*(SIN($Q166)/Vout)))))) -> 0.2703287197 | V166: =(K$5*((90/$G$18)*(90/$G$18))/2)*(1+(SQRT(1+(4/(K$5*((90/$G$18)*(90/$G$18))))*$K$23*(1-(SQRT(2)*Vin_rms_min*(SIN($Q166)/Vout)))))) -> 0.4054930796 | W166: =(L$5*((90/$G$18)*(90/$G$18))/2)*(1+(SQRT(1+(4/(L$5*((90/$G$18)*(90/$G$18))))*$L$23*(1-(SQRT(2)*Vin_rms_min*(SIN($Q166)/Vout)))))) -> 0.5406574394 | Y166: =R166*ABS(1/(Vout/(SQRT(2)*$C$25*SIN($Q166)))) -> 0.08455993808 | Z166: =S166*ABS(1/(Vout/(SQRT(2)*$C$25*SIN($Q166)))) -> 0.08307121022 | AA166: =T166*ABS(1/(Vout/(SQRT(2)*$C$25*SIN($Q166)))) -> 0.08215995573 | AB166: =U166*ABS(1/(Vout/(SQRT(2)*$C$25*SIN($Q166)))) -> 0.0840706964 | AC166: =V166*ABS(1/(Vout/(SQRT(2)*$C$25*SIN($Q166)))) -> 0.1261060446 | AD166: =W166*ABS(1/(Vout/(SQRT(2)*$C$25*SIN($Q166)))) -> 0.1681413928 | AF166: =1/(0.0000128*(R166+Y166+$G$23)) -> 40136.92925 | AG166: =1/(0.0000128*(S166+Z166+$H$23)) -> 84901.30519 | AH166: =1/(0.0000128*(T166+AA166+$I$23)) -> 109673.0273 | AI166: =1/(0.0000128*(U166+AB166+$J$23)) -> 220443.3654 | AJ166: =1/(0.0000128*(V166+AC166+$K$23)) -> 146962.2436 | AK166: =1/(0.0000128*(W166+AD166+$L$23)) -> 110221.6827
A167: Actual Value of the Bottom Divider Resistor: | B167: ROS3(actual) | C167: 50 | D167: kW | Q167: =Q166+0.01 -> 1.61 | R167: =(G$5*((90/$G$18)*(90/$G$18))/2)*(1+(SQRT(1+(4/(G$5*((90/$G$18)*(90/$G$18))))*$G$23*(1-(SQRT(2)*Vin_rms_min*(SIN($Q167)/Vout)))))) -> 0.2719205479 | S167: =(H$5*((90/$G$18)*(90/$G$18))/2)*(1+(SQRT(1+(4/(H$5*((90/$G$18)*(90/$G$18))))*$H$23*(1-(SQRT(2)*Vin_rms_min*(SIN($Q167)/Vout)))))) -> 0.2671302686 | T167: =(I$5*((90/$G$18)*(90/$G$18))/2)*(1+(SQRT(1+(4/(I$5*((90/$G$18)*(90/$G$18))))*$I$23*(1-(SQRT(2)*Vin_rms_min*(SIN($Q167)/Vout)))))) -> 0.2641981323 | U167: =(J$5*((90/$G$18)*(90/$G$18))/2)*(1+(SQRT(1+(4/(J$5*((90/$G$18)*(90/$G$18))))*$J$23*(1-(SQRT(2)*Vin_rms_min*(SIN($Q167)/Vout)))))) -> 0.2703287197 | V167: =(K$5*((90/$G$18)*(90/$G$18))/2)*(1+(SQRT(1+(4/(K$5*((90/$G$18)*(90/$G$18))))*$K$23*(1-(SQRT(2)*Vin_rms_min*(SIN($Q167)/Vout)))))) -> 0.4054930796 | W167: =(L$5*((90/$G$18)*(90/$G$18))/2)*(1+(SQRT(1+(4/(L$5*((90/$G$18)*(90/$G$18))))*$L$23*(1-(SQRT(2)*Vin_rms_min*(SIN($Q167)/Vout)))))) -> 0.5406574394 | Y167: =R167*ABS(1/(Vout/(SQRT(2)*$C$25*SIN($Q167)))) -> 0.08453681476 | Z167: =S167*ABS(1/(Vout/(SQRT(2)*$C$25*SIN($Q167)))) -> 0.08304757477 | AA167: =T167*ABS(1/(Vout/(SQRT(2)*$C$25*SIN($Q167)))) -> 0.08213600899 | AB167: =U167*ABS(1/(Vout/(SQRT(2)*$C$25*SIN($Q167)))) -> 0.0840419346 | AC167: =V167*ABS(1/(Vout/(SQRT(2)*$C$25*SIN($Q167)))) -> 0.1260629019 | AD167: =W167*ABS(1/(Vout/(SQRT(2)*$C$25*SIN($Q167)))) -> 0.1680838692 | AF167: =1/(0.0000128*(R167+Y167+$G$23)) -> 40137.02098 | AG167: =1/(0.0000128*(S167+Z167+$H$23)) -> 84902.06601 | AH167: =1/(0.0000128*(T167+AA167+$I$23)) -> 109674.6533 | AI167: =1/(0.0000128*(U167+AB167+$J$23)) -> 220461.2573 | AJ167: =1/(0.0000128*(V167+AC167+$K$23)) -> 146974.1715 | AK167: =1/(0.0000128*(W167+AD167+$L$23)) -> 110230.6286
